Workbook

Sheet 综合信息表 (hidden)
D1: 综 合 信 息 表
A2: 序号 | B2: 名 称 | C2: 内 容 | E2: 序号 | F2: 名 称 | G2: 内 容
A3: 1 | B3: 建设项目名称 | C3: 建设项目名称: | E3: 1 | F3: 表格编号
A4: 2 | B4: 单项工程名称 | C4: 单项工程名称：2023年景德镇电信乐平水利枢纽工程建设杆线迁改工程 | F4: 表一编号 | G4: 表格编号:TXL-1
A5: 3 | B5: 单位工程名称 | F5: 表二编号 | G5: 表格编号:TXL-2
A6: 4 | B6: 建设单位名称 | C6: 建设单位名称:中国电信股份有限公司景德镇分公司 | F6: 表三甲编号 | G6: 表格编号:TXL-3甲
A7: 5 | B7: 第几页 | C7: 第全页 | F7: 表三乙编号 | G7: 表格编号:TXL-3乙
A8: 6 | B8: 设计负责人 | C8: 设计负责人: | F8: 表三丙编号 | G8: 表格编号:TXL-3丙
A9: 7 | B9: 审核人 | C9: 审核: | F9: 表四甲安设编号
A10: 8 | B10: 编制人 | C10: 编制: | F10: 表四乙备设编号
A11: 9 | B11: 编制日期 | C11: 编制日期: 2023 年05月 | F11: 表四甲不安设编号
F12: 表四主材编号 | G12: 表格编号:TXL-4甲A
A13: 序号 | B13: 名 称 | C13: 内 容 | E13: 2 | F13: 表五编号 | G13: 表格编号:TXL-5甲
A14: 1 | B14: 供货地点 | E14: 3
A15: 2 | B15: 工程性质 | C15: 线路新建 | E15: 4
A16: 3 | B16: 工程类别 | C16: 四类工程 | E16: 5
A17: 4 | B17: 施工队伍调遣里程 | E17: 6 | F17: 国外运保费率
A18: 5 | B18: 施工队伍 | C18: 四类 | E18: 7
A19: 6 | E19: 8 | F19: 主干设备总价
A20: 7 | E20: 9 | F20: 网络设备总价
A21: 8 | B21: 用户线数 | E21: 10 | F21: 运输保险费
A22: 9 | B22: 交换中继线 | E22: 11 | F22: 以上一地一价
A23: 10 | B23: 接入中继 | E23: 12
A24: 11 | B24: 总计 | C24: =SUM(C21:C23) -> 0 | E24: 13
A25: 12 | E25: 14
A26: 13 | E26: 15
A27: 14 | E27: 16
A28: 15 | E28: 17
A29: 16 | E29: 18
A30: 17 | E30: 19
A31: 18 | E31: 20
A32: 19 | E32: 21
A33: 20 | E33: 22
A34: 21 | E34: 23
A35: 22 | E35: 24
A36: 23 | E36: 25
A37: 24 | E37: 26
G38: 地区邮电局 局

Sheet 表一
A1: 工程预算总表（表一）
A2: =ASC(综合信息表!C3) -> 建设项目名称:
A3: =ASC(综合信息表!C4) -> 单项工程名称:2023年景德镇电信乐平水利枢纽工程建设杆线迁改工程 | F3: =ASC(综合信息表!C6) -> 建设单位名称:中国电信股份有限公司景德镇分公司 | K3: =ASC(综合信息表!G4) -> 表格编号:TXL-1 | M3: 第全页
A4: 序 号 | B4: 表格编号 | C4: 费用名称 | D4: 小型建筑工程费 | E4: 需要安装的设备费 | F4: 不需要安装的设备、工器具费 | G4: 建筑安装工程费 | H4: 其他费用 | I4: 预备费 | J4: 总 价 值
D5: （元） | J5: 除税价 | K5: 增值税 | L5: 含税价 | M5: 其中外币（）
A6: Ⅰ | B6: Ⅱ | C6: Ⅲ | D6: Ⅳ | E6: Ⅴ | F6: Ⅵ | G6: Ⅶ | H6: Ⅷ | I6: Ⅸ | J6: Ⅹ | K6: Ⅺ | L6: Ⅻ | M6: XⅢ
A7: 1 | C7: 建筑安装工程费 | G7: =表二!D7 -> 100014.50 | J7: =G7 -> 100014.50 | K7: 0.00 | L7: =J7+K7 -> 100014.50
C8: 工程建设其他费用 | H8: =表五甲!D21 -> 2000.29 | J8: =表五甲!D21 -> 2000.29 | K8: =表五甲!E21 -> 0.00 | L8: =J8+K8 -> 2000.29
A9: 2 | C9: 合计 | G9: =G7 -> 100014.50 | H9: =H8 -> 2000.29 | J9: =J7+J8 -> 102014.79 | K9: =K7+K8 -> 0.00 | L9: 102014.79
A10: 3 | C10: 预备费
A11: 4 | C11: 建设期利息
A12: 5 | C12: 总计 | J12: =SUM(J9:J11) -> 102014.79 | K12: =SUM(K9:K11) -> 0.00 | L12: 102014.79
A13: 6 | C13: 其中回收费用
A14: 7
A15: 8
A16: 9
A17: 10
A18: 11
A19: 12
A20: 13
A21: 14
A22: 15
A23: =ASC(综合信息表!C8) -> 设计负责人: | D23: =ASC(综合信息表!C9) -> 审核: | H23: =ASC(综合信息表!C10) -> 编制: | M23: =ASC(综合信息表!C11) -> 编制日期: 2023 年05月

Sheet 表二
A1: 建筑安装工程费用预算表（表二）
A2: =ASC(综合信息表!C3) -> 建设项目名称:
A3: =ASC(综合信息表!C4) -> 单项工程名称:2023年景德镇电信乐平水利枢纽工程建设杆线迁改工程 | G3: =ASC(综合信息表!C6) -> 建设单位名称:中国电信股份有限公司景德镇分公司 | H3: =ASC(综合信息表!G5) -> 表格编号:TXL-2 | I3: 第全页
A4: 序号 | B4: 费用名称 | C4: 依据和计算方法 | D4: 合计 | F4: 序号 | G4: 费用名称 | H4: 依据和计算方法 | I4: 合计
A5: Ⅰ | B5: Ⅱ | C5: Ⅲ | D5: Ⅳ | F5: Ⅰ | G5: Ⅱ | H5: Ⅲ | I5: Ⅳ
F6: 7 | G6: 夜间施工增加费 | H6: 人工费×2.50% | I6: =SUM(D10*0.025) -> 701.83
B7: 建筑安装工程费（含税价） | C7: 一+二+三+四 | D7: =(D8+I15+I22+I23)+表三丙!J1029+表三丙!J1008 -> 100014.50 | F7: 8 | G7: 冬雨季施工增加费 | H7: 人工费×1.80% | I7: =SUM(D10*0.018) -> 505.32
A8: 一 | B8: 直接费 | C8: （一）+（二） | D8: =SUM(D9+D18) -> 75185.42 | F8: 9 | G8: 生产工具用具使用费 | H8: 人工费×1.50% | I8: =SUM(D10*0.015) -> 421.10
A9: （一） | B9: 直接工程费 | C9: 1+2+3+4 | D9: =D10+D13+D16+D17 -> 66875.75 | F9: 10 | G9: 施工用水电蒸气费 | H9: 按实计列
A10: 1 | B10: 人工费 | C10: ⑴＋⑵ | D10: =D11+D12 -> 28073.23 | F10: 11 | G10: 特殊地区施工增加费
A11: ⑴ | B11: 技工费 | C11: 技工总工日×114元 | D11: =SUM('表三 甲'!H1776*114) -> 22828.99 | F11: 12 | G11: 已完工程及设备保护费 | H11: 人工费×2.00% | I11: =SUM(D10*0.02) -> 561.46
A12: ⑵ | B12: 普工费 | C12: 普工总工日×61元 | D12: =SUM('表三 甲'!I1776*61) -> 5244.24 | F12: 13 | G12: 运土费
A13: 2 | B13: 材料费 | C13: ⑴＋⑵ | D13: =D14+D15 -> 25638.98 | F13: 14 | G13: 施工队伍调遣费 | H13: 35KM以外计取
A14: ⑴ | B14: 主要材料费 | C14: 国内主要材料费 | D14: =SUM(表四甲!G381) -> 25562.30 | F14: 15 | G14: 大型施工机械调遣费 | H14: 2×[单程运价×调遣运距×总吨位]
A15: ⑵ | B15: 辅助材料费 | C15: 主要材料费×0.30% | D15: =SUM(D14*0.003) -> 76.69 | F15: 二 | G15: 间接费 | H15: （一）+（二） | I15: =SUM(I16+I21) -> 17149.93
A16: 3 | B16: 机械使用费 | C16: 机械费合计 | D16: =表三乙!J691 -> 3571.09 | F16: （一） | G16: 规费 | H16: 1＋2＋3＋4 | I16: =SUM(I17+I18+I19+I20) -> 9457.87
A17: 4 | B17: 仪表使用费 | C17: 仪表费合计 | D17: =表三丙!J1002 -> 9592.45 | F17: 1 | G17: 工程排污费 | H17: 按施工所在地政府部门相关规定
A18: （二） | B18: 措施费项目费 | C18: 1+2+3+…+15 | D18: =SUM(D19+D20+D21+D22+D23+D24+I6+I7+I8+I9+I10+I11+I12+I13+I14) -> 8309.68 | F18: 2 | G18: 社会保障费 | H18: 人工费×28.50% | I18: =SUM(D10*0.285) -> 8000.87
A19: 1 | B19: 文明施工费 | C19: 人工费×1.50% | D19: =SUM(D10*0.015) -> 421.10 | F19: 3 | G19: 住房公积金 | H19: 人工费×4.19% | I19: =SUM(D10*0.0419) -> 1176.27
A20: 2 | B20: 工地器材搬运费 | C20: 人工费×3.40% | D20: =SUM(D10*0.034) -> 954.49 | F20: 4 | G20: 危险作业意外伤害保险费 | H20: 人工费×1.00% | I20: =SUM(D10*0.01) -> 280.73
A21: 3 | B21: 工程干扰费 | C21: 人工费×6.00% | D21: =SUM(D10*0.06) -> 1684.39 | F21: （二） | G21: 企业管理费 | H21: 人工费×27.40% | I21: =SUM(D10*0.274) -> 7692.06
A22: 4 | B22: 工程点交、场地清理费 | C22: 人工费×3.30% | D22: =SUM(D10*0.033) -> 926.42 | F22: 三 | G22: 利润 | H22: 人工费×20.00% | I22: =SUM(D10*0.2) -> 5614.65
A23: 5 | B23: 临时设施费 | C23: 人工费×2.6%（≤35KM） | D23: =SUM(D10*0.026) -> 729.90 | F23: 四 | G23: 销项税额 | H23: （人工费+乙供主材费+仪表使用费+措施费+间接费+利润）×3%+辅材费*3%+甲供主材费×适用税率。 | I23: =((D10+D17+D18+I15+I22)*3%)+D15*3%+表三丙!J1008*3% -> 2064.50
A24: 6 | B24: 工程车辆使用费 | C24: 人工费×5.00% | D24: =SUM(D10*0.05) -> 1403.66
A25: =ASC(综合信息表!C8) -> 设计负责人: | C25: =ASC(综合信息表!C9) -> 审核: | G25: =ASC(综合信息表!C10) -> 编制: | I25: =ASC(综合信息表!C11) -> 编制日期: 2023 年05月

Sheet 表三 甲
A1: 建筑安装工程费用预算表（表三）甲
A2: =ASC(综合信息表!C3) -> 建设项目名称:
A3: =ASC(综合信息表!C4) -> 单项工程名称:2023年景德镇电信乐平水利枢纽工程建设杆线迁改工程 | D3: =ASC(综合信息表!C6) -> 建设单位名称:中国电信股份有限公司景德镇分公司 | G3: =ASC(综合信息表!G6) -> 表格编号:TXL-3甲 | I3: 第全页
A4: 序号 | B4: 定额编号 | C4: 项目名称 | D4: 单位 | E4: 数量 | F4: 单位定额值（工日） | H4: 合计值（工日）
F5: 技工 | G5: 普工 | H5: 技工 | I5: 普工
A6: Ⅰ | B6: Ⅱ | C6: Ⅲ | D6: Ⅳ | E6: Ⅴ | F6: Ⅵ | G6: Ⅶ | H6: Ⅷ | I6: Ⅸ
A7: =SUBTOTAL(3,$B7:B$7) -> 0 | B7: TXL1-001 | C7: 光（电）缆工程施工测量 直埋 | D7: 100m | F7: 0.56 | G7: 0.14 | H7: =E7*F7 -> 0.00 | I7: =E7*G7 -> 0.00
A8: =SUBTOTAL(3,$B$7:B8) -> 1 | B8: TXL1-002 | C8: 光（电）缆工程施工测量 架空 | D8: 100m | E8: 1.040 | F8: 0.46 | G8: 0.12 | H8: =E8*F8 -> 0.48 | I8: =E8*G8 -> 0.12
A9: =SUBTOTAL(3,$B$7:B9) -> 2 | B9: TXL1-003 | C9: 光（电）缆工程施工测量 管道 | D9: 100m | E9: 0.450 | F9: 0.35 | G9: 0.09 | H9: 0.16 | I9: 0.04
A10: =SUBTOTAL(3,$B$7:B10) -> 2 | B10: TXL1-004 | C10: 光（电）缆工程施工测量 海上 | D10: 100m | F10: 4.25 | G10: 0.00 | H10: 0.00 | I10: 0.00
A11: =SUBTOTAL(3,$B$7:B11) -> 3 | B11: TXL1-005 | C11: GPS 定位 | D11: 点 | E11: 8.000 | F11: 0.05 | G11: 0.00 | H11: 0.40 | I11: 0.00
A12: =SUBTOTAL(3,$B$7:B12) -> 4 | B12: TXL1-006 | C12: 单盘检验 光缆 | D12: 芯盘 | E12: =8+12+24+48 -> 92.000 | F12: 0.02 | G12: 0.00 | H12: 1.84 | I12: 0.00
A13: =SUBTOTAL(3,$B$7:B13) -> 4 | B13: TXL1-007 | C13: 单盘检验 电缆 | D13: 百对盘 | F13: 0.50 | G13: 0.00 | H13: 0.00 | I13: 0.00
A14: =SUBTOTAL(3,$B$7:B14) -> 4 | B14: TXL1-008 | C14: 人工开挖路面 混凝土 100 以下 | D14: 100m2 | F14: 3.33 | G14: 24.25 | H14: 0.00 | I14: 0.00
A15: =SUBTOTAL(3,$B$7:B15) -> 4 | B15: TXL1-009 | C15: 人工开挖路面 混凝土 每增加 10 | D15: 100m2 | F15: 0.33 | G15: 1.75 | H15: 0.00 | I15: 0.00
A16: =SUBTOTAL(3,$B$7:B16) -> 4 | B16: TXL1-010 | C16: 人工开挖路面 沥青柏油 100 以下 | D16: 100m2 | F16: 1.88 | G16: 13.00 | H16: 0.00 | I16: 0.00
A17: =SUBTOTAL(3,$B$7:B17) -> 4 | B17: TXL1-011 | C17: 人工开挖路面 沥青柏油 每增加 10 | D17: 100m2 | F17: 0.19 | G17: 1.25 | H17: 0.00 | I17: 0.00
A18: =SUBTOTAL(3,$B$7:B18) -> 4 | B18: TXL1-012 | C18: 人工开挖路面 砂石 100 以下 | D18: 100m2 | F18: 1.04 | G18: 6.29 | H18: 0.00 | I18: 0.00
A19: =SUBTOTAL(3,$B$7:B19) -> 4 | B19: TXL1-013 | C19: 人工开挖路面 砂石 每增加 10 | D19: 100m2 | F19: 0.09 | G19: 0.59 | H19: 0.00 | I19: 0.00
A20: =SUBTOTAL(3,$B$7:B20) -> 4 | B20: TXL1-014 | C20: 人工开挖路面 混凝土砌块 | D20: 100m2 | F20: 0.38 | G20: 3.75 | H20: 0.00 | I20: 0.00
A21: =SUBTOTAL(3,$B$7:B21) -> 4 | B21: TXL1-015 | C21: 人工开挖路面 水泥花砖 | D21: 100m2 | F21: 0.31 | G21: 2.88 | H21: 0.00 | I21: 0.00
A22: =SUBTOTAL(3,$B$7:B22) -> 4 | B22: TXL1-016 | C22: 人工开挖路面 条石 | D22: 100m2 | F22: 5.00 | G22: 25.88 | H22: 0.00 | I22: 0.00
A23: =SUBTOTAL(3,$B$7:B23) -> 4 | B23: TXL1-017 | C23: 机械开挖路面 混凝土 100 以下 | D23: 100m2 | F23: 0.00 | G23: 4.25 | H23: 0.00 | I23: 0.00
A24: =SUBTOTAL(3,$B$7:B24) -> 4 | B24: TXL1-018 | C24: 机械开挖路面 混凝土 每增加 10 | D24: 100m2 | F24: 0.00 | G24: 0.38 | H24: 0.00 | I24: 0.00
A25: =SUBTOTAL(3,$B$7:B25) -> 4 | B25: TXL1-019 | C25: 机械开挖路面 沥青柏油 100 以下 | D25: 100m2 | F25: 0.00 | G25: 3.25 | H25: 0.00 | I25: 0.00
A26: =SUBTOTAL(3,$B$7:B26) -> 4 | B26: TXL1-020 | C26: 机械开挖路面 沥青柏油 每增加 10 | D26: 100m2 | F26: 0.00 | G26: 0.08 | H26: 0.00 | I26: 0.00
A27: =SUBTOTAL(3,$B$7:B27) -> 4 | B27: TXL1-021 | C27: 机械开挖路面 砂石 100 以下 | D27: 100m2 | F27: 0.00 | G27: 4.25 | H27: 0.00 | I27: 0.00
A28: =SUBTOTAL(3,$B$7:B28) -> 4 | B28: TXL1-022 | C28: 机械开挖路面 砂石 每增加 10 | D28: 100m2 | F28: 0.00 | G28: 0.13 | H28: 0.00 | I28: 0.00
A29: =SUBTOTAL(3,$B$7:B29) -> 4 | B29: TXL2-001 | C29: 挖、松填光（电）缆沟及接头坑 普通土 | D29: 百立方米 | F29: 0.00 | G29: 39.38 | H29: 0.00 | I29: 0.00
A30: =SUBTOTAL(3,$B$7:B30) -> 4 | B30: TXL2-002 | C30: 挖、松填光（电）缆沟及接头坑 硬土 | D30: 百立方米 | F30: 0.00 | G30: 51.50 | H30: 0.00 | I30: 0.00
A31: =SUBTOTAL(3,$B$7:B31) -> 4 | B31: TXL2-003 | C31: 挖、松填光（电）缆沟及接头坑 砂砾土 | D31: 百立方米 | F31: 0.00 | G31: 62.13 | H31: 0.00 | I31: 0.00
A32: =SUBTOTAL(3,$B$7:B32) -> 4 | B32: TXL2-004 | C32: 挖、松填光（电）缆沟及接头坑 冻土 | D32: 百立方米 | F32: 0.00 | G32: 139.50 | H32: 0.00 | I32: 0.00
A33: =SUBTOTAL(3,$B$7:B33) -> 4 | B33: TXL2-005 | C33: 挖、松填光（电）缆沟及接头坑 软石 | D33: 百立方米 | F33: 5.55 | G33: 262.25 | H33: 0.00 | I33: 0.00
A34: =SUBTOTAL(3,$B$7:B34) -> 4 | B34: TXL2-006 | C34: 挖、松填光（电）缆沟及接头坑 坚石（人工） | D34: 百立方米 | F34: 36.20 | G34: 455.50 | H34: 0.00 | I34: 0.00
A35: =SUBTOTAL(3,$B$7:B35) -> 4 | B35: TXL2-007 | C35: 挖、夯填光（电）缆沟及接头坑 普通土 | D35: 百立方米 | E35: =((0.8*0.8*10/6*1.33)/100*表四甲!E73)*2 -> 0 | F35: 0.00 | G35: 40.88 | H35: 0.00 | I35: 0.00
A36: =SUBTOTAL(3,$B$7:B36) -> 4 | B36: TXL2-008 | C36: 挖、夯填光（电）缆沟及接头坑 硬土 | D36: 百立方米 | F36: 0.00 | G36: 55.00 | H36: 0.00 | I36: 0.00
A37: =SUBTOTAL(3,$B$7:B37) -> 4 | B37: TXL2-009 | C37: 挖、夯填光（电）缆沟及接头坑 砂砾土 | D37: 百立方米 | F37: 0.00 | G37: 71.13 | H37: 0.00 | I37: 0.00
A38: =SUBTOTAL(3,$B$7:B38) -> 4 | B38: TXL2-010 | C38: 挖、夯填光（电）缆沟及接头坑 冻土 | D38: 百立方米 | F38: 0.00 | G38: 145.50 | H38: 0.00 | I38: 0.00
A39: =SUBTOTAL(3,$B$7:B39) -> 4 | B39: TXL2-011 | C39: 挖、夯填光（电）缆沟及接头坑 软石 | D39: 百立方米 | F39: 6.55 | G39: 270.25 | H39: 0.00 | I39: 0.00
A40: =SUBTOTAL(3,$B$7:B40) -> 4 | B40: TXL2-012 | C40: 挖、夯填光（电）缆沟及接头坑 坚石（人工） | D40: 百立方米 | F40: 38.20 | G40: 480.50 | H40: 0.00 | I40: 0.00
A41: =SUBTOTAL(3,$B$7:B41) -> 4 | B41: TXL2-013 | C41: 石质沟铺盖细土 | D41: 沟千米 | F41: 0.00 | G41: 6.00 | H41: 0.00 | I41: 0.00
A42: =SUBTOTAL(3,$B$7:B42) -> 4 | B42: TXL2-014 | C42: 手推车倒运土方 | D42: 百立方米 | E42: =E35*0.2 -> 0 | F42: 0.00 | G42: 12.00 | H42: 0.00 | I42: 0.00
A43: =SUBTOTAL(3,$B$7:B43) -> 4 | B43: TXL2-015 | C43: 平原地区敷设埋式光缆 36 芯以下 | D43: 千米条 | F43: 5.88 | G43: 26.88 | H43: 0.00 | I43: 0.00
A44: =SUBTOTAL(3,$B$7:B44) -> 4 | B44: TXL2-016 | C44: 平原地区敷设埋式光缆 72 芯以下 | D44: 千米条 | F44: 8.20 | G44: 29.26 | H44: 0.00 | I44: 0.00
A45: =SUBTOTAL(3,$B$7:B45) -> 4 | B45: TXL2-017 | C45: 平原地区敷设埋式光缆 96 芯以下 | D45: 千米条 | F45: 10.42 | G45: 30.94 | H45: 0.00 | I45: 0.00
A46: =SUBTOTAL(3,$B$7:B46) -> 4 | B46: TXL2-018 | C46: 平原地区敷设埋式光缆 144 芯以下 | D46: 千米条 | F46: 12.63 | G46: 32.62 | H46: 0.00 | I46: 0.00
A47: =SUBTOTAL(3,$B$7:B47) -> 4 | B47: TXL2-019 | C47: 平原地区敷设埋式光缆 288 芯以下 | D47: 千米条 | F47: 14.85 | G47: 34.30 | H47: 0.00 | I47: 0.00
A48: =SUBTOTAL(3,$B$7:B48) -> 4 | B48: TXL2-020 | C48: 平原地区敷设埋式光缆 288 芯以上 | D48: 千米条 | F48: 18.18 | G48: 36.82 | H48: 0.00 | I48: 0.00
A49: =SUBTOTAL(3,$B$7:B49) -> 4 | B49: TXL2-021 | C49: 丘陵、水田、城区敷设埋式光缆 36 芯以下 | D49: 千米条 | F49: 7.44 | G49: 30.58 | H49: 0.00 | I49: 0.00
A50: =SUBTOTAL(3,$B$7:B50) -> 4 | B50: TXL2-022 | C50: 丘陵、水田、城区敷设埋式光缆 72 芯以下 | D50: 千米条 | F50: 10.05 | G50: 33.69 | H50: 0.00 | I50: 0.00
A51: =SUBTOTAL(3,$B$7:B51) -> 4 | B51: TXL2-023 | C51: 丘陵、水田、城区敷设埋式光缆 96 芯以下 | D51: 千米条 | F51: 12.76 | G51: 36.52 | H51: 0.00 | I51: 0.00
A52: =SUBTOTAL(3,$B$7:B52) -> 4 | B52: TXL2-024 | C52: 丘陵、水田、城区敷设埋式光缆 144 芯以下 | D52: 千米条 | F52: 15.50 | G52: 38.44 | H52: 0.00 | I52: 0.00
A53: =SUBTOTAL(3,$B$7:B53) -> 4 | B53: TXL2-025 | C53: 丘陵、水田、城区敷设埋式光缆 288 芯以下 | D53: 千米条 | F53: 17.88 | G53: 41.25 | H53: 0.00 | I53: 0.00
A54: =SUBTOTAL(3,$B$7:B54) -> 4 | B54: TXL2-026 | C54: 丘陵、水田、城区敷设埋式光缆 288 芯以上 | D54: 千米条 | F54: 22.10 | G54: 45.00 | H54: 0.00 | I54: 0.00
A55: =SUBTOTAL(3,$B$7:B55) -> 4 | B55: TXL2-027 | C55: 山区敷设埋式光缆 36 芯以下 | D55: 千米条 | F55: 9.05 | G55: 40.22 | H55: 0.00 | I55: 0.00
A56: =SUBTOTAL(3,$B$7:B56) -> 4 | B56: TXL2-028 | C56: 山区敷设埋式光缆 72 芯以下 | D56: 千米条 | F56: 12.55 | G56: 43.54 | H56: 0.00 | I56: 0.00
A57: =SUBTOTAL(3,$B$7:B57) -> 4 | B57: TXL2-029 | C57: 山区敷设埋式光缆 96 芯以下 | D57: 千米条 | F57: 15.86 | G57: 47.10 | H57: 0.00 | I57: 0.00
A58: =SUBTOTAL(3,$B$7:B58) -> 4 | B58: TXL2-030 | C58: 山区敷设埋式光缆 144 芯以下 | D58: 千米条 | F58: 19.20 | G58: 50.14 | H58: 0.00 | I58: 0.00
A59: =SUBTOTAL(3,$B$7:B59) -> 4 | B59: TXL2-031 | C59: 山区敷设埋式光缆 288 芯以下 | D59: 千米条 | F59: 22.53 | G59: 53.13 | H59: 0.00 | I59: 0.00
A60: =SUBTOTAL(3,$B$7:B60) -> 4 | B60: TXL2-032 | C60: 山区敷设埋式光缆 288 芯以上 | D60: 千米条 | F60: 27.50 | G60: 57.46 | H60: 0.00 | I60: 0.00
A61: =SUBTOTAL(3,$B$7:B61) -> 4 | B61: TXL2-033 | C61: 敷设埋式电缆 200 对以下 | D61: 千米条 | F61: 8.35 | G61: 22.84 | H61: 0.00 | I61: 0.00
A62: =SUBTOTAL(3,$B$7:B62) -> 4 | B62: TXL2-034 | C62: 敷设埋式电缆 400 对以下 | D62: 千米条 | F62: 9.49 | G62: 25.91 | H62: 0.00 | I62: 0.00
A63: =SUBTOTAL(3,$B$7:B63) -> 4 | B63: TXL2-035 | C63: 敷设埋式电缆 600 对以下 | D63: 千米条 | F63: 11.08 | G63: 30.23 | H63: 0.00 | I63: 0.00
A64: =SUBTOTAL(3,$B$7:B64) -> 4 | B64: TXL2-036 | C64: 敷设埋式电缆 600 对以上 | D64: 千米条 | F64: 13.51 | G64: 36.76 | H64: 0.00 | I64: 0.00
A65: =SUBTOTAL(3,$B$7:B65) -> 4 | B65: TXL2-037 | C65: 砖砌专用塑料管道光缆手孔 Ⅰ型 （1.2×0.9×1.0） | D65: 个 | F65: 6.40 | G65: 6.14 | H65: 0.00 | I65: 0.00
A66: =SUBTOTAL(3,$B$7:B66) -> 4 | B66: TXL2-038 | C66: 砖砌专用塑料管道光缆手孔 Ⅱ型 （2.6×0.9×1.0） | D66: 个 | F66: 8.67 | G66: 8.33 | H66: 0.00 | I66: 0.00
A67: =SUBTOTAL(3,$B$7:B67) -> 4 | B67: TXL2-039 | C67: 砖砌专用塑料管道光缆手孔 Ⅲ型 （1.2×0.9×0.7） | D67: 个 | F67: 5.12 | G67: 4.91 | H67: 0.00 | I67: 0.00
A68: =SUBTOTAL(3,$B$7:B68) -> 4 | B68: TXL2-040 | C68: 砖砌专用塑料管道光缆手孔 Ⅳ型 （2.6×0.9×0.7） | D68: 个 | F68: 6.94 | G68: 6.66 | H68: 0.00 | I68: 0.00
A69: =SUBTOTAL(3,$B$7:B69) -> 4 | B69: TXL2-041 | C69: 埋设定型手孔 | D69: 个 | F69: 1.00 | G69: 2.00 | H69: 0.00 | I69: 0.00
A70: =SUBTOTAL(3,$B$7:B70) -> 4 | B70: TXL2-042 | C70: 平原地区人工敷设小口径塑料管 1 管 | D70: km | F70: 4.10 | G70: 15.73 | H70: 0.00 | I70: 0.00
A71: =SUBTOTAL(3,$B$7:B71) -> 4 | B71: TXL2-043 | C71: 平原地区人工敷设小口径塑料管 2 管 | D71: km | F71: 7.50 | G71: 29.41 | H71: 0.00 | I71: 0.00
A72: =SUBTOTAL(3,$B$7:B72) -> 4 | B72: TXL2-044 | C72: 平原地区人工敷设小口径塑料管 3 管 | D72: km | F72: 11.65 | G72: 45.40 | H72: =E72*F72 -> 0.00 | I72: =E72*G72 -> 0.00
A73: =SUBTOTAL(3,$B$7:B73) -> 4 | B73: TXL2-045 | C73: 平原地区人工敷设小口径塑料管 4 管 | D73: km | F73: 15.05 | G73: 58.50 | H73: 0.00 | I73: 0.00
A74: =SUBTOTAL(3,$B$7:B74) -> 4 | B74: TXL2-046 | C74: 平原地区人工敷设小口径塑料管 5 管 | D74: km | F74: 19.22 | G74: 71.60 | H74: 0.00 | I74: 0.00
A75: =SUBTOTAL(3,$B$7:B75) -> 4 | B75: TXL2-047 | C75: 平原地区人工敷设小口径塑料管 6 管 | D75: km | F75: 22.60 | G75: 84.80 | H75: 0.00 | I75: 0.00
A76: =SUBTOTAL(3,$B$7:B76) -> 4 | B76: TXL2-048 | C76: 平原地区人工敷设小口径塑料管 7 管 | D76: km | F76: 25.60 | G76: 99.50 | H76: 0.00 | I76: 0.00
A77: =SUBTOTAL(3,$B$7:B77) -> 4 | B77: TXL2-049 | C77: 平原地区人工敷设小口径塑料管 8 管 | D77: km | F77: 29.10 | G77: 112.45 | H77: 0.00 | I77: 0.00
A78: =SUBTOTAL(3,$B$7:B78) -> 4 | B78: TXL2-050 | C78: 平原地区人工敷设小口径塑料管 9 管 | D78: km | F78: 33.10 | G78: 128.20 | H78: 0.00 | I78: 0.00
A79: =SUBTOTAL(3,$B$7:B79) -> 4 | B79: TXL2-051 | C79: 平原地区人工敷设小口径塑料管 10 管 | D79: km | F79: 36.50 | G79: 141.00 | H79: 0.00 | I79: 0.00
A80: =SUBTOTAL(3,$B$7:B80) -> 4 | B80: TXL2-052 | C80: 平原地区人工敷设小口径塑料管 11 管 | D80: km | F80: 39.80 | G80: 154.05 | H80: 0.00 | I80: 0.00
A81: =SUBTOTAL(3,$B$7:B81) -> 4 | B81: TXL2-053 | C81: 平原地区人工敷设小口径塑料管 12 管 | D81: km | F81: 43.20 | G81: 167.00 | H81: 0.00 | I81: 0.00
A82: =SUBTOTAL(3,$B$7:B82) -> 4 | B82: TXL2-054 | C82: 平原地区人工敷设小口径塑料管 13 管 | D82: km | F82: 47.30 | G82: 182.80 | H82: 0.00 | I82: 0.00
A83: =SUBTOTAL(3,$B$7:B83) -> 4 | B83: TXL2-055 | C83: 平原地区人工敷设小口径塑料管 14 管 | D83: km | F83: 50.60 | G83: 195.50 | H83: 0.00 | I83: 0.00
A84: =SUBTOTAL(3,$B$7:B84) -> 4 | B84: TXL2-056 | C84: 平原地区人工敷设小口径塑料管 15 管 | D84: km | F84: 54.00 | G84: 208.65 | H84: 0.00 | I84: 0.00
A85: =SUBTOTAL(3,$B$7:B85) -> 4 | B85: TXL2-057 | C85: 平原地区人工敷设小口径塑料管 16 管 | D85: km | F85: 57.40 | G85: 221.60 | H85: 0.00 | I85: 0.00
A86: =SUBTOTAL(3,$B$7:B86) -> 4 | B86: TXL2-058 | C86: 丘陵、城区、水田地区人工敷设小口径塑料管 1 管 | D86: km | F86: 4.80 | G86: 18.50 | H86: 0.00 | I86: 0.00
A87: =SUBTOTAL(3,$B$7:B87) -> 4 | B87: TXL2-059 | C87: 丘陵、城区、水田地区人工敷设小口径塑料管 2 管 | D87: km | F87: 8.80 | G87: 34.60 | H87: 0.00 | I87: 0.00
A88: =SUBTOTAL(3,$B$7:B88) -> 4 | B88: TXL2-060 | C88: 丘陵、城区、水田地区人工敷设小口径塑料管 3 管 | D88: km | F88: 13.70 | G88: 53.40 | H88: 0.00 | I88: 0.00
A89: =SUBTOTAL(3,$B$7:B89) -> 4 | B89: TXL2-061 | C89: 丘陵、城区、水田地区人工敷设小口径塑料管 4 管 | D89: km | F89: 17.70 | G89: 68.90 | H89: 0.00 | I89: 0.00
A90: =SUBTOTAL(3,$B$7:B90) -> 4 | B90: TXL2-062 | C90: 丘陵、城区、水田地区人工敷设小口径塑料管 5 管 | D90: km | F90: 22.40 | G90: 84.10 | H90: 0.00 | I90: 0.00
A91: =SUBTOTAL(3,$B$7:B91) -> 4 | B91: TXL2-063 | C91: 丘陵、城区、水田地区人工敷设小口径塑料管 6 管 | D91: km | F91: 26.60 | G91: 103.30 | H91: 0.00 | I91: 0.00
A92: =SUBTOTAL(3,$B$7:B92) -> 4 | B92: TXL2-064 | C92: 丘陵、城区、水田地区人工敷设小口径塑料管 7 管 | D92: km | F92: 30.30 | G92: 114.35 | H92: 0.00 | I92: 0.00
A93: =SUBTOTAL(3,$B$7:B93) -> 4 | B93: TXL2-065 | C93: 丘陵、城区、水田地区人工敷设小口径塑料管 8 管 | D93: km | F93: 34.60 | G93: 133.90 | H93: 0.00 | I93: 0.00
A94: =SUBTOTAL(3,$B$7:B94) -> 4 | B94: TXL2-066 | C94: 丘陵、城区、水田地区人工敷设小口径塑料管 9 管 | D94: km | F94: 39.00 | G94: 147.40 | H94: 0.00 | I94: 0.00
A95: =SUBTOTAL(3,$B$7:B95) -> 4 | B95: TXL2-067 | C95: 丘陵、城区、水田地区人工敷设小口径塑料管 10 管 | D95: km | F95: 43.00 | G95: 162.10 | H95: 0.00 | I95: 0.00
A96: =SUBTOTAL(3,$B$7:B96) -> 4 | B96: TXL2-068 | C96: 丘陵、城区、水田地区人工敷设小口径塑料管 11 管 | D96: km | F96: 46.90 | G96: 177.05 | H96: 0.00 | I96: 0.00
A97: =SUBTOTAL(3,$B$7:B97) -> 4 | B97: TXL2-069 | C97: 丘陵、城区、水田地区人工敷设小口径塑料管 12 管 | D97: km | F97: 51.40 | G97: 198.90 | H97: 0.00 | I97: 0.00
A98: =SUBTOTAL(3,$B$7:B98) -> 4 | B98: TXL2-070 | C98: 丘陵、城区、水田地区人工敷设小口径塑料管 13 管 | D98: km | F98: 55.80 | G98: 210.00 | H98: 0.00 | I98: 0.00
A99: =SUBTOTAL(3,$B$7:B99) -> 4 | B99: TXL2-071 | C99: 丘陵、城区、水田地区人工敷设小口径塑料管 14 管 | D99: km | F99: 59.50 | G99: 225.50 | H99: 0.00 | I99: 0.00
A100: =SUBTOTAL(3,$B$7:B100) -> 4 | B100: TXL2-072 | C100: 丘陵、城区、水田地区人工敷设小口径塑料管 15 管 | D100: km | F100: 63.20 | G100: 239.90 | H100: 0.00 | I100: 0.00
A101: =SUBTOTAL(3,$B$7:B101) -> 4 | B101: TXL2-073 | C101: 丘陵、城区、水田地区人工敷设小口径塑料管 16 管 | D101: km | F101: 67.00 | G101: 254.40 | H101: 0.00 | I101: 0.00
A102: =SUBTOTAL(3,$B$7:B102) -> 4 | B102: TXL2-074 | C102: 山区人工敷设小口径塑料管 1 管 | D102: km | F102: 5.70 | G102: 21.80 | H102: 0.00 | I102: 0.00
A103: =SUBTOTAL(3,$B$7:B103) -> 4 | B103: TXL2-075 | C103: 山区人工敷设小口径塑料管 2 管 | D103: km | F103: 10.60 | G103: 40.50 | H103: 0.00 | I103: 0.00
A104: =SUBTOTAL(3,$B$7:B104) -> 4 | B104: TXL2-076 | C104: 山区人工敷设小口径塑料管 3 管 | D104: km | F104: 16.50 | G104: 63.10 | H104: 0.00 | I104: 0.00
A105: =SUBTOTAL(3,$B$7:B105) -> 4 | B105: TXL2-077 | C105: 山区人工敷设小口径塑料管 4 管 | D105: km | F105: 21.20 | G105: 80.30 | H105: 0.00 | I105: 0.00
A106: =SUBTOTAL(3,$B$7:B106) -> 4 | B106: TXL2-078 | C106: 山区人工敷设小口径塑料管 5 管 | D106: km | F106: 26.80 | G106: 99.50 | H106: 0.00 | I106: 0.00
A107: =SUBTOTAL(3,$B$7:B107) -> 4 | B107: TXL2-079 | C107: 山区人工敷设小口径塑料管 6 管 | D107: km | F107: 32.00 | G107: 121.00 | H107: 0.00 | I107: 0.00
A108: =SUBTOTAL(3,$B$7:B108) -> 4 | B108: TXL2-080 | C108: 山区人工敷设小口径塑料管 7 管 | D108: km | F108: 36.40 | G108: 134.50 | H108: 0.00 | I108: 0.00
A109: =SUBTOTAL(3,$B$7:B109) -> 4 | B109: TXL2-081 | C109: 山区人工敷设小口径塑料管 8 管 | D109: km | F109: 41.50 | G109: 158.00 | H109: 0.00 | I109: 0.00
A110: =SUBTOTAL(3,$B$7:B110) -> 4 | B110: TXL2-082 | C110: 山区人工敷设小口径塑料管 9 管 | D110: km | F110: 46.80 | G110: 173.90 | H110: 0.00 | I110: 0.00
A111: =SUBTOTAL(3,$B$7:B111) -> 4 | B111: TXL2-083 | C111: 山区人工敷设小口径塑料管 10 管 | D111: km | F111: 51.60 | G111: 191.30 | H111: 0.00 | I111: 0.00
A112: =SUBTOTAL(3,$B$7:B112) -> 4 | B112: TXL2-084 | C112: 山区人工敷设小口径塑料管 11 管 | D112: km | F112: 56.30 | G112: 209.00 | H112: 0.00 | I112: 0.00
A113: =SUBTOTAL(3,$B$7:B113) -> 4 | B113: TXL2-085 | C113: 山区人工敷设小口径塑料管 12 管 | D113: km | F113: 61.70 | G113: 234.70 | H113: 0.00 | I113: 0.00
A114: =SUBTOTAL(3,$B$7:B114) -> 4 | B114: TXL2-086 | C114: 山区人工敷设小口径塑料管 13 管 | D114: km | F114: 67.00 | G114: 247.80 | H114: 0.00 | I114: 0.00
A115: =SUBTOTAL(3,$B$7:B115) -> 4 | B115: TXL2-087 | C115: 山区人工敷设小口径塑料管 14 管 | D115: km | F115: 71.40 | G115: 266.00 | H115: 0.00 | I115: 0.00
A116: =SUBTOTAL(3,$B$7:B116) -> 4 | B116: TXL2-088 | C116: 山区人工敷设小口径塑料管 15 管 | D116: km | F116: 75.85 | G116: 283.10 | H116: 0.00 | I116: 0.00
A117: =SUBTOTAL(3,$B$7:B117) -> 4 | B117: TXL2-089 | C117: 山区人工敷设小口径塑料管 16 管 | D117: km | F117: 80.40 | G117: 299.90 | H117: 0.00 | I117: 0.00
A118: =SUBTOTAL(3,$B$7:B118) -> 4 | B118: TXL2-090 | C118: 小口径塑料管试通 | D118: 孔千米 | F118: 0.63 | G118: 0.63 | H118: 0.00 | I118: 0.00
A119: =SUBTOTAL(3,$B$7:B119) -> 4 | B119: TXL2-091 | C119: 小口径塑料管道充气试验 | D119: 孔千米 | F119: 0.38 | G119: 0.38 | H119: 0.00 | I119: 0.00
A120: =SUBTOTAL(3,$B$7:B120) -> 4 | B120: TXL2-092 | C120: 地下定向钻孔敷管 工作孔径φ120mm 以下 30m 以下 | D120: 处 | F120: 2.64 | G120: 7.98 | H120: 0.00 | I120: 0.00
A121: =SUBTOTAL(3,$B$7:B121) -> 4 | B121: TXL2-093 | C121: 地下定向钻孔敷管 工作孔径φ120mm 以下 每增加 10m | D121: 10m | F121: 0.53 | G121: 1.60 | H121: 0.00 | I121: 0.00
A122: =SUBTOTAL(3,$B$7:B122) -> 4 | B122: TXL2-094 | C122: 地下定向钻孔敷管 工作孔径φ240mm 以下 30m 以下 | D122: 处 | F122: 3.96 | G122: 10.26 | H122: 0.00 | I122: 0.00
A123: =SUBTOTAL(3,$B$7:B123) -> 4 | B123: TXL2-095 | C123: 地下定向钻孔敷管 工作孔径φ240mm 以下 每增加 10m | D123: 10m | F123: 0.79 | G123: 2.05 | H123: 0.00 | I123: 0.00
A124: =SUBTOTAL(3,$B$7:B124) -> 4 | B124: TXL2-096 | C124: 地下定向钻孔敷管 工作孔径φ360mm 以下 30m 以下 | D124: 处 | F124: 5.94 | G124: 13.34 | H124: 0.00 | I124: 0.00
A125: =SUBTOTAL(3,$B$7:B125) -> 4 | B125: TXL2-097 | C125: 地下定向钻孔敷管 工作孔径φ360mm 以下 每增加 10m | D125: 10m | F125: 1.19 | G125: 2.67 | H125: 0.00 | I125: 0.00
A126: =SUBTOTAL(3,$B$7:B126) -> 4 | B126: TXL2-098 | C126: 地下定向钻孔敷管 工作孔径φ600mm 以下 30m 以下 | D126: 处 | F126: 8.91 | G126: 17.34 | H126: 0.00 | I126: 0.00
A127: =SUBTOTAL(3,$B$7:B127) -> 4 | B127: TXL2-099 | C127: 地下定向钻孔敷管 工作孔径φ600mm 以下 每增加 10m | D127: 10m | F127: 1.78 | G127: 3.47 | H127: 0.00 | I127: 0.00
A128: =SUBTOTAL(3,$B$7:B128) -> 4 | B128: TXL2-100 | C128: 地下定向钻孔敷管 工作孔径φ840mm 以下 30m 以下 | D128: 处 | F128: 13.66 | G128: 26.01 | H128: 0.00 | I128: 0.00
A129: =SUBTOTAL(3,$B$7:B129) -> 4 | B129: TXL2-101 | C129: 地下定向钻孔敷管 工作孔径φ840mm 以下 每增加 10m | D129: 10m | F129: 2.73 | G129: 5.20 | H129: 0.00 | I129: 0.00
A130: =SUBTOTAL(3,$B$7:B130) -> 4 | B130: TXL2-102 | C130: 地下定向钻孔敷管 工作孔径φ950mm 以下 30m 以下 | D130: 处 | F130: 17.49 | G130: 36.02 | H130: 0.00 | I130: 0.00
A131: =SUBTOTAL(3,$B$7:B131) -> 4 | B131: TXL2-103 | C131: 地下定向钻孔敷管 工作孔径φ950mm 以下 每增加 10m | D131: 10m | F131: 3.80 | G131: 6.80 | H131: 0.00 | I131: 0.00
A132: =SUBTOTAL(3,$B$7:B132) -> 4 | B132: TXL2-104 | C132: 桥挂钢管 | D132: m | F132: 0.10 | G132: 0.20 | H132: 0.00 | I132: 0.00
A133: =SUBTOTAL(3,$B$7:B133) -> 4 | B133: TXL2-105 | C133: 桥挂塑料管 | D133: m | F133: 0.05 | G133: 0.10 | H133: 0.00 | I133: 0.00
A134: =SUBTOTAL(3,$B$7:B134) -> 4 | B134: TXL2-106 | C134: 桥挂槽道 | D134: m | F134: 0.08 | G134: 0.15 | H134: 0.00 | I134: 0.00
A135: =SUBTOTAL(3,$B$7:B135) -> 4 | B135: TXL2-107 | C135: 人工顶管 | D135: m | F135: 1.00 | G135: 2.00 | H135: 0.00 | I135: 0.00
A136: =SUBTOTAL(3,$B$7:B136) -> 4 | B136: TXL2-108 | C136: 机械顶管 | D136: m | F136: 0.60 | G136: 0.20 | H136: =E136*F136 -> 0.00 | I136: =E136*G136 -> 0.00
A137: =SUBTOTAL(3,$B$7:B137) -> 4 | B137: TXL2-109 | C137: 铺管保护 钢管 | D137: m | F137: 0.03 | G137: 0.10 | H137: 0.00 | I137: 0.00
A138: =SUBTOTAL(3,$B$7:B138) -> 4 | B138: TXL2-110 | C138: 铺管保护 塑料管 | D138: m | F138: 0.01 | G138: 0.10 | H138: 0.00 | I138: 0.00
A139: =SUBTOTAL(3,$B$7:B139) -> 4 | B139: TXL2-111 | C139: 铺管保护 大长度半硬塑料管 | D139: 100m | F139: 1.50 | G139: 2.50 | H139: 0.00 | I139: 0.00
A140: =SUBTOTAL(3,$B$7:B140) -> 4 | B140: TXL2-112 | C140: 铺砖保护 横铺砖 | D140: km | F140: 2.00 | G140: 15.00 | H140: 0.00 | I140: 0.00
A141: =SUBTOTAL(3,$B$7:B141) -> 4 | B141: TXL2-113 | C141: 铺砖保护 竖铺砖 | D141: km | F141: 2.00 | G141: 10.00 | H141: 0.00 | I141: 0.00
A142: =SUBTOTAL(3,$B$7:B142) -> 4 | B142: TXL2-114 | C142: 铺水泥 盖板 | D142: km | F142: 2.00 | G142: 13.00 | H142: 0.00 | I142: 0.00
A143: =SUBTOTAL(3,$B$7:B143) -> 4 | B143: TXL2-115 | C143: 铺水泥槽 | D143: m | F143: 0.05 | G143: 0.10 | H143: 0.00 | I143: 0.00
A144: =SUBTOTAL(3,$B$7:B144) -> 4 | B144: TXL2-116 | C144: 石砌坡、 坎、堵塞 | D144: m3 | F144: 1.00 | G144: 2.58 | H144: 0.00 | I144: 0.00
A145: =SUBTOTAL(3,$B$7:B145) -> 4 | B145: TXL2-117 | C145: 三七土护 坎 | D145: m3 | F145: 0.20 | G145: 0.50 | H145: 0.00 | I145: 0.00
A146: =SUBTOTAL(3,$B$7:B146) -> 4 | B146: TXL2-118 | C146: 封石沟 | D146: m3 | F146: 0.90 | G146: 2.10 | H146: 0.00 | I146: 0.00
A147: =SUBTOTAL(3,$B$7:B147) -> 4 | B147: TXL2-119 | C147: 做漫水坝、 挡水墙 | D147: m3 | F147: 2.00 | G147: 5.16 | H147: 0.00 | I147: 0.00
A148: =SUBTOTAL(3,$B$7:B148) -> 4 | B148: TXL2-120 | C148: 埋设标石 平原 | D148: 个 | F148: 0.06 | G148: 0.12 | H148: 0.00 | I148: 0.00
A149: =SUBTOTAL(3,$B$7:B149) -> 4 | B149: TXL2-121 | C149: 埋设标石 丘陵、水 田、城区 | D149: 个 | F149: 0.07 | G149: 0.14 | H149: 0.00 | I149: 0.00
A150: =SUBTOTAL(3,$B$7:B150) -> 4 | B150: TXL2-122 | C150: 埋设标石 山区 | D150: 个 | F150: 0.09 | G150: 0.18 | H150: 0.00 | I150: 0.00
A151: =SUBTOTAL(3,$B$7:B151) -> 4 | B151: TXL2-123 | C151: 安装宣传 警示牌 | D151: 块 | F151: 0.10 | G151: 0.50 | H151: 0.00 | I151: 0.00
A152: =SUBTOTAL(3,$B$7:B152) -> 4 | B152: TXL2-124 | C152: 安装对地绝缘监测标石 | D152: 块 | F152: 0.26 | G152: 0.52 | H152: 0.00 | I152: 0.00
A153: =SUBTOTAL(3,$B$7:B153) -> 4 | B153: TXL2-125 | C153: 安装对地绝缘装置 | D153: 点 | F153: 0.70 | G153: 0.30 | H153: 0.00 | I153: 0.00
A154: =SUBTOTAL(3,$B$7:B154) -> 4 | B154: TXL2-126 | C154: 对地绝缘检查及处理 | D154: km | F154: 0.50 | G154: 0.00 | H154: 0.00 | I154: 0.00
A155: =SUBTOTAL(3,$B$7:B155) -> 4 | B155: TXL2-127 | C155: 安装防雷设施 敷设排流线（单条） | D155: km | F155: 2.20 | G155: 8.25 | H155: 0.00 | I155: 0.00
A156: =SUBTOTAL(3,$B$7:B156) -> 4 | B156: TXL2-128 | C156: 安装防雷设施 敷设排流线（双条） | D156: km | F156: 4.00 | G156: 15.00 | H156: 0.00 | I156: 0.00
A157: =SUBTOTAL(3,$B$7:B157) -> 4 | B157: TXL2-129 | C157: 安装防雷设施 安装消弧线 | D157: 处 | F157: 3.00 | G157: 17.00 | H157: 0.00 | I157: 0.00
A158: =SUBTOTAL(3,$B$7:B158) -> 4 | B158: TXL2-130 | C158: 安装防雷设施 安装避雷针 | D158: 处 | F158: 5.00 | G158: 10.00 | H158: 0.00 | I158: 0.00
A159: =SUBTOTAL(3,$B$7:B159) -> 4 | B159: TXL2-131 | C159: 敷设光缆船机具安装 拖轮布放法 | D159: 处 | F159: 42.00 | G159: 30.00 | H159: 0.00 | I159: 0.00
A160: =SUBTOTAL(3,$B$7:B160) -> 4 | B160: TXL2-132 | C160: 敷设光缆船机具安装 抛锚布放法 | D160: 处 | F160: 30.00 | G160: 15.00 | H160: 0.00 | I160: 0.00
A161: =SUBTOTAL(3,$B$7:B161) -> 4 | B161: TXL2-133 | C161: 敷设光缆船机具安装 人工布放法 | D161: 处 | F161: 10.00 | G161: 4.00 | H161: 0.00 | I161: 0.00
A162: =SUBTOTAL(3,$B$7:B162) -> 4 | B162: TXL2-134 | C162: 敷设光缆船机具安装 水泵冲槽法 | D162: 处 | F162: 10.00 | G162: 4.00 | H162: 0.00 | I162: 0.00
A163: =SUBTOTAL(3,$B$7:B163) -> 4 | B163: TXL2-135 | C163: 敷设光缆船机具安装 挖冲机敷设法 | D163: 处 | F163: 75.00 | G163: 35.00 | H163: 0.00 | I163: 0.00
A164: =SUBTOTAL(3,$B$7:B164) -> 4 | B164: TXL2-136 | C164: 水泵冲槽 | D164: 百米/处 | F164: 113.00 | G164: 13.00 | H164: 0.00 | I164: 0.00
A165: =SUBTOTAL(3,$B$7:B165) -> 4 | B165: TXL2-137 | C165: 人工截流挖沟 水面宽 10m 以内 | D165: 处 | F165: 23.74 | G165: 52.83 | H165: 0.00 | I165: 0.00
A166: =SUBTOTAL(3,$B$7:B166) -> 4 | B166: TXL2-138 | C166: 人工截流挖沟 水面每增加 5m | D166: 处 | F166: 20.00 | G166: 25.00 | H166: 0.00 | I166: 0.00
A167: =SUBTOTAL(3,$B$7:B167) -> 4 | B167: TXL2-139 | C167: 拖轮布放 96 芯以下 | D167: 百米条 | F167: 5.54 | G167: 7.29 | H167: 0.00 | I167: 0.00
A168: =SUBTOTAL(3,$B$7:B168) -> 4 | B168: TXL2-140 | C168: 拖轮布放 288 芯以下 | D168: 百米条 | F168: 5.91 | G168: 7.78 | H168: 0.00 | I168: 0.00
A169: =SUBTOTAL(3,$B$7:B169) -> 4 | B169: TXL2-141 | C169: 抛锚布放 96 芯以下 | D169: 百米条 | F169: 9.91 | G169: 13.08 | H169: 0.00 | I169: 0.00
A170: =SUBTOTAL(3,$B$7:B170) -> 4 | B170: TXL2-142 | C170: 抛锚布放 288 芯以下 | D170: 百米条 | F170: 10.28 | G170: 13.57 | H170: 0.00 | I170: 0.00
A171: =SUBTOTAL(3,$B$7:B171) -> 4 | B171: TXL2-143 | C171: 人工布放 96 芯以下 | D171: 百米条 | F171: 11.24 | G171: 18.97 | H171: 0.00 | I171: 0.00
A172: =SUBTOTAL(3,$B$7:B172) -> 4 | B172: TXL2-144 | C172: 人工布放 288 芯以下 | D172: 百米条 | F172: 11.56 | G172: 19.51 | H172: 0.00 | I172: 0.00
A173: =SUBTOTAL(3,$B$7:B173) -> 4 | B173: TXL2-145 | C173: 96 芯以下光缆 平河水 普通土 | D173: 百米条 | F173: 6.16 | G173: 8.27 | H173: 0.00 | I173: 0.00
A174: =SUBTOTAL(3,$B$7:B174) -> 4 | B174: TXL2-146 | C174: 96 芯以下光缆 平河水 硬土 | D174: 百米条 | F174: 6.16 | G174: 8.27 | H174: 0.00 | I174: 0.00
A175: =SUBTOTAL(3,$B$7:B175) -> 4 | B175: TXL2-147 | C175: 96 芯以下光缆 潮河水 普通土 | D175: 百米条 | F175: 6.16 | G175: 8.27 | H175: 0.00 | I175: 0.00
A176: =SUBTOTAL(3,$B$7:B176) -> 4 | B176: TXL2-148 | C176: 96 芯以下光缆 潮河水 硬土 | D176: 百米条 | F176: 6.16 | G176: 8.27 | H176: 0.00 | I176: 0.00
A177: =SUBTOTAL(3,$B$7:B177) -> 4 | B177: TXL2-149 | C177: 96 芯以上光缆 平河水 普通土 | D177: 百米条 | F177: 6.53 | G177: 8.76 | H177: 0.00 | I177: 0.00
A178: =SUBTOTAL(3,$B$7:B178) -> 4 | B178: TXL2-150 | C178: 96 芯以上光缆 平河水 硬土 | D178: 百米条 | F178: 6.53 | G178: 8.76 | H178: 0.00 | I178: 0.00
A179: =SUBTOTAL(3,$B$7:B179) -> 4 | B179: TXL2-151 | C179: 96 芯以上光缆 潮河水 普通土 | D179: 百米条 | F179: 6.53 | G179: 8.76 | H179: 0.00 | I179: 0.00
A180: =SUBTOTAL(3,$B$7:B180) -> 4 | B180: TXL2-152 | C180: 96 芯以上光缆 潮河水 硬土 | D180: 百米条 | F180: 6.53 | G180: 8.76 | H180: 0.00 | I180: 0.00
A181: =SUBTOTAL(3,$B$7:B181) -> 4 | B181: TXL2-153 | C181: 海缆装船 自航船 | D181: 千米条 | F181: 22.00 | G181: 0.00 | H181: 0.00 | I181: 0.00
A182: =SUBTOTAL(3,$B$7:B182) -> 4 | B182: TXL2-154 | C182: 海缆装船 驳船 | D182: 千米条 | F182: 22.00 | G182: 0.00 | H182: 0.00 | I182: 0.00
A183: =SUBTOTAL(3,$B$7:B183) -> 4 | B183: TXL2-155 | C183: 航行 自航船 | D183: 100km | F183: 32.50 | G183: 0.00 | H183: 0.00 | I183: 0.00
A184: =SUBTOTAL(3,$B$7:B184) -> 4 | B184: TXL2-156 | C184: 航行 驳船 | D184: 100km | F184: 32.50 | G184: 0.00 | H184: 0.00 | I184: 0.00
A185: =SUBTOTAL(3,$B$7:B185) -> 4 | B185: TXL2-157 | C185: 海中敷设海缆 自航船 | D185: 千米条 | F185: 23.63 | G185: 0.00 | H185: 0.00 | I185: 0.00
A186: =SUBTOTAL(3,$B$7:B186) -> 4 | B186: TXL2-158 | C186: 海中敷设海缆 驳船 | D186: 千米条 | F186: 11.81 | G186: 0.00 | H186: 0.00 | I186: 0.00
A187: =SUBTOTAL(3,$B$7:B187) -> 4 | B187: TXL2-159 | C187: 海中埋设海缆 自航船 埋深 3m 以上 | D187: 千米条 | F187: 79.89 | G187: 0.00 | H187: 0.00 | I187: 0.00
A188: =SUBTOTAL(3,$B$7:B188) -> 4 | B188: TXL2-160 | C188: 海中埋设海缆 自航船 埋深 3m 以下 | D188: 千米条 | F188: 26.63 | G188: 0.00 | H188: 0.00 | I188: 0.00
A189: =SUBTOTAL(3,$B$7:B189) -> 4 | B189: TXL2-161 | C189: 海中埋设海缆 驳船 埋深 3m 以上 | D189: 千米条 | F189: 35.42 | G189: 0.00 | H189: 0.00 | I189: 0.00
A190: =SUBTOTAL(3,$B$7:B190) -> 4 | B190: TXL2-162 | C190: 海中埋设海缆 驳船 埋深 3m 以下 | D190: 千米条 | F190: 17.71 | G190: 0.00 | H190: 0.00 | I190: 0.00
A191: =SUBTOTAL(3,$B$7:B191) -> 4 | B191: TXL2-163 | C191: 海底光缆接续 自航船 | D191: 头 | F191: 40.00 | G191: 20.00 | H191: 0.00 | I191: 0.00
A192: =SUBTOTAL(3,$B$7:B192) -> 4 | B192: TXL2-164 | C192: 海底光缆接续 驳船 | D192: 头 | F192: 40.00 | G192: 20.00 | H192: 0.00 | I192: 0.00
A193: =SUBTOTAL(3,$B$7:B193) -> 4 | B193: TXL2-165 | C193: 辅助船法敷设登陆海缆 自航船 | D193: 端 | F193: 10.00 | G193: 150.00 | H193: 0.00 | I193: 0.00
A194: =SUBTOTAL(3,$B$7:B194) -> 4 | B194: TXL2-166 | C194: 辅助船法敷设登陆海缆 驳船 | D194: 端 | F194: 10.00 | G194: 150.00 | H194: 0.00 | I194: 0.00
A195: =SUBTOTAL(3,$B$7:B195) -> 4 | B195: TXL2-167 | C195: 浮球法敷设登陆海缆 自航船 | D195: 端 | F195: 30.00 | G195: 150.00 | H195: 0.00 | I195: 0.00
A196: =SUBTOTAL(3,$B$7:B196) -> 4 | B196: TXL2-168 | C196: 浮球法敷设登陆海缆 驳船 | D196: 端 | F196: 30.00 | G196: 150.00 | H196: 0.00 | I196: 0.00
A197: =SUBTOTAL(3,$B$7:B197) -> 4 | B197: TXL2-169 | C197: 海底光缆冲埋 水深 20m 以下 | D197: 百米条 | F197: 10.00 | G197: 0.00 | H197: 0.00 | I197: 0.00
A198: =SUBTOTAL(3,$B$7:B198) -> 4 | B198: TXL2-170 | C198: 海底光缆冲埋 水深 20～30m | D198: 百米条 | F198: 15.00 | G198: 0.00 | H198: 0.00 | I198: 0.00
A199: =SUBTOTAL(3,$B$7:B199) -> 4 | B199: TXL2-171 | C199: 水下机器人（ROV）后冲埋海底光缆 自航船 | D199: 百米条 | F199: 0.08 | G199: 0.00 | H199: 0.00 | I199: 0.00
A200: =SUBTOTAL(3,$B$7:B200) -> 4 | B200: TXL2-172 | C200: 水下机器人（ROV）后冲埋海底光缆 驳船 | D200: 百米条 | F200: 0.08 | G200: 0.00 | H200: =E200*F200 -> 0.00 | I200: =E200*G200 -> 0.00
... 1576 more rows

Sheet Sheet1 (hidden)
C1: 架空 | D1: 引上 | E1: 管道 | F1: 埋 | G1: 进 | H1: 小计 | I1: 2进2出接头 | J1: 3进3出接头 | M1: 挂钩1公里300个 | O1: 尾纤－方 | P1: 尾纤－圆 | Q1: 熔接 | Y1: 管道 | Z1: 人孔 | AA1: 拉线 | AB1: 立杆 | AD1: 拆杆 | AE1: 拆吊线 | AF1: 拆拉线 | AG1: 拆机柜
B2: 4d-53 | H2: =SUM(C2:G2) -> 0 | K2: =I2*4 -> 0.00 | L2: =A2*4 -> 0.00 | M2: =G10*0.3 -> 114 | X2: 谷田 | Y2: 60.00 | Z2: 2.00 | AA2: 2.00 | AB2: 3.00 | AD2: 2.00 | AE2: 65.00 | AF2: 2.00 | AG2: 0.00
B3: 6d-53 | H3: =SUM(C3:G3) -> 0 | K3: =I3*6 -> 0.00 | L3: =A3*6 -> 0.00 | X3: 杨畈 | Y3: 90.00 | Z3: 3.00 | AA3: 2.00 | AB3: 1.00 | AD3: 2.00 | AE3: 92.00 | AF3: 1.00 | AG3: 0.00
A4: 2.00 | B4: 8d-53 | C4: =2*52 -> 104 | D4: =2*12 -> 24 | E4: =2*45 -> 90 | G4: =2*20 -> 40 | H4: 258 | I4: 4.00 | K4: =I4*8 -> 32.00 | L4: =A4*8 -> 16.00 | X4: 白广 | Y4: 90.00 | Z4: 2.00 | AA4: 2.00 | AB4: 1.00 | AD4: 1.00 | AE4: 90.00 | AF4: 0.00 | AG4: 0.00
A5: 2.00 | B5: 12d-B | C5: =2*52 -> 104 | D5: =2*12 -> 24 | E5: =2*45 -> 90 | G5: =2*20 -> 40 | H5: 258 | I5: 4.00 | K5: =I5*12 -> 48.00 | L5: =A5*12 -> 24.00 | X5: 江罗 | Y5: 67.00 | Z5: 2.00 | AA5: 2.00 | AB5: 1.00 | AD5: 1.00 | AE5: 67.00 | AF5: 0.00 | AG5: 0.00
A6: 9.00 | B6: 24d-B | C6: =9*52 -> 468 | D6: =9*12 -> 108 | E6: =9*45 -> 405 | G6: =9*20 -> 180 | H6: 1161 | I6: 18.00 | K6: =I6*24 -> 432.00 | L6: =A6*24 -> 216.00 | X6: 茅庐岗 | Y6: 106.00 | Z6: 2.00 | AA6: 2.00 | AB6: 2.00 | AD6: 2.00 | AE6: 106.00 | AF6: 0.00 | AG6: 1.00
B7: 36d-53 | H7: 0 | K7: =I7*36 -> 0.00 | L7: =A7*36 -> 0.00 | U7: 拉线 | V7: 数量 | X7: 梅花园 | Y7: 110.00 | Z7: 2.00 | AA7: 2.00 | AB7: 2.00 | AD7: 1.00 | AE7: 110.00 | AF7: 0.00 | AG7: 0.00
A8: 6.00 | B8: 48d-B | C8: =6*52 -> 312 | D8: =6*12 -> 72 | E8: =6*45 -> 270 | G8: =6*20 -> 120 | H8: 774 | I8: 12.00 | K8: =I8*48 -> 576.00 | L8: =A8*48 -> 288.00 | S8: 拉线抱箍（164） | T8: 1 | U8: 8.00 | V8: =T8*U8 -> 8 | X8: 工棚 | Y8: 165.00 | Z8: 3.00 | AA8: 0.00 | AB8: 0.00 | AD8: 0.00 | AE8: 0.00 | AF8: 0.00 | AG8: 0.00
B9: 96d-53 | H9: 0 | K9: =I9*96 -> 0.00 | L9: =A9*96 -> 0.00 | S9: 双槽夹板 | T9: 2 | U9: 8.00 | V9: 16 | X9: 曹家 | Y9: 117.80 | Z9: 2.00 | AA9: 2.00 | AB9: 2.00 | AD9: 2.00 | AE9: 70.00 | AF9: 2.00 | AG9: 0.00
C10: =SUM(C2:C9) -> 988.00 | D10: =SUM(D2:D9) -> 228.00 | E10: =SUM(E2:E9) -> 855.00 | F10: =SUM(F2:F9) -> 0.00 | G10: =SUM(G2:G9) -> 380.00 | S10: 地锚块 | T10: 1 | U10: 8.00 | V10: 8 | X10: 村委会 | Y10: 105.00 | Z10: 2.00 | AA10: 2.00 | AB10: 2.00 | AD10: 3.00 | AE10: 52.00 | AF10: 2.00 | AG10: 0.00
C11: 182 | D11: 新增吊线 | E11: 数量 | S11: 地锚棒 | T11: 1 | U11: 8.00 | V11: 8
C12: =C10-C11 -> 806.00 | D12: 104 | G12: 125.00 | H12: =G10/50 -> 7.60 | S12: 拉线衬圈 | T12: 2 | U12: 8.00 | V12: 16 | X12: 小计 | Y12: =SUM(Y2:Y10) -> 910.80 | Z12: 20.00 | AA12: 16.00 | AB12: 14.00 | AC12: 0.00 | AD12: 14.00 | AE12: 652.00 | AF12: 7.00 | AG12: 1.00
B13: 钢绞2.2 | C13: 0.22 | D13: 104 | E13: =C13*D13 -> 22.88 | I13: 15个人井60公分 | J13: =60*30 -> 1800.00 | S13: 钢绞2.6 | T13: 5 | U13: 8.00 | V13: 40
B14: 铁线3.0 | C14: 0.03 | D14: 104 | E14: =C14*D14 -> 3.12 | I14: 个电杆30公分
B15: 挂钩 | C15: 2.5 | D15: 104 | E15: =C15*D15 -> 260 | R15: 架 | S15: 引上 | T15: 管道 | U15: 进 | V15: 小计
B16: 单槽抱箍（电力杆184） | D16: =表四甲!E73 -> 0 | E16: =D12/40 -> 2.6 | Q16: 4d-B | V16: =R16+S16+T16+U16 -> 0.00 | Z16: 序号 | AA16: 项目名称 | AB16: 单位 | AC16: 数量
B17: 保护套 | E17: =D12 -> 104 | O17: 496.00 | Q17: 6d-B | V17: 0.00
B18: 单槽夹板 | E18: =E16 -> 2.6 | I18: 费用名称 | J18: 金额 | K18: 占比 | O18: 224.00 | Q18: 8d-B | R18: =2*50 -> 100 | V18: 100.00 | Z18: 1 | AA18: 光（电）缆工程施工测量（管道） | AB18: 100m | AC18: 18.967
B19: 双槽夹板 | I19: 小型建筑工程费 | J19: 0 | K19: 0.00% | O19: =O17-O18 -> 272.00 | Q19: 12d-B | R19: =2*50 -> 100 | V19: 100.00 | Z19: 2 | AA19: 单盘检验 光缆 | AB19: 芯盘 | AC19: 342
B20: 镀锌滚花膨胀螺栓 | E20: =E16*3+V9*3 -> 55.8 | I20: 需要安装的设备费 | J20: 0 | K20: 0.00% | Q20: 24d-B | R20: =9*50 -> 450 | V20: 450.00 | Z20: 3 | AA20: 敷设管道光缆（12芯以下） | AB20: 千米条 | AC20: 16.3467
I21: 不需要安装的设备、工器具费 | J21: 0 | K21: 0.00% | Q21: 36d-B | V21: 0.00 | Z21: 4 | AA21: 敷设管道光缆（24芯以下） | AB21: 千米条 | AC21: 5.3634
C22: 4.00 | I22: 建筑安装工程费 | J22: =表一!G7 -> 100014.5008 | K22: =J22/J28 -> 98.04% | Q22: 48d-B | R22: =6*50 -> 300 | V22: 300.00 | Z22: 5 | AA22: 敷设管道光缆（24芯以下） | AB22: 千米条 | AC22: 0.145
I23: 其他费用 | J23: =表一!H9 -> 2000.290016 | K23: =J23/J28 -> 1.96% | Q23: 72d-B | V23: 0.00 | Z23: 6 | AA23: 敷设管道光缆（48芯以下） | AB23: 千米条 | AC23: 1.2429
I24: 其中：勘察、设计费 | J24: =表五甲!F11 -> 0.00 | K24: =J24/J28 -> 0.00% | R24: =SUM(R16:R23) -> 950.00 | S24: =SUM(S16:S23) -> 0.00 | T24: =SUM(T16:T23) -> 0.00 | U24: =SUM(U16:U23) -> 0.00 | Z24: 7 | AA24: 敷设管道光缆（96芯以下） | AB24: 千米条 | AC24: 0.6772
I25: 监理费 | J25: =表五甲!F13 -> 0.00 | K25: =J25/J28 -> 0.00% | Z25: 8 | AA25: 敷设管道光缆（144芯以下） | AB25: 千米条 | AC25: 0.9175
D26: =D10/6 -> 38.00 | I26: 安全生产费 | J26: =表五甲!F14 -> 2060.30 | K26: =J26/J28 -> 2.02% | Z26: 9 | AA26: 穿放引上光缆 | AB26: 条 | AC26: 32
I27: 预备费 | Z27: 10 | AA27: 穿放引上光缆 | AB27: 条 | AC27: 18
I28: 总投资 | J28: =表一!L12 -> 102014.7908 | P28: 新增吊线 1495 | Z28: 11 | AA28: 安装光缆落地式交接箱（288芯以上） | AB28: 个 | AC28: 3
P29: 新增电杆 31 | Z29: 12 | AA29: 安装光分配架-子架 | AB29: 个 | AC29: 2
I30: 技工 | J30: 普工 | P30: 新增拉线11 | Z30: 13 | AA30: 安装光分配架-子架 | AB30: 个 | AC30: 2
I31: ='[1]表三 甲'!H1770 -> 7.88 | J31: ='[1]表三 甲'!I1770 -> 3.85 | P31: 新增撑杆1
P33: 拆吊线 1431.5
P34: 拆电杆 32
P35: 拆拉线 4

Sheet 表三乙
A1: 建筑安装工程机械使用费用预算表（表三）乙
A2: =ASC(综合信息表!C3) -> 建设项目名称:
A3: =ASC(综合信息表!C4) -> 单项工程名称:2023年景德镇电信乐平水利枢纽工程建设杆线迁改工程 | F3: =ASC(综合信息表!C6) -> 建设单位名称:中国电信股份有限公司景德镇分公司 | I3: =ASC(综合信息表!G7) -> 表格编号:TXL-3乙 | J3: 第全页
A4: 序号 | B4: 定额编号 | C4: 项目名称 | D4: 单位 | E4: 数量 | F4: 机械名称 | G4: 单位定额值（工日） | I4: 合计值
G5: 数量（台班） | H5: 单价（元） | I5: 数量（台班） | J5: 合价（元）
A6: Ⅰ | B6: Ⅱ | C6: Ⅲ | D6: Ⅳ | E6: Ⅴ | F6: Ⅵ | G6: Ⅶ | H6: Ⅷ | I6: Ⅸ | J6: Ⅹ
A7: =SUBTOTAL(3,$B7:B$7) -> 0 | B7: TSY5-027 | C7: 安装摄像机防护罩 室外 | D7: 机 | F7: 汽车升降机 | G7: 0.2 | H7: 517 | I7: =E7*G7 -> 0 | J7: =H7*I7 -> 0
A8: =SUBTOTAL(3,$B$7:B8) -> 0 | B8: TXL1-004 | C8: 光（电）缆工程施工测量 海上 | D8: 机 | E8: ='表三 甲'!E10 -> 0.00 | F8: 海缆施工驳船 500t 以下带拖轮 | G8: 0.02 | H8: 0 | I8: =E8*G8 -> 0 | J8: =H8*I8 -> 0
A9: =SUBTOTAL(3,$B$7:B9) -> 0 | B9: TXL1-004 | C9: 光（电）缆工程施工测量 海上 | D9: 机 | E9: =E8 -> 0.00 | F9: 海缆施工自航船 5000t 以下 | G9: 0.02 | H9: 0 | I9: 0 | J9: 0
A10: =SUBTOTAL(3,$B$7:B10) -> 0 | B10: TXL1-008 | C10: 人工开挖路面 混凝土 100 以下 | D10: 机 | E10: ='表三 甲'!E14 -> 0.00 | F10: 燃油式空气压缩机 (含风镐) 6m³/min | G10: 0.85 | H10: 372 | I10: 0 | J10: 0
A11: =SUBTOTAL(3,$B$7:B11) -> 0 | B11: TXL1-008 | C11: 人工开挖路面 混凝土 100 以下 | D11: 机 | E11: =E10 -> 0.00 | F11: 路面切割机 | G11: 0.5 | H11: 210 | I11: 0 | J11: 0
A12: =SUBTOTAL(3,$B$7:B12) -> 0 | B12: TXL1-009 | C12: 人工开挖路面 混凝土 每增加 10 | D12: 机 | E12: ='表三 甲'!E15 -> 0.00 | F12: 燃油式空气压缩机 (含风镐) 6m³/min | G12: 0.1 | H12: 372 | I12: 0 | J12: 0
A13: =SUBTOTAL(3,$B$7:B13) -> 0 | B13: TXL1-010 | C13: 人工开挖路面 沥青柏油 100 以下 | D13: 机 | E13: ='表三 甲'!E16 -> 0.00 | F13: 燃油式空气压缩机 (含风镐) 6m³/min | G13: 0.35 | H13: 372 | I13: 0 | J13: 0
A14: =SUBTOTAL(3,$B$7:B14) -> 0 | B14: TXL1-010 | C14: 人工开挖路面 沥青柏油 100 以下 | D14: 机 | E14: =E13 -> 0.00 | F14: 路面切割机 | G14: 0.5 | H14: 210 | I14: 0 | J14: 0
A15: =SUBTOTAL(3,$B$7:B15) -> 0 | B15: TXL1-011 | C15: 人工开挖路面 沥青柏油 每增加 10 | D15: 机 | E15: ='表三 甲'!E17 -> 0.00 | F15: 燃油式空气压缩机 (含风镐) 6m³/min | G15: 0.04 | H15: 372 | I15: 0 | J15: 0
A16: =SUBTOTAL(3,$B$7:B16) -> 0 | B16: TXL1-012 | C16: 人工开挖路面 砂石 100 以下 | D16: 机 | E16: ='表三 甲'!E18 -> 0.00 | F16: 燃油式空气压缩机 (含风镐) 6m³/min | G16: 0.2 | H16: 372 | I16: 0 | J16: 0
A17: =SUBTOTAL(3,$B$7:B17) -> 0 | B17: TXL1-013 | C17: 人工开挖路面 砂石 每增加 10 | D17: 机 | E17: ='表三 甲'!E19 -> 0.00 | F17: 燃油式空气压缩机 (含风镐) 6m³/min | G17: 0.02 | H17: 372 | I17: 0 | J17: 0
A18: =SUBTOTAL(3,$B$7:B18) -> 0 | B18: TXL1-017 | C18: 机械开挖路面 混凝土 100 以下 | D18: 机 | E18: ='表三 甲'!E23 -> 0.00 | F18: 破碎锤(含机身) | G18: 0.4 | H18: 768 | I18: 0 | J18: 0
A19: =SUBTOTAL(3,$B$7:B19) -> 0 | B19: TXL1-017 | C19: 机械开挖路面 混凝土 100 以下 | D19: 机 | E19: =E18 -> 0.00 | F19: 挖掘机 0.6m3 | G19: 0.3 | H19: 743 | I19: 0 | J19: 0
A20: =SUBTOTAL(3,$B$7:B20) -> 0 | B20: TXL1-017 | C20: 机械开挖路面 混凝土 100 以下 | D20: 机 | E20: =E19 -> 0.00 | F20: 路面切割机 | G20: 0.5 | H20: 210 | I20: 0 | J20: 0
A21: =SUBTOTAL(3,$B$7:B21) -> 0 | B21: TXL1-018 | C21: 机械开挖路面 混凝土 每增加 10 | D21: 机 | E21: ='表三 甲'!E24 -> 0.00 | F21: 挖掘机 0.6m3 | G21: 0.03 | H21: 743 | I21: 0 | J21: 0
A22: =SUBTOTAL(3,$B$7:B22) -> 0 | B22: TXL1-018 | C22: 机械开挖路面 混凝土 每增加 10 | D22: 机 | E22: =E21 -> 0.00 | F22: 破碎锤(含机身) | G22: 0.04 | H22: 768 | I22: 0 | J22: 0
A23: =SUBTOTAL(3,$B$7:B23) -> 0 | B23: TXL1-019 | C23: 机械开挖路面 沥青柏油 100 以下 | D23: 机 | E23: ='表三 甲'!E25 -> 0.00 | F23: 挖掘机 0.6m3 | G23: 0.24 | H23: 743 | I23: 0 | J23: 0
A24: =SUBTOTAL(3,$B$7:B24) -> 0 | B24: TXL1-019 | C24: 机械开挖路面 沥青柏油 100 以下 | D24: 机 | E24: =E23 -> 0.00 | F24: 路面切割机 | G24: 0.5 | H24: 210 | I24: 0 | J24: 0
A25: =SUBTOTAL(3,$B$7:B25) -> 0 | B25: TXL1-019 | C25: 机械开挖路面 沥青柏油 100 以下 | D25: 机 | E25: =E23 -> 0.00 | F25: 破碎锤(含机身) | G25: 0.11 | H25: 768 | I25: 0 | J25: 0
A26: =SUBTOTAL(3,$B$7:B26) -> 0 | B26: TXL1-020 | C26: 机械开挖路面 沥青柏油 每增加 10 | D26: 机 | E26: ='表三 甲'!E26 -> 0.00 | F26: 破碎锤(含机身) | G26: 0.01 | H26: 768 | I26: 0 | J26: 0
A27: =SUBTOTAL(3,$B$7:B27) -> 0 | B27: TXL1-020 | C27: 机械开挖路面 沥青柏油 每增加 10 | D27: 机 | E27: ='表三 甲'!E26 -> 0.00 | F27: 挖掘机 0.6m3 | G27: 0.02 | H27: 743 | I27: 0 | J27: 0
A28: =SUBTOTAL(3,$B$7:B28) -> 0 | B28: TXL1-021 | C28: 机械开挖路面 砂石 100 以下 | D28: 机 | E28: ='表三 甲'!E27 -> 0.00 | F28: 挖掘机 0.6m3 | G28: 0.21 | H28: 743 | I28: 0 | J28: 0
A29: =SUBTOTAL(3,$B$7:B29) -> 0 | B29: TXL1-022 | C29: 机械开挖路面 砂石 每增加 10 | D29: 机 | E29: ='表三 甲'!E28 -> 0.00 | F29: 挖掘机 0.6m3 | G29: 0.02 | H29: 743 | I29: 0 | J29: 0
A30: =SUBTOTAL(3,$B$7:B30) -> 0 | B30: TXL2-005 | C30: 挖、松填光（电）缆沟及接头坑 软石 | D30: 机 | E30: ='表三 甲'!E33 -> 0.00 | F30: 燃油式空气压缩机 (含风镐) 6m³/min | G30: 3 | H30: 372 | I30: 0 | J30: 0
A31: =SUBTOTAL(3,$B$7:B31) -> 0 | B31: TXL2-006 | C31: 挖、松填光（电）缆沟及接头坑 坚石（人工） | D31: 机 | E31: ='表三 甲'!E34 -> 0.00 | F31: 燃油式空气压缩机 (含风镐) 6m³/min | G31: 10 | H31: 372 | I31: 0 | J31: 0
A32: =SUBTOTAL(3,$B$7:B32) -> 0 | B32: TXL2-007 | C32: 挖、夯填光（电）缆沟及接头坑 普通土 | D32: 机 | E32: ='表三 甲'!E35 -> 0.00 | F32: 夯实机 | G32: 0.75 | H32: 117 | I32: 0 | J32: 0
A33: =SUBTOTAL(3,$B$7:B33) -> 0 | B33: TXL2-008 | C33: 挖、夯填光（电）缆沟及接头坑 硬土 | D33: 机 | E33: ='表三 甲'!E36 -> 0.00 | F33: 夯实机 | G33: 0.75 | H33: 117 | I33: 0 | J33: 0
A34: =SUBTOTAL(3,$B$7:B34) -> 0 | B34: TXL2-009 | C34: 挖、夯填光（电）缆沟及接头坑 砂砾土 | D34: 机 | E34: ='表三 甲'!E37 -> 0.00 | F34: 夯实机 | G34: 0.75 | H34: 117 | I34: 0 | J34: 0
A35: =SUBTOTAL(3,$B$7:B35) -> 0 | B35: TXL2-011 | C35: 挖、夯填光（电）缆沟及接头坑 软石 | D35: 机 | E35: ='表三 甲'!E39 -> 0.00 | F35: 燃油式空气压缩机 (含风镐) 6m³/min | G35: 3 | H35: 372 | I35: 0 | J35: 0
A36: =SUBTOTAL(3,$B$7:B36) -> 0 | B36: TXL2-012 | C36: 挖、夯填光（电）缆沟及接头坑 坚石（人工） | D36: 机 | E36: ='表三 甲'!E40 -> 0.00 | F36: 燃油式空气压缩机 (含风镐) 6m³/min | G36: 10 | H36: 372 | I36: 0 | J36: 0
A37: =SUBTOTAL(3,$B$7:B37) -> 0 | B37: TXL2-041 | C37: 埋设定型手孔 | D37: 机 | E37: ='表三 甲'!E69 -> 0.00 | F37: 载重汽车 5t | G37: 0.1 | H37: 372 | I37: 0 | J37: 0
A38: =SUBTOTAL(3,$B$7:B38) -> 0 | B38: TXL2-041 | C38: 埋设定型手孔 | D38: 机 | E38: =E37 -> 0.00 | F38: 汽车式起重机 5t | G38: 0.1 | H38: 516 | I38: 0 | J38: 0
A39: =SUBTOTAL(3,$B$7:B39) -> 0 | B39: TXL2-090 | C39: 小口径塑料管试通 | D39: 机 | E39: ='表三 甲'!E118 -> 0.00 | F39: 气流敷设设备(敷设光缆) | G39: 0.08 | H39: 1007 | I39: 0 | J39: 0
A40: =SUBTOTAL(3,$B$7:B40) -> 0 | B40: TXL2-090 | C40: 小口径塑料管试通 | D40: 机 | E40: =E39 -> 0.00 | F40: 载重汽车 5t | G40: 0.08 | H40: 372 | I40: 0 | J40: 0
A41: =SUBTOTAL(3,$B$7:B41) -> 0 | B41: TXL2-091 | C41: 小口径塑料管道充气试验 | D41: 机 | E41: ='表三 甲'!E119 -> 0.00 | F41: 载重汽车 5t | G41: 0.12 | H41: 372 | I41: 0 | J41: 0
A42: =SUBTOTAL(3,$B$7:B42) -> 0 | B42: TXL2-091 | C42: 小口径塑料管道充气试验 | D42: 机 | E42: =E41 -> 0.00 | F42: 燃油式空气压缩机 | G42: 0.12 | H42: 368 | I42: 0 | J42: 0
A43: =SUBTOTAL(3,$B$7:B43) -> 0 | B43: TXL2-092 | C43: 地下定向钻孔敷管 工作孔径φ120mm 以下 30m 以下 | D43: 机 | E43: ='表三 甲'!E120 -> 0.00 | F43: 汽车式起重机 8t | G43: 1 | H43: 636 | I43: 0 | J43: 0
A44: =SUBTOTAL(3,$B$7:B44) -> 0 | B44: TXL2-092 | C44: 地下定向钻孔敷管 工作孔径φ120mm 以下 30m 以下 | D44: 机 | E44: =E43 -> 0.00 | F44: 载重汽车 8t | G44: 1 | H44: 456 | I44: 0 | J44: 0
A45: =SUBTOTAL(3,$B$7:B45) -> 0 | B45: TXL2-092 | C45: 地下定向钻孔敷管 工作孔径φ120mm 以下 30m 以下 | D45: 机 | E45: =E43 -> 0.00 | F45: 微控钻孔敷管设备（25t以下） | G45: 1.07 | H45: 0 | I45: 0 | J45: 0
A46: =SUBTOTAL(3,$B$7:B46) -> 0 | B46: TXL2-093 | C46: 地下定向钻孔敷管 工作孔径φ120mm 以下 每增加 10m | D46: 机 | E46: ='表三 甲'!E121 -> 0.00 | F46: 载重汽车 8t | G46: 0.2 | H46: 456 | I46: 0 | J46: 0
A47: =SUBTOTAL(3,$B$7:B47) -> 0 | B47: TXL2-093 | C47: 地下定向钻孔敷管 工作孔径φ120mm 以下 每增加 10m | D47: 机 | E47: =E46 -> 0.00 | F47: 微控钻孔敷管设备（25t以下） | G47: 0.21 | H47: 0 | I47: 0 | J47: 0
A48: =SUBTOTAL(3,$B$7:B48) -> 0 | B48: TXL2-093 | C48: 地下定向钻孔敷管 工作孔径φ120mm 以下 每增加 10m | D48: 机 | E48: =E46 -> 0.00 | F48: 汽车式起重机 8t | G48: 0.2 | H48: 636 | I48: 0 | J48: 0
A49: =SUBTOTAL(3,$B$7:B49) -> 0 | B49: TXL2-094 | C49: 地下定向钻孔敷管 工作孔径φ240mm 以下 30m 以下 | D49: 机 | E49: ='表三 甲'!E122 -> 0.00 | F49: 载重汽车 8t | G49: 1.4 | H49: 456 | I49: 0 | J49: 0
A50: =SUBTOTAL(3,$B$7:B50) -> 0 | B50: TXL2-094 | C50: 地下定向钻孔敷管 工作孔径φ240mm 以下 30m 以下 | D50: 机 | E50: =E49 -> 0.00 | F50: 微控钻孔敷管设备（25t以下） | G50: 1.5 | H50: 0 | I50: 0 | J50: 0
A51: =SUBTOTAL(3,$B$7:B51) -> 0 | B51: TXL2-094 | C51: 地下定向钻孔敷管 工作孔径φ240mm 以下 30m 以下 | D51: 机 | E51: =E49 -> 0.00 | F51: 汽车式起重机 8t | G51: 1.4 | H51: 636 | I51: 0 | J51: 0
A52: =SUBTOTAL(3,$B$7:B52) -> 0 | B52: TXL2-095 | C52: 地下定向钻孔敷管 工作孔径φ240mm 以下 每增加 10m | D52: 机 | E52: ='表三 甲'!E123 -> 0.00 | F52: 载重汽车 8t | G52: 0.28 | H52: 456 | I52: 0 | J52: 0
A53: =SUBTOTAL(3,$B$7:B53) -> 0 | B53: TXL2-095 | C53: 地下定向钻孔敷管 工作孔径φ240mm 以下 每增加 10m | D53: 机 | E53: =E52 -> 0.00 | F53: 微控钻孔敷管设备（25t以下） | G53: 0.3 | H53: 0 | I53: 0 | J53: 0
A54: =SUBTOTAL(3,$B$7:B54) -> 0 | B54: TXL2-095 | C54: 地下定向钻孔敷管 工作孔径φ240mm 以下 每增加 10m | D54: 机 | E54: =E52 -> 0.00 | F54: 汽车式起重机 8t | G54: 0.28 | H54: 636 | I54: 0 | J54: 0
A55: =SUBTOTAL(3,$B$7:B55) -> 0 | B55: TXL2-096 | C55: 地下定向钻孔敷管 工作孔径φ360mm 以下 30m 以下 | D55: 机 | E55: ='表三 甲'!E124 -> 0.00 | F55: 载重汽车 8t | G55: 1.96 | H55: 456 | I55: 0 | J55: 0
A56: =SUBTOTAL(3,$B$7:B56) -> 0 | B56: TXL2-096 | C56: 地下定向钻孔敷管 工作孔径φ360mm 以下 30m 以下 | D56: 机 | E56: =E55 -> 0.00 | F56: 汽车式起重机 8t | G56: 1.96 | H56: 636 | I56: 0 | J56: 0
A57: =SUBTOTAL(3,$B$7:B57) -> 0 | B57: TXL2-096 | C57: 地下定向钻孔敷管 工作孔径φ360mm 以下 30m 以下 | D57: 机 | E57: =E56 -> 0.00 | F57: 微控钻孔敷管设备（25t以下） | G57: 2.1 | H57: 0 | I57: 0 | J57: 0
A58: =SUBTOTAL(3,$B$7:B58) -> 0 | B58: TXL2-097 | C58: 地下定向钻孔敷管 工作孔径φ360mm 以下 每增加 10m | D58: 机 | E58: ='表三 甲'!E125 -> 0.00 | F58: 微控钻孔敷管设备（25t以下) | G58: 0.42 | H58: 0 | I58: 0 | J58: 0
A59: =SUBTOTAL(3,$B$7:B59) -> 0 | B59: TXL2-097 | C59: 地下定向钻孔敷管 工作孔径φ360mm 以下 每增加 10m | D59: 机 | E59: =E58 -> 0.00 | F59: 载重汽车 8t | G59: 0.39 | H59: 456 | I59: 0 | J59: 0
A60: =SUBTOTAL(3,$B$7:B60) -> 0 | B60: TXL2-097 | C60: 地下定向钻孔敷管 工作孔径φ360mm 以下 每增加 10m | D60: 机 | E60: =E58 -> 0.00 | F60: 汽车式起重机 8t | G60: 0.39 | H60: 636 | I60: 0 | J60: 0
A61: =SUBTOTAL(3,$B$7:B61) -> 0 | B61: TXL2-098 | C61: 地下定向钻孔敷管 工作孔径φ600mm 以下 30m 以下 | D61: 机 | E61: ='表三 甲'!E126 -> 0.00 | F61: 微控钻孔敷管设备 (25t以上) | G61: 2.94 | H61: 0 | I61: 0 | J61: 0
A62: =SUBTOTAL(3,$B$7:B62) -> 0 | B62: TXL2-098 | C62: 地下定向钻孔敷管 工作孔径φ600mm 以下 30m 以下 | D62: 机 | E62: =E61 -> 0.00 | F62: 汽车式起重机 16t | G62: 2.74 | H62: 768 | I62: 0 | J62: 0
A63: =SUBTOTAL(3,$B$7:B63) -> 0 | B63: TXL2-098 | C63: 地下定向钻孔敷管 工作孔径φ600mm 以下 30m 以下 | D63: 机 | E63: =E61 -> 0.00 | F63: 载重汽车 12t | G63: 2.74 | H63: 582 | I63: 0 | J63: 0
A64: =SUBTOTAL(3,$B$7:B64) -> 0 | B64: TXL2-099 | C64: 地下定向钻孔敷管 工作孔径φ600mm 以下 每增加 10m | D64: 机 | E64: ='表三 甲'!E127 -> 0.00 | F64: 微控钻孔敷管设备 (25t以上) | G64: 0.59 | H64: 0 | I64: 0 | J64: 0
A65: =SUBTOTAL(3,$B$7:B65) -> 0 | B65: TXL2-099 | C65: 地下定向钻孔敷管 工作孔径φ600mm 以下 每增加 10m | D65: 机 | E65: =E64 -> 0.00 | F65: 汽车式起重机 16t | G65: 0.55 | H65: 768 | I65: 0 | J65: 0
A66: =SUBTOTAL(3,$B$7:B66) -> 0 | B66: TXL2-099 | C66: 地下定向钻孔敷管 工作孔径φ600mm 以下 每增加 10m | D66: 机 | E66: =E64 -> 0.00 | F66: 载重汽车 12t | G66: 0.55 | H66: 582 | I66: 0 | J66: 0
A67: =SUBTOTAL(3,$B$7:B67) -> 0 | B67: TXL2-100 | C67: 地下定向钻孔敷管 工作孔径φ840mm 以下 30m 以下 | D67: 机 | E67: ='表三 甲'!E128 -> 0.00 | F67: 微控钻孔敷管设备 (25t以上) | G67: 4.12 | H67: 0 | I67: 0 | J67: 0
A68: =SUBTOTAL(3,$B$7:B68) -> 0 | B68: TXL2-100 | C68: 地下定向钻孔敷管 工作孔径φ840mm 以下 30m 以下 | D68: 机 | E68: =E67 -> 0.00 | F68: 载重汽车 12t | G68: 3.84 | H68: 582 | I68: 0 | J68: 0
A69: =SUBTOTAL(3,$B$7:B69) -> 0 | B69: TXL2-100 | C69: 地下定向钻孔敷管 工作孔径φ840mm 以下 30m 以下 | D69: 机 | E69: =E68 -> 0.00 | F69: 汽车式起重机 16t | G69: 3.84 | H69: 768 | I69: 0 | J69: 0
A70: =SUBTOTAL(3,$B$7:B70) -> 0 | B70: TXL2-101 | C70: 地下定向钻孔敷管 工作孔径φ840mm 以下 每增加 10m | D70: 机 | E70: ='表三 甲'!E129 -> 0.00 | F70: 载重汽车 12t | G70: 0.77 | H70: 582 | I70: 0 | J70: 0
A71: =SUBTOTAL(3,$B$7:B71) -> 0 | B71: TXL2-101 | C71: 地下定向钻孔敷管 工作孔径φ840mm 以下 每增加 10m | D71: 机 | E71: =E70 -> 0.00 | F71: 汽车式起重机 16t | G71: 0.77 | H71: 768 | I71: 0 | J71: 0
A72: =SUBTOTAL(3,$B$7:B72) -> 0 | B72: TXL2-101 | C72: 地下定向钻孔敷管 工作孔径φ840mm 以下 每增加 10m | D72: 机 | E72: =E70 -> 0.00 | F72: 微控钻孔敷管设备 (25t以上) | G72: 0.82 | H72: 0 | I72: =E72*G72 -> 0 | J72: =H72*I72 -> 0
A73: =SUBTOTAL(3,$B$7:B73) -> 0 | B73: TXL2-102 | C73: 地下定向钻孔敷管 工作孔径φ950mm 以下 30m 以下 | D73: 机 | E73: ='表三 甲'!E130 -> 0.00 | F73: 汽车式起重机 16t | G73: 4.61 | H73: 768 | I73: 0 | J73: 0
A74: =SUBTOTAL(3,$B$7:B74) -> 0 | B74: TXL2-102 | C74: 地下定向钻孔敷管 工作孔径φ950mm 以下 30m 以下 | D74: 机 | E74: =E73 -> 0.00 | F74: 微控钻孔敷管设备 (25t以上) | G74: 5.22 | H74: 0 | I74: 0 | J74: 0
A75: =SUBTOTAL(3,$B$7:B75) -> 0 | B75: TXL2-102 | C75: 地下定向钻孔敷管 工作孔径φ950mm 以下 30m 以下 | D75: 机 | E75: =E73 -> 0.00 | F75: 载重汽车 12t | G75: 4.61 | H75: 582 | I75: 0 | J75: 0
A76: =SUBTOTAL(3,$B$7:B76) -> 0 | B76: TXL2-103 | C76: 地下定向钻孔敷管 工作孔径φ950mm 以下 每增加 10m | D76: 机 | E76: ='表三 甲'!E131 -> 0.00 | F76: 汽车式起重机 16t | G76: 1.06 | H76: 768 | I76: 0 | J76: 0
A77: =SUBTOTAL(3,$B$7:B77) -> 0 | B77: TXL2-103 | C77: 地下定向钻孔敷管 工作孔径φ950mm 以下 每增加 10m | D77: 机 | E77: =E76 -> 0.00 | F77: 微控钻孔敷管设备(25t以上) | G77: 1.1 | H77: 0 | I77: 0 | J77: 0
A78: =SUBTOTAL(3,$B$7:B78) -> 0 | B78: TXL2-103 | C78: 地下定向钻孔敷管 工作孔径φ950mm 以下 每增加 10m | D78: 机 | E78: =E76 -> 0.00 | F78: 载重汽车 12t | G78: 1.06 | H78: 582 | I78: 0 | J78: 0
A79: =SUBTOTAL(3,$B$7:B79) -> 0 | B79: TXL2-108 | C79: 机械顶管 | D79: 机 | E79: ='表三 甲'!E136 -> 0.00 | F79: 液压顶管机 5t | G79: 0.15 | H79: 444 | I79: 0 | J79: 0
A80: =SUBTOTAL(3,$B$7:B80) -> 0 | B80: TXL2-136 | C80: 水泵冲槽 | D80: 机 | E80: ='表三 甲'!E164 -> 0.00 | F80: 水泵冲槽设备（套） | G80: 10 | H80: 645 | I80: 0 | J80: 0
A81: =SUBTOTAL(3,$B$7:B81) -> 0 | B81: TXL2-145 | C81: 96 芯以下光缆 平河水 普通土 | D81: 机 | E81: ='表三 甲'!E173 -> 0.00 | F81: 水下光(电)缆沟 挖冲机 | G81: 2.5 | H81: 677 | I81: 0 | J81: 0
A82: =SUBTOTAL(3,$B$7:B82) -> 0 | B82: TXL2-146 | C82: 96 芯以下光缆 平河水 硬土 | D82: 机 | E82: ='表三 甲'!E174 -> 0.00 | F82: 水下光(电)缆沟 挖冲机 | G82: 3.75 | H82: 677 | I82: 0 | J82: 0
A83: =SUBTOTAL(3,$B$7:B83) -> 0 | B83: TXL2-147 | C83: 96 芯以下光缆 潮河水 普通土 | D83: 机 | E83: ='表三 甲'!E175 -> 0.00 | F83: 水下光(电)缆沟 挖冲机 | G83: 3.75 | H83: 677 | I83: 0 | J83: 0
A84: =SUBTOTAL(3,$B$7:B84) -> 0 | B84: TXL2-148 | C84: 96 芯以下光缆 潮河水 硬土 | D84: 机 | E84: ='表三 甲'!E176 -> 0.00 | F84: 水下光(电)缆沟 挖冲机 | G84: 5.63 | H84: 677 | I84: 0 | J84: 0
A85: =SUBTOTAL(3,$B$7:B85) -> 0 | B85: TXL2-149 | C85: 96 芯以上光缆 平河水 普通土 | D85: 机 | E85: ='表三 甲'!E177 -> 0.00 | F85: 水下光(电)缆沟 挖冲机 | G85: 2.5 | H85: 677 | I85: 0 | J85: 0
A86: =SUBTOTAL(3,$B$7:B86) -> 0 | B86: TXL2-150 | C86: 96 芯以上光缆 平河水 硬土 | D86: 机 | E86: ='表三 甲'!E178 -> 0.00 | F86: 水下光(电)缆沟 挖冲机 | G86: 3.75 | H86: 677 | I86: 0 | J86: 0
A87: =SUBTOTAL(3,$B$7:B87) -> 0 | B87: TXL2-151 | C87: 96 芯以上光缆 潮河水 普通土 | D87: 机 | E87: ='表三 甲'!E179 -> 0.00 | F87: 水下光(电)缆沟 挖冲机 | G87: 3.75 | H87: 677 | I87: 0 | J87: 0
A88: =SUBTOTAL(3,$B$7:B88) -> 0 | B88: TXL2-152 | C88: 96 芯以上光缆 潮河水 硬土 | D88: 机 | E88: ='表三 甲'!E180 -> 0.00 | F88: 水下光(电)缆沟 挖冲机 | G88: 5.63 | H88: 677 | I88: 0 | J88: 0
A89: =SUBTOTAL(3,$B$7:B89) -> 0 | B89: TXL2-153 | C89: 海缆装船 自航船 | D89: 机 | E89: ='表三 甲'!E181 -> 0.00 | F89: 辅助船 | G89: 0.13 | H89: 0 | I89: 0 | J89: 0
A90: =SUBTOTAL(3,$B$7:B90) -> 0 | B90: TXL2-153 | C90: 海缆装船 自航船 | D90: 机 | E90: =E89 -> 0.00 | F90: 海缆施工自航船 （5000t以下） | G90: 0.13 | H90: 0 | I90: 0 | J90: 0
A91: =SUBTOTAL(3,$B$7:B91) -> 0 | B91: TXL2-154 | C91: 海缆装船 驳船 | D91: 机 | E91: ='表三 甲'!E182 -> 0.00 | F91: 辅助船 | G91: 0.13 | H91: 0 | I91: 0 | J91: 0
A92: =SUBTOTAL(3,$B$7:B92) -> 0 | B92: TXL2-154 | C92: 海缆装船 驳船 | D92: 机 | E92: =E91 -> 0.00 | F92: 海缆施工驳船（500t以下）带拖轮 | G92: 0.13 | H92: 0 | I92: 0 | J92: 0
A93: =SUBTOTAL(3,$B$7:B93) -> 0 | B93: TXL2-155 | C93: 航行 自航船 | D93: 机 | E93: ='表三 甲'!E183 -> 0.00 | F93: 海缆施工自航船 （5000t以下） | G93: 0.65 | H93: 0 | I93: 0 | J93: 0
A94: =SUBTOTAL(3,$B$7:B94) -> 0 | B94: TXL2-156 | C94: 航行 驳船 | D94: 机 | E94: ='表三 甲'!E184 -> 0.00 | F94: 海缆施工驳船 （500t 以下）带拖轮 | G94: 1.6 | H94: 0 | I94: 0 | J94: 0
A95: =SUBTOTAL(3,$B$7:B95) -> 0 | B95: TXL2-157 | C95: 海中敷设海缆 自航船 | D95: 机 | E95: ='表三 甲'!E185 -> 0.00 | F95: 海缆施工自航船 （5000t 以下） | G95: 0.03 | H95: 0 | I95: 0 | J95: 0
A96: =SUBTOTAL(3,$B$7:B96) -> 0 | B96: TXL2-158 | C96: 海中敷设海缆 驳船 | D96: 机 | E96: ='表三 甲'!E186 -> 0.00 | F96: 海缆施工驳船 （500t 以下）带拖轮 | G96: 0.03 | H96: 0 | I96: 0 | J96: 0
A97: =SUBTOTAL(3,$B$7:B97) -> 0 | B97: TXL2-159 | C97: 海中埋设海缆 自航船 埋深 3m 以上 | D97: 机 | E97: ='表三 甲'!E187 -> 0.00 | F97: 海缆施工自航船 （5000t以下） | G97: 0.9 | H97: 0 | I97: 0 | J97: 0
A98: =SUBTOTAL(3,$B$7:B98) -> 0 | B98: TXL2-160 | C98: 海中埋设海缆 自航船 埋深 3m 以下 | D98: 机 | E98: ='表三 甲'!E188 -> 0.00 | F98: 海缆施工自航船 （5000t 以下） | G98: 0.3 | H98: 0 | I98: 0 | J98: 0
A99: =SUBTOTAL(3,$B$7:B99) -> 0 | B99: TXL2-161 | C99: 海中埋设海缆 驳船 埋深 3m 以上 | D99: 机 | E99: ='表三 甲'!E189 -> 0.00 | F99: 海缆施工驳船 （500t 以下）带拖轮 | G99: 0.9 | H99: 0 | I99: 0 | J99: 0
A100: =SUBTOTAL(3,$B$7:B100) -> 0 | B100: TXL2-162 | C100: 海中埋设海缆 驳船 埋深 3m 以下 | D100: 机 | E100: ='表三 甲'!E190 -> 0.00 | F100: 海缆施工驳船 （500t 以下）带拖轮 | G100: 0.45 | H100: 0 | I100: 0 | J100: 0
A101: =SUBTOTAL(3,$B$7:B101) -> 0 | B101: TXL2-163 | C101: 海底光缆接续 自航船 | D101: 机 | E101: ='表三 甲'!E191 -> 0.00 | F101: 接头设备 | G101: 3 | H101: 0 | I101: 0 | J101: 0
A102: =SUBTOTAL(3,$B$7:B102) -> 0 | B102: TXL2-163 | C102: 海底光缆接续 自航船 | D102: 机 | E102: =E101 -> 0.00 | F102: 海缆施工自航船 （5000t 以下） | G102: 3 | H102: 0 | I102: 0 | J102: 0
A103: =SUBTOTAL(3,$B$7:B103) -> 0 | B103: TXL2-164 | C103: 海底光缆接续 驳船 | D103: 机 | E103: ='表三 甲'!E192 -> 0.00 | F103: 海缆施工驳船（ 500t 以下）带拖轮 | G103: 3 | H103: 0 | I103: 0 | J103: 0
A104: =SUBTOTAL(3,$B$7:B104) -> 0 | B104: TXL2-164 | C104: 海底光缆接续 驳船 | D104: 机 | E104: =E103 -> 0.00 | F104: 接头设备 | G104: 3 | H104: 0 | I104: 0 | J104: 0
A105: =SUBTOTAL(3,$B$7:B105) -> 0 | B105: TXL2-165 | C105: 辅助船法敷设登陆海缆 自航船 | D105: 机 | E105: ='表三 甲'!E193 -> 0.00 | F105: 辅助船 | G105: 2 | H105: 0 | I105: 0 | J105: 0
A106: =SUBTOTAL(3,$B$7:B106) -> 0 | B106: TXL2-165 | C106: 辅助船法敷设登陆海缆 自航船 | D106: 机 | E106: =E105 -> 0.00 | F106: 海缆施工自航船 （5000t 以下） | G106: 1 | H106: 0 | I106: 0 | J106: 0
A107: =SUBTOTAL(3,$B$7:B107) -> 0 | B107: TXL2-166 | C107: 辅助船法敷设登陆海缆 驳船 | D107: 机 | E107: ='表三 甲'!E194 -> 0.00 | F107: 海缆施工驳船（500t 以下）带拖轮 | G107: 1 | H107: 0 | I107: 0 | J107: 0
A108: =SUBTOTAL(3,$B$7:B108) -> 0 | B108: TXL2-166 | C108: 辅助船法敷设登陆海缆 驳船 | D108: 机 | E108: =E107 -> 0.00 | F108: 辅助船 | G108: 2 | H108: 0 | I108: 0 | J108: 0
A109: =SUBTOTAL(3,$B$7:B109) -> 0 | B109: TXL2-167 | C109: 浮球法敷设登陆海缆 自航船 | D109: 机 | E109: ='表三 甲'!E195 -> 0.00 | F109: 海缆施工自航船 （5000t 以下） | G109: 1 | H109: 0 | I109: 0 | J109: 0
A110: =SUBTOTAL(3,$B$7:B110) -> 0 | B110: TXL2-167 | C110: 浮球法敷设登陆海缆 自航船 | D110: 机 | E110: =E109 -> 0.00 | F110: 辅助船 | G110: 3 | H110: 0 | I110: 0 | J110: 0
A111: =SUBTOTAL(3,$B$7:B111) -> 0 | B111: TXL2-167 | C111: 浮球法敷设登陆海缆 自航船 | D111: 机 | E111: =E109 -> 0.00 | F111: 机械牵引设备 | G111: 1 | H111: 0 | I111: 0 | J111: 0
A112: =SUBTOTAL(3,$B$7:B112) -> 0 | B112: TXL2-168 | C112: 浮球法敷设登陆海缆 驳船 | D112: 机 | E112: ='表三 甲'!E196 -> 0.00 | F112: 辅助船 | G112: 3 | H112: 0 | I112: 0 | J112: 0
A113: =SUBTOTAL(3,$B$7:B113) -> 0 | B113: TXL2-168 | C113: 浮球法敷设登陆海缆 驳船 | D113: 机 | E113: =E112 -> 0.00 | F113: 机械牵引设备 | G113: 1 | H113: 0 | I113: 0 | J113: 0
A114: =SUBTOTAL(3,$B$7:B114) -> 0 | B114: TXL2-168 | C114: 浮球法敷设登陆海缆 驳船 | D114: 机 | E114: =E112 -> 0.00 | F114: 海缆施工驳船 (500t 以下)带拖轮 | G114: 1 | H114: 0 | I114: 0 | J114: 0
A115: =SUBTOTAL(3,$B$7:B115) -> 0 | B115: TXL2-169 | C115: 海底光缆冲埋 水深 20m 以下 | D115: 机 | E115: ='表三 甲'!E197 -> 0.00 | F115: 辅助船 | G115: 6 | H115: 0 | I115: 0 | J115: 0
A116: =SUBTOTAL(3,$B$7:B116) -> 0 | B116: TXL2-169 | C116: 海底光缆冲埋 水深 20m 以下 | D116: 机 | E116: =E115 -> 0.00 | F116: 海缆施工驳船 (500t 以下)带拖轮 | G116: 3 | H116: 0 | I116: 0 | J116: 0
A117: =SUBTOTAL(3,$B$7:B117) -> 0 | B117: TXL2-170 | C117: 海底光缆冲埋 水深 20～30m | D117: 机 | E117: ='表三 甲'!E198 -> 0.00 | F117: 海缆施工驳船 (500t 以下)带拖轮 | G117: 5 | H117: 0 | I117: 0 | J117: 0
A118: =SUBTOTAL(3,$B$7:B118) -> 0 | B118: TXL2-170 | C118: 海底光缆冲埋 水深 20～30m | D118: 机 | E118: =E117 -> 0.00 | F118: 辅助船 | G118: 10 | H118: 0 | I118: 0 | J118: 0
A119: =SUBTOTAL(3,$B$7:B119) -> 0 | B119: TXL2-171 | C119: 水下机器人（ROV）后冲埋海底光缆 自航船 | D119: 机 | E119: ='表三 甲'!E199 -> 0.00 | F119: 海缆施工自航船 (5000t 以下) | G119: 0.05 | H119: 0 | I119: 0 | J119: 0
A120: =SUBTOTAL(3,$B$7:B120) -> 0 | B120: TXL2-171 | C120: 水下机器人（ROV）后冲埋海底光缆 自航船 | D120: 机 | E120: =E119 -> 0.00 | F120: 冲埋设备 | G120: 0.05 | H120: 0 | I120: 0 | J120: 0
A121: =SUBTOTAL(3,$B$7:B121) -> 0 | B121: TXL2-172 | C121: 水下机器人（ROV）后冲埋海底光缆 驳船 | D121: 机 | E121: ='表三 甲'!E200 -> 0.00 | F121: 海缆施工驳船 (500t 以下)带拖轮 | G121: 0.05 | H121: 0 | I121: 0 | J121: 0
A122: =SUBTOTAL(3,$B$7:B122) -> 0 | B122: TXL2-172 | C122: 水下机器人（ROV）后冲埋海底光缆 驳船 | D122: 机 | E122: =E121 -> 0.00 | F122: 冲埋设备 | G122: 0.05 | H122: 0 | I122: 0 | J122: 0
A123: =SUBTOTAL(3,$B$7:B123) -> 0 | B123: TXL2-173 | C123: 水下安装 关节套管 | D123: 机 | E123: ='表三 甲'!E201 -> 0.00 | F123: 海缆施工自航船 (5000t 以下) | G123: 0.2 | H123: 0 | I123: 0 | J123: 0
A124: =SUBTOTAL(3,$B$7:B124) -> 1 | B124: TXL3-001 | C124: 立 9m 以下水泥杆 综合土 | D124: 机 | E124: ='表三 甲'!E217 -> 6.00 | F124: 汽车式起重机 5t | G124: 0.04 | H124: 516 | I124: 0.24 | J124: 123.84
A125: =SUBTOTAL(3,$B$7:B125) -> 1 | B125: TXL3-002 | C125: 立 9m 以下水泥杆 软石 | D125: 机 | E125: ='表三 甲'!E218 -> 0.00 | F125: 汽车式起重机 5t | G125: 0.04 | H125: 516 | I125: 0 | J125: 0
A126: =SUBTOTAL(3,$B$7:B126) -> 1 | B126: TXL3-003 | C126: 立 9m 以下水泥杆 坚石 | D126: 机 | E126: ='表三 甲'!E219 -> 0.00 | F126: 汽车式起重机 5t | G126: 0.04 | H126: 516 | I126: 0 | J126: 0
A127: =SUBTOTAL(3,$B$7:B127) -> 1 | B127: TXL3-004 | C127: 立 11m 以下水泥杆 综合土 | D127: 机 | E127: ='表三 甲'!E220 -> 0.00 | F127: 汽车式起重机 5t | G127: 0.04 | H127: 516 | I127: 0 | J127: 0
A128: =SUBTOTAL(3,$B$7:B128) -> 1 | B128: TXL3-005 | C128: 立 11m 以下水泥杆 软石 | D128: 机 | E128: ='表三 甲'!E221 -> 0.00 | F128: 汽车式起重机 5t | G128: 0.04 | H128: 516 | I128: 0 | J128: 0
A129: =SUBTOTAL(3,$B$7:B129) -> 1 | B129: TXL3-006 | C129: 立 11m 以下水泥杆 坚石 | D129: 机 | E129: ='表三 甲'!E222 -> 0.00 | F129: 汽车式起重机 5t | G129: 0.04 | H129: 516 | I129: 0 | J129: 0
A130: =SUBTOTAL(3,$B$7:B130) -> 1 | B130: TXL3-007 | C130: 立 13m 以下水泥杆 综合土 | D130: 机 | E130: ='表三 甲'!E223 -> 0.00 | F130: 汽车式起重机 5t | G130: 0.06 | H130: 516 | I130: 0 | J130: 0
A131: =SUBTOTAL(3,$B$7:B131) -> 1 | B131: TXL3-008 | C131: 立 13m 以下水泥杆 软石 | D131: 机 | E131: ='表三 甲'!E224 -> 0.00 | F131: 汽车式起重机 5t | G131: 0.06 | H131: 516 | I131: 0 | J131: 0
A132: =SUBTOTAL(3,$B$7:B132) -> 1 | B132: TXL3-009 | C132: 立 13m 以下水泥杆 坚石 | D132: 机 | E132: ='表三 甲'!E225 -> 0.00 | F132: 汽车式起重机 5t | G132: 0.06 | H132: 516 | I132: 0 | J132: 0
A133: =SUBTOTAL(3,$B$7:B133) -> 1 | B133: TXL3-010 | C133: 立 13m 以下水泥 H 杆 综合土 | D133: 机 | E133: ='表三 甲'!E226 -> 0.00 | F133: 汽车式起重机 5t | G133: 0.12 | H133: 516 | I133: 0 | J133: 0
A134: =SUBTOTAL(3,$B$7:B134) -> 1 | B134: TXL3-011 | C134: 立 13m 以下水泥 H 杆 软石 | D134: 机 | E134: ='表三 甲'!E227 -> 0.00 | F134: 汽车式起重机 5t | G134: 0.12 | H134: 516 | I134: 0 | J134: 0
A135: =SUBTOTAL(3,$B$7:B135) -> 1 | B135: TXL3-012 | C135: 立 13m 以下水泥 H 杆 坚石 | D135: 机 | E135: ='表三 甲'!E228 -> 0.00 | F135: 汽车式起重机 5t | G135: 0.12 | H135: 516 | I135: 0 | J135: 0
A136: =SUBTOTAL(3,$B$7:B136) -> 1 | B136: TXL3-048 | C136: 装水泥撑杆 综合土 | D136: 机 | E136: ='表三 甲'!E264 -> 0.00 | F136: 汽车式起重机（5t） | G136: 0.05 | H136: 516 | I136: =E136*G136 -> 0 | J136: =H136*I136 -> 0
A137: =SUBTOTAL(3,$B$7:B137) -> 1 | B137: TXL3-049 | C137: 装水泥撑杆 软石 | D137: 机 | E137: ='表三 甲'!E265 -> 0.00 | F137: 汽车式起重机（5t） | G137: 0.05 | H137: 516 | I137: 0 | J137: 0
A138: =SUBTOTAL(3,$B$7:B138) -> 1 | B138: TXL3-050 | C138: 装水泥撑杆 坚石 | D138: 机 | E138: ='表三 甲'!E266 -> 0.00 | F138: 汽车式起重机（5t） | G138: 0.05 | H138: 516 | I138: 0 | J138: 0
A139: =SUBTOTAL(3,$B$7:B139) -> 1 | B139: TXL3-203 | C139: 缠绕法架设架空光缆 平原 36 芯以下 | D139: 机 | E139: ='表三 甲'!E419 -> 0.00 | F139: 缠绕机 | G139: 0.3 | H139: 137 | I139: 0 | J139: 0
A140: =SUBTOTAL(3,$B$7:B140) -> 1 | B140: TXL3-204 | C140: 缠绕法架设架空光缆 平原 72 芯以下 | D140: 机 | E140: ='表三 甲'!E420 -> 0.00 | F140: 缠绕机 | G140: 0.3 | H140: 137 | I140: 0 | J140: 0
A141: =SUBTOTAL(3,$B$7:B141) -> 1 | B141: TXL3-205 | C141: 缠绕法架设架空光缆 平原 144 芯以下 | D141: 机 | E141: ='表三 甲'!E421 -> 0.00 | F141: 缠绕机 | G141: 0.3 | H141: 137 | I141: 0 | J141: 0
A142: =SUBTOTAL(3,$B$7:B142) -> 1 | B142: TXL3-206 | C142: 缠绕法架设架空光缆 平原 288 芯以下 | D142: 机 | E142: ='表三 甲'!E422 -> 0.00 | F142: 缠绕机 | G142: 0.3 | H142: 137 | I142: 0 | J142: 0
A143: =SUBTOTAL(3,$B$7:B143) -> 1 | B143: TXL3-207 | C143: 缠绕法架设架空光缆 平原 288 芯以上 | D143: 机 | E143: ='表三 甲'!E423 -> 0.00 | F143: 缠绕机 | G143: 0.3 | H143: 137 | I143: 0 | J143: 0
A144: =SUBTOTAL(3,$B$7:B144) -> 1 | B144: TXL3-208 | C144: 缠绕法架设架空光缆 丘陵、城区、水田 36 芯以下 | D144: 机 | E144: ='表三 甲'!E424 -> 0.00 | F144: 缠绕机 | G144: 0.35 | H144: 137 | I144: 0 | J144: 0
A145: =SUBTOTAL(3,$B$7:B145) -> 1 | B145: TXL3-209 | C145: 缠绕法架设架空光缆 丘陵、城区、水田 72 芯以下 | D145: 机 | E145: ='表三 甲'!E425 -> 0.00 | F145: 缠绕机 | G145: 0.35 | H145: 137 | I145: 0 | J145: 0
A146: =SUBTOTAL(3,$B$7:B146) -> 1 | B146: TXL3-210 | C146: 缠绕法架设架空光缆 丘陵、城区、水田 144 芯以下 | D146: 机 | E146: ='表三 甲'!E426 -> 0.00 | F146: 缠绕机 | G146: 0.35 | H146: 137 | I146: 0 | J146: 0
A147: =SUBTOTAL(3,$B$7:B147) -> 1 | B147: TXL3-211 | C147: 缠绕法架设架空光缆 丘陵、城区、水田 288 芯以下 | D147: 机 | E147: ='表三 甲'!E427 -> 0.00 | F147: 缠绕机 | G147: 0.35 | H147: 137 | I147: 0 | J147: 0
A148: =SUBTOTAL(3,$B$7:B148) -> 1 | B148: TXL3-212 | C148: 缠绕法架设架空光缆 丘陵、城区、水田 288 芯以上 | D148: 机 | E148: ='表三 甲'!E428 -> 0.00 | F148: 缠绕机 | G148: 0.35 | H148: 137 | I148: 0 | J148: 0
A149: =SUBTOTAL(3,$B$7:B149) -> 1 | B149: TXL3-213 | C149: 缠绕法架设架空光缆 山区 36 芯以下 | D149: 机 | E149: ='表三 甲'!E429 -> 0.00 | F149: 缠绕机 | G149: 0.42 | H149: 137 | I149: 0 | J149: 0
A150: =SUBTOTAL(3,$B$7:B150) -> 1 | B150: TXL3-214 | C150: 缠绕法架设架空光缆 山区 72 芯以下 | D150: 机 | E150: ='表三 甲'!E430 -> 0.00 | F150: 缠绕机 | G150: 0.42 | H150: 137 | I150: 0 | J150: 0
A151: =SUBTOTAL(3,$B$7:B151) -> 1 | B151: TXL3-215 | C151: 缠绕法架设架空光缆 山区 144 芯以下 | D151: 机 | E151: ='表三 甲'!E431 -> 0.00 | F151: 缠绕机 | G151: 0.42 | H151: 137 | I151: 0 | J151: 0
A152: =SUBTOTAL(3,$B$7:B152) -> 1 | B152: TXL3-216 | C152: 缠绕法架设架空光缆 山区 288 芯以下 | D152: 机 | E152: ='表三 甲'!E432 -> 0.00 | F152: 缠绕机 | G152: 0.42 | H152: 137 | I152: 0 | J152: 0
A153: =SUBTOTAL(3,$B$7:B153) -> 1 | B153: TXL3-217 | C153: 缠绕法架设架空光缆 山区 288 芯以上 | D153: 机 | E153: ='表三 甲'!E433 -> 0.00 | F153: 缠绕机 | G153: 0.42 | H153: 137 | I153: 0 | J153: 0
A154: =SUBTOTAL(3,$B$7:B154) -> 1 | B154: TXL4-001 | C154: 布放光（电）缆人孔抽水 积水 | D154: 机 | E154: ='表三 甲'!E439 -> 0.00 | F154: 抽水机 | G154: 0.2 | H154: 119 | I154: 0 | J154: 0
A155: =SUBTOTAL(3,$B$7:B155) -> 1 | B155: TXL4-002 | C155: 布放光（电）缆人孔抽水 流水 | D155: 机 | E155: ='表三 甲'!E440 -> 0.00 | F155: 抽水机 | G155: 0.5 | H155: 119 | I155: 0 | J155: 0
A156: =SUBTOTAL(3,$B$7:B156) -> 1 | B156: TXL4-003 | C156: 布放光（电）缆手孔抽水 | D156: 机 | E156: ='表三 甲'!E441 -> 0.00 | F156: 抽水机 | G156: 0.1 | H156: 119 | I156: 0 | J156: 0
A157: =SUBTOTAL(3,$B$7:B157) -> 1 | B157: TXL4-026 | C157: 机械敷设管道电缆 200 对以下 | D157: 机 | E157: ='表三 甲'!E464 -> 0.00 | F157: 电缆拖车 | G157: 0.4 | H157: 138 | I157: 0 | J157: 0
A158: =SUBTOTAL(3,$B$7:B158) -> 1 | B158: TXL4-026 | C158: 机械敷设管道电缆 200 对以下 | D158: 机 | E158: =E157 -> 0.00 | F158: 载重汽车 (5t) | G158: 0.4 | H158: 372 | I158: 0 | J158: 0
A159: =SUBTOTAL(3,$B$7:B159) -> 1 | B159: TXL4-027 | C159: 机械敷设管道电缆 400 对以下 | D159: 机 | E159: ='表三 甲'!E465 -> 0.00 | F159: 电缆拖车 | G159: 0.55 | H159: 138 | I159: 0 | J159: 0
A160: =SUBTOTAL(3,$B$7:B160) -> 1 | B160: TXL4-027 | C160: 机械敷设管道电缆 400 对以下 | D160: 机 | E160: =E159 -> 0.00 | F160: 载重汽车 (5t) | G160: 0.55 | H160: 372 | I160: 0 | J160: 0
A161: =SUBTOTAL(3,$B$7:B161) -> 1 | B161: TXL4-028 | C161: 机械敷设管道电缆 800 对以下 | D161: 机 | E161: ='表三 甲'!E466 -> 0.00 | F161: 电缆拖车 | G161: 0.75 | H161: 138 | I161: 0 | J161: 0
A162: =SUBTOTAL(3,$B$7:B162) -> 1 | B162: TXL4-028 | C162: 机械敷设管道电缆 800 对以下 | D162: 机 | E162: =E161 -> 0.00 | F162: 载重汽车 (5t) | G162: 0.75 | H162: 372 | I162: 0 | J162: 0
A163: =SUBTOTAL(3,$B$7:B163) -> 1 | B163: TXL4-029 | C163: 机械敷设管道电缆 1200 对以下 | D163: 机 | E163: ='表三 甲'!E467 -> 0.00 | F163: 电缆拖车 | G163: 0.9 | H163: 138 | I163: 0 | J163: 0
A164: =SUBTOTAL(3,$B$7:B164) -> 1 | B164: TXL4-029 | C164: 机械敷设管道电缆 1200 对以下 | D164: 机 | E164: =E163 -> 0.00 | F164: 载重汽车 (5t) | G164: 0.9 | H164: 372 | I164: 0 | J164: 0
A165: =SUBTOTAL(3,$B$7:B165) -> 1 | B165: TXL4-030 | C165: 机械敷设管道电缆 1800 对以下 | D165: 机 | E165: ='表三 甲'!E468 -> 0.00 | F165: 载重汽车 (5t) | G165: 1.1 | H165: 372 | I165: 0 | J165: 0
A166: =SUBTOTAL(3,$B$7:B166) -> 1 | B166: TXL4-030 | C166: 机械敷设管道电缆 1800 对以下 | D166: 机 | E166: =E165 -> 0.00 | F166: 电缆拖车 | G166: 1.1 | H166: 138 | I166: 0 | J166: 0
A167: =SUBTOTAL(3,$B$7:B167) -> 1 | B167: TXL4-031 | C167: 机械敷设管道电缆 2400 对以下 | D167: 机 | E167: ='表三 甲'!E469 -> 0.00 | F167: 载重汽车 (5t) | G167: 1.4 | H167: 372 | I167: 0 | J167: 0
A168: =SUBTOTAL(3,$B$7:B168) -> 1 | B168: TXL4-031 | C168: 机械敷设管道电缆 2400 对以下 | D168: 机 | E168: =E167 -> 0.00 | F168: 电缆拖车 | G168: 1.4 | H168: 138 | I168: 0 | J168: 0
A169: =SUBTOTAL(3,$B$7:B169) -> 1 | B169: TXL4-032 | C169: 机械敷设管道电缆 2400 对以上 | D169: 机 | E169: ='表三 甲'!E470 -> 0.00 | F169: 载重汽车 (5t) | G169: 2 | H169: 372 | I169: 0 | J169: 0
A170: =SUBTOTAL(3,$B$7:B170) -> 1 | B170: TXL4-032 | C170: 机械敷设管道电缆 2400 对以上 | D170: 机 | E170: =E169 -> 0.00 | F170: 电缆拖车 | G170: 2 | H170: 138 | I170: 0 | J170: 0
A171: =SUBTOTAL(3,$B$7:B171) -> 1 | B171: TXL5-001 | C171: 城区气流法敷设微管 3 根以下 | D171: 机 | E171: ='表三 甲'!E501 -> 0.00 | F171: 气流敷设设备(敷设微管微缆) | G171: 0.23 | H171: 814 | I171: 0 | J171: 0
A172: =SUBTOTAL(3,$B$7:B172) -> 1 | B172: TXL5-001 | C172: 城区气流法敷设微管 3 根以下 | D172: 机 | E172: =E171 -> 0.00 | F172: 载重汽车 （5t） | G172: 0.46 | H172: 372 | I172: 0 | J172: 0
A173: =SUBTOTAL(3,$B$7:B173) -> 1 | B173: TXL5-001 | C173: 城区气流法敷设微管 3 根以下 | D173: 机 | E173: =E171 -> 0.00 | F173: 汽车式起重机 （5t） | G173: 0.18 | H173: 516 | I173: 0 | J173: 0
A174: =SUBTOTAL(3,$B$7:B174) -> 1 | B174: TXL5-002 | C174: 城区气流法敷设微管 5 根以下 | D174: 机 | E174: ='表三 甲'!E502 -> 0.00 | F174: 气流敷设设备(敷设微管微缆) | G174: 0.26 | H174: 814 | I174: 0 | J174: 0
A175: =SUBTOTAL(3,$B$7:B175) -> 1 | B175: TXL5-002 | C175: 城区气流法敷设微管 5 根以下 | D175: 机 | E175: =E174 -> 0.00 | F175: 汽车式起重机 （5t） | G175: 0.18 | H175: 516 | I175: 0 | J175: 0
A176: =SUBTOTAL(3,$B$7:B176) -> 1 | B176: TXL5-002 | C176: 城区气流法敷设微管 5 根以下 | D176: 机 | E176: =E174 -> 0.00 | F176: 载重汽车 （5t） | G176: 0.52 | H176: 372 | I176: 0 | J176: 0
A177: =SUBTOTAL(3,$B$7:B177) -> 1 | B177: TXL5-003 | C177: 城区气流法敷设微管 5 根以上 | D177: 机 | E177: ='表三 甲'!E503 -> 0.00 | F177: 汽车式起重机 （5t） | G177: 0.18 | H177: 516 | I177: 0 | J177: 0
A178: =SUBTOTAL(3,$B$7:B178) -> 1 | B178: TXL5-003 | C178: 城区气流法敷设微管 5 根以上 | D178: 机 | E178: =E177 -> 0.00 | F178: 载重汽车 （5t） | G178: 0.6 | H178: 372 | I178: 0 | J178: 0
A179: =SUBTOTAL(3,$B$7:B179) -> 1 | B179: TXL5-003 | C179: 城区气流法敷设微管 5 根以上 | D179: 机 | E179: =E177 -> 0.00 | F179: 气流敷设设备(敷设微管微缆) | G179: 0.3 | H179: 814 | I179: 0 | J179: 0
A180: =SUBTOTAL(3,$B$7:B180) -> 1 | B180: TXL5-004 | C180: 非城区气流法敷设微管 3 根以下 | D180: 机 | E180: ='表三 甲'!E504 -> 0.00 | F180: 汽车式起重机 （5t） | G180: 0.15 | H180: 516 | I180: 0 | J180: 0
A181: =SUBTOTAL(3,$B$7:B181) -> 1 | B181: TXL5-004 | C181: 非城区气流法敷设微管 3 根以下 | D181: 机 | E181: =E180 -> 0.00 | F181: 载重汽车 （5t） | G181: 0.4 | H181: 372 | I181: 0 | J181: 0
A182: =SUBTOTAL(3,$B$7:B182) -> 1 | B182: TXL5-004 | C182: 非城区气流法敷设微管 3 根以下 | D182: 机 | E182: =E180 -> 0.00 | F182: 气流敷设设备(敷设微管微缆) | G182: 0.2 | H182: 814 | I182: 0 | J182: 0
A183: =SUBTOTAL(3,$B$7:B183) -> 1 | B183: TXL5-005 | C183: 非城区气流法敷设微管 5 根以下 | D183: 机 | E183: ='表三 甲'!E505 -> 0.00 | F183: 汽车式起重机 （5t） | G183: 0.15 | H183: 516 | I183: 0 | J183: 0
A184: =SUBTOTAL(3,$B$7:B184) -> 1 | B184: TXL5-005 | C184: 非城区气流法敷设微管 5 根以下 | D184: 机 | E184: =E183 -> 0.00 | F184: 气流敷设设备(敷设微管微缆) | G184: 0.23 | H184: 814 | I184: 0 | J184: 0
A185: =SUBTOTAL(3,$B$7:B185) -> 1 | B185: TXL5-005 | C185: 非城区气流法敷设微管 5 根以下 | D185: 机 | E185: =E183 -> 0.00 | F185: 载重汽车 （5t） | G185: 0.46 | H185: 372 | I185: 0 | J185: 0
A186: =SUBTOTAL(3,$B$7:B186) -> 1 | B186: TXL5-006 | C186: 非城区气流法敷设微管 5 根以上 | D186: 机 | E186: ='表三 甲'!E506 -> 0.00 | F186: 气流敷设设备(敷设微管微缆) | G186: 0.26 | H186: 814 | I186: 0 | J186: 0
A187: =SUBTOTAL(3,$B$7:B187) -> 1 | B187: TXL5-006 | C187: 非城区气流法敷设微管 5 根以上 | D187: 机 | E187: =E186 -> 0.00 | F187: 汽车式起重机 （5t） | G187: 0.15 | H187: 516 | I187: 0 | J187: 0
A188: =SUBTOTAL(3,$B$7:B188) -> 1 | B188: TXL5-006 | C188: 非城区气流法敷设微管 5 根以上 | D188: 机 | E188: =E186 -> 0.00 | F188: 载重汽车 （5t） | G188: 0.52 | H188: 372 | I188: 0 | J188: 0
A189: =SUBTOTAL(3,$B$7:B189) -> 1 | B189: TXL5-010 | C189: 城区人工布放微管 非空闲保护管内 3 根以下 | D189: 机 | E189: ='表三 甲'!E510 -> 0.00 | F189: 燃油式空气压缩机 | G189: 0.1 | H189: 368 | I189: 0 | J189: 0
A190: =SUBTOTAL(3,$B$7:B190) -> 1 | B190: TXL5-011 | C190: 城区人工布放微管 非空闲保护管内 4 至 5 根 | D190: 机 | E190: ='表三 甲'!E511 -> 0.00 | F190: 燃油式空气压缩机 | G190: 0.12 | H190: 368 | I190: 0 | J190: 0
A191: =SUBTOTAL(3,$B$7:B191) -> 1 | B191: TXL5-013 | C191: 保护管贯通 | D191: 机 | E191: ='表三 甲'!E513 -> 0.00 | F191: 载重汽车 （5t） | G191: 0.08 | H191: 372 | I191: 0 | J191: 0
A192: =SUBTOTAL(3,$B$7:B192) -> 1 | B192: TXL5-013 | C192: 保护管贯通 | D192: 机 | E192: =E191 -> 0.00 | F192: 气流敷设设备(敷设微管微缆) | G192: 0.08 | H192: 814 | I192: 0 | J192: 0
A193: =SUBTOTAL(3,$B$7:B193) -> 1 | B193: TXL5-016 | C193: 混凝土路面开微槽 30m 以下 | D193: 机 | E193: ='表三 甲'!E516 -> 0.00 | F193: 燃油式空气压缩机 (含风镐) | G193: 0.44 | H193: 372 | I193: 0 | J193: 0
A194: =SUBTOTAL(3,$B$7:B194) -> 1 | B194: TXL5-016 | C194: 混凝土路面开微槽 30m 以下 | D194: 机 | E194: =E193 -> 0.00 | F194: 真空泵 | G194: 0.63 | H194: 137 | I194: 0 | J194: 0
A195: =SUBTOTAL(3,$B$7:B195) -> 1 | B195: TXL5-016 | C195: 混凝土路面开微槽 30m 以下 | D195: 机 | E195: =E193 -> 0.00 | F195: 路面切割机 | G195: 0.7 | H195: 210 | I195: 0 | J195: 0
A196: =SUBTOTAL(3,$B$7:B196) -> 1 | B196: TXL5-016 | C196: 混凝土路面开微槽 30m 以下 | D196: 机 | E196: =E193 -> 0.00 | F196: 汽油发电机（10kW） | G196: 0.84 | H196: 202 | I196: 0 | J196: 0
A197: =SUBTOTAL(3,$B$7:B197) -> 1 | B197: TXL5-017 | C197: 混凝土路面开微槽 每增加 10m | D197: 机 | E197: ='表三 甲'!E517 -> 0.00 | F197: 汽油发电机（10kW） | G197: 0.17 | H197: 202 | I197: 0 | J197: 0
A198: =SUBTOTAL(3,$B$7:B198) -> 1 | B198: TXL5-017 | C198: 混凝土路面开微槽 每增加 10m | D198: 机 | E198: =E197 -> 0.00 | F198: 燃油式空气压缩机 (含风镐) | G198: 0.08 | H198: 372 | I198: 0 | J198: 0
A199: =SUBTOTAL(3,$B$7:B199) -> 1 | B199: TXL5-017 | C199: 混凝土路面开微槽 每增加 10m | D199: 机 | E199: =E197 -> 0.00 | F199: 真空泵 | G199: 0.1 | H199: 137 | I199: 0 | J199: 0
A200: =SUBTOTAL(3,$B$7:B200) -> 1 | B200: TXL5-017 | C200: 混凝土路面开微槽 每增加 10m | D200: 机 | E200: =E197 -> 0.00 | F200: 路面切割机 | G200: 0.11 | H200: 210 | I200: =E200*G200 -> 0 | J200: =H200*I200 -> 0
... 491 more rows

Sheet 表三丙
A1: 建筑安装工程仪器仪表使用费用预算表（表三）丙
A2: =ASC(综合信息表!C3) -> 建设项目名称:
A3: =ASC(综合信息表!C4) -> 单项工程名称:2023年景德镇电信乐平水利枢纽工程建设杆线迁改工程 | F3: =ASC(综合信息表!C6) -> 建设单位名称:中国电信股份有限公司景德镇分公司 | I3: =ASC(综合信息表!G8) -> 表格编号:TXL-3丙 | J3: 第全页
A4: 序号 | B4: 定额编号 | C4: 项目名称 | D4: 单位 | E4: 数量 | F4: 机械名称 | G4: 单位定额值（工日） | I4: 合计值
G5: 数量（台班） | H5: 单价（元） | I5: 数量（台班） | J5: 合价（元）
A6: Ⅰ | B6: Ⅱ | C6: Ⅲ | D6: Ⅳ | E6: Ⅴ | F6: Ⅵ | G6: Ⅶ | H6: Ⅷ | I6: Ⅸ | J6: Ⅹ
A7: =SUBTOTAL(3,$B7:B$7) -> 0 | B7: TXL1-001 | C7: 光（电）缆工程施工测量 直埋 | D7: 台班 | E7: ='表三 甲'!E7 -> 0.00 | F7: 地下管线探测仪 | G7: 0.05 | H7: 157.00 | I7: =E7*G7 -> 0.00 | J7: =H7*I7 -> 0.00
A8: =SUBTOTAL(3,$B$7:B8) -> 0 | B8: TXL1-001 | C8: 光（电）缆工程施工测量 直埋 | D8: 台班 | E8: =E7 -> 0.00 | F8: 激光测距仪 | G8: 0.04 | H8: 119.00 | I8: =E8*G8 -> 0.00 | J8: 0.00
A9: =SUBTOTAL(3,$B$7:B9) -> 1 | B9: TXL1-002 | C9: 光（电）缆工程施工测量 架空 | D9: 台班 | E9: ='表三 甲'!E8 -> 1.04 | F9: 激光测距仪 | G9: 0.05 | H9: 119.00 | I9: 0.05 | J9: 6.19
A10: =SUBTOTAL(3,$B$7:B10) -> 2 | B10: TXL1-003 | C10: 光（电）缆工程施工测量 管道 | D10: 台班 | E10: ='表三 甲'!E9 -> 0.45 | F10: 激光测距仪 | G10: 0.04 | H10: 119.00 | I10: 0.02 | J10: 2.14
A11: =SUBTOTAL(3,$B$7:B11) -> 3 | B11: TXL1-005 | C11: GPS 定位 | D11: 台班 | E11: ='表三 甲'!E11 -> 8.00 | F11: GPS 定位仪 | G11: 0.01 | H11: 118.00 | I11: 0.08 | J11: =I11*H11 -> 9.44
A12: =SUBTOTAL(3,$B$7:B12) -> 4 | B12: TXL1-006 | C12: 单盘检验 光缆 | D12: 台班 | E12: ='表三 甲'!E12 -> 92.00 | F12: 偏振模色散测试仪 | G12: 0.05 | H12: 455.00 | I12: 4.60 | J12: 2093.00
A13: =SUBTOTAL(3,$B$7:B13) -> 5 | B13: TXL1-006 | C13: 单盘检验 光缆 | D13: 台班 | E13: =E12 -> 92.00 | F13: 光时域反射仪 | G13: 0.05 | H13: 153.00 | I13: 4.60 | J13: 703.80
A14: =SUBTOTAL(3,$B$7:B14) -> 5 | B14: TXL2-128 | C14: 安装防雷设施 敷设排流线（双条） | D14: 台班 | E14: ='表三 甲'!E156 -> 0.00 | F14: 对地绝缘探测仪 | G14: 0.35 | H14: 153.00 | I14: 0.00 | J14: 0.00
A15: =SUBTOTAL(3,$B$7:B15) -> 5 | B15: TXL4-004 | C15: 人工敷设塑料子管 1 孔子管 | D15: 台班 | E15: ='表三 甲'!E442 -> 0.00 | F15: 有毒有害气体检测仪 | G15: 0.25 | H15: 117.00 | I15: 0.00 | J15: 0.00
A16: =SUBTOTAL(3,$B$7:B16) -> 5 | B16: TXL4-004 | C16: 人工敷设塑料子管 1 孔子管 | D16: 台班 | E16: ='表三 甲'!E442 -> 0.00 | F16: 可燃气体检测仪 | G16: 0.25 | H16: 117.00 | I16: 0.00 | J16: 0.00
A17: =SUBTOTAL(3,$B$7:B17) -> 5 | B17: TXL4-005 | C17: 人工敷设塑料子管 2 孔子管 | D17: 台班 | E17: ='表三 甲'!E443 -> 0.00 | F17: 有毒有害气体检测仪 | G17: 0.30 | H17: 117.00 | I17: 0.00 | J17: 0.00
A18: =SUBTOTAL(3,$B$7:B18) -> 5 | B18: TXL4-005 | C18: 人工敷设塑料子管 2 孔子管 | D18: 台班 | E18: ='表三 甲'!E443 -> 0.00 | F18: 可燃气体检测仪 | G18: 0.30 | H18: 117.00 | I18: 0.00 | J18: 0.00
A19: =SUBTOTAL(3,$B$7:B19) -> 5 | B19: TXL4-006 | C19: 人工敷设塑料子管 3 孔子管 | D19: 台班 | E19: ='表三 甲'!E444 -> 0.00 | F19: 有毒有害气体检测仪 | G19: 0.42 | H19: 117.00 | I19: 0.00 | J19: 0.00
A20: =SUBTOTAL(3,$B$7:B20) -> 5 | B20: TXL4-006 | C20: 人工敷设塑料子管 3 孔子管 | D20: 台班 | E20: ='表三 甲'!E444 -> 0.00 | F20: 可燃气体检测仪 | G20: 0.42 | H20: 117.00 | I20: 0.00 | J20: 0.00
A21: =SUBTOTAL(3,$B$7:B21) -> 5 | B21: TXL4-007 | C21: 人工敷设塑料子管 4 孔子管 | D21: 台班 | E21: ='表三 甲'!E445 -> 0.00 | F21: 有毒有害气体检测仪 | G21: 0.50 | H21: 117.00 | I21: 0.00 | J21: 0.00
A22: =SUBTOTAL(3,$B$7:B22) -> 5 | B22: TXL4-007 | C22: 人工敷设塑料子管 4 孔子管 | D22: 台班 | E22: ='表三 甲'!E445 -> 0.00 | F22: 可燃气体检测仪 | G22: 0.50 | H22: 117.00 | I22: 0.00 | J22: 0.00
A23: =SUBTOTAL(3,$B$7:B23) -> 5 | B23: TXL4-008 | C23: 人工敷设塑料子管 5 孔子管 | D23: 台班 | E23: ='表三 甲'!E446 -> 0.00 | F23: 有毒有害气体检测仪 | G23: 0.60 | H23: 117.00 | I23: 0.00 | J23: 0.00
A24: =SUBTOTAL(3,$B$7:B24) -> 5 | B24: TXL4-008 | C24: 人工敷设塑料子管 5 孔子管 | D24: 台班 | E24: ='表三 甲'!E446 -> 0.00 | F24: 可燃气体检测仪 | G24: 0.60 | H24: 117.00 | I24: 0.00 | J24: 0.00
A25: =SUBTOTAL(3,$B$7:B25) -> 5 | B25: TXL4-009 | C25: 人工敷设一带纺织子管 空闲管孔中 | D25: 台班 | E25: ='表三 甲'!E447 -> 0.00 | F25: 有毒有害气体检测仪 | G25: 0.20 | H25: 117.00 | I25: 0.00 | J25: 0.00
A26: =SUBTOTAL(3,$B$7:B26) -> 5 | B26: TXL4-009 | C26: 人工敷设一带纺织子管 空闲管孔中 | D26: 台班 | E26: ='表三 甲'!E447 -> 0.00 | F26: 可燃气体检测仪 | G26: 0.20 | H26: 117.00 | I26: 0.00 | J26: 0.00
A27: =SUBTOTAL(3,$B$7:B27) -> 5 | B27: TXL4-010 | C27: 人工敷设一带纺织子管 非空闲管孔中 | D27: 台班 | E27: ='表三 甲'!E448 -> 0.00 | F27: 有毒有害气体检测仪 | G27: 0.40 | H27: 117.00 | I27: 0.00 | J27: 0.00
A28: =SUBTOTAL(3,$B$7:B28) -> 5 | B28: TXL4-010 | C28: 人工敷设一带纺织子管 非空闲管孔中 | D28: 台班 | E28: ='表三 甲'!E448 -> 0.00 | F28: 可燃气体检测仪 | G28: 0.40 | H28: 117.00 | I28: 0.00 | J28: 0.00
A29: =SUBTOTAL(3,$B$7:B29) -> 6 | B29: TXL4-011 | C29: 敷设管道光缆 12 芯以下 | D29: 台班 | E29: ='表三 甲'!E449 -> 0.18 | F29: 可燃气体检测仪 | G29: 0.25 | H29: 117.00 | I29: 0.05 | J29: 5.27
A30: =SUBTOTAL(3,$B$7:B30) -> 7 | B30: TXL4-011 | C30: 敷设管道光缆 12 芯以下 | D30: 台班 | E30: ='表三 甲'!E449 -> 0.18 | F30: 有毒有害气体检测仪 | G30: 0.25 | H30: 117.00 | I30: 0.05 | J30: 5.27
A31: =SUBTOTAL(3,$B$7:B31) -> 8 | B31: TXL4-012 | C31: 敷设管道光缆 24 芯以下 | D31: 台班 | E31: ='表三 甲'!E450 -> 0.41 | F31: 有毒有害气体检测仪 | G31: 0.30 | H31: 117.00 | I31: 0.12 | J31: 14.22
A32: =SUBTOTAL(3,$B$7:B32) -> 9 | B32: TXL4-012 | C32: 敷设管道光缆 24 芯以下 | D32: 台班 | E32: ='表三 甲'!E450 -> 0.41 | F32: 可燃气体检测仪 | G32: 0.30 | H32: 117.00 | I32: 0.12 | J32: 14.22
A33: =SUBTOTAL(3,$B$7:B33) -> 10 | B33: TXL4-013 | C33: 敷设管道光缆 48 芯以下 | D33: 台班 | E33: ='表三 甲'!E451 -> 0.27 | F33: 有毒有害气体检测仪 | G33: 0.42 | H33: 117.00 | I33: 0.11 | J33: 13.27
A34: =SUBTOTAL(3,$B$7:B34) -> 11 | B34: TXL4-013 | C34: 敷设管道光缆 48 芯以下 | D34: 台班 | E34: ='表三 甲'!E451 -> 0.27 | F34: 可燃气体检测仪 | G34: 0.42 | H34: 117.00 | I34: 0.11 | J34: 13.27
A35: =SUBTOTAL(3,$B$7:B35) -> 11 | B35: TXL4-014 | C35: 敷设管道光缆 96 芯以下 | D35: 台班 | E35: ='表三 甲'!E452 -> 0.00 | F35: 有毒有害气体检测仪 | G35: 0.50 | H35: 117.00 | I35: 0.00 | J35: 0.00
A36: =SUBTOTAL(3,$B$7:B36) -> 11 | B36: TXL4-014 | C36: 敷设管道光缆 96 芯以下 | D36: 台班 | E36: ='表三 甲'!E452 -> 0.00 | F36: 可燃气体检测仪 | G36: 0.50 | H36: 117.00 | I36: 0.00 | J36: 0.00
A37: =SUBTOTAL(3,$B$7:B37) -> 11 | B37: TXL4-015 | C37: 敷设管道光缆 144 芯以下 | D37: 台班 | E37: ='表三 甲'!E453 -> 0.00 | F37: 有毒有害气体检测仪 | G37: 0.60 | H37: 117.00 | I37: 0.00 | J37: 0.00
A38: =SUBTOTAL(3,$B$7:B38) -> 11 | B38: TXL4-015 | C38: 敷设管道光缆 144 芯以下 | D38: 台班 | E38: ='表三 甲'!E453 -> 0.00 | F38: 可燃气体检测仪 | G38: 0.60 | H38: 117.00 | I38: 0.00 | J38: 0.00
A39: =SUBTOTAL(3,$B$7:B39) -> 11 | B39: TXL4-016 | C39: 敷设管道光缆 288 芯以下 | D39: 台班 | E39: ='表三 甲'!E454 -> 0.00 | F39: 有毒有害气体检测仪 | G39: 0.72 | H39: 117.00 | I39: 0.00 | J39: 0.00
A40: =SUBTOTAL(3,$B$7:B40) -> 11 | B40: TXL4-016 | C40: 敷设管道光缆 288 芯以下 | D40: 台班 | E40: ='表三 甲'!E454 -> 0.00 | F40: 可燃气体检测仪 | G40: 0.72 | H40: 117.00 | I40: 0.00 | J40: 0.00
A41: =SUBTOTAL(3,$B$7:B41) -> 11 | B41: TXL4-017 | C41: 敷设管道光缆 576 芯以下 | D41: 台班 | E41: ='表三 甲'!E455 -> 0.00 | F41: 有毒有害气体检测仪 | G41: 0.87 | H41: 117.00 | I41: 0.00 | J41: 0.00
A42: =SUBTOTAL(3,$B$7:B42) -> 11 | B42: TXL4-017 | C42: 敷设管道光缆 576 芯以下 | D42: 台班 | E42: ='表三 甲'!E455 -> 0.00 | F42: 可燃气体检测仪 | G42: 0.87 | H42: 117.00 | I42: 0.00 | J42: 0.00
A43: =SUBTOTAL(3,$B$7:B43) -> 11 | B43: TXL4-018 | C43: 敷设管道光缆 576 芯以上 | D43: 台班 | E43: ='表三 甲'!E456 -> 0.00 | F43: 有毒有害气体检测仪 | G43: 1 | H43: 117.00 | I43: 0.00 | J43: 0.00
A44: =SUBTOTAL(3,$B$7:B44) -> 11 | B44: TXL4-018 | C44: 敷设管道光缆 576 芯以上 | D44: 台班 | E44: ='表三 甲'!E456 -> 0.00 | F44: 可燃气体检测仪 | G44: 1 | H44: 117.00 | I44: 0.00 | J44: 0.00
A45: =SUBTOTAL(3,$B$7:B45) -> 11 | B45: TXL4-019 | C45: 人工敷设管道电缆 200 对以下 | D45: 台班 | E45: ='表三 甲'!E457 -> 0.00 | F45: 可燃气体检测仪 | G45: 0.3 | H45: 117.00 | I45: 0.00 | J45: 0.00
A46: =SUBTOTAL(3,$B$7:B46) -> 11 | B46: TXL4-019 | C46: 人工敷设管道电缆 200 对以下 | D46: 台班 | E46: ='表三 甲'!E457 -> 0.00 | F46: 有毒有害气体检测仪 | G46: 0.3 | H46: 117.00 | I46: 0.00 | J46: 0.00
A47: =SUBTOTAL(3,$B$7:B47) -> 11 | B47: TXL4-020 | C47: 人工敷设管道电缆 400 对以下 | D47: 台班 | E47: ='表三 甲'!E458 -> 0.00 | F47: 可燃气体检测仪 | G47: 0.42 | H47: 117.00 | I47: 0.00 | J47: 0.00
A48: =SUBTOTAL(3,$B$7:B48) -> 11 | B48: TXL4-020 | C48: 人工敷设管道电缆 400 对以下 | D48: 台班 | E48: ='表三 甲'!E458 -> 0.00 | F48: 有毒有害气体检测仪 | G48: 0.42 | H48: 117.00 | I48: 0.00 | J48: 0.00
A49: =SUBTOTAL(3,$B$7:B49) -> 11 | B49: TXL4-021 | C49: 人工敷设管道电缆 800 对以下 | D49: 台班 | E49: ='表三 甲'!E459 -> 0.00 | F49: 有毒有害气体检测仪 | G49: 0.5 | H49: 117.00 | I49: 0.00 | J49: 0.00
A50: =SUBTOTAL(3,$B$7:B50) -> 11 | B50: TXL4-021 | C50: 人工敷设管道电缆 800 对以下 | D50: 台班 | E50: ='表三 甲'!E459 -> 0.00 | F50: 可燃气体检测仪 | G50: 0.5 | H50: 117.00 | I50: 0.00 | J50: 0.00
A51: =SUBTOTAL(3,$B$7:B51) -> 11 | B51: TXL4-022 | C51: 人工敷设管道电缆 1200 对以下 | D51: 台班 | E51: ='表三 甲'!E460 -> 0.00 | F51: 有毒有害气体检测仪 | G51: 0.6 | H51: 117.00 | I51: 0.00 | J51: 0.00
A52: =SUBTOTAL(3,$B$7:B52) -> 11 | B52: TXL4-022 | C52: 人工敷设管道电缆 1200 对以下 | D52: 台班 | E52: ='表三 甲'!E460 -> 0.00 | F52: 可燃气体检测仪 | G52: 0.6 | H52: 117.00 | I52: 0.00 | J52: 0.00
A53: =SUBTOTAL(3,$B$7:B53) -> 11 | B53: TXL4-023 | C53: 人工敷设管道电缆 1800 对以下 | D53: 台班 | E53: ='表三 甲'!E461 -> 0.00 | F53: 可燃气体检测仪 | G53: 0.72 | H53: 117.00 | I53: 0.00 | J53: 0.00
A54: =SUBTOTAL(3,$B$7:B54) -> 11 | B54: TXL4-023 | C54: 人工敷设管道电缆 1800 对以下 | D54: 台班 | E54: ='表三 甲'!E461 -> 0.00 | F54: 有毒有害气体检测仪 | G54: 0.72 | H54: 117.00 | I54: 0.00 | J54: 0.00
A55: =SUBTOTAL(3,$B$7:B55) -> 11 | B55: TXL4-024 | C55: 人工敷设管道电缆 2400 对以下 | D55: 台班 | E55: ='表三 甲'!E462 -> 0.00 | F55: 有毒有害气体检测仪 | G55: 0.87 | H55: 117.00 | I55: 0.00 | J55: 0.00
A56: =SUBTOTAL(3,$B$7:B56) -> 11 | B56: TXL4-024 | C56: 人工敷设管道电缆 2400 对以下 | D56: 台班 | E56: ='表三 甲'!E462 -> 0.00 | F56: 可燃气体检测仪 | G56: 0.87 | H56: 117.00 | I56: 0.00 | J56: =H56*I56 -> 0.00
A57: =SUBTOTAL(3,$B$7:B57) -> 11 | B57: TXL4-025 | C57: 人工敷设管道电缆 2400 对以上 | D57: 台班 | E57: ='表三 甲'!E463 -> 0.00 | F57: 可燃气体检测仪 | G57: 1 | H57: 117.00 | I57: 0.00 | J57: 0.00
A58: =SUBTOTAL(3,$B$7:B58) -> 11 | B58: TXL4-025 | C58: 人工敷设管道电缆 2400 对以上 | D58: 台班 | E58: ='表三 甲'!E463 -> 0.00 | F58: 有毒有害气体检测仪 | G58: 1 | H58: 117.00 | I58: 0.00 | J58: 0.00
A59: =SUBTOTAL(3,$B$7:B59) -> 11 | B59: TXL4-026 | C59: 机械敷设管道电缆 200 对以下 | D59: 台班 | E59: ='表三 甲'!E464 -> 0.00 | F59: 有毒有害气体检测仪 | G59: 0.4 | H59: 117.00 | I59: 0.00 | J59: 0.00
A60: =SUBTOTAL(3,$B$7:B60) -> 11 | B60: TXL4-026 | C60: 机械敷设管道电缆 200 对以下 | D60: 台班 | E60: ='表三 甲'!E464 -> 0.00 | F60: 可燃气体检测仪 | G60: 0.4 | H60: 117.00 | I60: 0.00 | J60: 0.00
A61: =SUBTOTAL(3,$B$7:B61) -> 11 | B61: TXL4-027 | C61: 机械敷设管道电缆 400 对以下 | D61: 台班 | E61: ='表三 甲'!E465 -> 0.00 | F61: 有毒有害气体检测仪 | G61: 0.42 | H61: 117.00 | I61: 0.00 | J61: 0.00
A62: =SUBTOTAL(3,$B$7:B62) -> 11 | B62: TXL4-027 | C62: 机械敷设管道电缆 400 对以下 | D62: 台班 | E62: ='表三 甲'!E465 -> 0.00 | F62: 可燃气体检测仪 | G62: 0.42 | H62: 117.00 | I62: 0.00 | J62: 0.00
A63: =SUBTOTAL(3,$B$7:B63) -> 11 | B63: TXL4-028 | C63: 机械敷设管道电缆 800 对以下 | D63: 台班 | E63: ='表三 甲'!E466 -> 0.00 | F63: 可燃气体检测仪 | G63: 0.5 | H63: 117.00 | I63: 0.00 | J63: 0.00
A64: =SUBTOTAL(3,$B$7:B64) -> 11 | B64: TXL4-028 | C64: 机械敷设管道电缆 800 对以下 | D64: 台班 | E64: ='表三 甲'!E466 -> 0.00 | F64: 有毒有害气体检测仪 | G64: 0.5 | H64: 117.00 | I64: 0.00 | J64: 0.00
A65: =SUBTOTAL(3,$B$7:B65) -> 11 | B65: TXL4-029 | C65: 机械敷设管道电缆 1200 对以下 | D65: 台班 | E65: ='表三 甲'!E467 -> 0.00 | F65: 有毒有害气体检测仪 | G65: 0.6 | H65: 117.00 | I65: 0.00 | J65: 0.00
A66: =SUBTOTAL(3,$B$7:B66) -> 11 | B66: TXL4-029 | C66: 机械敷设管道电缆 1200 对以下 | D66: 台班 | E66: ='表三 甲'!E467 -> 0.00 | F66: 可燃气体检测仪 | G66: 0.6 | H66: 117.00 | I66: 0.00 | J66: 0.00
A67: =SUBTOTAL(3,$B$7:B67) -> 11 | B67: TXL4-030 | C67: 机械敷设管道电缆 1800 对以下 | D67: 台班 | E67: ='表三 甲'!E468 -> 0.00 | F67: 可燃气体检测仪 | G67: 0.72 | H67: 117.00 | I67: 0.00 | J67: 0.00
A68: =SUBTOTAL(3,$B$7:B68) -> 11 | B68: TXL4-030 | C68: 机械敷设管道电缆 1800 对以下 | D68: 台班 | E68: ='表三 甲'!E468 -> 0.00 | F68: 有毒有害气体检测仪 | G68: 0.72 | H68: 117.00 | I68: 0.00 | J68: 0.00
A69: =SUBTOTAL(3,$B$7:B69) -> 11 | B69: TXL4-031 | C69: 机械敷设管道电缆 2400 对以下 | D69: 台班 | E69: ='表三 甲'!E469 -> 0.00 | F69: 有毒有害气体检测仪 | G69: 0.87 | H69: 117.00 | I69: 0.00 | J69: 0.00
A70: =SUBTOTAL(3,$B$7:B70) -> 11 | B70: TXL4-031 | C70: 机械敷设管道电缆 2400 对以下 | D70: 台班 | E70: ='表三 甲'!E469 -> 0.00 | F70: 可燃气体检测仪 | G70: 0.87 | H70: 117.00 | I70: 0.00 | J70: 0.00
A71: =SUBTOTAL(3,$B$7:B71) -> 11 | B71: TXL4-032 | C71: 机械敷设管道电缆 2400 对以上 | D71: 台班 | E71: ='表三 甲'!E470 -> 0.00 | F71: 可燃气体检测仪 | G71: 1 | H71: 117.00 | I71: 0.00 | J71: 0.00
A72: =SUBTOTAL(3,$B$7:B72) -> 11 | B72: TXL4-032 | C72: 机械敷设管道电缆 2400 对以上 | D72: 台班 | E72: ='表三 甲'!E470 -> 0.00 | F72: 有毒有害气体检测仪 | G72: 1 | H72: 117.00 | I72: =E72*G72 -> 0.00 | J72: 0.00
A73: =SUBTOTAL(3,$B$7:B73) -> 11 | B73: TXL5-001 | C73: 城区气流法敷设微管 3 根以下 | D73: 台班 | E73: ='表三 甲'!E501 -> 0.00 | F73: 可燃气体检测仪 | G73: 0.2 | H73: 117.00 | I73: 0.00 | J73: 0.00
A74: =SUBTOTAL(3,$B$7:B74) -> 11 | B74: TXL5-001 | C74: 城区气流法敷设微管 3 根以下 | D74: 台班 | E74: ='表三 甲'!E501 -> 0.00 | F74: 有毒有害气体检测仪 | G74: 0.2 | H74: 117.00 | I74: 0.00 | J74: 0.00
A75: =SUBTOTAL(3,$B$7:B75) -> 11 | B75: TXL5-002 | C75: 城区气流法敷设微管 5 根以下 | D75: 台班 | E75: ='表三 甲'!E502 -> 0.00 | F75: 可燃气体检测仪 | G75: 0.2 | H75: 117.00 | I75: 0.00 | J75: 0.00
A76: =SUBTOTAL(3,$B$7:B76) -> 11 | B76: TXL5-002 | C76: 城区气流法敷设微管 5 根以下 | D76: 台班 | E76: ='表三 甲'!E502 -> 0.00 | F76: 有毒有害气体检测仪 | G76: 0.2 | H76: 117.00 | I76: 0.00 | J76: 0.00
A77: =SUBTOTAL(3,$B$7:B77) -> 11 | B77: TXL5-003 | C77: 城区气流法敷设微管 5 根以上 | D77: 台班 | E77: ='表三 甲'!E503 -> 0.00 | F77: 有毒有害气体检测仪 | G77: 0.2 | H77: 117.00 | I77: 0.00 | J77: 0.00
A78: =SUBTOTAL(3,$B$7:B78) -> 11 | B78: TXL5-003 | C78: 城区气流法敷设微管 5 根以上 | D78: 台班 | E78: ='表三 甲'!E503 -> 0.00 | F78: 可燃气体检测仪 | G78: 0.2 | H78: 117.00 | I78: 0.00 | J78: 0.00
A79: =SUBTOTAL(3,$B$7:B79) -> 11 | B79: TXL5-004 | C79: 非城区气流法敷设微管 3 根以下 | D79: 台班 | E79: ='表三 甲'!E504 -> 0.00 | F79: 可燃气体检测仪 | G79: 0.2 | H79: 117.00 | I79: 0.00 | J79: 0.00
A80: =SUBTOTAL(3,$B$7:B80) -> 11 | B80: TXL5-004 | C80: 非城区气流法敷设微管 3 根以下 | D80: 台班 | E80: ='表三 甲'!E504 -> 0.00 | F80: 有毒有害气体检测仪 | G80: 0.2 | H80: 117.00 | I80: 0.00 | J80: 0.00
A81: =SUBTOTAL(3,$B$7:B81) -> 11 | B81: TXL5-005 | C81: 非城区气流法敷设微管 5 根以下 | D81: 台班 | E81: ='表三 甲'!E505 -> 0.00 | F81: 有毒有害气体检测仪 | G81: 0.2 | H81: 117.00 | I81: 0.00 | J81: 0.00
A82: =SUBTOTAL(3,$B$7:B82) -> 11 | B82: TXL5-005 | C82: 非城区气流法敷设微管 5 根以下 | D82: 台班 | E82: ='表三 甲'!E505 -> 0.00 | F82: 可燃气体检测仪 | G82: 0.2 | H82: 117.00 | I82: 0.00 | J82: 0.00
A83: =SUBTOTAL(3,$B$7:B83) -> 11 | B83: TXL5-006 | C83: 非城区气流法敷设微管 5 根以上 | D83: 台班 | E83: ='表三 甲'!E506 -> 0.00 | F83: 可燃气体检测仪 | G83: 0.2 | H83: 117.00 | I83: 0.00 | J83: 0.00
A84: =SUBTOTAL(3,$B$7:B84) -> 11 | B84: TXL5-006 | C84: 非城区气流法敷设微管 5 根以上 | D84: 台班 | E84: ='表三 甲'!E506 -> 0.00 | F84: 有毒有害气体检测仪 | G84: 0.2 | H84: 117.00 | I84: 0.00 | J84: 0.00
A85: =SUBTOTAL(3,$B$7:B85) -> 11 | B85: TXL5-007 | C85: 城区人工布放微管 空闲保护管内 3 根以下 | D85: 台班 | E85: ='表三 甲'!E507 -> 0.00 | F85: 有毒有害气体检测仪 | G85: 0.2 | H85: 117.00 | I85: 0.00 | J85: 0.00
A86: =SUBTOTAL(3,$B$7:B86) -> 11 | B86: TXL5-007 | C86: 城区人工布放微管 空闲保护管内 3 根以下 | D86: 台班 | E86: ='表三 甲'!E507 -> 0.00 | F86: 可燃气体检测仪 | G86: 0.2 | H86: 117.00 | I86: 0.00 | J86: 0.00
A87: =SUBTOTAL(3,$B$7:B87) -> 11 | B87: TXL5-008 | C87: 城区人工布放微管 空闲保护管内 4 至 5 根 | D87: 台班 | E87: ='表三 甲'!E508 -> 0.00 | F87: 可燃气体检测仪 | G87: 0.25 | H87: 117.00 | I87: 0.00 | J87: 0.00
A88: =SUBTOTAL(3,$B$7:B88) -> 11 | B88: TXL5-008 | C88: 城区人工布放微管 空闲保护管内 4 至 5 根 | D88: 台班 | E88: ='表三 甲'!E508 -> 0.00 | F88: 有毒有害气体检测仪 | G88: 0.25 | H88: 117.00 | I88: 0.00 | J88: 0.00
A89: =SUBTOTAL(3,$B$7:B89) -> 11 | B89: TXL5-009 | C89: 城区人工布放微管 空闲保护管内 5 根以上每增加 2根 | D89: 台班 | E89: ='表三 甲'!E509 -> 0.00 | F89: 有毒有害气体检测仪 | G89: 0.05 | H89: 117.00 | I89: 0.00 | J89: 0.00
A90: =SUBTOTAL(3,$B$7:B90) -> 11 | B90: TXL5-009 | C90: 城区人工布放微管 空闲保护管内 5 根以上每增加 2根 | D90: 台班 | E90: ='表三 甲'!E509 -> 0.00 | F90: 可燃气体检测仪 | G90: 0.05 | H90: 117.00 | I90: 0.00 | J90: 0.00
A91: =SUBTOTAL(3,$B$7:B91) -> 11 | B91: TXL5-010 | C91: 城区人工布放微管 非空闲保护管内 3 根以下 | D91: 台班 | E91: ='表三 甲'!E510 -> 0.00 | F91: 有毒有害气体检测仪 | G91: 0.45 | H91: 117.00 | I91: 0.00 | J91: 0.00
A92: =SUBTOTAL(3,$B$7:B92) -> 11 | B92: TXL5-010 | C92: 城区人工布放微管 非空闲保护管内 3 根以下 | D92: 台班 | E92: ='表三 甲'!E510 -> 0.00 | F92: 可燃气体检测仪 | G92: 0.45 | H92: 117.00 | I92: 0.00 | J92: 0.00
A93: =SUBTOTAL(3,$B$7:B93) -> 11 | B93: TXL5-011 | C93: 城区人工布放微管 非空闲保护管内 4 至 5 根 | D93: 台班 | E93: ='表三 甲'!E511 -> 0.00 | F93: 有毒有害气体检测仪 | G93: 0.6 | H93: 117.00 | I93: 0.00 | J93: 0.00
A94: =SUBTOTAL(3,$B$7:B94) -> 11 | B94: TXL5-011 | C94: 城区人工布放微管 非空闲保护管内 4 至 5 根 | D94: 台班 | E94: ='表三 甲'!E511 -> 0.00 | F94: 可燃气体检测仪 | G94: 0.6 | H94: 117.00 | I94: 0.00 | J94: 0.00
A95: =SUBTOTAL(3,$B$7:B95) -> 11 | B95: TXL5-012 | C95: 城区人工布放微管 管道内人工布放 集束管 | D95: 台班 | E95: ='表三 甲'!E512 -> 0.00 | F95: 有毒有害气体检测仪 | G95: 0.3 | H95: 117.00 | I95: 0.00 | J95: 0.00
A96: =SUBTOTAL(3,$B$7:B96) -> 11 | B96: TXL5-012 | C96: 城区人工布放微管 管道内人工布放 集束管 | D96: 台班 | E96: ='表三 甲'!E512 -> 0.00 | F96: 可燃气体检测仪 | G96: 0.3 | H96: 117.00 | I96: 0.00 | J96: 0.00
A97: =SUBTOTAL(3,$B$7:B97) -> 11 | B97: TXL5-041 | C97: 托板式敷设室内通道光缆 | D97: 台班 | E97: ='表三 甲'!E541 -> 0.00 | F97: 有毒有害气体检测仪 | G97: 0.15 | H97: 117.00 | I97: 0.00 | J97: 0.00
A98: =SUBTOTAL(3,$B$7:B98) -> 11 | B98: TXL5-041 | C98: 托板式敷设室内通道光缆 | D98: 台班 | E98: =E97 -> 0.00 | F98: 可燃气体检测仪 | G98: 0.15 | H98: 117.00 | I98: 0.00 | J98: 0.00
A99: =SUBTOTAL(3,$B$7:B99) -> 11 | B99: TXL5-042 | C99: 定固式敷设室内通道光缆 | D99: 台班 | E99: ='表三 甲'!E542 -> 0.00 | F99: 可燃气体检测仪 | G99: 0.3 | H99: 117.00 | I99: 0.00 | J99: 0.00
A100: =SUBTOTAL(3,$B$7:B100) -> 11 | B100: TXL5-042 | C100: 定固式敷设室内通道光缆 | D100: 台班 | E100: =E99 -> 0.00 | F100: 有毒有害气体检测仪 | G100: 0.3 | H100: 117.00 | I100: 0.00 | J100: 0.00
A101: =SUBTOTAL(3,$B$7:B101) -> 11 | B101: TXL5-043 | C101: 竖井引上光缆 | D101: 台班 | E101: ='表三 甲'!E543 -> 0.00 | F101: 有毒有害气体检测仪 | G101: 0.4 | H101: 117.00 | I101: 0.00 | J101: 0.00
A102: =SUBTOTAL(3,$B$7:B102) -> 11 | B102: TXL5-043 | C102: 竖井引上光缆 | D102: 台班 | E102: =E101 -> 0.00 | F102: 可燃气体检测仪 | G102: 0.4 | H102: 117.00 | I102: 0.00 | J102: 0.00
A103: =SUBTOTAL(3,$B$7:B103) -> 11 | B103: TXL6-003 | C103: 机械法光缆接续 | D103: 台班 | E103: ='表三 甲'!E582 -> 0.00 | F103: 光时域反射仪 | G103: 0.05 | H103: 153.00 | I103: 0.00 | J103: 0.00
A104: =SUBTOTAL(3,$B$7:B104) -> 11 | B104: TXL6-004 | C104: 现场组装光纤活 动连接器 | D104: 台班 | E104: ='表三 甲'!E583 -> 0.00 | F104: 光时域反射仪 | G104: 0.05 | H104: 153.00 | I104: 0.00 | J104: 0.00
A105: =SUBTOTAL(3,$B$7:B105) -> 11 | B105: TXL6-005 | C105: 光缆成端接头 束状 | D105: 台班 | E105: ='表三 甲'!E584 -> 0.00 | F105: 光时域反射仪 | G105: 0.05 | H105: 153.00 | I105: 0.00 | J105: 0.00
A106: =SUBTOTAL(3,$B$7:B106) -> 11 | B106: TXL6-006 | C106: 光缆成端接头 带状 | D106: 台班 | E106: ='表三 甲'!E585 -> 0.00 | F106: 光时域反射仪 | G106: 0.01 | H106: 153.00 | I106: 0.00 | J106: 0.00
A107: =SUBTOTAL(3,$B$7:B107) -> 11 | B107: TXL6-007 | C107: 光缆接续 4 芯以下 | D107: 台班 | E107: ='表三 甲'!E586 -> 0.00 | F107: 光时域反射仪 | G107: 0.6 | H107: 153.00 | I107: 0.00 | J107: 0.00
A108: =SUBTOTAL(3,$B$7:B108) -> 12 | B108: TXL6-008 | C108: 光缆接续 12 芯以下 | D108: 台班 | E108: ='表三 甲'!E587 -> 8.00 | F108: 光时域反射仪 | G108: 0.7 | H108: 153.00 | I108: 5.60 | J108: 856.80
A109: =SUBTOTAL(3,$B$7:B109) -> 13 | B109: TXL6-009 | C109: 光缆接续 24 芯以下 | D109: 台班 | E109: ='表三 甲'!E588 -> 18.00 | F109: 光时域反射仪 | G109: 0.8 | H109: 153.00 | I109: 14.40 | J109: 2203.20
A110: =SUBTOTAL(3,$B$7:B110) -> 13 | B110: TXL6-010 | C110: 光缆接续 36 芯以下 | D110: 台班 | E110: ='表三 甲'!E589 -> 0.00 | F110: 光时域反射仪 | G110: 0.95 | H110: 153.00 | I110: 0.00 | J110: 0.00
A111: =SUBTOTAL(3,$B$7:B111) -> 14 | B111: TXL6-011 | C111: 光缆接续 48 芯以下 | D111: 台班 | E111: ='表三 甲'!E590 -> 12.00 | F111: 光时域反射仪 | G111: 1.1 | H111: 153.00 | I111: 13.20 | J111: 2019.60
A112: =SUBTOTAL(3,$B$7:B112) -> 14 | B112: TXL6-012 | C112: 光缆接续 60 芯以下 | D112: 台班 | E112: ='表三 甲'!E591 -> 0.00 | F112: 光时域反射仪 | G112: 1.25 | H112: 153.00 | I112: 0.00 | J112: 0.00
A113: =SUBTOTAL(3,$B$7:B113) -> 14 | B113: TXL6-013 | C113: 光缆接续 72 芯以下 | D113: 台班 | E113: ='表三 甲'!E592 -> 0.00 | F113: 光时域反射仪 | G113: 1.4 | H113: 153.00 | I113: 0.00 | J113: 0.00
A114: =SUBTOTAL(3,$B$7:B114) -> 14 | B114: TXL6-014 | C114: 光缆接续 84 芯以下 | D114: 台班 | E114: ='表三 甲'!E593 -> 0.00 | F114: 光时域反射仪 | G114: 1.6 | H114: 153.00 | I114: 0.00 | J114: 0.00
A115: =SUBTOTAL(3,$B$7:B115) -> 14 | B115: TXL6-015 | C115: 光缆接续 96 芯以下 | D115: 台班 | E115: ='表三 甲'!E594 -> 0.00 | F115: 光时域反射仪 | G115: 1.7 | H115: 153.00 | I115: 0.00 | J115: 0.00
A116: =SUBTOTAL(3,$B$7:B116) -> 14 | B116: TXL6-016 | C116: 光缆接续 108 芯以下 | D116: 台班 | E116: ='表三 甲'!E595 -> 0.00 | F116: 光时域反射仪 | G116: 1.75 | H116: 153.00 | I116: 0.00 | J116: 0.00
A117: =SUBTOTAL(3,$B$7:B117) -> 14 | B117: TXL6-017 | C117: 光缆接续 132 芯以下 | D117: 台班 | E117: ='表三 甲'!E596 -> 0.00 | F117: 光时域反射仪 | G117: 1.85 | H117: 153.00 | I117: 0.00 | J117: 0.00
A118: =SUBTOTAL(3,$B$7:B118) -> 14 | B118: TXL6-018 | C118: 光缆接续 144 芯以下 | D118: 台班 | E118: ='表三 甲'!E597 -> 0.00 | F118: 光时域反射仪 | G118: 1.85 | H118: 153.00 | I118: 0.00 | J118: 0.00
A119: =SUBTOTAL(3,$B$7:B119) -> 14 | B119: TXL6-019 | C119: 光缆接续 192 芯以下 | D119: 台班 | E119: ='表三 甲'!E598 -> 0.00 | F119: 光时域反射仪 | G119: 1.9 | H119: 153.00 | I119: 0.00 | J119: 0.00
A120: =SUBTOTAL(3,$B$7:B120) -> 14 | B120: TXL6-020 | C120: 光缆接续 288 芯以下 | D120: 台班 | E120: ='表三 甲'!E599 -> 0.00 | F120: 光时域反射仪 | G120: 1.9 | H120: 153.00 | I120: 0.00 | J120: 0.00
A121: =SUBTOTAL(3,$B$7:B121) -> 14 | B121: TXL6-021 | C121: 光缆接续 288 芯以上 | D121: 台班 | E121: ='表三 甲'!E600 -> 0.00 | F121: 光时域反射仪 | G121: 2.1 | H121: 153.00 | I121: 0.00 | J121: 0.00
A122: =SUBTOTAL(3,$B$7:B122) -> 14 | B122: TXL6-022 | C122: 8 芯带以下带状光缆接续 48 芯以下 | D122: 台班 | E122: ='表三 甲'!E601 -> 0.00 | F122: 光时域反射仪 | G122: 1.1 | H122: 153.00 | I122: 0.00 | J122: 0.00
A123: =SUBTOTAL(3,$B$7:B123) -> 14 | B123: TXL6-023 | C123: 8 芯带以下带状光缆接续 72 芯以下 | D123: 台班 | E123: ='表三 甲'!E602 -> 0.00 | F123: 光时域反射仪 | G123: 1.4 | H123: 153.00 | I123: 0.00 | J123: 0.00
A124: =SUBTOTAL(3,$B$7:B124) -> 14 | B124: TXL6-024 | C124: 8 芯带以下带状光缆接续 96 芯以下 | D124: 台班 | E124: ='表三 甲'!E603 -> 0.00 | F124: 光时域反射仪 | G124: 1.7 | H124: 153.00 | I124: 0.00 | J124: 0.00
A125: =SUBTOTAL(3,$B$7:B125) -> 14 | B125: TXL6-025 | C125: 8 芯带以下带状光缆接续 108 芯以下 | D125: 台班 | E125: ='表三 甲'!E604 -> 0.00 | F125: 光时域反射仪 | G125: 1.75 | H125: 153.00 | I125: 0.00 | J125: 0.00
A126: =SUBTOTAL(3,$B$7:B126) -> 14 | B126: TXL6-026 | C126: 8 芯带以下带状光缆接续 120 芯以下 | D126: 台班 | E126: ='表三 甲'!E605 -> 0.00 | F126: 光时域反射仪 | G126: 1.8 | H126: 153.00 | I126: 0.00 | J126: 0.00
A127: =SUBTOTAL(3,$B$7:B127) -> 14 | B127: TXL6-027 | C127: 8 芯带以下带状光缆接续 144 芯以下 | D127: 台班 | E127: ='表三 甲'!E606 -> 0.00 | F127: 光时域反射仪 | G127: 1.85 | H127: 153.00 | I127: 0.00 | J127: 0.00
A128: =SUBTOTAL(3,$B$7:B128) -> 14 | B128: TXL6-028 | C128: 8 芯带以下带状光缆接续 192 芯以下 | D128: 台班 | E128: ='表三 甲'!E607 -> 0.00 | F128: 光时域反射仪 | G128: 1.9 | H128: 153.00 | I128: 0.00 | J128: 0.00
A129: =SUBTOTAL(3,$B$7:B129) -> 14 | B129: TXL6-029 | C129: 8 芯带以下带状光缆接续 288 芯以下 | D129: 台班 | E129: ='表三 甲'!E608 -> 0.00 | F129: 光时域反射仪 | G129: 1.9 | H129: 153.00 | I129: 0.00 | J129: 0.00
A130: =SUBTOTAL(3,$B$7:B130) -> 14 | B130: TXL6-030 | C130: 8 芯带以下带状光缆接续 288 芯以上 | D130: 台班 | E130: ='表三 甲'!E609 -> 0.00 | F130: 光时域反射仪 | G130: 2.1 | H130: 153.00 | I130: 0.00 | J130: 0.00
A131: =SUBTOTAL(3,$B$7:B131) -> 14 | B131: TXL6-031 | C131: 8 芯带以上带状光缆接续 48 芯以下 | D131: 台班 | E131: ='表三 甲'!E610 -> 0.00 | F131: 光时域反射仪 | G131: 1.1 | H131: 153.00 | I131: 0.00 | J131: 0.00
A132: =SUBTOTAL(3,$B$7:B132) -> 14 | B132: TXL6-032 | C132: 8 芯带以上带状光缆接续 72 芯以下 | D132: 台班 | E132: ='表三 甲'!E611 -> 0.00 | F132: 光时域反射仪 | G132: 1.4 | H132: 153.00 | I132: 0.00 | J132: 0.00
A133: =SUBTOTAL(3,$B$7:B133) -> 14 | B133: TXL6-033 | C133: 8 芯带以上带状光缆接续 96 芯以下 | D133: 台班 | E133: ='表三 甲'!E612 -> 0.00 | F133: 光时域反射仪 | G133: 1.7 | H133: 153.00 | I133: 0.00 | J133: 0.00
A134: =SUBTOTAL(3,$B$7:B134) -> 14 | B134: TXL6-034 | C134: 8 芯带以上带状光缆接续 108 芯以下 | D134: 台班 | E134: ='表三 甲'!E613 -> 0.00 | F134: 光时域反射仪 | G134: 1.75 | H134: 153.00 | I134: 0.00 | J134: 0.00
A135: =SUBTOTAL(3,$B$7:B135) -> 14 | B135: TXL6-035 | C135: 8 芯带以上带状光缆接续 120 芯以下 | D135: 台班 | E135: ='表三 甲'!E614 -> 0.00 | F135: 光时域反射仪 | G135: 1.8 | H135: 153.00 | I135: 0.00 | J135: 0.00
A136: =SUBTOTAL(3,$B$7:B136) -> 14 | B136: TXL6-036 | C136: 8 芯带以上带状光缆接续 144 芯以下 | D136: 台班 | E136: ='表三 甲'!E615 -> 0.00 | F136: 光时域反射仪 | G136: 1.85 | H136: 153.00 | I136: =E136*G136 -> 0.00 | J136: 0.00
A137: =SUBTOTAL(3,$B$7:B137) -> 14 | B137: TXL6-037 | C137: 8 芯带以上带状光缆接续 192 芯以下 | D137: 台班 | E137: ='表三 甲'!E616 -> 0.00 | F137: 光时域反射仪 | G137: 1.9 | H137: 153.00 | I137: 0.00 | J137: 0.00
A138: =SUBTOTAL(3,$B$7:B138) -> 14 | B138: TXL6-038 | C138: 8 芯带以上带状光缆接续 288 芯以下 | D138: 台班 | E138: ='表三 甲'!E617 -> 0.00 | F138: 光时域反射仪 | G138: 1.9 | H138: 153.00 | I138: 0.00 | J138: 0.00
A139: =SUBTOTAL(3,$B$7:B139) -> 14 | B139: TXL6-039 | C139: 8 芯带以上带状光缆接续 384 芯以下 | D139: 台班 | E139: ='表三 甲'!E618 -> 0.00 | F139: 光时域反射仪 | G139: 2.1 | H139: 153.00 | I139: 0.00 | J139: 0.00
A140: =SUBTOTAL(3,$B$7:B140) -> 14 | B140: TXL6-040 | C140: 8 芯带以上带状光缆接续 480 芯以下 | D140: 台班 | E140: ='表三 甲'!E619 -> 0.00 | F140: 光时域反射仪 | G140: 2.3 | H140: 153.00 | I140: 0.00 | J140: 0.00
A141: =SUBTOTAL(3,$B$7:B141) -> 14 | B141: TXL6-041 | C141: 8 芯带以上带状光缆接续 576 芯以下 | D141: 台班 | E141: ='表三 甲'!E620 -> 0.00 | F141: 光时域反射仪 | G141: 2.5 | H141: 153.00 | I141: 0.00 | J141: 0.00
A142: =SUBTOTAL(3,$B$7:B142) -> 14 | B142: TXL6-042 | C142: 8 芯带以上带状光缆接续 576 芯以上 | D142: 台班 | E142: ='表三 甲'!E621 -> 0.00 | F142: 光时域反射仪 | G142: 2.75 | H142: 153.00 | I142: 0.00 | J142: 0.00
A143: =SUBTOTAL(3,$B$7:B143) -> 14 | B143: TXL6-043 | C143: 40km 以上中继段光缆测试 12 芯以下 | D143: 台班 | E143: ='表三 甲'!E622 -> 0.00 | F143: 稳定光源 | G143: 0.36 | H143: 117.00 | I143: 0.00 | J143: 0.00
A144: =SUBTOTAL(3,$B$7:B144) -> 14 | B144: TXL6-043 | C144: 40km 以上中继段光缆测试 12 芯以下 | D144: 台班 | E144: ='表三 甲'!E622 -> 0.00 | F144: 光时域反射仪 | G144: 0.36 | H144: 153.00 | I144: 0.00 | J144: 0.00
A145: =SUBTOTAL(3,$B$7:B145) -> 14 | B145: TXL6-043 | C145: 40km 以上中继段光缆测试 12 芯以下 | D145: 台班 | E145: ='表三 甲'!E622 -> 0.00 | F145: 偏振模色散测试仪 | G145: 0.36 | H145: 455.00 | I145: 0.00 | J145: 0.00
A146: =SUBTOTAL(3,$B$7:B146) -> 14 | B146: TXL6-043 | C146: 40km 以上中继段光缆测试 12 芯以下 | D146: 台班 | E146: ='表三 甲'!E622 -> 0.00 | F146: 光功率计 | G146: 0.36 | H146: 116.00 | I146: 0.00 | J146: 0.00
A147: =SUBTOTAL(3,$B$7:B147) -> 14 | B147: TXL6-044 | C147: 40km 以上中继段光缆测试 24 芯以下 | D147: 台班 | E147: ='表三 甲'!E623 -> 0.00 | F147: 光功率计 | G147: 0.51 | H147: 116.00 | I147: 0.00 | J147: 0.00
A148: =SUBTOTAL(3,$B$7:B148) -> 14 | B148: TXL6-044 | C148: 40km 以上中继段光缆测试 24 芯以下 | D148: 台班 | E148: ='表三 甲'!E623 -> 0.00 | F148: 稳定光源 | G148: 0.51 | H148: 117.00 | I148: 0.00 | J148: 0.00
A149: =SUBTOTAL(3,$B$7:B149) -> 14 | B149: TXL6-044 | C149: 40km 以上中继段光缆测试 24 芯以下 | D149: 台班 | E149: ='表三 甲'!E623 -> 0.00 | F149: 偏振模色散测试仪 | G149: 0.51 | H149: 455.00 | I149: 0.00 | J149: 0.00
A150: =SUBTOTAL(3,$B$7:B150) -> 14 | B150: TXL6-044 | C150: 40km 以上中继段光缆测试 24 芯以下 | D150: 台班 | E150: ='表三 甲'!E623 -> 0.00 | F150: 光时域反射仪 | G150: 0.51 | H150: 153.00 | I150: 0.00 | J150: 0.00
A151: =SUBTOTAL(3,$B$7:B151) -> 14 | B151: TXL6-045 | C151: 40km 以上中继段光缆测试 36 芯以下 | D151: 台班 | E151: ='表三 甲'!E624 -> 0.00 | F151: 光功率计 | G151: 0.68 | H151: 116.00 | I151: 0.00 | J151: 0.00
A152: =SUBTOTAL(3,$B$7:B152) -> 14 | B152: TXL6-045 | C152: 40km 以上中继段光缆测试 36 芯以下 | D152: 台班 | E152: ='表三 甲'!E624 -> 0.00 | F152: 光时域反射仪 | G152: 0.68 | H152: 153.00 | I152: 0.00 | J152: 0.00
A153: =SUBTOTAL(3,$B$7:B153) -> 14 | B153: TXL6-045 | C153: 40km 以上中继段光缆测试 36 芯以下 | D153: 台班 | E153: ='表三 甲'!E624 -> 0.00 | F153: 稳定光源 | G153: 0.68 | H153: 117.00 | I153: 0.00 | J153: 0.00
A154: =SUBTOTAL(3,$B$7:B154) -> 14 | B154: TXL6-045 | C154: 40km 以上中继段光缆测试 36 芯以下 | D154: 台班 | E154: ='表三 甲'!E624 -> 0.00 | F154: 偏振模色散测试仪 | G154: 0.68 | H154: 455.00 | I154: 0.00 | J154: 0.00
A155: =SUBTOTAL(3,$B$7:B155) -> 14 | B155: TXL6-046 | C155: 40km 以上中继段光缆测试 48 芯以下 | D155: 台班 | E155: ='表三 甲'!E625 -> 0.00 | F155: 光时域反射仪 | G155: 0.86 | H155: 153.00 | I155: 0.00 | J155: 0.00
A156: =SUBTOTAL(3,$B$7:B156) -> 14 | B156: TXL6-046 | C156: 40km 以上中继段光缆测试 48 芯以下 | D156: 台班 | E156: ='表三 甲'!E625 -> 0.00 | F156: 光功率计 | G156: 0.86 | H156: 116.00 | I156: 0.00 | J156: 0.00
A157: =SUBTOTAL(3,$B$7:B157) -> 14 | B157: TXL6-046 | C157: 40km 以上中继段光缆测试 48 芯以下 | D157: 台班 | E157: ='表三 甲'!E625 -> 0.00 | F157: 偏振模色散测试仪 | G157: 0.86 | H157: 455.00 | I157: 0.00 | J157: 0.00
A158: =SUBTOTAL(3,$B$7:B158) -> 14 | B158: TXL6-046 | C158: 40km 以上中继段光缆测试 48 芯以下 | D158: 台班 | E158: ='表三 甲'!E625 -> 0.00 | F158: 稳定光源 | G158: 0.86 | H158: 117.00 | I158: 0.00 | J158: 0.00
A159: =SUBTOTAL(3,$B$7:B159) -> 14 | B159: TXL6-047 | C159: 40km 以上中继段光缆测试 60 芯以下 | D159: 台班 | E159: ='表三 甲'!E626 -> 0.00 | F159: 偏振模色散测试仪 | G159: 1 | H159: 455.00 | I159: 0.00 | J159: 0.00
A160: =SUBTOTAL(3,$B$7:B160) -> 14 | B160: TXL6-047 | C160: 40km 以上中继段光缆测试 60 芯以下 | D160: 台班 | E160: ='表三 甲'!E626 -> 0.00 | F160: 稳定光源 | G160: 1 | H160: 117.00 | I160: 0.00 | J160: 0.00
A161: =SUBTOTAL(3,$B$7:B161) -> 14 | B161: TXL6-047 | C161: 40km 以上中继段光缆测试 60 芯以下 | D161: 台班 | E161: ='表三 甲'!E626 -> 0.00 | F161: 光功率计 | G161: 1 | H161: 116.00 | I161: 0.00 | J161: 0.00
A162: =SUBTOTAL(3,$B$7:B162) -> 14 | B162: TXL6-047 | C162: 40km 以上中继段光缆测试 60 芯以下 | D162: 台班 | E162: ='表三 甲'!E626 -> 0.00 | F162: 光时域反射仪 | G162: 1 | H162: 153.00 | I162: 0.00 | J162: 0.00
A163: =SUBTOTAL(3,$B$7:B163) -> 14 | B163: TXL6-048 | C163: 40km 以上中继段光缆测试 72 芯以下 | D163: 台班 | E163: ='表三 甲'!E627 -> 0.00 | F163: 偏振模色散测试仪 | G163: 1.15 | H163: 455.00 | I163: 0.00 | J163: 0.00
A164: =SUBTOTAL(3,$B$7:B164) -> 14 | B164: TXL6-048 | C164: 40km 以上中继段光缆测试 72 芯以下 | D164: 台班 | E164: ='表三 甲'!E627 -> 0.00 | F164: 光功率计 | G164: 1.15 | H164: 116.00 | I164: 0.00 | J164: 0.00
A165: =SUBTOTAL(3,$B$7:B165) -> 14 | B165: TXL6-048 | C165: 40km 以上中继段光缆测试 72 芯以下 | D165: 台班 | E165: ='表三 甲'!E627 -> 0.00 | F165: 光时域反射仪 | G165: 1.15 | H165: 153.00 | I165: 0.00 | J165: 0.00
A166: =SUBTOTAL(3,$B$7:B166) -> 14 | B166: TXL6-048 | C166: 40km 以上中继段光缆测试 72 芯以下 | D166: 台班 | E166: ='表三 甲'!E627 -> 0.00 | F166: 稳定光源 | G166: 1.15 | H166: 117.00 | I166: 0.00 | J166: 0.00
A167: =SUBTOTAL(3,$B$7:B167) -> 14 | B167: TXL6-049 | C167: 40km 以上中继段光缆测试 84 芯以下 | D167: 台班 | E167: ='表三 甲'!E628 -> 0.00 | F167: 光时域反射仪 | G167: 1.25 | H167: 153.00 | I167: 0.00 | J167: 0.00
A168: =SUBTOTAL(3,$B$7:B168) -> 14 | B168: TXL6-049 | C168: 40km 以上中继段光缆测试 84 芯以下 | D168: 台班 | E168: ='表三 甲'!E628 -> 0.00 | F168: 光功率计 | G168: 1.25 | H168: 116.00 | I168: 0.00 | J168: 0.00
A169: =SUBTOTAL(3,$B$7:B169) -> 14 | B169: TXL6-049 | C169: 40km 以上中继段光缆测试 84 芯以下 | D169: 台班 | E169: ='表三 甲'!E628 -> 0.00 | F169: 稳定光源 | G169: 1.25 | H169: 117.00 | I169: 0.00 | J169: 0.00
A170: =SUBTOTAL(3,$B$7:B170) -> 14 | B170: TXL6-049 | C170: 40km 以上中继段光缆测试 84 芯以下 | D170: 台班 | E170: ='表三 甲'!E628 -> 0.00 | F170: 偏振模色散测试仪 | G170: 1.25 | H170: 455.00 | I170: 0.00 | J170: 0.00
A171: =SUBTOTAL(3,$B$7:B171) -> 14 | B171: TXL6-050 | C171: 40km 以上中继段光缆测试 96 芯以下 | D171: 台班 | E171: ='表三 甲'!E629 -> 0.00 | F171: 偏振模色散测试仪 | G171: 1.37 | H171: 455.00 | I171: 0.00 | J171: 0.00
A172: =SUBTOTAL(3,$B$7:B172) -> 14 | B172: TXL6-050 | C172: 40km 以上中继段光缆测试 96 芯以下 | D172: 台班 | E172: ='表三 甲'!E629 -> 0.00 | F172: 光时域反射仪 | G172: 1.37 | H172: 153.00 | I172: 0.00 | J172: 0.00
A173: =SUBTOTAL(3,$B$7:B173) -> 14 | B173: TXL6-050 | C173: 40km 以上中继段光缆测试 96 芯以下 | D173: 台班 | E173: ='表三 甲'!E629 -> 0.00 | F173: 光功率计 | G173: 1.37 | H173: 116.00 | I173: 0.00 | J173: 0.00
A174: =SUBTOTAL(3,$B$7:B174) -> 14 | B174: TXL6-050 | C174: 40km 以上中继段光缆测试 96 芯以下 | D174: 台班 | E174: ='表三 甲'!E629 -> 0.00 | F174: 稳定光源 | G174: 1.37 | H174: 117.00 | I174: 0.00 | J174: 0.00
A175: =SUBTOTAL(3,$B$7:B175) -> 14 | B175: TXL6-051 | C175: 40km 以上中继段光缆测试 108 芯以下 | D175: 台班 | E175: ='表三 甲'!E630 -> 0.00 | F175: 偏振模色散测试仪 | G175: 1.44 | H175: 455.00 | I175: 0.00 | J175: 0.00
A176: =SUBTOTAL(3,$B$7:B176) -> 14 | B176: TXL6-051 | C176: 40km 以上中继段光缆测试 108 芯以下 | D176: 台班 | E176: ='表三 甲'!E630 -> 0.00 | F176: 光功率计 | G176: 1.44 | H176: 116.00 | I176: 0.00 | J176: 0.00
A177: =SUBTOTAL(3,$B$7:B177) -> 14 | B177: TXL6-051 | C177: 40km 以上中继段光缆测试 108 芯以下 | D177: 台班 | E177: ='表三 甲'!E630 -> 0.00 | F177: 光时域反射仪 | G177: 1.44 | H177: 153.00 | I177: 0.00 | J177: 0.00
A178: =SUBTOTAL(3,$B$7:B178) -> 14 | B178: TXL6-051 | C178: 40km 以上中继段光缆测试 108 芯以下 | D178: 台班 | E178: ='表三 甲'!E630 -> 0.00 | F178: 稳定光源 | G178: 1.44 | H178: 117.00 | I178: 0.00 | J178: 0.00
A179: =SUBTOTAL(3,$B$7:B179) -> 14 | B179: TXL6-052 | C179: 40km 以上中继段光缆测试 132 芯以下 | D179: 台班 | E179: ='表三 甲'!E631 -> 0.00 | F179: 光功率计 | G179: 1.51 | H179: 116.00 | I179: 0.00 | J179: 0.00
A180: =SUBTOTAL(3,$B$7:B180) -> 14 | B180: TXL6-052 | C180: 40km 以上中继段光缆测试 132 芯以下 | D180: 台班 | E180: ='表三 甲'!E631 -> 0.00 | F180: 稳定光源 | G180: 1.51 | H180: 117.00 | I180: 0.00 | J180: 0.00
A181: =SUBTOTAL(3,$B$7:B181) -> 14 | B181: TXL6-052 | C181: 40km 以上中继段光缆测试 132 芯以下 | D181: 台班 | E181: ='表三 甲'!E631 -> 0.00 | F181: 光时域反射仪 | G181: 1.51 | H181: 153.00 | I181: 0.00 | J181: 0.00
A182: =SUBTOTAL(3,$B$7:B182) -> 14 | B182: TXL6-052 | C182: 40km 以上中继段光缆测试 132 芯以下 | D182: 台班 | E182: ='表三 甲'!E631 -> 0.00 | F182: 偏振模色散测试仪 | G182: 1.51 | H182: 455.00 | I182: 0.00 | J182: 0.00
A183: =SUBTOTAL(3,$B$7:B183) -> 14 | B183: TXL6-053 | C183: 40km 以上中继段光缆测试 144 芯以下 | D183: 台班 | E183: ='表三 甲'!E632 -> 0.00 | F183: 光功率计 | G183: 1.58 | H183: 116.00 | I183: 0.00 | J183: 0.00
A184: =SUBTOTAL(3,$B$7:B184) -> 14 | B184: TXL6-053 | C184: 40km 以上中继段光缆测试 144 芯以下 | D184: 台班 | E184: ='表三 甲'!E632 -> 0.00 | F184: 偏振模色散测试仪 | G184: 1.58 | H184: 455.00 | I184: 0.00 | J184: 0.00
A185: =SUBTOTAL(3,$B$7:B185) -> 14 | B185: TXL6-053 | C185: 40km 以上中继段光缆测试 144 芯以下 | D185: 台班 | E185: ='表三 甲'!E632 -> 0.00 | F185: 稳定光源 | G185: 1.58 | H185: 117.00 | I185: 0.00 | J185: 0.00
A186: =SUBTOTAL(3,$B$7:B186) -> 14 | B186: TXL6-053 | C186: 40km 以上中继段光缆测试 144 芯以下 | D186: 台班 | E186: ='表三 甲'!E632 -> 0.00 | F186: 光时域反射仪 | G186: 1.58 | H186: 153.00 | I186: 0.00 | J186: 0.00
A187: =SUBTOTAL(3,$B$7:B187) -> 14 | B187: TXL6-054 | C187: 40km 以上中继段光缆测试 168 芯以下 | D187: 台班 | E187: ='表三 甲'!E633 -> 0.00 | F187: 光功率计 | G187: 1.66 | H187: 116.00 | I187: 0.00 | J187: 0.00
A188: =SUBTOTAL(3,$B$7:B188) -> 14 | B188: TXL6-054 | C188: 40km 以上中继段光缆测试 168 芯以下 | D188: 台班 | E188: ='表三 甲'!E633 -> 0.00 | F188: 偏振模色散测试仪 | G188: 1.66 | H188: 455.00 | I188: 0.00 | J188: 0.00
A189: =SUBTOTAL(3,$B$7:B189) -> 14 | B189: TXL6-054 | C189: 40km 以上中继段光缆测试 168 芯以下 | D189: 台班 | E189: ='表三 甲'!E633 -> 0.00 | F189: 稳定光源 | G189: 1.66 | H189: 117.00 | I189: 0.00 | J189: 0.00
A190: =SUBTOTAL(3,$B$7:B190) -> 14 | B190: TXL6-054 | C190: 40km 以上中继段光缆测试 168 芯以下 | D190: 台班 | E190: ='表三 甲'!E633 -> 0.00 | F190: 光时域反射仪 | G190: 1.66 | H190: 153.00 | I190: 0.00 | J190: 0.00
A191: =SUBTOTAL(3,$B$7:B191) -> 14 | B191: TXL6-055 | C191: 40km 以上中继段光缆测试 192 芯以下 | D191: 台班 | E191: ='表三 甲'!E634 -> 0.00 | F191: 偏振模色散测试仪 | G191: 1.73 | H191: 455.00 | I191: 0.00 | J191: 0.00
A192: =SUBTOTAL(3,$B$7:B192) -> 14 | B192: TXL6-055 | C192: 40km 以上中继段光缆测试 192 芯以下 | D192: 台班 | E192: ='表三 甲'!E634 -> 0.00 | F192: 光时域反射仪 | G192: 1.73 | H192: 153.00 | I192: 0.00 | J192: 0.00
A193: =SUBTOTAL(3,$B$7:B193) -> 14 | B193: TXL6-055 | C193: 40km 以上中继段光缆测试 192 芯以下 | D193: 台班 | E193: ='表三 甲'!E634 -> 0.00 | F193: 稳定光源 | G193: 1.73 | H193: 117.00 | I193: 0.00 | J193: 0.00
A194: =SUBTOTAL(3,$B$7:B194) -> 14 | B194: TXL6-055 | C194: 40km 以上中继段光缆测试 192 芯以下 | D194: 台班 | E194: ='表三 甲'!E634 -> 0.00 | F194: 光功率计 | G194: 1.73 | H194: 116.00 | I194: 0.00 | J194: 0.00
A195: =SUBTOTAL(3,$B$7:B195) -> 14 | B195: TXL6-056 | C195: 40km 以上中继段光缆测试 216 芯以下 | D195: 台班 | E195: ='表三 甲'!E635 -> 0.00 | F195: 光功率计 | G195: 1.80 | H195: 116.00 | I195: 0.00 | J195: 0.00
A196: =SUBTOTAL(3,$B$7:B196) -> 14 | B196: TXL6-056 | C196: 40km 以上中继段光缆测试 216 芯以下 | D196: 台班 | E196: ='表三 甲'!E635 -> 0.00 | F196: 偏振模色散测试仪 | G196: 1.8 | H196: 455.00 | I196: 0.00 | J196: 0.00
A197: =SUBTOTAL(3,$B$7:B197) -> 14 | B197: TXL6-056 | C197: 40km 以上中继段光缆测试 216 芯以下 | D197: 台班 | E197: ='表三 甲'!E635 -> 0.00 | F197: 稳定光源 | G197: 1.8 | H197: 117.00 | I197: 0.00 | J197: 0.00
A198: =SUBTOTAL(3,$B$7:B198) -> 14 | B198: TXL6-056 | C198: 40km 以上中继段光缆测试 216 芯以下 | D198: 台班 | E198: ='表三 甲'!E635 -> 0.00 | F198: 光时域反射仪 | G198: 1.8 | H198: 153.00 | I198: 0.00 | J198: 0.00
A199: =SUBTOTAL(3,$B$7:B199) -> 14 | B199: TXL6-057 | C199: 40km 以上中继段光缆测试 240 芯以下 | D199: 台班 | E199: ='表三 甲'!E636 -> 0.00 | F199: 光时域反射仪 | G199: 1.91 | H199: 153.00 | I199: 0.00 | J199: 0.00
A200: =SUBTOTAL(3,$B$7:B200) -> 14 | B200: TXL6-057 | C200: 40km 以上中继段光缆测试 240 芯以下 | D200: 台班 | E200: ='表三 甲'!E636 -> 0.00 | F200: 偏振模色散测试仪 | G200: 1.91 | H200: 455.00 | I200: =E200*G200 -> 0.00 | J200: 0.00
... 830 more rows

Sheet 表四甲
A1: 国内器材预算表（表四）甲
A2: =ASC(综合信息表!C3) -> 建设项目名称:
A3: =ASC(综合信息表!C4) -> 单项工程名称:2023年景德镇电信乐平水利枢纽工程建设杆线迁改工程 | F3: =ASC(综合信息表!C6) -> 建设单位名称:中国电信股份有限公司景德镇分公司 | I3: =ASC(综合信息表!G12) -> 表格编号:TXL-4甲A | J3: 第全页
A4: 序号 | B4: 名称 | C4: 规格程式 | D4: 单位 | E4: 数量 | F4: 单价（元） | G4: 合计（元） | J4: 备注
F5: 含税价（元） | G5: 合计（元） | H5: 增值税 | I5: 含税价
A6: Ⅰ | B6: Ⅱ | C6: Ⅲ | D6: Ⅳ | E6: Ⅴ | F6: Ⅵ | G6: Ⅸ | H6: Ⅹ | I6: Ⅺ | J6: Ⅻ
A7: =SUBTOTAL(3,$B$7:B7) -> 0 | B7: 光缆-GYTA-单模G.652D-4芯 | D7: 皮长公里 | F7: 831.117293 | G7: =E7*F7 -> 0.00 | J7: J05010303085 | K7: 普通光缆 | L7: =E7*4 -> 0.00
A8: =SUBTOTAL(3,$B$7:B8) -> 0 | B8: 光缆-GYTA-单模G.652D-6芯 | D8: 皮长公里 | F8: 889.117293 | G8: 0.00 | J8: J05010303089 | K8: 普通光缆
A9: =SUBTOTAL(3,$B$7:B9) -> 1 | B9: 光缆-GYTA-单模G.652D-8芯 | D9: 皮长公里 | E9: 0.30 | F9: 975.791884 | G9: 292.74 | H9: =G9*13% -> 38.06 | I9: =G9+H9 -> 330.79 | J9: J05010303093 | K9: 普通光缆
A10: =SUBTOTAL(3,$B$7:B10) -> 2 | B10: 光缆-GYTA-单模G.652D-12芯 | D10: 皮长公里 | E10: 0.30 | F10: 1091.791884 | G10: 327.54 | H10: 42.58 | I10: 370.12 | J10: J05010303103 | K10: 普通光缆
A11: =SUBTOTAL(3,$B$7:B11) -> 3 | B11: 光缆-GYTA-单模G.652D-24芯 | D11: 皮长公里 | E11: 1.20 | F11: 1490.31 | G11: 1788.37 | H11: 232.49 | I11: 2020.86 | J11: J05010303120 | K11: 普通光缆
A12: =SUBTOTAL(3,$B$7:B12) -> 3 | B12: 光缆-GYTA-单模G.652D-36芯 | D12: 皮长公里 | F12: 1982.318403 | G12: 0.00 | J12: J05010303126 | K12: 普通光缆
A13: =SUBTOTAL(3,$B$7:B13) -> 4 | B13: 光缆-GYTA-单模G.652D-48芯 | D13: 皮长公里 | E13: 0.80 | F13: 2555.108133 | G13: 2044.09 | H13: =G13*13% -> 265.73 | I13: =G13+H13 -> 2309.82 | J13: J05010303129 | K13: 普通光缆
A14: =SUBTOTAL(3,$B$7:B14) -> 4 | B14: 光缆-GYTA-单模G.652D-72芯 | D14: 皮长公里 | F14: 3514.660191 | G14: 0.00 | J14: J05010303138 | K14: 普通光缆
A15: =SUBTOTAL(3,$B$7:B15) -> 4 | B15: 光缆-GYTA-单模G.652D-96芯 | D15: 皮长公里 | F15: 4604.161365 | G15: 0.00 | J15: J05010303147 | K15: 普通光缆
A16: =SUBTOTAL(3,$B$7:B16) -> 4 | B16: 光缆-GYTA-单模G.652D-144芯 | D16: 皮长公里 | F16: 6786.658677 | G16: 0.00 | J16: J05010303157 | K16: 普通光缆
A17: =SUBTOTAL(3,$B$7:B17) -> 4 | B17: 光缆-GYTA-单模G.652D-168芯 | D17: 皮长公里 | F17: 7602.361194 | G17: 0.00 | J17: J05010303161 | K17: 普通光缆
A18: =SUBTOTAL(3,$B$7:B18) -> 4 | B18: 光缆-GYTA-单模G.652D-240芯 | D18: 皮长公里 | F18: 10320.169593 | G18: 0.00 | J18: J05010303173 | K18: 普通光缆
A19: =SUBTOTAL(3,$B$7:B19) -> 4 | B19: 光缆-GYXTS-单模G.652D-4芯 | D19: 皮长公里 | F19: 1500.16 | G19: 0.00 | H19: =G19*13% -> 0.00 | I19: =G19+H19 -> 0.00
A20: =SUBTOTAL(3,$B$7:B20) -> 4 | B20: 光缆-GYXTS-单模G.652D-6芯 | D20: 皮长公里 | F20: 1551.52 | G20: 0.00 | H20: =G20*13% -> 0.00 | I20: =G20+H20 -> 0.00
A21: =SUBTOTAL(3,$B$7:B21) -> 4 | B21: 光缆-GYXTS-单模G.652D-8芯 | D21: 皮长公里 | F21: 1652.29 | G21: 0.00 | H21: 0.00 | I21: 0.00
A22: =SUBTOTAL(3,$B$7:B22) -> 4 | B22: 光缆-GYXTS-单模G.652D-12芯 | D22: 皮长公里 | F22: 1755.02 | G22: 0.00 | H22: 0.00 | I22: 0.00
A23: =SUBTOTAL(3,$B$7:B23) -> 4 | B23: 光缆-GYXTS-单模G.652D-24芯 | D23: 皮长公里 | F23: 2158.28 | G23: 0.00 | H23: 0.00 | I23: 0.00
A24: =SUBTOTAL(3,$B$7:B24) -> 4 | B24: 光缆-GYXTS-单模G.652D-36芯 | D24: 皮长公里 | F24: 2625.34 | G24: 0.00 | H24: 0.00 | I24: 0.00
A25: =SUBTOTAL(3,$B$7:B25) -> 4 | B25: 光缆-GYXTS-单模G.652D-48芯 | D25: 皮长公里 | F25: 3254.57 | G25: 0.00 | H25: 0.00 | I25: 0.00
A26: =SUBTOTAL(3,$B$7:B26) -> 4 | B26: 光缆-GYTS-单模G.652D-72芯 | D26: 皮长公里 | F26: 5266.290341 | G26: 0.00 | J26: J05010303216 | K26: 普通光缆（防鼠咬） | L26: =E25*12 -> 0.00
A27: =SUBTOTAL(3,$B$7:B27) -> 4 | B27: 光缆-GYXTS-单模G.652D-96芯 | D27: 皮长公里 | F27: 5509.40 | G27: 0.00 | H27: =G27*13% -> 0.00 | I27: =G27+H27 -> 0.00
A28: =SUBTOTAL(3,$B$7:B28) -> 4 | B28: 光缆-GYTS-单模G.652D-144芯 | D28: 皮长公里 | F28: 6854.651613 | G28: 0.00 | J28: J05010303228 | K28: 普通光缆（防鼠咬） | L28: =E26*16 -> 0.00
A29: =SUBTOTAL(3,$B$7:B29) -> 4 | B29: 光缆-GYTS-单模G.652D-168芯 | D29: 皮长公里 | F29: 7708.798734 | G29: 0.00 | J29: J05010303232 | K29: 普通光缆（防鼠咬） | L29: =E28*24 -> 0.00
A30: =SUBTOTAL(3,$B$7:B30) -> 4 | B30: 光缆-GYTA53-单模G.652D-8芯 | D30: 皮长公里 | F30: 1683.442663 | G30: 0.00 | J30: J05010303310 | K30: 普通铠装光缆
A31: =SUBTOTAL(3,$B$7:B31) -> 4 | B31: 光缆-GYTA53-单模G.652D-12芯 | D31: 皮长公里 | F31: 1799.442663 | G31: 0.00 | J31: J05010303314 | K31: 普通铠装光缆 | L31: =E29*36 -> 0.00
A32: =SUBTOTAL(3,$B$7:B32) -> 4 | B32: 光缆-GYTA53-单模G.652D-18芯 | D32: 皮长公里 | F32: 2004.579615 | G32: 0.00 | J32: J05010303321 | K32: 普通铠装光缆
A33: =SUBTOTAL(3,$B$7:B33) -> 4 | B33: 光缆-GYTA53-单模G.652D-24芯 | D33: 皮长公里 | F33: 2187.475887 | G33: 0.00 | J33: J05010303326 | K33: 普通铠装光缆
A34: =SUBTOTAL(3,$B$7:B34) -> 4 | B34: 光缆-GYTA53-单模G.652D-36芯 | D34: 皮长公里 | F34: 2590.680432 | G34: 0.00 | J34: J05010303333 | K34: 普通铠装光缆
A35: =SUBTOTAL(3,$B$7:B35) -> 4 | B35: 光缆-GYTA53-单模G.652D-48芯 | D35: 皮长公里 | F35: 3253.06833 | G35: 0.00 | J35: J05010303340 | K35: 普通铠装光缆 | L35: =E33*4 -> 0.00
A36: =SUBTOTAL(3,$B$7:B36) -> 4 | B36: 光缆-GYTA53-单模G.652D-72芯 | D36: 皮长公里 | F36: 4215.559335 | G36: 0.00 | J36: J05010303351 | K36: 普通铠装光缆
A37: =SUBTOTAL(3,$B$7:B37) -> 4 | B37: 光缆-GYTA53-单模G.652D-96芯 | D37: 皮长公里 | F37: 5483.462535 | G37: 0.00 | J37: J05010303354 | K37: 普通铠装光缆 | L37: =E35*6 -> 0.00
A38: =SUBTOTAL(3,$B$7:B38) -> 4 | B38: 光缆-GYFTY-单模G.652D-4芯 | D38: 皮长公里 | F38: 866.066933 | G38: 0.00 | J38: J05010303648 | K38: 无加强芯光缆
A39: =SUBTOTAL(3,$B$7:B39) -> 4 | B39: 光缆-GYFTY-单模G.652D-6芯 | D39: 皮长公里 | F39: 924.066933 | G39: 0.00 | J39: J05010303649 | K39: 无加强芯光缆
A40: =SUBTOTAL(3,$B$7:B40) -> 4 | B40: 光缆-GYFTY-单模G.652D-8芯 | D40: 皮长公里 | F40: 1022.576743 | G40: 0.00 | J40: J05010302908 | K40: 无加强芯光缆 | L40: =E39*24 -> 0.00
A41: =SUBTOTAL(3,$B$7:B41) -> 4 | B41: 光缆-GYFTY-单模G.652D-12芯 | D41: 皮长公里 | F41: 1138.576743 | G41: 0.00 | J41: J05010302912 | K41: 无加强芯光缆 | L41: =E7*6 -> 0.00
A42: =SUBTOTAL(3,$B$7:B42) -> 4 | B42: 光缆-GYFTY-单模G.652D-24芯 | D42: 皮长公里 | F42: 1563.465951 | G42: 0.00 | J42: J05010302915 | K42: 无加强芯光缆 | L42: =E41*8 -> 0.00
A43: =SUBTOTAL(3,$B$7:B43) -> 4 | B43: 光缆-GYFTY-单模G.652D-36芯 | D43: 皮长公里 | F43: 2009.642667 | G43: 0.00 | J43: J05010302917 | K43: 无加强芯光缆 | L43: =E42*12 -> 0.00
A44: =SUBTOTAL(3,$B$7:B44) -> 4 | B44: 光缆-GYFTY-单模G.652D-48芯 | D44: 皮长公里 | F44: 2522.938578 | G44: =E44*F44 -> 0.00 | J44: J05010302921 | K44: 无加强芯光缆
A45: =SUBTOTAL(3,$B$7:B45) -> 4 | B45: 光缆-GYFTY-单模G.652D-72芯 | D45: 皮长公里 | F45: 3404.17167 | G45: 0.00 | J45: J05010302927 | K45: 无加强芯光缆 | L45: =E33*16 -> 0.00
A46: =SUBTOTAL(3,$B$7:B46) -> 4 | B46: GYTA53(不锈钢带)-4芯 | D46: 皮长公里 | F46: 2306.70698 | G46: 0.00 | J46: J05010303060 | K46: 不锈钢带铠装光缆 | L46: =E45*24 -> 0.00
A47: =SUBTOTAL(3,$B$7:B47) -> 4 | B47: GYTA53(不锈钢带)-6芯 | D47: 皮长公里 | F47: 2364.70698 | G47: 0.00 | J47: J05010303065 | K47: 不锈钢带铠装光缆
A48: =SUBTOTAL(3,$B$7:B48) -> 4 | B48: GYTA53(不锈钢带)-8芯 | D48: 皮长公里 | F48: 2475.13144 | G48: 0.00 | J48: J05010303068 | K48: 不锈钢带铠装光缆 | L48: =E46*36 -> 0.00
A49: =SUBTOTAL(3,$B$7:B49) -> 4 | B49: GYTA53(不锈钢带)-12芯 | D49: 皮长公里 | F49: 2591.13144 | G49: 0.00 | J49: J05010303072 | K49: 不锈钢带铠装光缆 | L49: =E47*48 -> 0.00
A50: =SUBTOTAL(3,$B$7:B50) -> 4 | B50: GYTA53(不锈钢带)-18芯 | D50: 皮长公里 | F50: 2811.360282 | G50: 0.00 | J50: J05010303079 | K50: 不锈钢带铠装光缆 | L50: =E48*48 -> 0.00
A51: =SUBTOTAL(3,$B$7:B51) -> 4 | B51: GYTA53(不锈钢带)-24芯 | D51: 皮长公里 | F51: 3038.896776 | G51: 0.00 | J51: J05010303082 | K51: 不锈钢带铠装光缆
A52: =SUBTOTAL(3,$B$7:B52) -> 4 | B52: GYTA53(不锈钢带)-36芯 | D52: 皮长公里 | F52: 3508.74393 | G52: 0.00 | J52: J05010303087 | K52: 不锈钢带铠装光缆 | L52: =E50*4 -> 0.00
A53: =SUBTOTAL(3,$B$7:B53) -> 4 | B53: GYTA53(不锈钢带)-48芯 | D53: 皮长公里 | F53: 4188.844941 | G53: 0.00 | J53: J05010303091 | K53: 不锈钢带铠装光缆 | L53: =E52*6 -> 0.00
A54: =SUBTOTAL(3,$B$7:B54) -> 4 | B54: GYTA53(不锈钢带)-72芯 | D54: 皮长公里 | F54: 5368.897455 | G54: 0.00 | J54: J05010303095 | K54: 不锈钢带铠装光缆
A55: =SUBTOTAL(3,$B$7:B55) -> 4 | B55: GYTA53(不锈钢带)-96芯 | D55: 皮长公里 | F55: 6670.479399 | G55: 0.00 | J55: J05010303098 | K55: 不锈钢带铠装光缆 | L55: =E43*16 -> 0.00
A56: =SUBTOTAL(3,$B$7:B56) -> 4 | B56: 光缆-GYDTA-单模G.652D-96芯 | D56: 皮长公里 | F56: 5744.790525 | G56: 0.00 | J56: J05010303480 | K56: 带状光缆 | L56: =E55*24 -> 0.00
A57: =SUBTOTAL(3,$B$7:B57) -> 4 | B57: 光缆-GYDTA-单模G.652D-144芯 | D57: 皮长公里 | F57: 7590.500397 | G57: 0.00 | J57: J05010303489 | K57: 带状光缆
A58: =SUBTOTAL(3,$B$7:B58) -> 4 | B58: 光缆-GYDTA-单模G.652D-168芯 | D58: 皮长公里 | F58: 8612.882376 | G58: 0.00 | J58: J05010303492 | K58: 带状光缆 | L58: =E56*36 -> 0.00
A59: =SUBTOTAL(3,$B$7:B59) -> 4 | B59: 光缆-GYDTA-单模G.652D-240芯 | D59: 皮长公里 | F59: 11383.51239 | G59: 0.00 | J59: J05010303504 | K59: 带状光缆 | L59: =E57*48 -> 0.00
A60: =SUBTOTAL(3,$B$7:B60) -> 4 | B60: 光缆-GYDTA-单模G.652D-288芯 | D60: 皮长公里 | F60: 13199.435637 | G60: 0.00 | J60: J05010303512 | K60: 带状光缆 | L60: =E58*48 -> 0.00
A61: =SUBTOTAL(3,$B$7:B61) -> 4 | B61: 蝶形引入光缆 | C61: GJYXCH-1B6 | D61: 千米 | F61: 386.70 | G61: =E61*F61 -> 0.00 | J61: J05010400221 | K61: 省模板材料，建议不要用
A62: =SUBTOTAL(3,$B$7:B62) -> 4 | B62: 蝶形引入光缆 | C62: GJYXFCH-1B6 | D62: 千米 | F62: 446.00 | G62: 0.00 | J62: J05010400224 | K62: 省模板材料，建议不要用
A63: =SUBTOTAL(3,$B$7:B63) -> 4 | B63: 通信电源用阻燃软电缆 | C63: 1.5-ZA-RVV-二芯 | D63: 米 | F63: 1.66 | G63: 0.00 | J63: J05030201969 | K63: 省模板材料，建议不要用
A64: =SUBTOTAL(3,$B$7:B64) -> 4 | B64: 铝芯电力电缆 | C64: VLV-2×10MM | D64: 米 | F64: 4.30 | G64: =E64*F64 -> 0.00 | J64: L05030204295 | K64: 省模板材料，建议不要用
A65: =SUBTOTAL(3,$B$7:B65) -> 4 | B65: 尾纤 | C65: FC-FC-3米 | D65: 条 | F65: 6.42 | G65: 0.00 | J65: J05061405153_JX0003 | K65: 省模板材料，建议不要用
A66: =SUBTOTAL(3,$B$7:B66) -> 4 | B66: 尾纤 | C66: SC-SC-3米 | D66: 条 | F66: 9.43 | G66: 0.00 | J66: J05061405153_JX0008 | K66: 省模板材料，建议不要用
A67: =SUBTOTAL(3,$B$7:B67) -> 4 | B67: 尾纤 | C67: FC-SC-3米 | D67: 条 | F67: 8.55 | G67: 0.00 | J67: J05061405153_JX0013 | K67: 省模板材料，建议不要用
A68: =SUBTOTAL(3,$B$7:B68) -> 4 | B68: 光纤热熔管/单芯 | C68: 光纤热熔管/单芯 | D68: 条 | F68: 0.20 | G68: 0.00 | J68: J05050100044 | K68: 省模板材料，建议不要用
A69: =SUBTOTAL(3,$B$7:B69) -> 4 | B69: 通信杆-ф150×6m | C69: 水泥电杆-Φ130mm-6米 | D69: 个 | F69: 170.00 | G69: 0.00 | J69: J05070200778 | K69: 省模板材料，建议不要用
A70: =SUBTOTAL(3,$B$7:B70) -> 5 | B70: 通信杆-ф150×7m | C70: 通信杆-ф150×7m | D70: 个 | E70: 6.00 | F70: 387.94 | G70: 2327.64 | H70: =G70*13% -> 302.59 | I70: =G70+H70 -> 2630.23
A71: =SUBTOTAL(3,$B$7:B71) -> 5 | B71: 通信杆-ф150×8m | C71: 通信杆-ф150×8m | D71: 个 | F71: 288.00 | G71: 0.00 | J71: J05070200776 | K71: 省模板材料，建议不要用
A72: =SUBTOTAL(3,$B$7:B72) -> 5 | B72: 通信杆-ф150×9m | C72: 通信杆-ф150×9m | D72: 个 | F72: 669.00 | G72: 0.00 | H72: 0.00 | I72: 0.00
A73: =SUBTOTAL(3,$B$7:B73) -> 5 | B73: 通信杆-ф150×10m | C73: 通信杆-ф150×10m | D73: 个 | F73: 675.00 | G73: 0.00 | H73: 0.00 | I73: 0.00
A74: =SUBTOTAL(3,$B$7:B74) -> 5 | B74: 增高架 | C74: 双槽钢-2000×50×50×5mm | D74: 个 | F74: 150.00 | G74: 0.00 | J74: J05070102924 | K74: 省模板材料，建议不要用
A75: =SUBTOTAL(3,$B$7:B75) -> 5 | B75: 单杆圆形站台 | C75: 大号 | D75: 付 | F75: 430.00 | G75: 0.00 | J75: L01130301732 | K75: 省模板材料，建议不要用
A76: =SUBTOTAL(3,$B$7:B76) -> 5 | B76: 交接箱站台 | C76: 大号单面 | D76: 付 | F76: 1120.00 | G76: 0.00 | J76: J05070103194 | K76: 省模板材料，建议不要用
A77: =SUBTOTAL(3,$B$7:B77) -> 5 | B77: 交接箱站台 | C77: 大号双面 | D77: 付 | F77: 1260.00 | G77: 0.00 | J77: J05070103195 | K77: 省模板材料，建议不要用
A78: =SUBTOTAL(3,$B$7:B78) -> 5 | B78: 水泥拉线盘 | C78: LP600*400*150 | D78: 块 | F78: 17.41 | G78: 0.00 | J78: J05070200731 | K78: 省模板材料，建议不要用
A79: =SUBTOTAL(3,$B$7:B79) -> 5 | B79: 单吊线抱箍 | C79: 144×50×8m/m | D79: 个 | F79: 17.51 | G79: 0.00 | J79: J05070102873 | K79: 省模板材料，建议不要用
A80: =SUBTOTAL(3,$B$7:B80) -> 5 | B80: 单吊线抱箍 | C80: 164×50×8m/m | D80: 个 | F80: 15.82 | G80: 0.00 | J80: J05070103498_JX0003 | K80: 省模板材料，建议不要用
A81: =SUBTOTAL(3,$B$7:B81) -> 5 | B81: 拉线抱箍 | C81: 164×50×8m/m | D81: 个 | F81: 13.93 | G81: 0.00 | J81: J05070103498_JX0004 | K81: 省模板材料，建议不要用
A82: =SUBTOTAL(3,$B$7:B82) -> 5 | B82: 双吊线抱箍 | C82: 164×50×8m/m | D82: 个 | F82: 23.00 | G82: 0.00 | J82: J05070102532 | K82: 省模板材料，建议不要用
A83: =SUBTOTAL(3,$B$7:B83) -> 5 | B83: 塑托挂钩-电缆-35mm | C83: 塑托挂钩-电缆-35mm | D83: 个 | F83: 0.14 | G83: 0.00 | J83: J05070103083 | K83: 省模板材料，建议不要用
A84: =SUBTOTAL(3,$B$7:B84) -> 5 | B84: 塑托挂钩-电缆-45mm | C84: 塑托挂钩-电缆-45mm | D84: 个 | F84: 0.19 | G84: 0.00 | J84: J05070103084 | K84: 省模板材料，建议不要用
A85: =SUBTOTAL(3,$B$7:B85) -> 5 | B85: 电缆挂钩-65m/m铝托 | C85: 电缆挂钩-65m/m铝托 | D85: 个 | F85: 0.20 | G85: 0.00 | J85: J05070103077 | K85: 省模板材料，建议不要用
A86: =SUBTOTAL(3,$B$7:B86) -> 5 | B86: 拉线地锚棒 | C86: φ16×1800 | D86: 个 | F86: 16.00 | G86: 0.00 | J86: J05070102515 | K86: 省模板材料，建议不要用
A87: =SUBTOTAL(3,$B$7:B87) -> 5 | B87: 地线棒-16×1500mm | C87: 地线棒-12×1800 | D87: 个 | F87: 20.60 | G87: 0.00 | J87: J05070102838 | K87: 省模板材料，建议不要用
A88: =SUBTOTAL(3,$B$7:B88) -> 5 | B88: U型抱箍（2个） | C88: 1:32SMC室外楼道箱抱杆使用 | D88: 个 | F88: 11.44 | G88: =E88*F88 -> 0.00 | J88: L05070106801 | K88: 省模板材料，建议不要用
A89: =SUBTOTAL(3,$B$7:B89) -> 5 | B89: 钢担U型抱箍 | C89: R=75 | D89: 付 | F89: 4.50 | G89: 0.00 | J89: J05070102538 | K89: 省模板材料，建议不要用
A90: =SUBTOTAL(3,$B$7:B90) -> 5 | B90: 二线角钢担 | C90: 400*40*40*4 | D90: 条 | F90: 19.80 | G90: 0.00 | J90: L05070106499 | K90: 省模板材料，建议不要用
A91: =SUBTOTAL(3,$B$7:B91) -> 5 | B91: 镀锌钢绞线 | C91: 7*2.2 | D91: 公斤 | F91: 6.15 | G91: 0.00 | J91: J05070103313 | K91: 省模板材料，建议不要用
A92: =SUBTOTAL(3,$B$7:B92) -> 5 | B92: 镀锌钢绞线 | C92: 7*2.6 | D92: 公斤 | F92: 7.00 | G92: 0.00 | J92: J05070103319 | K92: 省模板材料，建议不要用
A93: =SUBTOTAL(3,$B$7:B93) -> 5 | B93: 铁线 | C93: 1.5mm | D93: 公斤 | F93: 5.81 | G93: 0.00 | J93: J05070102828 | K93: 省模板材料，建议不要用
A94: =SUBTOTAL(3,$B$7:B94) -> 5 | B94: 铁线 | C94: 3.0mm | D94: 公斤 | F94: 5.91 | G94: 0.00 | J94: J05070102506 | K94: 省模板材料，建议不要用
A95: =SUBTOTAL(3,$B$7:B95) -> 5 | B95: 铁线 | C95: 4.0mm | D95: 公斤 | F95: 5.91 | G95: 0.00 | J95: J05070102826 | K95: 省模板材料，建议不要用
A96: =SUBTOTAL(3,$B$7:B96) -> 5 | B96: 拉线衬环 | C96: 三股 | D96: 只 | F96: 0.70 | G96: 0.00 | J96: J05070102552 | K96: 省模板材料，建议不要用
A97: =SUBTOTAL(3,$B$7:B97) -> 5 | B97: 拉线衬环 | C97: 五股 | D97: 只 | F97: 1.11 | G97: 0.00 | J97: J05070102553 | K97: 省模板材料，建议不要用
A98: =SUBTOTAL(3,$B$7:B98) -> 5 | B98: 拉线隔电子 | C98: J-45 | D98: 个 | F98: 3.85 | G98: 0.00 | J98: J05070102450 | K98: 省模板材料，建议不要用
A99: =SUBTOTAL(3,$B$7:B99) -> 5 | B99: 跨路警示标牌-400mm×150mm | C99: 400mm×150mm | D99: 个 | F99: 6.00 | G99: 0.00 | J99: J05070400073 | K99: 省模板材料，建议不要用
A100: =SUBTOTAL(3,$B$7:B100) -> 5 | B100: 拉线标志保护管 | C100: 反光漆 | D100: 个 | F100: 6.41 | G100: 0.00 | J100: J05070102611 | K100: 省模板材料，建议不要用
A101: =SUBTOTAL(3,$B$7:B101) -> 5 | B101: 三线交叉保护套(硬) | D101: 米 | F101: 5.30 | G101: 0.00 | J101: J05070300189 | K101: 省模板材料，建议不要用
A102: =SUBTOTAL(3,$B$7:B102) -> 5 | B102: 光缆盘留支架 | C102: 650×650mm | D102: 个 | F102: 35.36 | G102: 0.00 | J102: J05062101241 | K102: 省模板材料，建议不要用
A103: =SUBTOTAL(3,$B$7:B103) -> 5 | B103: U型钢绞线卡子-10m/m | C103: U型钢绞线卡子-10m/m | D103: 个 | F103: 2.20 | G103: 0.00 | J103: J05070102846 | K103: 省模板材料，建议不要用
A104: =SUBTOTAL(3,$B$7:B104) -> 5 | B104: U型钢绞线卡子-8m/m | C104: U型钢绞线卡子-8m/m | D104: 个 | F104: 1.07 | G104: 0.00 | J104: J05070102848 | K104: 省模板材料，建议不要用
A105: =SUBTOTAL(3,$B$7:B105) -> 5 | B105: 三眼单槽夹板 | C105: 142×42×24 | D105: 个 | F105: 6.74 | G105: 0.00 | J105: J05070103498_JX0013 | K105: 省模板材料，建议不要用
A106: =SUBTOTAL(3,$B$7:B106) -> 5 | B106: 三眼双槽夹板 | D106: 个 | F106: 8.32 | G106: 0.00 | J106: J05070103498_JX0012 | K106: 省模板材料，建议不要用
A107: =SUBTOTAL(3,$B$7:B107) -> 5 | B107: 塑料电缆卡 | C107: 6# | D107: 个 | F107: 0.04 | G107: 0.00 | J107: J05070600015 | K107: 省模板材料，建议不要用
A108: =SUBTOTAL(3,$B$7:B108) -> 5 | B108: 线卡-10# | C108: 线卡-10# | D108: 个 | F108: 0.05 | G108: 0.00 | J108: J05070103140 | K108: 省模板材料，建议不要用
A109: =SUBTOTAL(3,$B$7:B109) -> 5 | B109: 线卡-12# | C109: 线卡-12# | D109: 个 | F109: 0.06 | G109: 0.00 | J109: J05070103141 | K109: 省模板材料，建议不要用
A110: =SUBTOTAL(3,$B$7:B110) -> 5 | B110: 线卡-16# | C110: 线卡-16# | D110: 个 | F110: 0.11 | G110: 0.00 | J110: J05070103143 | K110: 省模板材料，建议不要用
A111: =SUBTOTAL(3,$B$7:B111) -> 5 | B111: 线卡-18# | C111: 线卡-18# | D111: 个 | F111: 0.16 | G111: 0.00 | J111: J05070600015 | K111: 省模板材料，建议不要用
A112: =SUBTOTAL(3,$B$7:B112) -> 5 | B112: 线卡-20# | C112: 线卡-20# | D112: 个 | F112: 0.14 | G112: 0.00 | J112: J05070103145 | K112: 省模板材料，建议不要用
A113: =SUBTOTAL(3,$B$7:B113) -> 5 | B113: 线卡-25# | C113: 线卡-25# | D113: 个 | F113: 0.18 | G113: 0.00 | J113: J05070600015 | K113: 省模板材料，建议不要用
A114: =SUBTOTAL(3,$B$7:B114) -> 5 | B114: 线卡-32# | C114: 线卡-32# | D114: 个 | F114: 0.45 | G114: 0.00 | J114: J05070600015 | K114: 省模板材料，建议不要用
A115: =SUBTOTAL(3,$B$7:B115) -> 5 | B115: 压线卡 | C115: 7# | D115: 只 | F115: 0.04 | G115: 0.00 | J115: J05070600015 | K115: 省模板材料，建议不要用
A116: =SUBTOTAL(3,$B$7:B116) -> 5 | B116: 隔电子 | C116: 小号直角 | D116: 个 | F116: 0.95 | G116: 0.00 | J116: J05070102450 | K116: 省模板材料，建议不要用
A117: =SUBTOTAL(3,$B$7:B117) -> 5 | B117: 拉攀 | C117: 一号 | D117: 个 | F117: 9.00 | G117: 0.00 | J117: J05070102561 | K117: 省模板材料，建议不要用
A118: =SUBTOTAL(3,$B$7:B118) -> 5 | B118: 三沟隔电子 | C118: 三沟隔电子 | D118: 个 | F118: 1.07 | G118: 0.00 | J118: J05070102863 | K118: 省模板材料，建议不要用
A119: =SUBTOTAL(3,$B$7:B119) -> 5 | B119: 二号拉攀 | D119: 付 | F119: 5.00 | G119: 0.00 | J119: J05070102562 | K119: 省模板材料，建议不要用
A120: =SUBTOTAL(3,$B$7:B120) -> 5 | B120: 突出支架 | C120: 大号8*50 | D120: 付 | F120: 17.00 | G120: 0.00 | J120: J05070102572 | K120: 省模板材料，建议不要用
A121: =SUBTOTAL(3,$B$7:B121) -> 5 | B121: 突出支架 | C121: 小号8*50 | D121: 付 | F121: 14.00 | G121: 0.00 | J121: J05070102573 | K121: 省模板材料，建议不要用
A122: =SUBTOTAL(3,$B$7:B122) -> 5 | B122: 波纹柔管 | C122: ф16mm | D122: 米 | F122: 1.20 | G122: 0.00 | J122: J05080201695 | K122: 省模板材料，建议不要用
A123: =SUBTOTAL(3,$B$7:B123) -> 5 | B123: 波纹柔管 | C123: ф20mm | D123: 米 | F123: 1.60 | G123: =E123*F123 -> 0.00 | J123: J05080201687 | K123: 省模板材料，建议不要用
A124: =SUBTOTAL(3,$B$7:B124) -> 5 | B124: 波纹柔管 | C124: ф25 | D124: 米 | F124: 1.80 | G124: 0.00 | J124: J05080201688 | K124: 省模板材料，建议不要用
A125: =SUBTOTAL(3,$B$7:B125) -> 5 | B125: 光缆保护管 | D125: 米 | F125: 0.72 | G125: 0.00 | J125: L05070300422 | K125: 省模板材料，建议不要用
A126: =SUBTOTAL(3,$B$7:B126) -> 5 | B126: 机电工具 | C126: 黑胶布 | D126: 个 | F126: 2.80 | G126: 0.00 | J126: L10150200721 | K126: 省模板材料，建议不要用
A127: =SUBTOTAL(3,$B$7:B127) -> 5 | B127: 防护类辅材 | C127: 封堵胶泥 | D127: 个 | F127: 6.70 | G127: 0.00 | J127: J05080201737 | K127: 省模板材料，建议不要用
A128: =SUBTOTAL(3,$B$7:B128) -> 5 | B128: PE半硬塑料管 | C128: Φ50/40 | D128: 米 | F128: 4.78 | G128: 0.00 | J128: J05080201489 | K128: 省模板材料，建议不要用
A129: =SUBTOTAL(3,$B$7:B129) -> 5 | B129: PE子管 | C129: 32mm×28mm | D129: 米 | F129: 2.40 | G129: 0.00 | J129: J05080201514 | K129: 省模板材料，建议不要用
A130: =SUBTOTAL(3,$B$7:B130) -> 5 | B130: PVC双壁波纹管 | C130: 110/100SVBY | D130: 米 | F130: 7.50 | G130: 0.00 | J130: J05080201512 | K130: 省模板材料，建议不要用
A131: =SUBTOTAL(3,$B$7:B131) -> 5 | B131: PVC实壁管（单孔管） | C131: Φ16/12 | D131: 米 | F131: 1.20 | G131: 0.00 | J131: J05080202003 | K131: 省模板材料，建议不要用
A132: =SUBTOTAL(3,$B$7:B132) -> 5 | B132: PVC实壁管（单孔管） | C132: Φ20/16 | D132: 米 | F132: 1.50 | G132: 0.00 | J132: J05080202006 | K132: 省模板材料，建议不要用
A133: =SUBTOTAL(3,$B$7:B133) -> 5 | B133: PVC实壁管（单孔管） | C133: Φ25/21 | D133: 米 | F133: 1.85 | G133: 0.00 | J133: J05080202008 | K133: 省模板材料，建议不要用
A134: =SUBTOTAL(3,$B$7:B134) -> 5 | B134: PVC实壁管（单孔管） | C134: Φ32/28 | D134: 米 | F134: 2.80 | G134: 0.00 | J134: J05080201495 | K134: 省模板材料，建议不要用
A135: =SUBTOTAL(3,$B$7:B135) -> 6 | B135: 镀锌钢管 | C135: φ50 | D135: 米 | E135: 6.00 | F135: 39.23 | G135: 235.38 | H135: =G135*13% -> 30.60 | I135: =G135+H135 -> 265.98 | J135: J05080300342
A136: =SUBTOTAL(3,$B$7:B136) -> 6 | B136: 镀锌钢管 | C136: φ80 | D136: 米 | F136: 45.84 | G136: 0.00 | J136: J05080300303 | K136: 省模板材料，建议不要用
A137: =SUBTOTAL(3,$B$7:B137) -> 6 | B137: 镀锌钢管管卡 | C137: φ50 | D137: 个 | F137: 1.20 | G137: 0.00 | J137: J05080300318 | K137: 省模板材料，建议不要用
A138: =SUBTOTAL(3,$B$7:B138) -> 6 | B138: 镀锌钢管管卡 | C138: φ80 | D138: 个 | F138: 1.80 | G138: 0.00 | J138: J05070600015 | K138: 省模板材料，建议不要用
A139: =SUBTOTAL(3,$B$7:B139) -> 6 | B139: 钢管直接头 | C139: φ50 | D139: 只 | F139: 7.50 | G139: 0.00 | J139: J05080300307 | K139: 省模板材料，建议不要用
A140: =SUBTOTAL(3,$B$7:B140) -> 6 | B140: 钢管直接头 | C140: φ100 | D140: 只 | F140: 28.00 | G140: 0.00 | J140: J05080300305 | K140: 省模板材料，建议不要用
A141: =SUBTOTAL(3,$B$7:B141) -> 6 | B141: 钢管直接头 | C141: φ80 | D141: 只 | F141: 18.00 | G141: 0.00 | J141: J05080300307 | K141: 省模板材料，建议不要用
A142: =SUBTOTAL(3,$B$7:B142) -> 6 | B142: 镀锌钢管 | C142: φ100 | F142: 61.17 | G142: 0.00 | J142: J05080300302 | K142: 省模板材料，建议不要用
A143: =SUBTOTAL(3,$B$7:B143) -> 6 | B143: 光缆配线箱 | C143: 光缆配线箱-壁挂式-450×400×120mm-48芯 | D143: 套 | F143: 574.00 | G143: 0.00 | J143: J05050500035 | K143: 省模板材料，建议不要用
A144: =SUBTOTAL(3,$B$7:B144) -> 6 | B144: 光缆配线箱 | C144: 室外 72芯 | D144: 套 | F144: 720.00 | G144: 0.00 | J144: L05050500222 | K144: 省模板材料，建议不要用
A145: =SUBTOTAL(3,$B$7:B145) -> 6 | B145: 光缆配线箱 | C145: 室外 96芯 | D145: 套 | F145: 1370.00 | G145: 0.00 | J145: J05050500031 | K145: 省模板材料，建议不要用
A146: =SUBTOTAL(3,$B$7:B146) -> 6 | B146: 光纤终端盒 | C146: 光纤终端盒-挂墙式-直熔-12芯 | D146: 个 | F146: 36.75 | G146: =E146*F146 -> 0.00 | J146: J05050300082 | K146: 省模板材料，建议不要用
A147: =SUBTOTAL(3,$B$7:B147) -> 6 | B147: 光纤终端盒 | C147: 光纤终端盒-挂墙式-直熔-24芯 | D147: 个 | F147: 48.00 | G147: 0.00 | J147: J05050300083 | K147: 省模板材料，建议不要用
A148: =SUBTOTAL(3,$B$7:B148) -> 6 | B148: 光缆接头盒 | C148: GPJ 二进二出 12芯 | D148: 套 | F148: 82.44 | G148: 0.00 | J148: J05050400973 | K148: 省模板材料，建议不要用
A149: =SUBTOTAL(3,$B$7:B149) -> 6 | B149: 光缆接头盒 | C149: GPJ 二进二出 24芯 | D149: 套 | F149: 84.47 | G149: 0.00 | J149: J05050400974 | K149: 省模板材料，建议不要用
A150: =SUBTOTAL(3,$B$7:B150) -> 6 | B150: 光缆接头盒 | C150: GPJ 二进二出 48芯 | D150: 套 | F150: 158.95 | G150: 0.00 | J150: J05050400976 | K150: 省模板材料，建议不要用
A151: =SUBTOTAL(3,$B$7:B151) -> 6 | B151: 光缆接头盒 | C151: 3M 2178 36芯 | D151: 套 | F151: 1380.00 | G151: 0.00 | J151: J05050400900 | K151: 省模板材料，建议不要用
A152: =SUBTOTAL(3,$B$7:B152) -> 6 | B152: 光缆接头盒 | C152: 3M 2178C 72芯 | D152: 套 | F152: 1081.00 | G152: 0.00 | J152: J05050400900 | K152: 省模板材料，建议不要用
A153: =SUBTOTAL(3,$B$7:B153) -> 6 | B153: 光缆接头盒 | C153: 3M 2178C 168芯 | D153: 套 | F153: 1720.00 | G153: 0.00 | J153: 估价
A154: =SUBTOTAL(3,$B$7:B154) -> 6 | B154: 光缆接头盒 | C154: 3M 2178C 240芯 | D154: 套 | F154: 1920.00 | G154: 0.00 | J154: 估价
A155: =SUBTOTAL(3,$B$7:B160) -> 7 | B155: 皮缆及光缆两用接头盒 | C155: GJS-SPW202 | D155: 只 | F155: 340.00 | G155: 0.00 | J155: J05050400900 | K155: 省模板材料，建议不要用
A156: =SUBTOTAL(3,$B$7:B156) -> 6 | B156: 光缆交接箱 | C156: 光缆交接箱（144芯SMC箱体）满配 SC | D156: 台 | F156: 2004.76 | G156: 0.00 | J156: J05050100860_JX0030 | K156: 省模板材料，建议不要用
A157: =SUBTOTAL(3,$B$7:B157) -> 6 | B157: 光缆交接箱 | C157: （144芯SMC箱体）满配 FC | D157: 台 | F157: 2004.76 | G157: 0.00 | J157: J05050100860_JX0013 | K157: 省模板材料，建议不要用
A158: =SUBTOTAL(3,$B$7:B158) -> 6 | B158: 光缆交接箱 | C158: （288芯SMC箱体）满配 SC | D158: 个 | F158: 3214.31 | G158: =E158*F158 -> 0.00 | J158: J05050100860_JX0028 | K158: 省模板材料，建议不要用
A159: =SUBTOTAL(3,$B$7:B159) -> 6 | B159: 光缆交接箱 | C159: （288芯SMC箱体）满配 FC | D159: 个 | F159: 3214.31 | G159: 0.00 | J159: J05050100860_JX0012 | K159: 省模板材料，建议不要用
A160: =SUBTOTAL(3,$B$7:B160) -> 7 | B160: 光缆交接箱 | C160: （576芯双面SMC箱体）半配 FC | D160: 个 | E160: 0.00 | F160: 4577.00 | G160: 0.00 | H160: =G160*13% -> 0.00 | I160: =G160+H160 -> 0.00
A161: =SUBTOTAL(3,$B$7:B161) -> 7 | B161: 壁挂式免跳接室外光缆交接箱 | C161: 72芯SMC箱体 | D161: 台 | F161: 1190.45 | G161: 0.00 | J161: J05050100860_JX0009 | K161: 省模板材料，建议不要用
A162: =SUBTOTAL(3,$B$7:B162) -> 7 | B162: 壁挂式免跳接室外光缆交接箱 | C162: 144芯SMC箱体 | D162: 台 | F162: 2365.20 | G162: 0.00 | J162: J05050100860_JX0011 | K162: 省模板材料，建议不要用
A163: =SUBTOTAL(3,$B$7:B163) -> 7 | B163: 免跳接室外光缆交接箱 | C163: 288芯SMC箱体（半配） | D163: 台 | F163: 3414.31 | G163: 0.00 | J163: J05050100860_JX0007 | K163: 省模板材料，建议不要用
A164: =SUBTOTAL(3,$B$7:B164) -> 7 | B164: 免跳接室外光缆交接箱 | C164: 288芯SMC箱体（满配） | D164: 台 | F164: 4377.00 | G164: 0.00 | J164: J05050100860_JX0006 | K164: 省模板材料，建议不要用
A165: =SUBTOTAL(3,$B$7:B165) -> 7 | B165: 免跳接室外光缆交接箱 | C165: 576芯双面SMC箱体 （半配） | D165: 台 | F165: 5490.00 | G165: 0.00 | J165: J05050100860_JX0032 | K165: 省模板材料，建议不要用
A166: =SUBTOTAL(3,$B$7:B166) -> 7 | B166: 日海分光器 | C166: 光交接箱NTM-SA1模块（含光分器1：4，FC适配器） | D166: 个 | F166: 263.00 | G166: =E166*F166 -> 0.00 | J166: J05061100694 | K166: 省模板材料，建议不要用
A167: =SUBTOTAL(3,$B$7:B167) -> 7 | B167: 日海分光器 | C167: 光交接箱NTM-SA1模块（含光分器1：8，FC适配器） | D167: 个 | F167: 281.05 | G167: 0.00 | J167: J05061100695 | K167: 省模板材料，建议不要用
A168: =SUBTOTAL(3,$B$7:B168) -> 7 | B168: 光交接箱型光分路器 | C168: 光交接箱NTM-SA1模块（含光分器1：16，FC适配器） | D168: 块 | F168: 681.00 | G168: 0.00 | J168: L05050200848 | K168: 省模板材料，建议不要用
A169: =SUBTOTAL(3,$B$7:B169) -> 7 | B169: 光交接箱型光分路器 | C169: 光交接箱NTM-SA1模块（含光分器1：32，FC适配器） | D169: 块 | F169: 1173.00 | G169: 0.00 | J169: L05050200849 | K169: 省模板材料，建议不要用
A170: =SUBTOTAL(3,$B$7:B170) -> 7 | B170: 1：1X8SA12尾纤分路器模块盒 | C170: 1：8 | D170: 只 | F170: 293.00 | G170: 0.00 | J170: J05061100707 | K170: 省模板材料，建议不要用
A171: =SUBTOTAL(3,$B$7:B171) -> 7 | B171: 1X32SA12尾纤分路器模块盒 | C171: 1：32 | D171: 只 | F171: 818.00 | G171: 0.00 | J171: J05061100709 | K171: 省模板材料，建议不要用
A172: =SUBTOTAL(3,$B$7:B172) -> 7 | B172: 1X4SA12尾纤分路器模块盒 | C172: 1：4 | D172: 只 | F172: 246.00 | G172: 0.00 | J172: J05061100706 | K172: 省模板材料，建议不要用
A173: =SUBTOTAL(3,$B$7:B173) -> 7 | B173: 1×4插片式光分路器 | C173: 1×4插片式,SC/UPC | D173: 个 | F173: 47.32 | G173: 0.00 | J173: J05061100148 | K173: 省模板材料，建议不要用
A174: =SUBTOTAL(3,$B$7:B174) -> 7 | B174: 1×8插片式光分路器 | C174: 1×8插片式,SC/UPC | D174: 个 | F174: 65.33 | G174: 0.00 | J174: J05061100224 | K174: 省模板材料，建议不要用
A175: =SUBTOTAL(3,$B$7:B175) -> 7 | B175: 1×16插片式光分路器 | C175: 1×16插片式,SC/UPC | D175: 套 | F175: 68.24 | G175: 0.00 | J175: J05061100037 | K175: 省模板材料，建议不要用
A176: =SUBTOTAL(3,$B$7:B176) -> 7 | B176: 1×32插片式光分路器 | C176: 1×32插片式,SC/UPC | D176: 个 | F176: 172.87 | G176: =E176*F176 -> 0.00 | J176: J05061100106 | K176: 省模板材料，建议不要用
A177: =SUBTOTAL(3,$B$7:B177) -> 7 | B177: 熔纤托盘12芯 | C177: 熔纤托盘12芯 | D177: 个 | F177: 147.50 | G177: 0.00 | J177: J05050100860_JX0045 | K177: 省模板材料，建议不要用
A178: =SUBTOTAL(3,$B$7:B178) -> 7 | B178: 现场连接器-SC插头 | C178: 6040027 | D178: 个 | F178: 29.00 | G178: 0.00 | J178: J05061300052 | K178: 省模板材料，建议不要用
A179: =SUBTOTAL(3,$B$7:B179) -> 7 | B179: 皮线光缆对接冷接子 | C179: HML925BP | D179: 只 | F179: 18.00 | G179: 0.00 | J179: J05061300052 | K179: 省模板材料，建议不要用
A180: =SUBTOTAL(3,$B$7:B180) -> 7 | B180: 连接器 | C180: 光纤快速连接器-连面板 | D180: 个 | F180: 23.00 | G180: 0.00 | J180: J05061300052 | K180: 省模板材料，建议不要用
A181: =SUBTOTAL(3,$B$7:B181) -> 7 | B181: 适配器 | C181: FC-FC | D181: 只 | F181: 3.60 | G181: 0.00 | J181: J05061403524 | K181: 省模板材料，建议不要用
A182: =SUBTOTAL(3,$B$7:B182) -> 7 | B182: 适配器 | C182: FC-SC | D182: 只 | F182: 6.80 | G182: 0.00 | J182: J05061400034 | K182: 省模板材料，建议不要用
A183: =SUBTOTAL(3,$B$7:B183) -> 7 | B183: 过路盒 | D183: 只 | F183: 7.80 | G183: 0.00 | J183: J05062101173 | K183: 省模板材料，建议不要用
A184: =SUBTOTAL(3,$B$7:B184) -> 7 | B184: 日海分光器单元箱 | C184: S01 A1单元箱体 | D184: 个 | F184: 72.00 | G184: 0.00 | J184: L05050200860 | K184: 省模板材料，建议不要用
A185: =SUBTOTAL(3,$B$7:B185) -> 7 | B185: 壁挂式四槽塑模光分路箱（室内型） | C185: （1:32）（塑模标配） | D185: 套 | F185: 200.83 | G185: 0.00 | J185: J05050200211 | K185: 省模板材料，建议不要用
A186: =SUBTOTAL(3,$B$7:B186) -> 7 | B186: 壁挂式二槽塑模光分路箱（室内型） | C186: （1:16）（塑模标配） | D186: 套 | F186: 122.01 | G186: 0.00 | J186: J05050200208 | K186: 省模板材料，建议不要用
A187: =SUBTOTAL(3,$B$7:B187) -> 7 | B187: 壁挂式24芯塑模光配线箱（室内型） | C187: （24芯）（塑模标配） | D187: 套 | F187: 171.93 | G187: 0.00 | J187: J05050500039 | K187: 省模板材料，建议不要用
A188: =SUBTOTAL(3,$B$7:B188) -> 7 | B188: 壁挂式四槽塑模光分路箱（室外型） | C188: （1:32）（塑模标配） | D188: 套 | F188: 189.33 | G188: 0.00 | J188: J05050200202 | K188: 省模板材料，建议不要用
A189: =SUBTOTAL(3,$B$7:B189) -> 7 | B189: 壁挂式二槽塑模光分路箱（室外型） | C189: （1:16）（塑模标配） | D189: 套 | F189: 144.46 | G189: 0.00 | J189: J05050200200 | K189: 省模板材料，建议不要用
A190: =SUBTOTAL(3,$B$7:B190) -> 7 | B190: 壁挂式四槽塑模光分路箱（抱杆型） | C190: （1:32）（塑模标配） | D190: 套 | F190: 204.90 | G190: 0.00 | J190: J05050200202 | K190: 省模板材料，建议不要用
A191: =SUBTOTAL(3,$B$7:B191) -> 7 | B191: 壁挂式二槽塑模光分路箱（抱杆型） | C191: （1:16）（塑模标配） | D191: 套 | F191: 123.40 | G191: 0.00 | J191: J05050200200 | K191: 省模板材料，建议不要用
A192: =SUBTOTAL(3,$B$7:B192) -> 7 | B192: 镀锌膨胀螺栓 | C192: 12×100 | D192: 个 | F192: 1.26 | G192: 0.00 | J192: J05070102588 | K192: 省模板材料，建议不要用
A193: =SUBTOTAL(3,$B$7:B193) -> 7 | B193: CTGPX09PODF机架 | C193: 2000mm×840mm×300mm | D193: 个 | F193: 3782.88 | G193: 0.00 | J193: J05060600034 | K193: 省模板材料，建议不要用
A194: =SUBTOTAL(3,$B$7:B194) -> 7 | B194: ODF框 | C194: 72芯 | D194: 框 | F194: 535.23 | G194: 0.00 | J194: J05060600780_JX0005 | K194: 省模板材料，建议不要用
A195: =SUBTOTAL(3,$B$7:B195) -> 7 | B195: ODF框 | C195: ODF框/24芯 | D195: 框 | F195: 401.36 | G195: 0.00 | J195: J05060600780_JX0003 | K195: 省模板材料，建议不要用
A196: =SUBTOTAL(3,$B$7:B196) -> 7 | B196: 尼龙扎带 | C196: 5*200 | D196: 根 | F196: 0.50 | G196: 0.00 | J196: J05062101080 | K196: 省模板材料，建议不要用
A197: =SUBTOTAL(3,$B$7:B197) -> 8 | B197: 镀锌铁线-3.0mm-B(厚)级 | C197: - | D197: 公斤 | E197: =Sheet1!E14 -> 3.12 | F197: 9.90 | G197: 30.89 | H197: =G197*13% -> 4.02 | I197: =G197+H197 -> 34.90
A198: =SUBTOTAL(3,$B$7:B198) -> 9 | B198: 镀锌钢绞线 | C198: 7*2.2 | D198: 公斤 | E198: =Sheet1!E13 -> 22.88 | F198: 9.50 | G198: 217.36 | H198: 28.26 | I198: 245.62
A199: =SUBTOTAL(3,$B$7:B199) -> 10 | B199: 镀锌钢绞线 | C199: 7*2.6 | D199: 公斤 | E199: =Sheet1!V13 -> 40.00 | F199: 9.50 | G199: 380.00 | H199: 49.40 | I199: 429.40
A200: =SUBTOTAL(3,$B$7:B200) -> 11 | B200: 单吊线抱箍-164×50×8mm | C200: - | D200: 个 | E200: =Sheet1!E16 -> 2.60 | F200: 19.10 | G200: 49.66 | H200: 6.46 | I200: 56.12
... 181 more rows

Sheet Sheet2 (hidden)
A1: 4d | B1: 架 | C1: 引上 | D1: 管道 | E1: 进 | F1: 6d | G1: 架 | H1: 引上 | I1: 管道 | J1: 进 | K1: 8d | L1: 架 | M1: 引上 | N1: 管道 | O1: 进 | P1: 12d | Q1: 架 | R1: 引上 | S1: 管道 | T1: 进 | U1: 24d | V1: 架 | W1: 引上 | X1: 管道 | Y1: 进 | Z1: 36d | AA1: 架 | AB1: 引上 | AC1: 管道 | AD1: 进 | AE1: 48d | AF1: 架 | AG1: 引上 | AH1: 管道 | AI1: 进 | AJ1: 72d | AK1: 架 | AL1: 引上 | AM1: 管道 | AN1: 进
B13: =SUM(B2:B12) -> 0 | C13: 0 | D13: 0 | E13: 0 | F13: 0 | G13: 0 | H13: 0 | I13: 0 | J13: 0 | K13: 0 | L13: 0 | M13: 0 | N13: 0 | O13: 0 | P13: 0 | Q13: 0 | R13: 0 | S13: 0 | T13: 0 | U13: 0 | V13: 0 | W13: 0 | X13: 0 | Y13: 0 | Z13: 0 | AA13: 0 | AB13: 0 | AC13: 0 | AD13: 0 | AE13: 0 | AF13: 0 | AG13: 0 | AH13: 0 | AI13: 0 | AJ13: 0 | AK13: 0 | AL13: 0 | AM13: 0 | AN13: 0
A14: 拆
B25: =SUM(B15:B24) -> 0 | C25: 0 | D25: 0 | E25: 0 | F25: 0 | G25: 0 | H25: 0 | I25: 0 | J25: 0 | K25: 0 | L25: 0 | M25: 0 | N25: 0 | O25: 0 | P25: 0 | Q25: 0 | R25: 0 | S25: 0 | T25: 0 | U25: 0 | V25: 0 | W25: 0 | X25: 0 | Y25: 0 | Z25: 0 | AA25: 0 | AB25: 0 | AC25: 0 | AD25: 0 | AE25: 0 | AF25: 0 | AG25: 0 | AH25: 0 | AI25: 0 | AJ25: 0 | AK25: 0 | AL25: 0 | AM25: 0 | AN25: 0

Sheet 表五甲
A1: 工程建设其他费预算表（表五）甲
A2: =ASC(综合信息表!C3) -> 建设项目名称:
A3: =ASC(综合信息表!C4) -> 单项工程名称:2023年景德镇电信乐平水利枢纽工程建设杆线迁改工程 | D3: =ASC(综合信息表!C6) -> 建设单位名称:中国电信股份有限公司景德镇分公司 | F3: =ASC(综合信息表!G13) -> 表格编号:TXL-5甲 | G3: 第全页
A4: 序号 | B4: 费用名称 | C4: 计算依据及方法 | D4: 金额（元）
D5: 除税价 | E5: 增值税 | F5: 含税价 | G5: 备注
A6: Ⅰ | B6: Ⅱ | C6: Ⅲ | D6: Ⅳ | E6: Ⅴ | F6: Ⅵ | G6: Ⅸ
A7: 1 | B7: 建设用地及综合赔补费
A8: 2 | B8: 项目建设管理费
A9: 3 | B9: 可行性研究费
A10: 4 | B10: 研究试验费
A11: 5 | B11: 勘察设计费 | C11: ((基价+内插值×(路由长度－基准长度)×80%)+(折后建安费（含税价）×4.5%×1)) | D11: =F11/1.06 -> 0.00 | E11: =D11*6% -> 0.00 | F11: 0.00 | G11: 增值税税率为6%
A12: 6 | B12: 环境影响评价费
A13: 7 | B13: 建设工程监理费 | C13: 建安费（含税价）×3.3% | D13: 0.00 | E13: 0.00 | F13: 0.00 | G13: 增值税税率为6%
A14: 8 | B14: 安全生产费 | C14: 折前建筑安装工程费（除税价）×2% | D14: =表二!D7*2% -> 2000.29 | E14: =D14*3% -> 60.01 | F14: =D14+E14 -> 2060.30 | G14: 增值税税率为3%
A15: 9 | B15: 工程质量监督费
A16: 10 | B16: 工程保险费
A17: 11 | B17: 工程招标代理费
A18: 12 | B18: 专利及专利技术使用费
A19: 13 | B19: 其它费用（资源录入费）
A20: 14 | B20: 审计咨询费
B21: 总 计 | D21: =SUM(D7:D20) -> 2000.29 | E21: 0.00 | F21: =D21+E21 -> 2000.29
A22: 15 | B22: 生产准备及开办费（运营费）
A23: =ASC(综合信息表!C8) -> 设计负责人: | C23: =ASC(综合信息表!C9) -> 审核: | D23: =ASC(综合信息表!C10) -> 编制: | G23: =ASC(综合信息表!C11) -> 编制日期: 2023 年05月

Sheet ODN导入表 (hidden)
A1: ODN驻地网项目概预算
A2: 项目 | B2: 值 | C2: 单位 | D2: 注释 | E2: 类型
A3: 设计完成日期 | B3: 2020-03-15 | E3: 日期（2013-01-01）
A4: 普工工日 | B4: ='表三 甲'!I1776 -> 85.97 | C4: 工日 | E4: 小数8.2
A5: 技工工日 | B5: ='表三 甲'!H1776 -> 200.25 | C5: 工日 | E5: 小数8.2
A6: 表二，建筑安装工程投资 | B6: =表二!D6 -> 0.00 | C6: 元人民币 | D6: （一）+（二）+（三）+（四）+（五）+（六）+（七） | E6: 小数8.2
A7: （一）人工费 | B7: =表二!D10 -> 28073.23 | C7: 元人民币 | E7: 小数8.2
A8: 技工费*114 | B8: =表二!D11 -> 22828.99 | C8: 元人民币 | E8: 必填
A9: 普工费*61 | B9: =表二!D12 -> 5244.24 | C9: 元人民币 | E9: 必填
A10: （二）材料费 | B10: =表二!D13 -> 25638.98 | C10: 元人民币 | E10: 小数8.2
A11: 主要材料费 | B11: =表二!D14 -> 25562.30 | E11: 必填
A12: 辅助材料费 | B12: =表二!D15 -> 76.69 | E12: 必填且小于国内主材费×0.30%
A13: （三）机械台班费 | B13: =B14+B15 -> 13163.53 | E13: 小数8.2
A14: 机械使用费 | B14: =表二!D16 -> 3571.09 | E14: 必填
A15: 仪表使用费 | B15: =表二!D17 -> 9592.45 | E15: 必填
A16: （四）措施费 | B16: =表二!D18 -> 8309.68 | E16: 小数8.2
A17: 文明施工费 | B17: =表二!D19 -> 421.10 | C17: 元人民币 | E17: 必填且小于人工费×1.5%
A18: 工地器材搬运费 | B18: =表二!D20 -> 954.49 | C18: 元人民币 | E18: 必填且小于人工费×3.4%
A19: 工程干扰费 | B19: =表二!D21 -> 1684.39 | C19: 元人民币 | E19: 必填且小于人工费×6.0%
A20: 工程点交、场地清理费 | B20: =表二!D22 -> 926.42 | C20: 元人民币 | E20: 必填且小于人工费×3.3%
A21: 临时设施费 | B21: =表二!D23 -> 729.90 | C21: 元人民币 | E21: 必填且小于人工费×2.6%
A22: 工程车辆使用费 | B22: =表二!D24 -> 1403.66 | C22: 元人民币 | E22: 必填且小于人工费×5.0%
A23: 夜间施工增加费 | B23: =表二!I6 -> 701.83 | C23: 元人民币 | E23: 必填且小于人工费×2.5%
A24: 冬雨季施工增加费 | B24: =表二!I7 -> 505.32 | C24: 元人民币 | E24: 必填且小于人工费×1.8%
A25: 生产工具用具使用费 | B25: =表二!I8 -> 421.10 | C25: 元人民币 | E25: 必填且小于人工费×1.5%
A26: 已完工程及设备保护费 | B26: =表二!I11 -> 561.46 | C26: 元人民币 | E26: 必填且小于人工费×2.0%
A27: （五）间接费 | B27: 2988.60 | E27: 小数8.2
A28: 社会保障费 | B28: =表二!I18 -> 8000.87 | C28: 元人民币 | E28: 必填且小于人工费×28.5%
A29: 住房公积金 | B29: =表二!I19 -> 1176.27 | C29: 元人民币 | E29: 必填且小于人工费×4.19%
A30: 危险作业意外伤害保险费 | B30: =表二!I20 -> 280.73 | C30: 元人民币 | E30: 必填且小于人工费×1.00%
A31: 企业管理费 | B31: =表二!I21 -> 7692.06 | C31: 元人民币 | E31: 必填且小于人工费×27.4%
A32: （六）利润 | B32: =表二!I22 -> 5614.65 | C32: 元人民币 | E32: 必填且小于人工费×20.00%
A33: （七）销项税额 | B33: =表二!I24 -> 0.00 | C33: 元人民币 | E33: 必填
A34: 二、表五费用 | B34: =表五甲!F21 -> 2000.29 | C34: 元人民币 | E34: 必填
A35: 勘察设计费 | B35: =表五甲!F11 -> 0.00 | C35: 元人民币 | E35: 必填
A36: 监理费 | B36: =表五甲!F13 -> 0.00 | C36: 元人民币 | E36: 必填且小于工程费*3.3%*83%
A37: 安全生产费/折扣率% | B37: =表五甲!F14 -> 2060.30 | C37: 元人民币 | E37: 必填
A38: 建设用地及综合赔补费 | B38: 0.00 | C38: 元人民币 | E38: 系统提示
A39: 资源录入费 | B39: =表五甲!F19 -> 0.00 | C39: 元人民币 | E39: 必填且小于工程费*1%
A40: 三、预备费 | B40: 0.00 | C40: 元人民币 | E40: 不取
A41: 四、投资 | B41: =表一!L12 -> 102014.79 | C41: 元人民币 | E41: 必填
A42: 五、建设信息 | E42: 必填
A43: 项目类型 | B43: 主干层建设 | D43: 主干层建设/配线层建设/混合建设 | E43: 必填
A44: 区域类型 | B44: 城区 | D44: 城区/农村 | E44: 必填
A45: 建设原因 | B45: 能力新增 | D45: 网络结构优化/能力新增
A46: 六、能力指标 | E46: 必填
A47: 24芯以下 | B47: 0.00 | C47: KM | E47: 必填
A48: 36芯以下 | B48: 1.00 | C48: KM | E48: 必填
A49: 48芯以下 | B49: 5.80 | C49: KM | E49: 必填
A50: 72芯以下 | B50: 0.50 | C50: KM | E50: 必填
A51: 96芯以下 | B51: 0.00 | C51: KM | E51: 必填
A52: 144芯以下 | B52: 0.28 | C52: KM | E52: 必填
A53: 192芯以下 | B53: 1.85 | C53: KM | E53: 必填
A54: 240芯以下 | B54: 1.90 | C54: KM | E54: 必填
A55: 288芯以下 | B55: 0.00 | C55: KM | E55: 必填
A56: 新建576芯光交以下 | B56: 7 | C56: 个 | E56: 必填
A57: 新建288芯光交以下 | B57: 0 | C57: 个 | E57: 必填
A58: 新建144芯光交以下 | B58: 0 | C58: 个 | E58: 必填
A59: 新建MODF架 | B59: 1 | C59: 个 | E59: 必填

Sheet 工作量统计 (hidden)
A2: 项目 | B2: 管道 | C2: 墙壁附挂 | D2: 新设墙壁光缆 | E2: 钉固 | F2: 架空 | G2: 架空附挂 | H2: 槽道 | I2: 直埋 | J2: 通道 | K2: 引上m | L2: 余缆 | M2: 人孔数 | N2: 新设引上 | O2: 立杆7m | P2: 立杆8m | Q2: 立杆9m | R2: 立杆10m | S2: 撑杆 | T2: 架设吊线7/2.2 | U2: 架设吊线7/2.6 | V2: 7/2.6拉线 | W2: 7/3.0拉线 | X2: 安装拉线隔电子 | Y2: 拉线警示管 | Z2: 单孔子管 | AA2: 三孔子管 | AB2: 合计 | AC2: 取整
A3: 施工测量 | AB3: =SUM(B3:J3)/1000 -> 0.00 | AC3: =ROUNDUP(AB3,-2) -> 0.00
A4: 4芯(FTTH) | AB4: =B4*1.015+C4*1.01+D4*1.01+E4*1.01+F4*1.007+G4*1.007+H4*1.02+I4*1.005+J4+K4+L4 -> 0.00 | AC4: =ROUNDUP(AB4,-2) -> 0.00
A5: 6芯（FTTH) | AB5: =B5*1.015+C5*1.01+D5*1.01+E5*1.01+F5*1.007+G5*1.007+H5*1.02+I5*1.005+J5+K5+L5 -> 0.00 | AC5: =ROUNDUP(AB5,-2) -> 0.00
A6: 8芯（FTTH) | AB6: 0.00 | AC6: 0.00
A7: 12芯（FTTH) | AB7: 0.00 | AC7: 0.00
A8: 16芯（FTTH) | AB8: 0.00 | AC8: 0.00
A9: 24芯（FTTH) | AB9: 0.00 | AC9: 0.00
A10: 4芯(普通） | AB10: =B10*1.015+C10*1.01+D10*1.01+E10*1.01+F10*1.007+G10*1.007+H10*1.02+I10*1.005+J10+K10+L10 -> 0.00 | AC10: 0.00
A11: 6芯(普通） | AB11: 0.00 | AC11: 0.00
A12: 8芯(普通） | AB12: 0.00 | AC12: 0.00
A13: 12芯(普通） | AB13: 0.00 | AC13: 0.00
A14: 16芯(普通） | AB14: 0.00 | AC14: 0.00
A15: 24芯(普通） | AB15: 0.00 | AC15: 0.00
A16: 36芯(普通） | AB16: 0.00 | AC16: 0.00
A17: 48芯(普通） | AB17: 0.00 | AC17: 0.00
A18: 72芯(普通） | AB18: 0.00 | AC18: 0.00
A19: 72芯(带状) | AB19: 0.00 | AC19: 0.00
A20: 96芯(带状) | AB20: 0.00 | AC20: 0.00
A21: 120芯(带状) | AB21: 0.00 | AC21: 0.00
A22: 144芯(带状) | AB22: 0.00 | AC22: 0.00
A23: 288芯(带状) | AB23: 0.00 | AC23: 0.00
A24: 设计条长 | B24: =SUM(B4:B23) -> 0.00 | C24: =SUM(C4:C23) -> 0.00 | D24: 0.00 | E24: 0.00 | F24: 0.00 | G24: 0.00 | H24: 0.00 | I24: 0.00 | J24: 0.00 | K24: 0.00 | L24: 0.00 | AB24: =SUM(B24:J24)/1000 -> 0.00 | AC24: 0.00
A25: 铁线1.5 | B25: =B3*3.05/1000 -> 0.00 | C25: =C3*0.1/100 -> 0.00 | D25: =D3*0.1/100 -> 0.00 | F25: =F3*0.61/1000 -> 0.00 | G25: =G3*0.61/1000 -> 0.00 | I25: =I3*1.02/1000 -> 0.00 | J25: =J3*0.3/100 -> 0.00 | T25: =T3*0.1/1000 -> 0.00 | U25: =U3*0.1/1000 -> 0.00 | V25: =V3*0.04 -> 0.00 | W25: =W3*0.04 -> 0.00 | Z25: =Z3*3/1000 -> 0.00 | AA25: =AA3*3.05/1000 -> 0.00 | AB25: =SUM(B25:W25) -> 0.00 | AC25: =ROUNDUP(AB25,-0.1) -> 0.00
A26: 铁线3.0 | I26: =I3*0.51/1000 -> 0.00 | T26: =T3*1/1000 -> 0.00 | U26: =U3*2/1000 -> 0.00 | V26: =V3*0.55 -> 0.00 | W26: =W3*0.45 -> 0.00 | X26: 0.60 | AB26: 0.00 | AC26: =ROUNDUP(AB26,-0.1) -> 0.00
A27: 铁线4.0 | B27: =B3*20.3/1000 -> 0.00 | I27: =I3*0.51/1000 -> 0.00 | T27: =T3*2/1000 -> 0.00 | U27: =U3*2/1000 -> 0.00 | V27: =V3*0.22 -> 0.00 | W27: =W3*0.22 -> 0.00 | Z27: =Z3*20/1000 -> 0.00 | AA27: =AA3*20.3/1000 -> 0.00 | AB27: 0.00 | AC27: 0.00
A28: 7/2.2纲绞线 | D28: =D3*23/100 -> 0.00 | T28: =T3*222/1000 -> 0.00 | AB28: 0.00 | AC28: 0.00
A29: 7/2.6纲绞线 | U29: =U3*323/1000 -> 0.00 | V29: =V3*3.8 -> 0.00 | AB29: 0.00 | AC29: 0.00
A30: 7/3.0纲绞线 | W30: =W3*5 -> 0.00 | AB30: 0.00 | AC30: 0.00
A31: 中间支撑物 | D31: =D3*8/100 -> 0.00 | AB31: 0.00 | AC31: 0.00
A32: 终端转角墙担 | D32: =D3*4/100 -> 0.00 | AB32: 0.00 | AC32: 0.00
A33: 膨胀螺丝M12 | D33: =D3*24/100 -> 0.00 | AB33: 0.00 | AC33: 0.00
A34: u型钢卡￠8 | D34: =D3*14/100 -> 0.00 | AB34: 0.00 | AC34: 0.00
A35: 标志牌 | B35: =B24/100 -> 0.00 | C35: =C24*0.05 -> 0.00 | D35: =D24*0.05 -> 0.00 | F35: =(F24*2*1.03)/50 -> 0.00 | G35: =(G24*2*1.03)/50 -> 0.00 | H35: =H24/10 -> 0.00 | J35: =J24/5 -> 0.00 | L35: =L24/10 -> 0.00 | AB35: 0.00 | AC35: 0.00
A36: 扎带 | B36: =B35*2+B37*6 -> 0.00 | C36: =C35*2+C37*6 -> 0.00 | D36: =D35*2+D37*6 -> 0.00 | F36: =F24*6/50 -> 0.00 | G36: =G24*6/50 -> 0.00 | H36: =H24*2/10 -> 0.00 | J36: =J35*2.2 -> 0.00 | L36: =L35*5 -> 0.00 | AB36: 0.00 | AC36: 0.00
A37: 塑料螺旋软管 | B37: =B24/1000*26.7 -> 0.00 | C37: =C24/30 -> 0.00 | D37: =D24/30 -> 0.00 | F37: =F24/1000*25 -> 0.00 | G37: =G24/1000*25 -> 0.00 | AB37: 0.00 | AC37: 0.00
A38: 电缆挂钩 | C38: =C3*2.06*20% -> 0.00 | D38: =D3*2 -> 0.00 | F38: =F3*2.06 -> 0.00 | G38: =G24*2.06*20% -> 0.00 | AB38: 0.00 | AC38: 0.00
A39: 电缆卡子 | E39: =E24*3 -> 0.00 | AB39: 0.00 | AC39: 0.00
A40: 吊线担 | AB40: 0.00 | AC40: 0.00
A41: 吊线抱箍 | T41: =T3*23/1000 -> 0.00 | U41: =U3*23/1000 -> 0.00 | AB41: 0.00 | AC41: 0.00
A42: 地锚铁柄 | V42: =V3*1.003 -> 0.00 | W42: =W3*1 -> 0.00 | AB42: 0.00 | AC42: 0.00
A43: 水泥拉线盘 | V43: =V3*1 -> 0.00 | W43: =W3*1 -> 0.00 | AB43: 0.00 | AC43: 0.00
A44: 三眼双槽夹板 | V44: =V3*2 -> 0.00 | W44: =W3*4 -> 0.00 | AB44: 0.00 | AC44: 0.00
A45: 拉线衬环 | D45: =D3*4.04/100 -> 0.00 | V45: =V3*2 -> 0.00 | W45: =W3*2 -> 0.00 | AB45: 0.00 | AC45: 0.00
A46: 拉线抱箍 | V46: =V3*1 -> 0.00 | W46: =W3*1 -> 0.00 | AB46: 0.00 | AC46: 0.00
A47: 三眼单槽夹板 | T47: =T3*23/1000 -> 0.00 | U47: =U3*23/1000 -> 0.00 | AB47: 0.00 | AC47: 0.00
A48: 拉线隔电子 | X48: =X3*1 -> 0.00 | AB48: 0.00 | AC48: 0.00
A49: 拉线警示管 | Y49: =Y3*1 -> 0.00 | AB49: 0.00 | AC49: 0.00
A50: 水泥电杆7m | O50: =O3*1 -> 0.00 | S50: =S3*1 -> 0.00 | AB50: 0.00 | AC50: 0.00
A51: 水泥电杆8m | P51: =P3*1 -> 0.00 | AB51: 0.00 | AC51: 0.00
A52: 水泥电杆9m | Q52: =Q3*1 -> 0.00 | AB52: 0.00 | AC52: 0.00
A53: 水泥电杆10m | R53: =R3*1 -> 0.00 | AB53: 0.00 | AC53: 0.00
A54: PE子管 | Z54: =Z3*1.1 -> 0.00 | AA54: =AA3*3.3 -> 0.00 | AB54: 0.00 | AC54: 0.00
A55: 引上钢管(50mm) | N55: =N3*2 -> 0.00 | AB55: 0.00 | AC55: 0.00
A56: 钢管抱箍(50mm) | N56: =N3*2 -> 0.00 | AB56: 0.00 | AC56: 0.00

Sheet 正式文本中要的数据 (hidden)
B1: 预算投资(元)/各项费用所占比例 | G1: 预算投资(元)/各项费用所占比例
B2: 序号 | C2: 费用名称 | D2: 金额（元） | E2: 占比 | G2: 费用名称 | H2: 需要安装设备 | I2: 安装工程 | J2: 其它费用 | K2: 预备费 | L2: 合计
B3: 1 | C3: 需要安装的设备费 | D3: =表一!E7 -> 0.00 | E3: =D3/D11 -> 0.00% | G3: 金 额(元） | H3: =表一!E7 -> 0.00 | I3: =表一!G7 -> 100014.50 | J3: =表一!H9 -> 2000.29 | K3: =表一!I10 -> 0.00 | L3: =表一!J20 -> 0.00
B4: 2 | C4: 不需要安装的设备、工器具费 | D4: =表一!F7 -> 0.00 | E4: =D4/D11 -> 0.00% | G4: 所占百分比% | H4: =H3/L3 ->  | I4: =I3/L3 ->  | J4: =J3/L3 ->  | K4: =K3/L3 -> 
B5: 3 | C5: 建筑安装工程费 | D5: =表一!L7 -> 100014.50 | E5: =D5/D11 -> 98.04%
B6: 4 | C6: 其他费用 | D6: =表一!L8 -> 2000.29 | E6: =D6/D11 -> 1.96% | G6: 单位造价： | H6: 皮长公里： | I6: =SUM(表四甲!E7:E60) -> 2.6
B7: 5 | C7: 其中：勘察、设计费 | D7: =表五甲!F11 -> 0.00 | E7: =D7/D11 -> 0.00% | H7: 纤芯公里： | I7: =表四甲!K61 -> 省模板材料，建议不要用
B8: 6 | C8: 监理费 | D8: =表五甲!F13 -> 0.00 | E8: =D8/D11 -> 0.00% | H8: 皮长公里造价： | I8: =D11/I6 -> 39236.45801
B9: 7 | C9: 安全生产费 | D9: =表五甲!F14 -> 2060.30 | E9: =D9/D11 -> 2.02% | H9: 纤芯公里造价： | I9: =D11/I7 -> 
B10: 8 | C10: 预备费 | D10: =表一!I10 -> 0.00 | E10: =D10/D11 -> 0.00%
B11: 9 | C11: 总投资 | D11: =表一!L12 -> 102014.79 | E11: =SUM(E3:E6)+E10 -> 100.00% | F11: 户数: | G11: 1 | H11: 填写在红色区域内
B12: 10 | C12: 折合：户均投资（总投资/户数） | D12: =D11/G11 -> 102014.79

Sheet 预算定额表(该定额需该实) (hidden)
A1: 定额编号 | B1: 项目名称 | C1: 单位 | D1: 技工 | E1: 普工 | F1: 定额编号 | G1: 项目名称 | H1: 单位 | I1: 机械名称 | J1: 数量（台班） | K1: 单价 | L1: 定额编号 | M1: 项目名称 | N1: 单位 | O1: 仪表 | P1: 数量（台班） | Q1: 单价
A2: TXL1-001 | B2: 光（电）缆工程施工测量-直埋 | C2: 百米 | D2: 0.56 | E2: 0.14 | F2: TXL1-004 | G2: 光（电）缆工程施工测量-海上 | H2: 百米 | I2: 海缆施工驳船 500t 以下带拖轮 | J2: 0.02 | K2: 0 | L2: TXL1-001 | M2: 光（电）缆工程施工测量-直埋 | N2: 百米 | O2: 地下管线探测仪 | P2: 0.05 | Q2: 157
A3: TXL1-002 | B3: 光（电）缆工程施工测量-架空 | C3: 百米 | D3: 0.46 | E3: 0.12 | F3: TXL1-004 | G3: 光（电）缆工程施工测量-海上 | H3: 百米 | I3: 海缆施工自航船 5000t 以下 | J3: 0.02 | K3: 0 | L3: TXL1-001 | M3: 光（电）缆工程施工测量-直埋 | N3: 百米 | O3: 激光测距仪 | P3: 0.04 | Q3: 119
A4: TXL1-002A | B4: 附挂光（电）缆工程施工测量-架空（工日×0.3） | C4: 百米 | D4: =0.46*0.3 -> 0.14 | E4: =0.12*0.3 -> 0.04 | F4: TXL1-008 | G4: 人工开挖路面-混凝土100m以内 | H4: 百平方米 | I4: 燃油式空气压缩机 (含风镐) 6m³/min | J4: 0.85 | K4: 372 | L4: TXL1-002 | M4: 光（电）缆工程施工测量-架空 | N4: 百米 | O4: 激光测距仪 | P4: 0.05 | Q4: 119
A5: TXL1-003 | B5: 光（电）缆工程施工测量-管道 | C5: 百米 | D5: 0.35 | E5: 0.09 | F5: TXL1-008 | G5: 人工开挖路面-混凝土100m以内 | H5: 百平方米 | I5: 路面切割机 | J5: 0.5 | K5: 210 | L5: TXL1-003 | M5: 光（电）缆工程施工测量-管道 | N5: 百米 | O5: 激光测距仪 | P5: 0.04 | Q5: 119
A6: TXL1-004 | B6: 光（电）缆工程施工测量-海上 | C6: 百米 | D6: 4.25 | E6: 0.00 | F6: TXL1-009 | G6: 人工开挖路面-混凝土每增加10m | H6: 百平方米 | I6: 燃油式空气压缩机 (含风镐) 6m³/min | J6: 0.1 | K6: 372 | L6: TXL1-005 | M6: GPS定位 | N6: 点 | O6: GPS 定位仪 | P6: 0.01 | Q6: 118
A7: TXL1-005 | B7: GPS定位 | C7: 点 | D7: 0.05 | E7: 0.00 | F7: TXL1-010 | G7: 人工开挖路面-沥青柏油100m以内 | H7: 百平方米 | I7: 燃油式空气压缩机 (含风镐) 6m³/min | J7: 0.35 | K7: 372 | L7: TXL1-006 | M7: 单盘检验光缆-单窗口测试 | N7: 芯盘 | O7: 偏振模色散测试仪 | P7: 0.05 | Q7: 455
A8: TXL1-006 | B8: 单盘检验光缆-单窗口测试 | C8: 芯盘 | D8: 0.02 | E8: 0.00 | F8: TXL1-010 | G8: 人工开挖路面-沥青柏油100m以内 | H8: 百平方米 | I8: 路面切割机 | J8: 0.5 | K8: 210 | L8: TXL1-006 | M8: 单盘检验光缆-单窗口测试 | N8: 芯盘 | O8: 光时域反射仪 | P8: 0.05 | Q8: 153
A9: TXL1-006A | B9: 单盘检验光缆-双窗口测试 | C9: 芯盘 | D9: 0.02 | E9: 0.00 | F9: TXL1-011 | G9: 人工开挖路面-沥青柏油每增加10m | H9: 百平方米 | I9: 燃油式空气压缩机 (含风镐) 6m³/min | J9: 0.04 | K9: 372 | L9: TXL2-128 | M9: 安装防雷设施-敷设排流线(双条) | N9: km | O9: 对地绝缘探测仪 | P9: 0.35 | Q9: 153
A10: TXL1-007 | B10: 单盘检验-电缆 | C10: 百对盘 | D10: 0.50 | E10: 0.00 | F10: TXL1-012 | G10: 人工开挖路面-砂石100m以内 | H10: 百平方米 | I10: 燃油式空气压缩机 (含风镐) 6m³/min | J10: 0.2 | K10: 372 | L10: TXL4-004 | M10: 人工敷设塑料子管-1孔子管 | N10: km | O10: 有毒有害气体检测仪 | P10: 0.25 | Q10: 117
A11: TXL1-008 | B11: 人工开挖路面-混凝土100m以内 | C11: 百平方米 | D11: 3.33 | E11: 24.25 | F11: TXL1-013 | G11: 人工开挖路面-砂石每增加10m | H11: 百平方米 | I11: 燃油式空气压缩机 (含风镐) 6m³/min | J11: 0.02 | K11: 372 | L11: TXL4-004 | M11: 人工敷设塑料子管-1孔子管 | N11: km | O11: 可燃气体检测仪 | P11: 0.25 | Q11: 117
A12: TXL1-009 | B12: 人工开挖路面-混凝土每增加10m | C12: 百平方米 | D12: 0.33 | E12: 1.75 | F12: TXL1-017 | G12: 机械开挖路面-混凝土100m以内 | H12: 百平方米 | I12: 破碎锤(含机身) | J12: 0.4 | K12: 768 | L12: TXL4-005 | M12: 人工敷设塑料子管-2孔子管 | N12: km | O12: 有毒有害气体检测仪 | P12: 0.3 | Q12: 117
A13: TXL1-010 | B13: 人工开挖路面-沥青柏油100m以内 | C13: 百平方米 | D13: 1.88 | E13: 13.00 | F13: TXL1-017 | G13: 机械开挖路面-混凝土100m以内 | H13: 百平方米 | I13: 挖掘机 0.6m3 | J13: 0.3 | K13: 743 | L13: TXL4-005 | M13: 人工敷设塑料子管-2孔子管 | N13: km | O13: 可燃气体检测仪 | P13: 0.3 | Q13: 117
A14: TXL1-011 | B14: 人工开挖路面-沥青柏油每增加10m | C14: 百平方米 | D14: 0.19 | E14: 1.25 | F14: TXL1-017 | G14: 机械开挖路面-混凝土100m以内 | H14: 百平方米 | I14: 路面切割机 | J14: 0.5 | K14: 210 | L14: TXL4-006 | M14: 人工敷设塑料子管-3孔子管 | N14: km | O14: 有毒有害气体检测仪 | P14: 0.42 | Q14: 117
A15: TXL1-012 | B15: 人工开挖路面-砂石100m以内 | C15: 百平方米 | D15: 1.04 | E15: 6.29 | F15: TXL1-018 | G15: 机械开挖路面-混凝土每增加10m | H15: 百平方米 | I15: 挖掘机 0.6m3 | J15: 0.03 | K15: 743 | L15: TXL4-006 | M15: 人工敷设塑料子管-3孔子管 | N15: km | O15: 可燃气体检测仪 | P15: 0.42 | Q15: 117
A16: TXL1-013 | B16: 人工开挖路面-砂石每增加10m | C16: 百平方米 | D16: 0.09 | E16: 0.59 | F16: TXL1-018 | G16: 机械开挖路面-混凝土每增加10m | H16: 百平方米 | I16: 破碎锤(含机身) | J16: 0.04 | K16: 768 | L16: TXL4-007 | M16: 人工敷设塑料子管-4孔子管 | N16: km | O16: 有毒有害气体检测仪 | P16: 0.5 | Q16: 117
A17: TXL1-014 | B17: 人工开挖路面-混凝土砌块 | C17: 百平方米 | D17: 0.38 | E17: 3.75 | F17: TXL1-019 | G17: 机械开挖路面-沥青柏油100m以内 | H17: 百平方米 | I17: 挖掘机 0.6m3 | J17: 0.24 | K17: 743 | L17: TXL4-007 | M17: 人工敷设塑料子管-4孔子管 | N17: km | O17: 可燃气体检测仪 | P17: 0.5 | Q17: 117
A18: TXL1-015 | B18: 人工开挖路面-水泥花砖 | C18: 百平方米 | D18: 0.31 | E18: 2.88 | F18: TXL1-019 | G18: 机械开挖路面-沥青柏油100m以内 | H18: 百平方米 | I18: 路面切割机 | J18: 0.5 | K18: 210 | L18: TXL4-008 | M18: 人工敷设塑料子管-5孔子管 | N18: km | O18: 有毒有害气体检测仪 | P18: 0.6 | Q18: 117
A19: TXL1-016 | B19: 人工开挖路面-条石 | C19: 百平方米 | D19: 5.00 | E19: 25.88 | F19: TXL1-019 | G19: 机械开挖路面-沥青柏油100m以内 | H19: 百平方米 | I19: 破碎锤(含机身) | J19: 0.11 | K19: 768 | L19: TXL4-008 | M19: 人工敷设塑料子管-5孔子管 | N19: km | O19: 可燃气体检测仪 | P19: 0.6 | Q19: 117
A20: TXL1-017 | B20: 机械开挖路面-混凝土100m以内 | C20: 百平方米 | D20: 0.00 | E20: 4.25 | F20: TXL1-020 | G20: 机械开挖路面-沥青柏油每增加10m | H20: 百平方米 | I20: 破碎锤(含机身) | J20: 0.01 | K20: 768 | L20: TXL4-009 | M20: 空闲管孔中人工敷设一带纺织子管 | N20: km | O20: 有毒有害气体检测仪 | P20: 0.2 | Q20: 117
A21: TXL1-018 | B21: 机械开挖路面-混凝土每增加10m | C21: 百平方米 | D21: 0.00 | E21: 0.38 | F21: TXL1-020 | G21: 机械开挖路面-沥青柏油每增加10m | H21: 百平方米 | I21: 挖掘机 0.6m3 | J21: 0.02 | K21: 743 | L21: TXL4-009 | M21: 空闲管孔中人工敷设一带纺织子管 | N21: km | O21: 可燃气体检测仪 | P21: 0.2 | Q21: 117
A22: TXL1-019 | B22: 机械开挖路面-沥青柏油100m以内 | C22: 百平方米 | D22: 0.00 | E22: 3.25 | F22: TXL1-021 | G22: 机械开挖路面-砂石100m以内 | H22: 百平方米 | I22: 挖掘机 0.6m3 | J22: 0.21 | K22: 743 | L22: TXL4-010 | M22: 非空闲管孔中人工敷设一带纺织子管 | N22: km | O22: 有毒有害气体检测仪 | P22: 0.4 | Q22: 117
A23: TXL1-020 | B23: 机械开挖路面-沥青柏油每增加10m | C23: 百平方米 | D23: 0.00 | E23: 0.08 | F23: TXL1-022 | G23: 机械开挖路面-砂石每增加10m | H23: 百平方米 | I23: 挖掘机 0.6m3 | J23: 0.02 | K23: 743 | L23: TXL4-010 | M23: 非空闲管孔中人工敷设一带纺织子管 | N23: km | O23: 可燃气体检测仪 | P23: 0.4 | Q23: 117
A24: TXL1-021 | B24: 机械开挖路面-砂石100m以内 | C24: 百平方米 | D24: 0.00 | E24: 4.25 | F24: TXL2-005 | G24: 挖、松填光(电)缆沟及接头坑-软石 | H24: 百立方米 | I24: 燃油式空气压缩机 (含风镐) 6m³/min | J24: 3 | K24: 372 | L24: TXL4-011 | M24: 敷设管道光缆-12芯以下 | N24: 千米条 | O24: 可燃气体检测仪 | P24: 0.25 | Q24: 117
A25: TXL1-022 | B25: 机械开挖路面-砂石每增加10m | C25: 百平方米 | D25: 0.00 | E25: 0.13 | F25: TXL2-006 | G25: 挖、松填光(电)缆沟及接头坑-坚石（人工） | H25: 百立方米 | I25: 燃油式空气压缩机 (含风镐) 6m³/min | J25: 10 | K25: 372 | L25: TXL4-011 | M25: 敷设管道光缆-12芯以下 | N25: 千米条 | O25: 有毒有害气体检测仪 | P25: 0.25 | Q25: 117
A26: TXL2-001 | B26: 挖、松填光(电)缆沟及接头坑-普通土 | C26: 百立方米 | D26: 0.00 | E26: 39.38 | F26: TXL2-007 | G26: 挖、夯填光(电)缆沟及接头坑-普通土 | H26: 百立方米 | I26: 夯实机 | J26: 0.75 | K26: 117 | L26: TXL4-012 | M26: 敷设管道光缆-24芯以下 | N26: 千米条 | O26: 有毒有害气体检测仪 | P26: 0.3 | Q26: 117
A27: TXL2-002 | B27: 挖、松填光(电)缆沟及接头坑-硬土 | C27: 百立方米 | D27: 0.00 | E27: 51.50 | F27: TXL2-008 | G27: 挖、夯填光(电)缆沟及接头坑-硬土 | H27: 百立方米 | I27: 夯实机 | J27: 0.75 | K27: 117 | L27: TXL4-012 | M27: 敷设管道光缆-24芯以下 | N27: 千米条 | O27: 可燃气体检测仪 | P27: 0.3 | Q27: 117
A28: TXL2-003 | B28: 挖、松填光(电)缆沟及接头坑-砂砾土 | C28: 百立方米 | D28: 0.00 | E28: 62.13 | F28: TXL2-009 | G28: 挖、夯填光(电)缆沟及接头坑-砂砾土 | H28: 百立方米 | I28: 夯实机 | J28: 0.75 | K28: 117 | L28: TXL4-013 | M28: 敷设管道光缆-48芯以下 | N28: 千米条 | O28: 有毒有害气体检测仪 | P28: 0.42 | Q28: 117
A29: TXL2-004 | B29: 挖、松填光(电)缆沟及接头坑-冻土 | C29: 百立方米 | D29: 0.00 | E29: 139.50 | F29: TXL2-011 | G29: 挖、夯填光(电)缆沟及接头坑-软石 | H29: 百立方米 | I29: 燃油式空气压缩机 (含风镐) 6m³/min | J29: 3 | K29: 372 | L29: TXL4-013 | M29: 敷设管道光缆-48芯以下 | N29: 千米条 | O29: 可燃气体检测仪 | P29: 0.42 | Q29: 117
A30: TXL2-005 | B30: 挖、松填光(电)缆沟及接头坑-软石 | C30: 百立方米 | D30: 5.55 | E30: 262.25 | F30: TXL2-012 | G30: 挖、夯填光(电)缆沟及接头坑-坚石（人工） | H30: 百立方米 | I30: 燃油式空气压缩机 (含风镐) 6m³/min | J30: 10 | K30: 372 | L30: TXL4-014 | M30: 敷设管道光缆-96芯以下 | N30: 千米条 | O30: 有毒有害气体检测仪 | P30: 0.5 | Q30: 117
A31: TXL2-006 | B31: 挖、松填光(电)缆沟及接头坑-坚石（人工） | C31: 百立方米 | D31: 36.20 | E31: 455.50 | F31: TXL2-041 | G31: 埋设定型手孔 | H31: 个 | I31: 载重汽车 5t | J31: 0.1 | K31: 372 | L31: TXL4-014 | M31: 敷设管道光缆-96芯以下 | N31: 千米条 | O31: 可燃气体检测仪 | P31: 0.5 | Q31: 117
A32: TXL2-007 | B32: 挖、夯填光(电)缆沟及接头坑-普通土 | C32: 百立方米 | D32: 0.00 | E32: 40.88 | F32: TXL2-041 | G32: 埋设定型手孔 | H32: 个 | I32: 汽车式起重机 5t | J32: 0.1 | K32: 516 | L32: TXL4-015 | M32: 敷设管道光缆-144芯以下 | N32: 千米条 | O32: 有毒有害气体检测仪 | P32: 0.6 | Q32: 117
A33: TXL2-008 | B33: 挖、夯填光(电)缆沟及接头坑-硬土 | C33: 百立方米 | D33: 0.00 | E33: 55.00 | F33: TXL2-090 | G33: 小孔径塑料管试通 | H33: 孔千米 | I33: 气流敷设设备(敷设光缆) | J33: 0.08 | K33: 1007 | L33: TXL4-015 | M33: 敷设管道光缆-144芯以下 | N33: 千米条 | O33: 可燃气体检测仪 | P33: 0.6 | Q33: 117
A34: TXL2-009 | B34: 挖、夯填光(电)缆沟及接头坑-砂砾土 | C34: 百立方米 | D34: 0.00 | E34: 71.13 | F34: TXL2-090 | G34: 小孔径塑料管试通 | H34: 孔千米 | I34: 载重汽车 5t | J34: 0.08 | K34: 372 | L34: TXL4-016 | M34: 敷设管道光缆-288芯以下 | N34: 千米条 | O34: 有毒有害气体检测仪 | P34: 0.72 | Q34: 117
A35: TXL2-010 | B35: 挖、夯填光(电)缆沟及接头坑-冻土 | C35: 百立方米 | D35: 0.00 | E35: 145.50 | F35: TXL2-091 | G35: 小口径塑料管道充气试验 | H35: 孔千米 | I35: 载重汽车 5t | J35: 0.12 | K35: 372 | L35: TXL4-016 | M35: 敷设管道光缆-288芯以下 | N35: 千米条 | O35: 可燃气体检测仪 | P35: 0.72 | Q35: 117
A36: TXL2-011 | B36: 挖、夯填光(电)缆沟及接头坑-软石 | C36: 百立方米 | D36: 6.55 | E36: 270.25 | F36: TXL2-091 | G36: 小口径塑料管道充气试验 | H36: 孔千米 | I36: 燃油式空气压缩机 | J36: 0.12 | K36: 368 | L36: TXL4-017 | M36: 敷设管道光缆-576芯以下 | N36: 千米条 | O36: 有毒有害气体检测仪 | P36: 0.87 | Q36: 117
A37: TXL2-012 | B37: 挖、夯填光(电)缆沟及接头坑-坚石（人工） | C37: 百立方米 | D37: 38.20 | E37: 480.50 | F37: TXL2-092 | G37: 地下定向钻孔敷管-工作孔径φ120mm以内-每处30m以内 | H37: 处 | I37: 汽车式起重机 8t | J37: 1 | K37: 636 | L37: TXL4-017 | M37: 敷设管道光缆-576芯以下 | N37: 千米条 | O37: 可燃气体检测仪 | P37: 0.87 | Q37: 117
A38: TXL2-013 | B38: 实质沟铺盖细土 | C38: 沟千米 | D38: 0.00 | E38: 6.00 | F38: TXL2-092 | G38: 地下定向钻孔敷管-工作孔径φ120mm以内-每处30m以内 | H38: 处 | I38: 载重汽车 8t | J38: 1 | K38: 456 | L38: TXL4-018 | M38: 敷设管道光缆-576芯以上 | N38: 千米条 | O38: 有毒有害气体检测仪 | P38: 1 | Q38: 117
A39: TXL2-014 | B39: 手推车倒运土方 | C39: 百立方米 | D39: 0.00 | E39: 12.00 | F39: TXL2-092 | G39: 地下定向钻孔敷管-工作孔径φ120mm以内-每处30m以内 | H39: 处 | I39: 微控钻孔敷管设备（25t以下） | J39: 1.07 | K39: 0 | L39: TXL4-018 | M39: 敷设管道光缆-576芯以上 | N39: 千米条 | O39: 可燃气体检测仪 | P39: 1 | Q39: 117
A40: TXL2-015 | B40: 平原地区敷设埋式光缆-36芯以下 | C40: 千米条 | D40: 5.88 | E40: 26.88 | F40: TXL2-093 | G40: 地下定向钻孔敷管-工作孔径φ120mm以内-每增加10m | H40: 十米 | I40: 载重汽车 8t | J40: 0.2 | K40: 456 | L40: TXL4-019 | M40: 人工敷设管道电缆-200对以下 | N40: 千米条 | O40: 可燃气体检测仪 | P40: 0.3 | Q40: 117
A41: TXL2-016 | B41: 平原地区敷设埋式光缆-72芯以下 | C41: 千米条 | D41: 8.20 | E41: 29.26 | F41: TXL2-093 | G41: 地下定向钻孔敷管-工作孔径φ120mm以内-每增加10m | H41: 十米 | I41: 微控钻孔敷管设备（25t以下） | J41: 0.21 | K41: 0 | L41: TXL4-019 | M41: 人工敷设管道电缆-200对以下 | N41: 千米条 | O41: 有毒有害气体检测仪 | P41: 0.3 | Q41: 117
A42: TXL2-017 | B42: 平原地区敷设埋式光缆-96芯以下 | C42: 千米条 | D42: 10.42 | E42: 30.94 | F42: TXL2-093 | G42: 地下定向钻孔敷管-工作孔径φ120mm以内-每增加10m | H42: 十米 | I42: 汽车式起重机 8t | J42: 0.2 | K42: 636 | L42: TXL4-020 | M42: 人工敷设管道电缆-400对以下 | N42: 千米条 | O42: 可燃气体检测仪 | P42: 0.42 | Q42: 117
A43: TXL2-018 | B43: 平原地区敷设埋式光缆-144芯以下 | C43: 千米条 | D43: 12.63 | E43: 32.62 | F43: TXL2-094 | G43: 地下定向钻孔敷管-工作孔径φ240mm以内-每处30m以内 | H43: 处 | I43: 载重汽车 8t | J43: 1.4 | K43: 456 | L43: TXL4-020 | M43: 人工敷设管道电缆-400对以下 | N43: 千米条 | O43: 有毒有害气体检测仪 | P43: 0.42 | Q43: 117
A44: TXL2-019 | B44: 平原地区敷设埋式光缆-288芯以下 | C44: 千米条 | D44: 14.85 | E44: 34.30 | F44: TXL2-094 | G44: 地下定向钻孔敷管-工作孔径φ240mm以内-每处30m以内 | H44: 处 | I44: 微控钻孔敷管设备（25t以下） | J44: 1.5 | K44: 0 | L44: TXL4-021 | M44: 人工敷设管道电缆-800对以下 | N44: 千米条 | O44: 有毒有害气体检测仪 | P44: 0.5 | Q44: 117
A45: TXL2-020 | B45: 平原地区敷设埋式光缆-288芯以上 | C45: 千米条 | D45: 18.18 | E45: 36.82 | F45: TXL2-094 | G45: 地下定向钻孔敷管-工作孔径φ240mm以内-每处30m以内 | H45: 处 | I45: 汽车式起重机 8t | J45: 1.4 | K45: 636 | L45: TXL4-021 | M45: 人工敷设管道电缆-800对以下 | N45: 千米条 | O45: 可燃气体检测仪 | P45: 0.5 | Q45: 117
A46: TXL2-021 | B46: 丘陵、水田、城区敷设埋式光缆-36芯以下 | C46: 千米条 | D46: 7.44 | E46: 30.58 | F46: TXL2-095 | G46: 地下定向钻孔敷管-工作孔径φ240mm以内-每增加10m | H46: 十米 | I46: 载重汽车 8t | J46: 0.28 | K46: 456 | L46: TXL4-022 | M46: 人工敷设管道电缆-1200对以下 | N46: 千米条 | O46: 有毒有害气体检测仪 | P46: 0.6 | Q46: 117
A47: TXL2-022 | B47: 丘陵、水田、城区敷设埋式光缆-72芯以下 | C47: 千米条 | D47: 10.05 | E47: 33.69 | F47: TXL2-095 | G47: 地下定向钻孔敷管-工作孔径φ240mm以内-每增加10m | H47: 十米 | I47: 微控钻孔敷管设备（25t以下） | J47: 0.3 | K47: 0 | L47: TXL4-022 | M47: 人工敷设管道电缆-1200对以下 | N47: 千米条 | O47: 可燃气体检测仪 | P47: 0.6 | Q47: 117
A48: TXL2-023 | B48: 丘陵、水田、城区敷设埋式光缆-96芯以下 | C48: 千米条 | D48: 12.76 | E48: 36.52 | F48: TXL2-095 | G48: 地下定向钻孔敷管-工作孔径φ240mm以内-每增加10m | H48: 十米 | I48: 汽车式起重机 8t | J48: 0.28 | K48: 636 | L48: TXL4-023 | M48: 人工敷设管道电缆-1800对以下 | N48: 千米条 | O48: 可燃气体检测仪 | P48: 0.72 | Q48: 117
A49: TXL2-024 | B49: 丘陵、水田、城区敷设埋式光缆-144芯以下 | C49: 千米条 | D49: 15.50 | E49: 38.44 | F49: TXL2-096 | G49: 地下定向钻孔敷管-工作孔径φ360mm以内-每处30m以内 | H49: 处 | I49: 载重汽车 8t | J49: 1.96 | K49: 456 | L49: TXL4-023 | M49: 人工敷设管道电缆-1800对以下 | N49: 千米条 | O49: 有毒有害气体检测仪 | P49: 0.72 | Q49: 117
A50: TXL2-025 | B50: 丘陵、水田、城区敷设埋式光缆-288芯以下 | C50: 千米条 | D50: 17.88 | E50: 41.25 | F50: TXL2-096 | G50: 地下定向钻孔敷管-工作孔径φ360mm以内-每处30m以内 | H50: 处 | I50: 汽车式起重机 8t | J50: 1.96 | K50: 636 | L50: TXL4-024 | M50: 人工敷设管道电缆-2400对以下 | N50: 千米条 | O50: 有毒有害气体检测仪 | P50: 0.87 | Q50: 117
A51: TXL2-026 | B51: 丘陵、水田、城区敷设埋式光缆-288芯以上 | C51: 千米条 | D51: 22.10 | E51: 45.00 | F51: TXL2-096 | G51: 地下定向钻孔敷管-工作孔径φ360mm以内-每处30m以内 | H51: 处 | I51: 微控钻孔敷管设备（25t以下） | J51: 2.1 | K51: 0 | L51: TXL4-024 | M51: 人工敷设管道电缆-2400对以下 | N51: 千米条 | O51: 可燃气体检测仪 | P51: 0.87 | Q51: 117
A52: TXL2-027 | B52: 山区敷设埋式光缆-36芯以下 | C52: 千米条 | D52: 9.05 | E52: 40.22 | F52: TXL2-097 | G52: 地下定向钻孔敷管-工作孔径φ360mm以内-每增加10m | H52: 十米 | I52: 微控钻孔敷管设备（25t以下) | J52: 0.42 | K52: 0 | L52: TXL4-025 | M52: 人工敷设管道电缆-2400对以上 | N52: 千米条 | O52: 可燃气体检测仪 | P52: 1 | Q52: 117
A53: TXL2-027A | B53: 山区敷设埋式光缆-36芯以下-钢丝拉力为20kN以内 | C53: 千米条 | D53: 10.86 | E53: 48.26 | F53: TXL2-097 | G53: 地下定向钻孔敷管-工作孔径φ360mm以内-每增加10m | H53: 十米 | I53: 载重汽车 8t | J53: 0.39 | K53: 456 | L53: TXL4-025 | M53: 人工敷设管道电缆-2400对以上 | N53: 千米条 | O53: 有毒有害气体检测仪 | P53: 1 | Q53: 117
A54: TXL2-027B | B54: 山区敷设埋式光缆-36芯以下-钢丝拉力为40kN以内 | C54: 千米条 | D54: 13.58 | E54: 60.33 | F54: TXL2-097 | G54: 地下定向钻孔敷管-工作孔径φ360mm以内-每增加10m | H54: 十米 | I54: 汽车式起重机 8t | J54: 0.39 | K54: 636 | L54: TXL4-026 | M54: 机械敷设管道电缆-200对以下 | N54: 千米条 | O54: 有毒有害气体检测仪 | P54: 0.4 | Q54: 117
A55: TXL2-028 | B55: 山区敷设埋式光缆-72芯以下 | C55: 千米条 | D55: 12.55 | E55: 43.54 | F55: TXL2-098 | G55: 地下定向钻孔敷管-工作孔径φ600mm以内-每处30m以内 | H55: 处 | I55: 微控钻孔敷管设备 (25t以上) | J55: 2.94 | K55: 0 | L55: TXL4-026 | M55: 机械敷设管道电缆-200对以下 | N55: 千米条 | O55: 可燃气体检测仪 | P55: 0.4 | Q55: 117
A56: TXL2-028A | B56: 山区敷设埋式光缆-72芯以下-钢丝拉力为20kN以内 | C56: 千米条 | D56: 15.06 | E56: 52.25 | F56: TXL2-098 | G56: 地下定向钻孔敷管-工作孔径φ600mm以内-每处30m以内 | H56: 处 | I56: 汽车式起重机 16t | J56: 2.74 | K56: 768 | L56: TXL4-027 | M56: 机械敷设管道电缆-400对以下 | N56: 千米条 | O56: 有毒有害气体检测仪 | P56: 0.42 | Q56: 117
A57: TXL2-028B | B57: 山区敷设埋式光缆-72芯以下-钢丝拉力为40kN以内 | C57: 千米条 | D57: 18.83 | E57: 65.31 | F57: TXL2-098 | G57: 地下定向钻孔敷管-工作孔径φ600mm以内-每处30m以内 | H57: 处 | I57: 载重汽车 12t | J57: 2.74 | K57: 582 | L57: TXL4-027 | M57: 机械敷设管道电缆-400对以下 | N57: 千米条 | O57: 可燃气体检测仪 | P57: 0.42 | Q57: 117
A58: TXL2-029 | B58: 山区敷设埋式光缆-96芯以下 | C58: 千米条 | D58: 15.86 | E58: 47.10 | F58: TXL2-099 | G58: 地下定向钻孔敷管-工作孔径φ600mm以内-每增加10m | H58: 十米 | I58: 微控钻孔敷管设备 (25t以上) | J58: 0.59 | K58: 0 | L58: TXL4-028 | M58: 机械敷设管道电缆-800对以下 | N58: 千米条 | O58: 可燃气体检测仪 | P58: 0.5 | Q58: 117
A59: TXL2-029A | B59: 山区敷设埋式光缆-96芯以下-钢丝拉力为20kN以内 | C59: 千米条 | D59: 19.03 | E59: 56.52 | F59: TXL2-099 | G59: 地下定向钻孔敷管-工作孔径φ600mm以内-每增加10m | H59: 十米 | I59: 汽车式起重机 16t | J59: 0.55 | K59: 768 | L59: TXL4-028 | M59: 机械敷设管道电缆-800对以下 | N59: 千米条 | O59: 有毒有害气体检测仪 | P59: 0.5 | Q59: 117
A60: TXL2-029B | B60: 山区敷设埋式光缆-96芯以下-钢丝拉力为40kN以内 | C60: 千米条 | D60: 23.79 | E60: 70.65 | F60: TXL2-099 | G60: 地下定向钻孔敷管-工作孔径φ600mm以内-每增加10m | H60: 十米 | I60: 载重汽车 12t | J60: 0.55 | K60: 582 | L60: TXL4-029 | M60: 机械敷设管道电缆-1200对以下 | N60: 千米条 | O60: 有毒有害气体检测仪 | P60: 0.6 | Q60: 117
A61: TXL2-030 | B61: 山区敷设埋式光缆-144芯以下 | C61: 千米条 | D61: 19.20 | E61: 50.14 | F61: TXL2-100 | G61: 地下定向钻孔敷管-工作孔径φ840mm以内-每处30m以内 | H61: 处 | I61: 微控钻孔敷管设备 (25t以上) | J61: 4.12 | K61: 0 | L61: TXL4-029 | M61: 机械敷设管道电缆-1200对以下 | N61: 千米条 | O61: 可燃气体检测仪 | P61: 0.6 | Q61: 117
A62: TXL2-030A | B62: 山区敷设埋式光缆-144芯以下-钢丝拉力为20kN以内 | C62: 千米条 | D62: 23.04 | E62: 60.17 | F62: TXL2-100 | G62: 地下定向钻孔敷管-工作孔径φ840mm以内-每处30m以内 | H62: 处 | I62: 载重汽车 12t | J62: 3.84 | K62: 582 | L62: TXL4-030 | M62: 机械敷设管道电缆-1800对以下 | N62: 千米条 | O62: 可燃气体检测仪 | P62: 0.72 | Q62: 117
A63: TXL2-030B | B63: 山区敷设埋式光缆-144芯以下-钢丝拉力为40kN以内 | C63: 千米条 | D63: 28.80 | E63: 75.21 | F63: TXL2-100 | G63: 地下定向钻孔敷管-工作孔径φ840mm以内-每处30m以内 | H63: 处 | I63: 汽车式起重机 16t | J63: 3.84 | K63: 768 | L63: TXL4-030 | M63: 机械敷设管道电缆-1800对以下 | N63: 千米条 | O63: 有毒有害气体检测仪 | P63: 0.72 | Q63: 117
A64: TXL2-031 | B64: 山区敷设埋式光缆-288芯以下 | C64: 千米条 | D64: 22.53 | E64: 53.13 | F64: TXL2-101 | G64: 地下定向钻孔敷管-工作孔径φ840mm以内-每增加10m | H64: 十米 | I64: 载重汽车 12t | J64: 0.77 | K64: 582 | L64: TXL4-031 | M64: 机械敷设管道电缆-2400对以下 | N64: 千米条 | O64: 有毒有害气体检测仪 | P64: 0.87 | Q64: 117
A65: TXL2-031A | B65: 山区敷设埋式光缆-288芯以下-钢丝拉力为20kN以内 | C65: 千米条 | D65: 27.04 | E65: 63.76 | F65: TXL2-101 | G65: 地下定向钻孔敷管-工作孔径φ840mm以内-每增加10m | H65: 十米 | I65: 汽车式起重机 16t | J65: 0.77 | K65: 768 | L65: TXL4-031 | M65: 机械敷设管道电缆-2400对以下 | N65: 千米条 | O65: 可燃气体检测仪 | P65: 0.87 | Q65: 117
A66: TXL2-031B | B66: 山区敷设埋式光缆-288芯以下-钢丝拉力为40kN以内 | C66: 千米条 | D66: 33.80 | E66: 79.70 | F66: TXL2-101 | G66: 地下定向钻孔敷管-工作孔径φ840mm以内-每增加10m | H66: 十米 | I66: 微控钻孔敷管设备 (25t以上) | J66: 0.82 | K66: 0 | L66: TXL4-032 | M66: 机械敷设管道电缆-2400对以上 | N66: 千米条 | O66: 可燃气体检测仪 | P66: 1 | Q66: 117
A67: TXL2-032 | B67: 山区敷设埋式光缆-288芯以上 | C67: 千米条 | D67: 27.50 | E67: 57.46 | F67: TXL2-102 | G67: 地下定向钻孔敷管-工作孔径φ950mm以内-每处30m以内 | H67: 处 | I67: 汽车式起重机 16t | J67: 4.61 | K67: 768 | L67: TXL4-032 | M67: 机械敷设管道电缆-2400对以上 | N67: 千米条 | O67: 有毒有害气体检测仪 | P67: 1 | Q67: 117
A68: TXL2-032A | B68: 山区敷设埋式光缆-288芯以上-钢丝拉力为20kN以内 | C68: 千米条 | D68: 33.00 | E68: 68.95 | F68: TXL2-102 | G68: 地下定向钻孔敷管-工作孔径φ950mm以内-每处30m以内 | H68: 处 | I68: 微控钻孔敷管设备 (25t以上) | J68: 5.22 | K68: 0 | L68: TXL5-001 | M68: 城区气流法敷设微管-3根以下 | N68: km | O68: 可燃气体检测仪 | P68: 0.2 | Q68: 117
A69: TXL2-032B | B69: 山区敷设埋式光缆-288芯以上-钢丝拉力为40kN以内 | C69: 千米条 | D69: 41.25 | E69: 86.19 | F69: TXL2-102 | G69: 地下定向钻孔敷管-工作孔径φ950mm以内-每处30m以内 | H69: 处 | I69: 载重汽车 12t | J69: 4.61 | K69: 582 | L69: TXL5-001 | M69: 城区气流法敷设微管-3根以下 | N69: km | O69: 有毒有害气体检测仪 | P69: 0.2 | Q69: 117
A70: TXL2-033 | B70: 敷设埋式电缆-200对以下 | C70: 千米条 | D70: 8.35 | E70: 22.84 | F70: TXL2-103 | G70: 地下定向钻孔敷管-工作孔径φ950mm以内-每增加10m | H70: 十米 | I70: 汽车式起重机 16t | J70: 1.06 | K70: 768 | L70: TXL5-002 | M70: 城区气流法敷设微管-5根以下 | N70: km | O70: 可燃气体检测仪 | P70: 0.2 | Q70: 117
A71: TXL2-034 | B71: 敷设埋式电缆-400对以下 | C71: 千米条 | D71: 9.49 | E71: 25.91 | F71: TXL2-103 | G71: 地下定向钻孔敷管-工作孔径φ950mm以内-每增加10m | H71: 十米 | I71: 微控钻孔敷管设备(25t以上) | J71: 1.1 | K71: 0 | L71: TXL5-002 | M71: 城区气流法敷设微管-5根以下 | N71: km | O71: 有毒有害气体检测仪 | P71: 0.2 | Q71: 117
A72: TXL2-035 | B72: 敷设埋式电缆-600对以下 | C72: 千米条 | D72: 11.08 | E72: 30.23 | F72: TXL2-103 | G72: 地下定向钻孔敷管-工作孔径φ950mm以内-每增加10m | H72: 十米 | I72: 载重汽车 12t | J72: 1.06 | K72: 582 | L72: TXL5-003 | M72: 城区气流法敷设微管-5根以上 | N72: km | O72: 有毒有害气体检测仪 | P72: 0.2 | Q72: 117
A73: TXL2-036 | B73: 敷设埋式电缆-600对以上 | C73: 千米条 | D73: 13.51 | E73: 36.76 | F73: TXL2-108 | G73: 机械顶管 | H73: m | I73: 液压顶管机 5t | J73: 0.15 | K73: 444 | L73: TXL5-003 | M73: 城区气流法敷设微管-5根以上 | N73: km | O73: 可燃气体检测仪 | P73: 0.2 | Q73: 117
A74: TXL2-037 | B74: 砖砌专用塑料管道光缆手孔-I型（1.2×0.9×1.0） | C74: 个 | D74: 6.40 | E74: 6.14 | F74: TXL2-136 | G74: 水泵冲槽 | H74: 百米/处 | I74: 水泵冲槽设备（套） | J74: 10 | K74: 645 | L74: TXL5-004 | M74: 非城区气流法敷设微管-3根以下 | N74: km | O74: 可燃气体检测仪 | P74: 0.2 | Q74: 117
A75: TXL2-038 | B75: 砖砌专用塑料管道光缆手孔-II型（2.6×0.9×1.0） | C75: 个 | D75: 8.67 | E75: 8.33 | F75: TXL2-145 | G75: 挖冲机敷设96芯以下水底光缆-平河水-普通土 | H75: 百米条 | I75: 水下光(电)缆沟 挖冲机 | J75: 2.5 | K75: 677 | L75: TXL5-004 | M75: 非城区气流法敷设微管-3根以下 | N75: km | O75: 有毒有害气体检测仪 | P75: 0.2 | Q75: 117
A76: TXL2-039 | B76: 砖砌专用塑料管道光缆手孔-III型（1.2×0.9×0.7） | C76: 个 | D76: 5.12 | E76: 4.91 | F76: TXL2-146 | G76: 挖冲机敷设96芯以下水底光缆-平河水-硬土 | H76: 百米条 | I76: 水下光(电)缆沟 挖冲机 | J76: 3.75 | K76: 677 | L76: TXL5-005 | M76: 非城区气流法敷设微管-5根以下 | N76: km | O76: 有毒有害气体检测仪 | P76: 0.2 | Q76: 117
A77: TXL2-040 | B77: 砖砌专用塑料管道光缆手孔-IV型（2.6×0.9×0.7） | C77: 个 | D77: 6.94 | E77: 6.66 | F77: TXL2-147 | G77: 挖冲机敷设96芯以下水底光缆-潮河水-普通土 | H77: 百米条 | I77: 水下光(电)缆沟 挖冲机 | J77: 3.75 | K77: 677 | L77: TXL5-005 | M77: 非城区气流法敷设微管-5根以下 | N77: km | O77: 可燃气体检测仪 | P77: 0.2 | Q77: 117
A78: TXL2-041 | B78: 埋设定型手孔 | C78: 个 | D78: 1.00 | E78: 2.00 | F78: TXL2-148 | G78: 挖冲机敷设96芯以下水底光缆-潮河水-硬土 | H78: 百米条 | I78: 水下光(电)缆沟 挖冲机 | J78: 5.63 | K78: 677 | L78: TXL5-006 | M78: 非城区气流法敷设微管-5根以上 | N78: km | O78: 可燃气体检测仪 | P78: 0.2 | Q78: 117
A79: TXL2-042 | B79: 平原地区人工敷设小口径塑料管-1管 | C79: Km | D79: 4.10 | E79: 15.73 | F79: TXL2-149 | G79: 挖冲机敷设96芯以上水底光缆-平河水-普通土 | H79: 百米条 | I79: 水下光(电)缆沟 挖冲机 | J79: 2.5 | K79: 677 | L79: TXL5-006 | M79: 非城区气流法敷设微管-5根以上 | N79: km | O79: 有毒有害气体检测仪 | P79: 0.2 | Q79: 117
A80: TXL2-043 | B80: 平原地区人工敷设小口径塑料管-2管 | C80: Km | D80: 7.50 | E80: 29.41 | F80: TXL2-150 | G80: 挖冲机敷设96芯以上水底光缆-平河水-硬土 | H80: 百米条 | I80: 水下光(电)缆沟 挖冲机 | J80: 3.75 | K80: 677 | L80: TXL5-007 | M80: 城区人工布放微管-空闲保护管内-3根以下 | N80: km | O80: 有毒有害气体检测仪 | P80: 0.2 | Q80: 117
A81: TXL2-044 | B81: 平原地区人工敷设小口径塑料管-3管 | C81: Km | D81: 11.65 | E81: 45.40 | F81: TXL2-151 | G81: 挖冲机敷设96芯以上水底光缆-潮河水-普通土 | H81: 百米条 | I81: 水下光(电)缆沟 挖冲机 | J81: 3.75 | K81: 677 | L81: TXL5-007 | M81: 城区人工布放微管-空闲保护管内-3根以下 | N81: km | O81: 可燃气体检测仪 | P81: 0.2 | Q81: 117
A82: TXL2-045 | B82: 平原地区人工敷设小口径塑料管-4管 | C82: Km | D82: 15.05 | E82: 58.50 | F82: TXL2-152 | G82: 挖冲机敷设96芯以上水底光缆-潮河水-硬土 | H82: 百米条 | I82: 水下光(电)缆沟 挖冲机 | J82: 5.63 | K82: 677 | L82: TXL5-008 | M82: 城区人工布放微管-空闲保护管内-4~5根 | N82: km | O82: 可燃气体检测仪 | P82: 0.25 | Q82: 117
A83: TXL2-046 | B83: 平原地区人工敷设小口径塑料管-5管 | C83: Km | D83: 19.22 | E83: 71.60 | F83: TXL2-153 | G83: 海缆装船-自航船 | H83: 千米条 | I83: 辅助船 | J83: 0.13 | K83: 0 | L83: TXL5-008 | M83: 城区人工布放微管-空闲保护管内-4~5根 | N83: km | O83: 有毒有害气体检测仪 | P83: 0.25 | Q83: 117
A84: TXL2-047 | B84: 平原地区人工敷设小口径塑料管-6管 | C84: Km | D84: 22.60 | E84: 84.80 | F84: TXL2-153 | G84: 海缆装船-自航船 | H84: 千米条 | I84: 海缆施工自航船 （5000t以下） | J84: 0.13 | K84: 0 | L84: TXL5-009 | M84: 城区人工布放微管-空闲保护管内-5根以上每增加2根 | N84: km | O84: 有毒有害气体检测仪 | P84: 0.05 | Q84: 117
A85: TXL2-048 | B85: 平原地区人工敷设小口径塑料管-7管 | C85: Km | D85: 25.60 | E85: 99.50 | F85: TXL2-154 | G85: 海缆装船-驳船 | H85: 千米条 | I85: 辅助船 | J85: 0.13 | K85: 0 | L85: TXL5-009 | M85: 城区人工布放微管-空闲保护管内-5根以上每增加2根 | N85: km | O85: 可燃气体检测仪 | P85: 0.05 | Q85: 117
A86: TXL2-049 | B86: 平原地区人工敷设小口径塑料管-8管 | C86: Km | D86: 29.10 | E86: 112.45 | F86: TXL2-154 | G86: 海缆装船-驳船 | H86: 千米条 | I86: 海缆施工驳船（500t以下）带拖轮 | J86: 0.13 | K86: 0 | L86: TXL5-010 | M86: 城区人工布放微管-非空闲保护管内-3根以下 | N86: km | O86: 有毒有害气体检测仪 | P86: 0.45 | Q86: 117
A87: TXL2-050 | B87: 平原地区人工敷设小口径塑料管-9管 | C87: Km | D87: 33.10 | E87: 128.20 | F87: TXL2-155 | G87: 航行-自航船 | H87: 百千米 | I87: 海缆施工自航船 （5000t以下） | J87: 0.65 | K87: 0 | L87: TXL5-010 | M87: 城区人工布放微管-非空闲保护管内-3根以下 | N87: km | O87: 可燃气体检测仪 | P87: 0.45 | Q87: 117
A88: TXL2-051 | B88: 平原地区人工敷设小口径塑料管-10管 | C88: Km | D88: 36.50 | E88: 141.00 | F88: TXL2-156 | G88: 航行-驳船 | H88: 百千米 | I88: 海缆施工驳船 （500t 以下）带拖轮 | J88: 1.6 | K88: 0 | L88: TXL5-011 | M88: 城区人工布放微管-非空闲保护管内-4~5根 | N88: km | O88: 有毒有害气体检测仪 | P88: 0.6 | Q88: 117
A89: TXL2-052 | B89: 平原地区人工敷设小口径塑料管-11管 | C89: Km | D89: 39.80 | E89: 154.05 | F89: TXL2-157 | G89: 海中敷设海缆-自航船 | H89: 千米条 | I89: 海缆施工自航船 （5000t 以下） | J89: 0.03 | K89: 0 | L89: TXL5-011 | M89: 城区人工布放微管-非空闲保护管内-4~5根 | N89: km | O89: 可燃气体检测仪 | P89: 0.6 | Q89: 117
A90: TXL2-053 | B90: 平原地区人工敷设小口径塑料管-12管 | C90: Km | D90: 43.20 | E90: 167.00 | F90: TXL2-158 | G90: 海中敷设海缆-驳船 | H90: 千米条 | I90: 海缆施工驳船 （500t 以下）带拖轮 | J90: 0.03 | K90: 0 | L90: TXL5-012 | M90: 管道内人工布放集束管 | N90: km | O90: 有毒有害气体检测仪 | P90: 0.3 | Q90: 117
A91: TXL2-054 | B91: 平原地区人工敷设小口径塑料管-13管 | C91: Km | D91: 47.30 | E91: 182.80 | F91: TXL2-159 | G91: 海中埋设海缆-自航船-埋深3m以上 | H91: 千米条 | I91: 海缆施工自航船 （5000t以下） | J91: 0.9 | K91: 0 | L91: TXL5-012 | M91: 管道内人工布放集束管 | N91: km | O91: 可燃气体检测仪 | P91: 0.3 | Q91: 117
A92: TXL2-055 | B92: 平原地区人工敷设小口径塑料管-14管 | C92: Km | D92: 50.60 | E92: 195.50 | F92: TXL2-160 | G92: 海中埋设海缆-自航船-埋深3m以下 | H92: 千米条 | I92: 海缆施工自航船 （5000t 以下） | J92: 0.3 | K92: 0 | L92: TXL5-041 | M92: 托板式敷设室内通道光缆 | N92: 百米条 | O92: 有毒有害气体检测仪 | P92: 0.15 | Q92: 117
A93: TXL2-056 | B93: 平原地区人工敷设小口径塑料管-15管 | C93: Km | D93: 54.00 | E93: 208.65 | F93: TXL2-161 | G93: 海中埋设海缆-驳船-埋深3m以上 | H93: 千米条 | I93: 海缆施工驳船 （500t 以下）带拖轮 | J93: 0.9 | K93: 0 | L93: TXL5-041 | M93: 托板式敷设室内通道光缆 | N93: 百米条 | O93: 可燃气体检测仪 | P93: 0.15 | Q93: 117
A94: TXL2-057 | B94: 平原地区人工敷设小口径塑料管-16管 | C94: Km | D94: 57.40 | E94: 221.60 | F94: TXL2-162 | G94: 海中埋设海缆-驳船-埋深3m以下 | H94: 千米条 | I94: 海缆施工驳船 （500t 以下）带拖轮 | J94: 0.45 | K94: 0 | L94: TXL5-042 | M94: 钉固式敷设室内通道光缆 | N94: 百米条 | O94: 可燃气体检测仪 | P94: 0.3 | Q94: 117
A95: TXL2-058 | B95: 丘陵、城区、水田地区人工敷设小口径塑料管-1管 | C95: Km | D95: 4.80 | E95: 18.50 | F95: TXL2-163 | G95: 海底光缆接续-自航船 | H95: 头 | I95: 接头设备 | J95: 3 | K95: 0 | L95: TXL5-042 | M95: 钉固式敷设室内通道光缆 | N95: 百米条 | O95: 有毒有害气体检测仪 | P95: 0.3 | Q95: 117
A96: TXL2-059 | B96: 丘陵、城区、水田地区人工敷设小口径塑料管-2管 | C96: Km | D96: 8.80 | E96: 34.60 | F96: TXL2-163 | G96: 海底光缆接续-自航船 | H96: 头 | I96: 海缆施工自航船 （5000t 以下） | J96: 3 | K96: 0 | L96: TXL5-043 | M96: 竖井引上光缆 | N96: 百米条 | O96: 有毒有害气体检测仪 | P96: 0.4 | Q96: 117
A97: TXL2-060 | B97: 丘陵、城区、水田地区人工敷设小口径塑料管-3管 | C97: Km | D97: 13.70 | E97: 53.40 | F97: TXL2-164 | G97: 海底光缆接续-驳船 | H97: 头 | I97: 海缆施工驳船（ 500t 以下）带拖轮 | J97: 3 | K97: 0 | L97: TXL5-043 | M97: 竖井引上光缆 | N97: 百米条 | O97: 可燃气体检测仪 | P97: 0.4 | Q97: 117
A98: TXL2-061 | B98: 丘陵、城区、水田地区人工敷设小口径塑料管-4管 | C98: Km | D98: 17.70 | E98: 68.90 | F98: TXL2-164 | G98: 海底光缆接续-驳船 | H98: 头 | I98: 接头设备 | J98: 3 | K98: 0 | L98: TXL6-003 | M98: 机械法光缆接续 | N98: 芯 | O98: 光时域反射仪 | P98: 0.05 | Q98: 153
A99: TXL2-062 | B99: 丘陵、城区、水田地区人工敷设小口径塑料管-5管 | C99: Km | D99: 22.40 | E99: 84.10 | F99: TXL2-165 | G99: 辅助船法敷设登陆海缆-自航船 | H99: 端 | I99: 辅助船 | J99: 2 | K99: 0 | L99: TXL6-004 | M99: 现场组装光纤活动连接器 | N99: 芯 | O99: 光时域反射仪 | P99: 0.05 | Q99: 153
A100: TXL2-063 | B100: 丘陵、城区、水田地区人工敷设小口径塑料管-6管 | C100: Km | D100: 26.60 | E100: 103.30 | F100: TXL2-165 | G100: 辅助船法敷设登陆海缆-自航船 | H100: 端 | I100: 海缆施工自航船 （5000t 以下） | J100: 1 | K100: 0 | L100: TXL6-005 | M100: 光缆成端接头-束状 | N100: 芯 | O100: 光时域反射仪 | P100: 0.05 | Q100: 153
A101: TXL2-064 | B101: 丘陵、城区、水田地区人工敷设小口径塑料管-7管 | C101: Km | D101: 30.30 | E101: 114.35 | F101: TXL2-166 | G101: 辅助船法敷设登陆海缆-驳船 | H101: 端 | I101: 海缆施工驳船（500t 以下）带拖轮 | J101: 1 | K101: 0 | L101: TXL6-006 | M101: 光缆成端接头-带状 | N101: 芯 | O101: 光时域反射仪 | P101: 0.01 | Q101: 153
A102: TXL2-065 | B102: 丘陵、城区、水田地区人工敷设小口径塑料管-8管 | C102: Km | D102: 34.60 | E102: 133.90 | F102: TXL2-166 | G102: 辅助船法敷设登陆海缆-驳船 | H102: 端 | I102: 辅助船 | J102: 2 | K102: 0 | L102: TXL6-007 | M102: 光缆接续-4芯以下 | N102: 头 | O102: 光时域反射仪 | P102: 0.6 | Q102: 153
A103: TXL2-066 | B103: 丘陵、城区、水田地区人工敷设小口径塑料管-9管 | C103: Km | D103: 39.00 | E103: 147.40 | F103: TXL2-167 | G103: 浮球法敷设登陆海缆-自航船 | H103: 端 | I103: 海缆施工自航船 （5000t 以下） | J103: 1 | K103: 0 | L103: TXL6-008 | M103: 光缆接续-12芯以下 | N103: 头 | O103: 光时域反射仪 | P103: 0.7 | Q103: 153
A104: TXL2-067 | B104: 丘陵、城区、水田地区人工敷设小口径塑料管-10管 | C104: Km | D104: 43.00 | E104: 162.10 | F104: TXL2-167 | G104: 浮球法敷设登陆海缆-自航船 | H104: 端 | I104: 辅助船 | J104: 3 | K104: 0 | L104: TXL6-009 | M104: 光缆接续-24芯以下 | N104: 头 | O104: 光时域反射仪 | P104: 0.8 | Q104: 153
A105: TXL2-068 | B105: 丘陵、城区、水田地区人工敷设小口径塑料管-11管 | C105: Km | D105: 46.90 | E105: 177.05 | F105: TXL2-167 | G105: 浮球法敷设登陆海缆-自航船 | H105: 端 | I105: 机械牵引设备 | J105: 1 | K105: 0 | L105: TXL6-010 | M105: 光缆接续-36芯以下 | N105: 头 | O105: 光时域反射仪 | P105: 0.95 | Q105: 153
A106: TXL2-069 | B106: 丘陵、城区、水田地区人工敷设小口径塑料管-12管 | C106: Km | D106: 51.40 | E106: 198.90 | F106: TXL2-168 | G106: 浮球法敷设登陆海缆-驳船 | H106: 端 | I106: 辅助船 | J106: 3 | K106: 0 | L106: TXL6-011 | M106: 光缆接续-48芯以下 | N106: 头 | O106: 光时域反射仪 | P106: 1.1 | Q106: 153
A107: TXL2-070 | B107: 丘陵、城区、水田地区人工敷设小口径塑料管-13管 | C107: Km | D107: 55.80 | E107: 210.00 | F107: TXL2-168 | G107: 浮球法敷设登陆海缆-驳船 | H107: 端 | I107: 机械牵引设备 | J107: 1 | K107: 0 | L107: TXL6-012 | M107: 光缆接续-60芯以下 | N107: 头 | O107: 光时域反射仪 | P107: 1.25 | Q107: 153
A108: TXL2-071 | B108: 丘陵、城区、水田地区人工敷设小口径塑料管-14管 | C108: Km | D108: 59.50 | E108: 225.50 | F108: TXL2-168 | G108: 浮球法敷设登陆海缆-驳船 | H108: 端 | I108: 海缆施工驳船 (500t 以下)带拖轮 | J108: 1 | K108: 0 | L108: TXL6-013 | M108: 光缆接续-72芯以下 | N108: 头 | O108: 光时域反射仪 | P108: 1.4 | Q108: 153
A109: TXL2-072 | B109: 丘陵、城区、水田地区人工敷设小口径塑料管-15管 | C109: Km | D109: 63.20 | E109: 239.90 | F109: TXL2-169 | G109: 海底光缆冲埋-水深20m以下 | H109: 百米条 | I109: 辅助船 | J109: 6 | K109: 0 | L109: TXL6-014 | M109: 光缆接续-84芯以下 | N109: 头 | O109: 光时域反射仪 | P109: 1.6 | Q109: 153
A110: TXL2-073 | B110: 丘陵、城区、水田地区人工敷设小口径塑料管-16管 | C110: Km | D110: 67.00 | E110: 254.40 | F110: TXL2-169 | G110: 海底光缆冲埋-水深20m以下 | H110: 百米条 | I110: 海缆施工驳船 (500t 以下)带拖轮 | J110: 3 | K110: 0 | L110: TXL6-015 | M110: 光缆接续-96芯以下 | N110: 头 | O110: 光时域反射仪 | P110: 1.7 | Q110: 153
A111: TXL2-074 | B111: 山区人工敷设小口径塑料管-1管 | C111: Km | D111: 5.70 | E111: 21.80 | F111: TXL2-170 | G111: 海底光缆冲埋-水深20~30m | H111: 百米条 | I111: 海缆施工驳船 (500t 以下)带拖轮 | J111: 5 | K111: 0 | L111: TXL6-016 | M111: 光缆接续-108芯以下 | N111: 头 | O111: 光时域反射仪 | P111: 1.75 | Q111: 153
A112: TXL2-075 | B112: 山区人工敷设小口径塑料管-2管 | C112: Km | D112: 10.60 | E112: 40.50 | F112: TXL2-170 | G112: 海底光缆冲埋-水深20~30m | H112: 百米条 | I112: 辅助船 | J112: 10 | K112: 0 | L112: TXL6-017 | M112: 光缆接续-132芯以下 | N112: 头 | O112: 光时域反射仪 | P112: 1.85 | Q112: 153
A113: TXL2-076 | B113: 山区人工敷设小口径塑料管-3管 | C113: Km | D113: 16.50 | E113: 63.10 | F113: TXL2-171 | G113: 水下机器人(ROV)后冲埋海底光缆-自航船 | H113: 百米条 | I113: 海缆施工自航船 (5000t 以下) | J113: 0.05 | K113: 0 | L113: TXL6-018 | M113: 光缆接续-144芯以下 | N113: 头 | O113: 光时域反射仪 | P113: 1.85 | Q113: 153
A114: TXL2-077 | B114: 山区人工敷设小口径塑料管-4管 | C114: Km | D114: 21.20 | E114: 80.30 | F114: TXL2-171 | G114: 水下机器人(ROV)后冲埋海底光缆-自航船 | H114: 百米条 | I114: 冲埋设备 | J114: 0.05 | K114: 0 | L114: TXL6-019 | M114: 光缆接续-192芯以下 | N114: 头 | O114: 光时域反射仪 | P114: 1.9 | Q114: 153
A115: TXL2-078 | B115: 山区人工敷设小口径塑料管-5管 | C115: Km | D115: 26.80 | E115: 99.50 | F115: TXL2-172 | G115: 水下机器人(ROV)后冲埋海底光缆-驳船 | H115: 百米条 | I115: 海缆施工驳船 (500t 以下)带拖轮 | J115: 0.05 | K115: 0 | L115: TXL6-020 | M115: 光缆接续-288芯以下 | N115: 头 | O115: 光时域反射仪 | P115: 1.9 | Q115: 153
A116: TXL2-079 | B116: 山区人工敷设小口径塑料管-6管 | C116: Km | D116: 32.00 | E116: 121.00 | F116: TXL2-172 | G116: 水下机器人(ROV)后冲埋海底光缆-驳船 | H116: 百米条 | I116: 冲埋设备 | J116: 0.05 | K116: 0 | L116: TXL6-021 | M116: 光缆接续-288芯以上 | N116: 头 | O116: 光时域反射仪 | P116: 2.1 | Q116: 153
A117: TXL2-080 | B117: 山区人工敷设小口径塑料管-7管 | C117: Km | D117: 36.40 | E117: 134.50 | F117: TXL2-173 | G117: 水下安装关节套管 | H117: m | I117: 海缆施工自航船 (5000t 以下) | J117: 0.2 | K117: 0 | L117: TXL6-022 | M117: 8芯带以下带状光缆接续-48芯以下 | N117: 头 | O117: 光时域反射仪 | P117: 1.1 | Q117: 153
A118: TXL2-081 | B118: 山区人工敷设小口径塑料管-8管 | C118: Km | D118: 41.50 | E118: 158.00 | F118: TXL3-001 | G118: 立9m以下水泥杆-综合土 | H118: 根 | I118: 汽车式起重机 5t | J118: 0.04 | K118: 516 | L118: TXL6-023 | M118: 8芯带以下带状光缆接续-72芯以下 | N118: 头 | O118: 光时域反射仪 | P118: 1.4 | Q118: 153
A119: TXL2-082 | B119: 山区人工敷设小口径塑料管-9管 | C119: Km | D119: 46.80 | E119: 173.90 | F119: TXL3-002 | G119: 立9m以下水泥杆-软石 | H119: 根 | I119: 汽车式起重机 5t | J119: 0.04 | K119: 516 | L119: TXL6-024 | M119: 8芯带以下带状光缆接续-96芯以下 | N119: 头 | O119: 光时域反射仪 | P119: 1.7 | Q119: 153
A120: TXL2-083 | B120: 山区人工敷设小口径塑料管-10管 | C120: Km | D120: 51.60 | E120: 191.30 | F120: TXL3-003 | G120: 立9m以下水泥杆-坚石 | H120: 根 | I120: 汽车式起重机 5t | J120: 0.04 | K120: 516 | L120: TXL6-025 | M120: 8芯带以下带状光缆接续-108芯以下 | N120: 头 | O120: 光时域反射仪 | P120: 1.75 | Q120: 153
A121: TXL2-084 | B121: 山区人工敷设小口径塑料管-11管 | C121: Km | D121: 56.30 | E121: 209.00 | F121: TXL3-004 | G121: 立11m以下水泥杆-综合土 | H121: 根 | I121: 汽车式起重机 5t | J121: 0.04 | K121: 516 | L121: TXL6-026 | M121: 8芯带以下带状光缆接续-120芯以下 | N121: 头 | O121: 光时域反射仪 | P121: 1.8 | Q121: 153
A122: TXL2-085 | B122: 山区人工敷设小口径塑料管-12管 | C122: Km | D122: 61.70 | E122: 234.70 | F122: TXL3-005 | G122: 立11m以下水泥杆-软石 | H122: 根 | I122: 汽车式起重机 5t | J122: 0.04 | K122: 516 | L122: TXL6-027 | M122: 8芯带以下带状光缆接续-144芯以下 | N122: 头 | O122: 光时域反射仪 | P122: 1.85 | Q122: 153
A123: TXL2-086 | B123: 山区人工敷设小口径塑料管-13管 | C123: Km | D123: 67.00 | E123: 247.80 | F123: TXL3-006 | G123: 立11m以下水泥杆-坚石 | H123: 根 | I123: 汽车式起重机 5t | J123: 0.04 | K123: 516 | L123: TXL6-028 | M123: 8芯带以下带状光缆接续-192芯以下 | N123: 头 | O123: 光时域反射仪 | P123: 1.9 | Q123: 153
A124: TXL2-087 | B124: 山区人工敷设小口径塑料管-14管 | C124: Km | D124: 71.40 | E124: 266.00 | F124: TXL3-007 | G124: 立13m以下水泥杆-综合土 | H124: 根 | I124: 汽车式起重机 5t | J124: 0.06 | K124: 516 | L124: TXL6-029 | M124: 8芯带以下带状光缆接续-288芯以下 | N124: 头 | O124: 光时域反射仪 | P124: 1.9 | Q124: 153
A125: TXL2-088 | B125: 山区人工敷设小口径塑料管-15管 | C125: Km | D125: 75.85 | E125: 283.10 | F125: TXL3-008 | G125: 立13m以下水泥杆-软石 | H125: 根 | I125: 汽车式起重机 5t | J125: 0.06 | K125: 516 | L125: TXL6-030 | M125: 8芯带以下带状光缆接续-289芯以上 | N125: 头 | O125: 光时域反射仪 | P125: 2.1 | Q125: 153
A126: TXL2-089 | B126: 山区人工敷设小口径塑料管-16管 | C126: Km | D126: 80.40 | E126: 299.90 | F126: TXL3-009 | G126: 立13m以下水泥杆-坚石 | H126: 根 | I126: 汽车式起重机 5t | J126: 0.06 | K126: 516 | L126: TXL6-031 | M126: 8芯带以上带状光缆接续-48芯以下 | N126: 头 | O126: 光时域反射仪 | P126: 1.1 | Q126: 153
A127: TXL2-090 | B127: 小孔径塑料管试通 | C127: 孔千米 | D127: 0.63 | E127: 0.63 | F127: TXL3-010 | G127: 立13m以下水泥H杆-综合土 | H127: 座 | I127: 汽车式起重机 5t | J127: 0.12 | K127: 516 | L127: TXL6-032 | M127: 8芯带以上带状光缆接续-72芯以下 | N127: 头 | O127: 光时域反射仪 | P127: 1.4 | Q127: 153
A128: TXL2-091 | B128: 小口径塑料管道充气试验 | C128: 孔千米 | D128: 0.38 | E128: 0.38 | F128: TXL3-011 | G128: 立13m以下水泥H杆-软石 | H128: 座 | I128: 汽车式起重机 5t | J128: 0.12 | K128: 516 | L128: TXL6-033 | M128: 8芯带以上带状光缆接续-96芯以下 | N128: 头 | O128: 光时域反射仪 | P128: 1.7 | Q128: 153
A129: TXL2-092 | B129: 地下定向钻孔敷管-工作孔径φ120mm以内-每处30m以内 | C129: 处 | D129: 2.64 | E129: 7.98 | F129: TXL3-012 | G129: 立13m以下水泥H杆-坚石 | H129: 座 | I129: 汽车式起重机 5t | J129: 0.12 | K129: 516 | L129: TXL6-034 | M129: 8芯带以上带状光缆接续-108芯以下 | N129: 头 | O129: 光时域反射仪 | P129: 1.75 | Q129: 153
A130: TXL2-092A | B130: 地下定向钻孔敷管-工作孔径φ120mm以内-每处30m以内-土层为回填垃圾 | C130: 处 | D130: 3.17 | E130: 9.58 | F130: TXL3-048 | G130: 装水泥撑杆-综合土 | H130: 根 | I130: 汽车式起重机（5t） | J130: 0.05 | K130: 516 | L130: TXL6-035 | M130: 8芯带以上带状光缆接续-120芯以下 | N130: 头 | O130: 光时域反射仪 | P130: 1.8 | Q130: 153
A131: TXL2-092B | B131: 地下定向钻孔敷管-工作孔径φ120mm以内-每处30m以内-土层为粘性土夹碎石土 | C131: 处 | D131: 3.96 | E131: 11.97 | F131: TXL3-049 | G131: 装水泥撑杆-软石 | H131: 根 | I131: 汽车式起重机（5t） | J131: 0.05 | K131: 516 | L131: TXL6-036 | M131: 8芯带以上带状光缆接续-144芯以下 | N131: 头 | O131: 光时域反射仪 | P131: 1.85 | Q131: 153
A132: TXL2-092C | B132: 地下定向钻孔敷管-工作孔径φ120mm以内-每处30m以内-土层为纯砂层或碎石土 | C132: 处 | D132: 5.28 | E132: 15.96 | F132: TXL3-050 | G132: 装水泥撑杆-坚石 | H132: 根 | I132: 汽车式起重机（5t） | J132: 0.05 | K132: 516 | L132: TXL6-037 | M132: 8芯带以上带状光缆接续-192芯以下 | N132: 头 | O132: 光时域反射仪 | P132: 1.9 | Q132: 153
A133: TXL2-092D | B133: 地下定向钻孔敷管-工作孔径φ120mm以内-每处30m以内-路由长度超过300m | C133: 处 | D133: 2.64 | E133: 7.98 | F133: TXL3-203 | G133: 缠绕法架设架空光缆-平原-36芯以下 | H133: 千米条 | I133: 缠绕机 | J133: 0.3 | K133: 137 | L133: TXL6-038 | M133: 8芯带以上带状光缆接续-288芯以下 | N133: 头 | O133: 光时域反射仪 | P133: 1.9 | Q133: 153
A134: TXL2-092E | B134: 地下定向钻孔敷管-工作孔径φ120mm以内-每处30m以内-土层为回填垃圾-路由长度超过300m | C134: 处 | D134: 3.17 | E134: 9.58 | F134: TXL3-204 | G134: 缠绕法架设架空光缆-平原-72芯以下 | H134: 千米条 | I134: 缠绕机 | J134: 0.3 | K134: 137 | L134: TXL6-039 | M134: 8芯带以上带状光缆接续-384芯以下 | N134: 头 | O134: 光时域反射仪 | P134: 2.1 | Q134: 153
A135: TXL2-092F | B135: 地下定向钻孔敷管-工作孔径φ120mm以内-每处30m以内-土层为粘性土夹碎石土-路由长度超过300m | C135: 处 | D135: 3.96 | E135: 11.97 | F135: TXL3-205 | G135: 缠绕法架设架空光缆-平原-144芯以下 | H135: 千米条 | I135: 缠绕机 | J135: 0.3 | K135: 137 | L135: TXL6-040 | M135: 8芯带以上带状光缆接续-480芯以下 | N135: 头 | O135: 光时域反射仪 | P135: 2.3 | Q135: 153
A136: TXL2-092G | B136: 地下定向钻孔敷管-工作孔径φ120mm以内-每处30m以内-土层为纯砂层或碎石土-路由长度超过300m | C136: 处 | D136: 5.28 | E136: 15.96 | F136: TXL3-206 | G136: 缠绕法架设架空光缆-平原-288芯以下 | H136: 千米条 | I136: 缠绕机 | J136: 0.3 | K136: 137 | L136: TXL6-041 | M136: 8芯带以上带状光缆接续-576芯以下 | N136: 头 | O136: 光时域反射仪 | P136: 2.5 | Q136: 153
A137: TXL2-093 | B137: 地下定向钻孔敷管-工作孔径φ120mm以内-每增加10m | C137: 十米 | D137: 0.53 | E137: 1.60 | F137: TXL3-207 | G137: 缠绕法架设架空光缆-平原-288芯以上 | H137: 千米条 | I137: 缠绕机 | J137: 0.3 | K137: 137 | L137: TXL6-042 | M137: 8芯带以上带状光缆接续-577芯以上 | N137: 头 | O137: 光时域反射仪 | P137: 2.75 | Q137: 153
A138: TXL2-093A | B138: 地下定向钻孔敷管-工作孔径φ120mm以内-每增加10m-土层为回填垃圾 | C138: 十米 | D138: 0.64 | E138: 1.92 | F138: TXL3-208 | G138: 缠绕法架设架空光缆-丘陵、城区、水田-36芯以下 | H138: 千米条 | I138: 缠绕机 | J138: 0.35 | K138: 137 | L138: TXL6-043 | M138: 40千米以上中继段光缆测试-12芯以下 | N138: 中继段 | O138: 稳定光源 | P138: 0.36 | Q138: 117
A139: TXL2-093B | B139: 地下定向钻孔敷管-工作孔径φ120mm以内-每增加10m-土层为粘性土夹碎石土 | C139: 十米 | D139: 0.80 | E139: 2.40 | F139: TXL3-209 | G139: 缠绕法架设架空光缆-丘陵、城区、水田-72芯以下 | H139: 千米条 | I139: 缠绕机 | J139: 0.35 | K139: 137 | L139: TXL6-043 | M139: 40千米以上中继段光缆测试-12芯以下 | N139: 中继段 | O139: 光时域反射仪 | P139: 0.36 | Q139: 153
A140: TXL2-093C | B140: 地下定向钻孔敷管-工作孔径φ120mm以内-每增加10m-土层为纯砂层或碎石土 | C140: 十米 | D140: 1.06 | E140: 3.20 | F140: TXL3-210 | G140: 缠绕法架设架空光缆-丘陵、城区、水田-144芯以下 | H140: 千米条 | I140: 缠绕机 | J140: 0.35 | K140: 137 | L140: TXL6-043 | M140: 40千米以上中继段光缆测试-12芯以下 | N140: 中继段 | O140: 偏振模色散测试仪 | P140: 0.36 | Q140: 455
A141: TXL2-093D | B141: 地下定向钻孔敷管-工作孔径φ120mm以内-每增加10m-路由长度超过300m | C141: 十米 | D141: 0.53 | E141: 1.60 | F141: TXL3-211 | G141: 缠绕法架设架空光缆-丘陵、城区、水田-288芯以下 | H141: 千米条 | I141: 缠绕机 | J141: 0.35 | K141: 137 | L141: TXL6-043 | M141: 40千米以上中继段光缆测试-12芯以下 | N141: 中继段 | O141: 光功率计 | P141: 0.36 | Q141: 116
A142: TXL2-093E | B142: 地下定向钻孔敷管-工作孔径φ120mm以内-每增加10m-土层为回填垃圾-路由长度超过300m | C142: 十米 | D142: 0.64 | E142: 1.92 | F142: TXL3-212 | G142: 缠绕法架设架空光缆-丘陵、城区、水田-288芯以上 | H142: 千米条 | I142: 缠绕机 | J142: 0.35 | K142: 137 | L142: TXL6-044 | M142: 40千米以上中继段光缆测试-24芯以下 | N142: 中继段 | O142: 光功率计 | P142: 0.51 | Q142: 116
A143: TXL2-093F | B143: 地下定向钻孔敷管-工作孔径φ120mm以内-每增加10m-土层为粘性土夹碎石土-路由长度超过300m | C143: 十米 | D143: 0.80 | E143: 2.40 | F143: TXL3-213 | G143: 缠绕法架设架空光缆-山区-36芯以下 | H143: 千米条 | I143: 缠绕机 | J143: 0.42 | K143: 137 | L143: TXL6-044 | M143: 40千米以上中继段光缆测试-24芯以下 | N143: 中继段 | O143: 稳定光源 | P143: 0.51 | Q143: 117
A144: TXL2-093G | B144: 地下定向钻孔敷管-工作孔径φ120mm以内-每增加10m-土层为纯砂层或碎石土-路由长度超过300m | C144: 十米 | D144: 1.06 | E144: 3.20 | F144: TXL3-214 | G144: 缠绕法架设架空光缆-山区-72芯以下 | H144: 千米条 | I144: 缠绕机 | J144: 0.42 | K144: 137 | L144: TXL6-044 | M144: 40千米以上中继段光缆测试-24芯以下 | N144: 中继段 | O144: 偏振模色散测试仪 | P144: 0.51 | Q144: 455
A145: TXL2-094 | B145: 地下定向钻孔敷管-工作孔径φ240mm以内-每处30m以内 | C145: 处 | D145: 3.96 | E145: 10.26 | F145: TXL3-215 | G145: 缠绕法架设架空光缆-山区-144芯以下 | H145: 千米条 | I145: 缠绕机 | J145: 0.42 | K145: 137 | L145: TXL6-044 | M145: 40千米以上中继段光缆测试-24芯以下 | N145: 中继段 | O145: 光时域反射仪 | P145: 0.51 | Q145: 153
A146: TXL2-094A | B146: 地下定向钻孔敷管-工作孔径φ240mm以内-每处30m以内-土层为回填垃圾 | C146: 处 | D146: 4.75 | E146: 12.31 | F146: TXL3-216 | G146: 缠绕法架设架空光缆-山区-288芯以下 | H146: 千米条 | I146: 缠绕机 | J146: 0.42 | K146: 137 | L146: TXL6-045 | M146: 40千米以上中继段光缆测试-36芯以下 | N146: 中继段 | O146: 光功率计 | P146: 0.68 | Q146: 116
A147: TXL2-094B | B147: 地下定向钻孔敷管-工作孔径φ240mm以内-每处30m以内-土层为粘性土夹碎石土 | C147: 处 | D147: 5.94 | E147: 15.39 | F147: TXL3-217 | G147: 缠绕法架设架空光缆-山区-288芯以上 | H147: 千米条 | I147: 缠绕机 | J147: 0.42 | K147: 137 | L147: TXL6-045 | M147: 40千米以上中继段光缆测试-36芯以下 | N147: 中继段 | O147: 光时域反射仪 | P147: 0.68 | Q147: 153
A148: TXL2-094C | B148: 地下定向钻孔敷管-工作孔径φ240mm以内-每处30m以内-土层为纯砂层或碎石土 | C148: 处 | D148: 7.92 | E148: 20.52 | F148: TXL4-001 | G148: 布放光(电)缆人孔抽水-积水 | H148: 个 | I148: 抽水机 | J148: 0.2 | K148: 119 | L148: TXL6-045 | M148: 40千米以上中继段光缆测试-36芯以下 | N148: 中继段 | O148: 稳定光源 | P148: 0.68 | Q148: 117
A149: TXL2-094D | B149: 地下定向钻孔敷管-工作孔径φ240mm以内-每处30m以内-路由长度超过300m | C149: 处 | D149: 3.96 | E149: 10.26 | F149: TXL4-002 | G149: 布放光(电)缆人孔抽水-流水 | H149: 个 | I149: 抽水机 | J149: 0.5 | K149: 119 | L149: TXL6-045 | M149: 40千米以上中继段光缆测试-36芯以下 | N149: 中继段 | O149: 偏振模色散测试仪 | P149: 0.68 | Q149: 455
A150: TXL2-094E | B150: 地下定向钻孔敷管-工作孔径φ240mm以内-每处30m以内-土层为回填垃圾-路由长度超过300m | C150: 处 | D150: 4.75 | E150: 12.31 | F150: TXL4-003 | G150: 布放光(电)缆手孔抽水 | H150: 个 | I150: 抽水机 | J150: 0.1 | K150: 119 | L150: TXL6-046 | M150: 40千米以上中继段光缆测试-48芯以下 | N150: 中继段 | O150: 光时域反射仪 | P150: 0.86 | Q150: 153
A151: TXL2-094F | B151: 地下定向钻孔敷管-工作孔径φ240mm以内-每处30m以内-土层为粘性土夹碎石土-路由长度超过300m | C151: 处 | D151: 5.94 | E151: 15.39 | F151: TXL4-026 | G151: 机械敷设管道电缆-200对以下 | H151: 千米条 | I151: 电缆拖车 | J151: 0.4 | K151: 138 | L151: TXL6-046 | M151: 40千米以上中继段光缆测试-48芯以下 | N151: 中继段 | O151: 光功率计 | P151: 0.86 | Q151: 116
A152: TXL2-094G | B152: 地下定向钻孔敷管-工作孔径φ240mm以内-每处30m以内-土层为纯砂层或碎石土-路由长度超过300m | C152: 处 | D152: 7.92 | E152: 20.52 | F152: TXL4-026 | G152: 机械敷设管道电缆-200对以下 | H152: 千米条 | I152: 载重汽车 (5t) | J152: 0.4 | K152: 372 | L152: TXL6-046 | M152: 40千米以上中继段光缆测试-48芯以下 | N152: 中继段 | O152: 偏振模色散测试仪 | P152: 0.86 | Q152: 455
A153: TXL2-095 | B153: 地下定向钻孔敷管-工作孔径φ240mm以内-每增加10m | C153: 十米 | D153: 0.79 | E153: 2.05 | F153: TXL4-027 | G153: 机械敷设管道电缆-400对以下 | H153: 千米条 | I153: 电缆拖车 | J153: 0.55 | K153: 138 | L153: TXL6-046 | M153: 40千米以上中继段光缆测试-48芯以下 | N153: 中继段 | O153: 稳定光源 | P153: 0.86 | Q153: 117
A154: TXL2-095A | B154: 地下定向钻孔敷管-工作孔径φ240mm以内-每增加10m-土层为回填垃圾 | C154: 十米 | D154: 0.95 | E154: 2.46 | F154: TXL4-027 | G154: 机械敷设管道电缆-400对以下 | H154: 千米条 | I154: 载重汽车 (5t) | J154: 0.55 | K154: 372 | L154: TXL6-047 | M154: 40千米以上中继段光缆测试-60芯以下 | N154: 中继段 | O154: 偏振模色散测试仪 | P154: 1 | Q154: 455
A155: TXL2-095B | B155: 地下定向钻孔敷管-工作孔径φ240mm以内-每增加10m-土层为粘性土夹碎石土 | C155: 十米 | D155: 1.19 | E155: 3.08 | F155: TXL4-028 | G155: 机械敷设管道电缆-800对以下 | H155: 千米条 | I155: 电缆拖车 | J155: 0.75 | K155: 138 | L155: TXL6-047 | M155: 40千米以上中继段光缆测试-60芯以下 | N155: 中继段 | O155: 稳定光源 | P155: 1 | Q155: 117
A156: TXL2-095C | B156: 地下定向钻孔敷管-工作孔径φ240mm以内-每增加10m-土层为纯砂层或碎石土 | C156: 十米 | D156: 1.58 | E156: 4.10 | F156: TXL4-028 | G156: 机械敷设管道电缆-800对以下 | H156: 千米条 | I156: 载重汽车 (5t) | J156: 0.75 | K156: 372 | L156: TXL6-047 | M156: 40千米以上中继段光缆测试-60芯以下 | N156: 中继段 | O156: 光功率计 | P156: 1 | Q156: 116
A157: TXL2-095D | B157: 地下定向钻孔敷管-工作孔径φ240mm以内-每增加10m-路由长度超过300m | C157: 十米 | D157: 0.79 | E157: 2.05 | F157: TXL4-029 | G157: 机械敷设管道电缆-1200对以下 | H157: 千米条 | I157: 电缆拖车 | J157: 0.9 | K157: 138 | L157: TXL6-047 | M157: 40千米以上中继段光缆测试-60芯以下 | N157: 中继段 | O157: 光时域反射仪 | P157: 1 | Q157: 153
A158: TXL2-095E | B158: 地下定向钻孔敷管-工作孔径φ240mm以内-每增加10m-土层为回填垃圾-路由长度超过300m | C158: 十米 | D158: 0.95 | E158: 2.46 | F158: TXL4-029 | G158: 机械敷设管道电缆-1200对以下 | H158: 千米条 | I158: 载重汽车 (5t) | J158: 0.9 | K158: 372 | L158: TXL6-048 | M158: 40千米以上中继段光缆测试-72芯以下 | N158: 中继段 | O158: 偏振模色散测试仪 | P158: 1.15 | Q158: 455
A159: TXL2-095F | B159: 地下定向钻孔敷管-工作孔径φ240mm以内-每增加10m-土层为粘性土夹碎石土-路由长度超过300m | C159: 十米 | D159: 1.19 | E159: 3.08 | F159: TXL4-030 | G159: 机械敷设管道电缆-1800对以下 | H159: 千米条 | I159: 载重汽车 (5t) | J159: 1.1 | K159: 372 | L159: TXL6-048 | M159: 40千米以上中继段光缆测试-72芯以下 | N159: 中继段 | O159: 光功率计 | P159: 1.15 | Q159: 116
A160: TXL2-095G | B160: 地下定向钻孔敷管-工作孔径φ240mm以内-每增加10m-土层为纯砂层或碎石土-路由长度超过300m | C160: 十米 | D160: 1.58 | E160: 4.10 | F160: TXL4-030 | G160: 机械敷设管道电缆-1800对以下 | H160: 千米条 | I160: 电缆拖车 | J160: 1.1 | K160: 138 | L160: TXL6-048 | M160: 40千米以上中继段光缆测试-72芯以下 | N160: 中继段 | O160: 光时域反射仪 | P160: 1.15 | Q160: 153
A161: TXL2-096 | B161: 地下定向钻孔敷管-工作孔径φ360mm以内-每处30m以内 | C161: 处 | D161: 5.94 | E161: 13.34 | F161: TXL4-031 | G161: 机械敷设管道电缆-2400对以下 | H161: 千米条 | I161: 载重汽车 (5t) | J161: 1.4 | K161: 372 | L161: TXL6-048 | M161: 40千米以上中继段光缆测试-72芯以下 | N161: 中继段 | O161: 稳定光源 | P161: 1.15 | Q161: 117
A162: TXL2-096A | B162: 地下定向钻孔敷管-工作孔径φ360mm以内-每处30m以内-土层为回填垃圾 | C162: 处 | D162: 7.13 | E162: 16.01 | F162: TXL4-031 | G162: 机械敷设管道电缆-2400对以下 | H162: 千米条 | I162: 电缆拖车 | J162: 1.4 | K162: 138 | L162: TXL6-049 | M162: 40千米以上中继段光缆测试-84芯以下 | N162: 中继段 | O162: 光时域反射仪 | P162: 1.25 | Q162: 153
A163: TXL2-096B | B163: 地下定向钻孔敷管-工作孔径φ360mm以内-每处30m以内-土层为粘性土夹碎石土 | C163: 处 | D163: 8.91 | E163: 20.01 | F163: TXL4-032 | G163: 机械敷设管道电缆-2400对以上 | H163: 千米条 | I163: 载重汽车 (5t) | J163: 2 | K163: 372 | L163: TXL6-049 | M163: 40千米以上中继段光缆测试-84芯以下 | N163: 中继段 | O163: 光功率计 | P163: 1.25 | Q163: 116
A164: TXL2-096C | B164: 地下定向钻孔敷管-工作孔径φ360mm以内-每处30m以内-土层为纯砂层或碎石土 | C164: 处 | D164: 11.88 | E164: 26.68 | F164: TXL4-032 | G164: 机械敷设管道电缆-2400对以上 | H164: 千米条 | I164: 电缆拖车 | J164: 2 | K164: 138 | L164: TXL6-049 | M164: 40千米以上中继段光缆测试-84芯以下 | N164: 中继段 | O164: 稳定光源 | P164: 1.25 | Q164: 117
A165: TXL2-096D | B165: 地下定向钻孔敷管-工作孔径φ360mm以内-每处30m以内-路由长度超过300m | C165: 处 | D165: 5.94 | E165: 13.34 | F165: TXL5-001 | G165: 城区气流法敷设微管-3根以下 | H165: km | I165: 气流敷设设备(敷设微管微缆) | J165: 0.23 | K165: 814 | L165: TXL6-049 | M165: 40千米以上中继段光缆测试-84芯以下 | N165: 中继段 | O165: 偏振模色散测试仪 | P165: 1.25 | Q165: 455
A166: TXL2-096E | B166: 地下定向钻孔敷管-工作孔径φ360mm以内-每处30m以内-土层为回填垃圾-路由长度超过300m | C166: 处 | D166: 7.13 | E166: 16.01 | F166: TXL5-001 | G166: 城区气流法敷设微管-3根以下 | H166: km | I166: 载重汽车 （5t） | J166: 0.46 | K166: 372 | L166: TXL6-050 | M166: 40千米以上中继段光缆测试-96芯以下 | N166: 中继段 | O166: 偏振模色散测试仪 | P166: 1.37 | Q166: 455
A167: TXL2-096F | B167: 地下定向钻孔敷管-工作孔径φ360mm以内-每处30m以内-土层为粘性土夹碎石土-路由长度超过300m | C167: 处 | D167: 8.91 | E167: 20.01 | F167: TXL5-001 | G167: 城区气流法敷设微管-3根以下 | H167: km | I167: 汽车式起重机 （5t） | J167: 0.18 | K167: 516 | L167: TXL6-050 | M167: 40千米以上中继段光缆测试-96芯以下 | N167: 中继段 | O167: 光时域反射仪 | P167: 1.37 | Q167: 153
A168: TXL2-096G | B168: 地下定向钻孔敷管-工作孔径φ360mm以内-每处30m以内-土层为纯砂层或碎石土-路由长度超过300m | C168: 处 | D168: 11.88 | E168: 26.68 | F168: TXL5-002 | G168: 城区气流法敷设微管-5根以下 | H168: km | I168: 气流敷设设备(敷设微管微缆) | J168: 0.26 | K168: 814 | L168: TXL6-050 | M168: 40千米以上中继段光缆测试-96芯以下 | N168: 中继段 | O168: 光功率计 | P168: 1.37 | Q168: 116
A169: TXL2-097 | B169: 地下定向钻孔敷管-工作孔径φ360mm以内-每增加10m | C169: 十米 | D169: 1.19 | E169: 2.67 | F169: TXL5-002 | G169: 城区气流法敷设微管-5根以下 | H169: km | I169: 汽车式起重机 （5t） | J169: 0.18 | K169: 516 | L169: TXL6-050 | M169: 40千米以上中继段光缆测试-96芯以下 | N169: 中继段 | O169: 稳定光源 | P169: 1.37 | Q169: 117
A170: TXL2-097A | B170: 地下定向钻孔敷管-工作孔径φ360mm以内-每增加10m-土层为回填垃圾 | C170: 十米 | D170: 1.43 | E170: 3.20 | F170: TXL5-002 | G170: 城区气流法敷设微管-5根以下 | H170: km | I170: 载重汽车 （5t） | J170: 0.52 | K170: 372 | L170: TXL6-051 | M170: 40千米以上中继段光缆测试-108芯以下 | N170: 中继段 | O170: 偏振模色散测试仪 | P170: 1.44 | Q170: 455
A171: TXL2-097B | B171: 地下定向钻孔敷管-工作孔径φ360mm以内-每增加10m-土层为粘性土夹碎石土 | C171: 十米 | D171: 1.79 | E171: 4.01 | F171: TXL5-003 | G171: 城区气流法敷设微管-5根以上 | H171: km | I171: 汽车式起重机 （5t） | J171: 0.18 | K171: 516 | L171: TXL6-051 | M171: 40千米以上中继段光缆测试-108芯以下 | N171: 中继段 | O171: 光功率计 | P171: 1.44 | Q171: 116
A172: TXL2-097C | B172: 地下定向钻孔敷管-工作孔径φ360mm以内-每增加10m-土层为纯砂层或碎石土 | C172: 十米 | D172: 2.38 | E172: 5.34 | F172: TXL5-003 | G172: 城区气流法敷设微管-5根以上 | H172: km | I172: 载重汽车 （5t） | J172: 0.6 | K172: 372 | L172: TXL6-051 | M172: 40千米以上中继段光缆测试-108芯以下 | N172: 中继段 | O172: 光时域反射仪 | P172: 1.44 | Q172: 153
A173: TXL2-097D | B173: 地下定向钻孔敷管-工作孔径φ360mm以内-每增加10m-路由长度超过300m | C173: 十米 | D173: 1.19 | E173: 2.67 | F173: TXL5-003 | G173: 城区气流法敷设微管-5根以上 | H173: km | I173: 气流敷设设备(敷设微管微缆) | J173: 0.3 | K173: 814 | L173: TXL6-051 | M173: 40千米以上中继段光缆测试-108芯以下 | N173: 中继段 | O173: 稳定光源 | P173: 1.44 | Q173: 117
A174: TXL2-097E | B174: 地下定向钻孔敷管-工作孔径φ360mm以内-每增加10m-土层为回填垃圾-路由长度超过300m | C174: 十米 | D174: 1.43 | E174: 3.20 | F174: TXL5-004 | G174: 非城区气流法敷设微管-3根以下 | H174: km | I174: 汽车式起重机 （5t） | J174: 0.15 | K174: 516 | L174: TXL6-052 | M174: 40千米以上中继段光缆测试-132芯以下 | N174: 中继段 | O174: 光功率计 | P174: 1.51 | Q174: 116
A175: TXL2-097F | B175: 地下定向钻孔敷管-工作孔径φ360mm以内-每增加10m-土层为粘性土夹碎石土-路由长度超过300m | C175: 十米 | D175: 1.79 | E175: 4.01 | F175: TXL5-004 | G175: 非城区气流法敷设微管-3根以下 | H175: km | I175: 载重汽车 （5t） | J175: 0.4 | K175: 372 | L175: TXL6-052 | M175: 40千米以上中继段光缆测试-132芯以下 | N175: 中继段 | O175: 稳定光源 | P175: 1.51 | Q175: 117
A176: TXL2-097G | B176: 地下定向钻孔敷管-工作孔径φ360mm以内-每增加10m-土层为纯砂层或碎石土-路由长度超过300m | C176: 十米 | D176: 2.38 | E176: 5.34 | F176: TXL5-004 | G176: 非城区气流法敷设微管-3根以下 | H176: km | I176: 气流敷设设备(敷设微管微缆) | J176: 0.2 | K176: 814 | L176: TXL6-052 | M176: 40千米以上中继段光缆测试-132芯以下 | N176: 中继段 | O176: 光时域反射仪 | P176: 1.51 | Q176: 153
A177: TXL2-098 | B177: 地下定向钻孔敷管-工作孔径φ600mm以内-每处30m以内 | C177: 处 | D177: 8.91 | E177: 17.34 | F177: TXL5-005 | G177: 非城区气流法敷设微管-5根以下 | H177: km | I177: 汽车式起重机 （5t） | J177: 0.15 | K177: 516 | L177: TXL6-052 | M177: 40千米以上中继段光缆测试-132芯以下 | N177: 中继段 | O177: 偏振模色散测试仪 | P177: 1.51 | Q177: 455
A178: TXL2-098A | B178: 地下定向钻孔敷管-工作孔径φ600mm以内-每处30m以内-土层为回填垃圾 | C178: 处 | D178: 10.69 | E178: 20.81 | F178: TXL5-005 | G178: 非城区气流法敷设微管-5根以下 | H178: km | I178: 气流敷设设备(敷设微管微缆) | J178: 0.23 | K178: 814 | L178: TXL6-053 | M178: 40千米以上中继段光缆测试-144芯以下 | N178: 中继段 | O178: 光功率计 | P178: 1.58 | Q178: 116
A179: TXL2-098B | B179: 地下定向钻孔敷管-工作孔径φ600mm以内-每处30m以内-土层为粘性土夹碎石土 | C179: 处 | D179: 13.37 | E179: 26.01 | F179: TXL5-005 | G179: 非城区气流法敷设微管-5根以下 | H179: km | I179: 载重汽车 （5t） | J179: 0.46 | K179: 372 | L179: TXL6-053 | M179: 40千米以上中继段光缆测试-144芯以下 | N179: 中继段 | O179: 偏振模色散测试仪 | P179: 1.58 | Q179: 455
A180: TXL2-098C | B180: 地下定向钻孔敷管-工作孔径φ600mm以内-每处30m以内-土层为纯砂层或碎石土 | C180: 处 | D180: 17.82 | E180: 34.68 | F180: TXL5-006 | G180: 非城区气流法敷设微管-5根以上 | H180: km | I180: 气流敷设设备(敷设微管微缆) | J180: 0.26 | K180: 814 | L180: TXL6-053 | M180: 40千米以上中继段光缆测试-144芯以下 | N180: 中继段 | O180: 稳定光源 | P180: 1.58 | Q180: 117
A181: TXL2-099 | B181: 地下定向钻孔敷管-工作孔径φ600mm以内-每增加10m | C181: 十米 | D181: 1.78 | E181: 3.47 | F181: TXL5-006 | G181: 非城区气流法敷设微管-5根以上 | H181: km | I181: 汽车式起重机 （5t） | J181: 0.15 | K181: 516 | L181: TXL6-053 | M181: 40千米以上中继段光缆测试-144芯以下 | N181: 中继段 | O181: 光时域反射仪 | P181: 1.58 | Q181: 153
A182: TXL2-099A | B182: 地下定向钻孔敷管-工作孔径φ600mm以内-每增加10m-土层为回填垃圾 | C182: 十米 | D182: 2.14 | E182: 4.16 | F182: TXL5-006 | G182: 非城区气流法敷设微管-5根以上 | H182: km | I182: 载重汽车 （5t） | J182: 0.52 | K182: 372 | L182: TXL6-054 | M182: 40千米以上中继段光缆测试-168芯以下 | N182: 中继段 | O182: 光功率计 | P182: 1.66 | Q182: 116
A183: TXL2-099B | B183: 地下定向钻孔敷管-工作孔径φ600mm以内-每增加10m-土层为粘性土夹碎石土 | C183: 十米 | D183: 2.67 | E183: 5.21 | F183: TXL5-010 | G183: 城区人工布放微管-非空闲保护管内-3根以下 | H183: km | I183: 燃油式空气压缩机 | J183: 0.1 | K183: 368 | L183: TXL6-054 | M183: 40千米以上中继段光缆测试-168芯以下 | N183: 中继段 | O183: 偏振模色散测试仪 | P183: 1.66 | Q183: 455
A184: TXL2-099C | B184: 地下定向钻孔敷管-工作孔径φ600mm以内-每增加10m-土层为纯砂层或碎石土 | C184: 十米 | D184: 3.56 | E184: 6.94 | F184: TXL5-011 | G184: 城区人工布放微管-非空闲保护管内-4~5根 | H184: km | I184: 燃油式空气压缩机 | J184: 0.12 | K184: 368 | L184: TXL6-054 | M184: 40千米以上中继段光缆测试-168芯以下 | N184: 中继段 | O184: 稳定光源 | P184: 1.66 | Q184: 117
A185: TXL2-100 | B185: 地下定向钻孔敷管-工作孔径φ840mm以内-每处30m以内 | C185: 处 | D185: 13.66 | E185: 26.01 | F185: TXL5-013 | G185: 保护管贯通 | H185: 孔千米 | I185: 载重汽车 （5t） | J185: 0.08 | K185: 372 | L185: TXL6-054 | M185: 40千米以上中继段光缆测试-168芯以下 | N185: 中继段 | O185: 光时域反射仪 | P185: 1.66 | Q185: 153
A186: TXL2-100A | B186: 地下定向钻孔敷管-工作孔径φ840mm以内-每处30m以内-土层为回填垃圾 | C186: 处 | D186: 16.39 | E186: 31.21 | F186: TXL5-013 | G186: 保护管贯通 | H186: 孔千米 | I186: 气流敷设设备(敷设微管微缆) | J186: 0.08 | K186: 814 | L186: TXL6-055 | M186: 40千米以上光缆中继段测试-192芯以下 | N186: 中继段 | O186: 偏振模色散测试仪 | P186: 1.73 | Q186: 455
A187: TXL2-100B | B187: 地下定向钻孔敷管-工作孔径φ840mm以内-每处30m以内-土层为粘性土夹碎石土 | C187: 处 | D187: 20.49 | E187: 39.02 | F187: TXL5-016 | G187: 混凝土路面开微槽-30m以内 | H187: 处 | I187: 燃油式空气压缩机 (含风镐) | J187: 0.44 | K187: 372 | L187: TXL6-055 | M187: 40千米以上光缆中继段测试-192芯以下 | N187: 中继段 | O187: 光时域反射仪 | P187: 1.73 | Q187: 153
A188: TXL2-100C | B188: 地下定向钻孔敷管-工作孔径φ840mm以内-每处30m以内-土层为纯砂层或碎石土 | C188: 处 | D188: 27.32 | E188: 52.02 | F188: TXL5-016 | G188: 混凝土路面开微槽-30m以内 | H188: 处 | I188: 真空泵 | J188: 0.63 | K188: 137 | L188: TXL6-055 | M188: 40千米以上光缆中继段测试-192芯以下 | N188: 中继段 | O188: 稳定光源 | P188: 1.73 | Q188: 117
A189: TXL2-101 | B189: 地下定向钻孔敷管-工作孔径φ840mm以内-每增加10m | C189: 十米 | D189: 2.73 | E189: 5.20 | F189: TXL5-016 | G189: 混凝土路面开微槽-30m以内 | H189: 处 | I189: 路面切割机 | J189: 0.7 | K189: 210 | L189: TXL6-055 | M189: 40千米以上光缆中继段测试-192芯以下 | N189: 中继段 | O189: 光功率计 | P189: 1.73 | Q189: 116
A190: TXL2-101A | B190: 地下定向钻孔敷管-工作孔径φ840mm以内-每增加10m-土层为回填垃圾 | C190: 十米 | D190: 3.28 | E190: 6.24 | F190: TXL5-016 | G190: 混凝土路面开微槽-30m以内 | H190: 处 | I190: 汽油发电机（10kW） | J190: 0.84 | K190: 202 | L190: TXL6-056 | M190: 40千米以上光缆中继段测试-216芯以下 | N190: 中继段 | O190: 光功率计 | P190: 1.8 | Q190: 116
A191: TXL2-101B | B191: 地下定向钻孔敷管-工作孔径φ840mm以内-每增加10m-土层为粘性土夹碎石土 | C191: 十米 | D191: 4.10 | E191: 7.80 | F191: TXL5-017 | G191: 混凝土路面开微槽-每增加10m | H191: 10米 | I191: 汽油发电机（10kW） | J191: 0.17 | K191: 202 | L191: TXL6-056 | M191: 40千米以上光缆中继段测试-216芯以下 | N191: 中继段 | O191: 偏振模色散测试仪 | P191: 1.8 | Q191: 455
A192: TXL2-101C | B192: 地下定向钻孔敷管-工作孔径φ840mm以内-每增加10m-土层为纯砂层或碎石土 | C192: 十米 | D192: 5.46 | E192: 10.40 | F192: TXL5-017 | G192: 混凝土路面开微槽-每增加10m | H192: 10米 | I192: 燃油式空气压缩机 (含风镐) | J192: 0.08 | K192: 372 | L192: TXL6-056 | M192: 40千米以上光缆中继段测试-216芯以下 | N192: 中继段 | O192: 稳定光源 | P192: 1.8 | Q192: 117
A193: TXL2-102 | B193: 地下定向钻孔敷管-工作孔径φ950mm以内-每处30m以内 | C193: 处 | D193: 17.49 | E193: 36.02 | F193: TXL5-017 | G193: 混凝土路面开微槽-每增加10m | H193: 10米 | I193: 真空泵 | J193: 0.1 | K193: 137 | L193: TXL6-056 | M193: 40千米以上光缆中继段测试-216芯以下 | N193: 中继段 | O193: 光时域反射仪 | P193: 1.8 | Q193: 153
A194: TXL2-102A | B194: 地下定向钻孔敷管-工作孔径φ950mm以内-每处30m以内-土层为回填垃圾 | C194: 处 | D194: 20.99 | E194: 43.22 | F194: TXL5-017 | G194: 混凝土路面开微槽-每增加10m | H194: 10米 | I194: 路面切割机 | J194: 0.11 | K194: 210 | L194: TXL6-057 | M194: 40千米以上光缆中继段测试-240芯以下 | N194: 中继段 | O194: 光时域反射仪 | P194: 1.91 | Q194: 153
A195: TXL2-102B | B195: 地下定向钻孔敷管-工作孔径φ950mm以内-每处30m以内-土层为粘性土夹碎石土 | C195: 处 | D195: 26.24 | E195: 54.03 | F195: TXL5-018 | G195: 沥青柏油路面开微槽-30m以内 | H195: 处 | I195: 路面切割机 | J195: 0.7 | K195: 210 | L195: TXL6-057 | M195: 40千米以上光缆中继段测试-240芯以下 | N195: 中继段 | O195: 偏振模色散测试仪 | P195: 1.91 | Q195: 455
A196: TXL2-102C | B196: 地下定向钻孔敷管-工作孔径φ950mm以内-每处30m以内-土层为纯砂层或碎石土 | C196: 处 | D196: 34.98 | E196: 72.04 | F196: TXL5-018 | G196: 沥青柏油路面开微槽-30m以内 | H196: 处 | I196: 真空泵 | J196: 0.63 | K196: 137 | L196: TXL6-057 | M196: 40千米以上光缆中继段测试-240芯以下 | N196: 中继段 | O196: 稳定光源 | P196: 1.91 | Q196: 117
A197: TXL2-103 | B197: 地下定向钻孔敷管-工作孔径φ950mm以内-每增加10m | C197: 十米 | D197: 3.80 | E197: 6.80 | F197: TXL5-018 | G197: 沥青柏油路面开微槽-30m以内 | H197: 处 | I197: 燃油式空气压缩机 (含风镐) | J197: 0.44 | K197: 372 | L197: TXL6-057 | M197: 40千米以上光缆中继段测试-240芯以下 | N197: 中继段 | O197: 光功率计 | P197: 1.91 | Q197: 116
A198: TXL2-103A | B198: 地下定向钻孔敷管-工作孔径φ950mm以内-每增加10m-土层为回填垃圾 | C198: 十米 | D198: 4.56 | E198: 8.16 | F198: TXL5-018 | G198: 沥青柏油路面开微槽-30m以内 | H198: 处 | I198: 汽油发电机（10kW） | J198: 0.84 | K198: 202 | L198: TXL6-058 | M198: 40千米以上光缆中继段测试-264芯以下 | N198: 中继段 | O198: 光时域反射仪 | P198: 1.98 | Q198: 153
A199: TXL2-103B | B199: 地下定向钻孔敷管-工作孔径φ950mm以内-每增加10m-土层为粘性土夹碎石土 | C199: 十米 | D199: 5.70 | E199: 10.20 | F199: TXL5-019 | G199: 沥青柏油路面开微槽-每增加10m | H199: 十米 | I199: 真空泵 | J199: 0.1 | K199: 137 | L199: TXL6-058 | M199: 40千米以上光缆中继段测试-264芯以下 | N199: 中继段 | O199: 偏振模色散测试仪 | P199: 1.98 | Q199: 455
A200: TXL2-103C | B200: 地下定向钻孔敷管-工作孔径φ950mm以内-每增加10m-土层为纯砂层或碎石土 | C200: 十米 | D200: 7.60 | E200: 13.60 | F200: TXL5-019 | G200: 沥青柏油路面开微槽-每增加10m | H200: 十米 | I200: 路面切割机 | J200: 0.11 | K200: 210 | L200: TXL6-058 | M200: 40千米以上光缆中继段测试-264芯以下 | N200: 中继段 | O200: 稳定光源 | P200: 1.98 | Q200: 117
... 1432 more rows

Sheet 材料库 (hidden)
A1: 辅助关联项 | B1: 物资编码 | C1: 物资名称 | D1: 下单配置编码 | E1: 下单配置名称 | F1: 规格型号 | G1: 计量单位 | H1: 单价
A2: J03030200017 | B2: J03030200017 | C2: 光纤收发器机框-普通 | F2: 普通光纤收发器机框 | G2: 框 | H2: 0.00
A3: J05010301560 | B3: J05010301560 | C3: 室外光缆-GYTS-单模G.652D(B1.3)-30芯 | F3: - | G3: 皮长公里 | H3: 0.00
A4: L11011400873 | B4: L11011400873 | C4: （备机）非无线EPON上行E8-C家庭网关（2FE+1POTS） | F4: （备机） | G4: 台 | H4: 0.00
A5: L05060401486 | B5: L05060401486 | C5: 4块25对高频数据模块 | F5: 100回线接线模块（普天制式） | G5: 回线 | H5: 0.00
A6: J05060400780 | B6: J05060400780 | C6: MDF机架附件-打线刀 | F6: - | G6: 把 | H6: 0.00
A7: J05060400779 | B7: J05060400779 | C7: MDF保安单元 | F7: - | G7: 个 | H7: 0.00
A8: J03021500017 | B8: J03021500017 | C8: SW-4端口GE/FE光接口板 | F8: 无 | G8: 块 | H8: 0.00
A9: J03021500022 | B9: J03021500022 | C9: SW-A1类交流设备基本配置（机箱/交换板/主控板/电源/风扇/软件等） | F9: 无 | G9: 台 | H9: 0.00
A10: J03021500062 | B10: J03021500062 | C10: SW-直流电源模块A | F10: 无 | G10: 块 | H10: 0.00
A11: J05061100706 | B11: J05061100706 | C11: 光分路器-盒式封装-LC/UPC-1×4 | F11: - | G11: 套 | H11: 0.00
A12: J05061300052 | B12: J05061300052 | C12: 配线联结设备-转接器、转接头 | F12: - | G12: 个 | H12: 0.00
A13: L04030100568 | B13: L04030100568 | C13: GG-PDH光端机G01RV-FED1DFC/SC1 | F13: 1*10/100BASE-T，双纤FC/SC，1310NM波长，25KM，光口通道带宽16M。交直流供电可选。19英寸1U高设备 | G13: 台 | H13: 0.00
A14: J05061300052 | B14: J05061300052 | C14: 配线联结设备-转接器、转接头 | F14: - | G14: 个 | H14: 0.00
A15: J05062101190 | B15: J05062101190 | C15: 复接模块-25对-4005DPM | F15: - | G15: 块 | H15: 0.00
A16: J05062101207 | B16: J05062101207 | C16: 直接模块-25对-4000D | F16: - | G16: 块 | H16: 0.00
A17: J05070102489 | B17: J05070102489 | C17: 挂钩-电缆-65mm-普通 | F17: - | G17: 只 | H17: 0.00
A18: J05010100047 | B18: J05010100047 | C18: 尾纤-10米长-含接头 | F18: 尾纤-10米长-含接头 | G18: 根 | H18: 0.00
A19: J05070102552 | B19: J05070102552 | C19: 拉线衬环-三股 | F19: - | G19: 只 | H19: 0.00
A20: J05070102552 | B20: J05070102552 | C20: 拉线衬环-三股 | F20: - | G20: 只 | H20: 0.00
A21: J05070102863 | B21: J05070102863 | C21: 三沟隔电子 | F21: - | G21: 只 | H21: 0.00
A22: J05080100977 | B22: J05080100977 | C22: 电缆托板-尼龙-200mm | F22: - | G22: 个 | H22: 0.00
A23: J05080201729 | B23: J05080201729 | C23: 收尾线槽-14.5×8.4mm | F23: - | G23: 个 | H23: 0.00
A24: L04020201457 | B24: L04020201457 | C24: FH-155M光端机B2163-STM1-220 | F24: 155M光端机,220VAC,2个STM-1光口（FC,40KM）和63路E1接口,可扩展一个公务电话通道和一个以太网接口 | G24: 个 | H24: 0.00
A25: J11011400002 | B25: J11011400002 | C25: AP外置型EPON上行E8-C网关-2FE+1POTS | F25: 无 | G25: 台 | H25: 0.00
A26: J05040300198 | B26: J05040300198 | C26: 单面开门电缆交接箱-无端子-910×800×340mm-600对XF5-C | F26: 不锈钢材质 | G26: 台 | H26: 0.00
A27: J05040300182 | B27: J05040300182 | C27: 单面开门电缆交接箱-挂壁型-800×550×230mm-300对XF5 | F27: 不锈钢材质 | G27: 台 | H27: 0.00
A28: L02060101201 | B28: L02060101201 | C28: 中兴软交换话务台卡 | F28: - | G28: 块 | H28: 0.00
A29: L05060601931 | B29: L05060601931 | C29: 室外机柜直列模块（上海汇珏） | F29: 25线 | G29: 块 | H29: 0.00
A30: L03020506527 | B30: L03020506527 | C30: 华为-S5328C-EI-24S主机 | F30: S5328C-EI-24S主机(24个100/1000BASE-X,4个千兆COMBO口(10/100/1000 BASE-T),机箱,双电源槽位,不含插卡和电源) | G30: 个 | H30: 0.00
A31: J05040200132 | B31: J05040200132 | C31: 室外电缆分线盒-铝合金-壁挂式-20对XF0 | F31: - | G31: 套 | H31: 0.00
A32: L03020506563 | B32: L03020506563 | C32: 华为-S5352C-EI主机 | F32: S5352C-EI主机(48个10/100/1000BASE-T,机箱,双电源槽位,不含插卡和电源) | G32: 个 | H32: 0.00
A33: L11011303374 | B33: L11011303374 | C33: 上海贝尔RG100A-AA（ADSL2+上行） | F33: RG100A-AA（ADSL2+上行） | G33: 套 | H33: 0.00
A34: L03030102827 | B34: L03030102827 | C34: 协议转换器 山水16路集中式机框-DC | F34: - | G34: 台 | H34: 0.00
A35: L05080204959 | B35: L05080204959 | C35: 拉线双罗旋 | F35: 250*16M/M | G35: 付 | H35: 0.00
A36: L05080204949 | B36: L05080204949 | C36: 瓦型护钢板 | F36: 150X100X5 | G36: 块 | H36: 0.00
A37: L05070300422 | B37: L05070300422 | C37: 光缆保护管-Ф20 | F37: 光缆保护管-Ф20 | G37: 米 | H37: 0.00
A38: J05040200130 | B38: J05040200130 | C38: 室外电缆分线盒-铝合金-壁挂式-5对XF0 | F38: - | G38: 套 | H38: 0.00
A39: L03030102828 | B39: L03030102828 | C39: OTS-240D/2光端机 | F39: - | G39: 台 | H39: 0.00
A40: L04030100582 | B40: L04030100582 | C40: OTS-120D-AC | F40: - | G40: 台 | H40: 0.00
A41: L05062102939 | B41: L05062102939 | C41: 高频数据模块接线工具 | F41: 高频数据模块接线工具（普天制式） | G41: 个 | H41: 0.00
A42: L05061408602 | B42: L05061408602 | C42: 多模跳纤-铠装单芯双头-SC/UPC-SC/UPC-10M | F42: 多模跳纤-铠装单芯双头-SC/UPC-SC/UPC-10M | G42: 条 | H42: 0.00
A43: L05061408600 | B43: L05061408600 | C43: 多模跳纤-铠装单芯双头-FC/UPC-FC/UPC-10M | F43: 多模跳纤-铠装单芯双头-FC/UPC-FC/UPC-10M | G43: 条 | H43: 0.00
A44: J05040200123 | B44: J05040200123 | C44: 室内外电缆分线盒、箱-铝合金-壁挂式-15对XF0(带锁) | F44: - | G44: 套 | H44: 0.00
A45: J05030300016 | B45: J05030300016 | C45: 铜鼻子-DT-185mm2 | F45: - | G45: 个 | H45: 0.00
A46: J05030300013 | B46: J05030300013 | C46: 铜鼻子-DT-95mm2 | F46: - | G46: 个 | H46: 0.00
A47: J05010301527 | B47: J05010301527 | C47: 室外光缆-GYTA-单模G.652D(B1.3)-48芯 | F47: - | G47: 皮长公里 | H47: 3623.32
A48: J05010301588 | B48: J05010301588 | C48: 室外光缆-GYDTA-单模G.652D(B1.3)-96芯 | F48: - | G48: 皮长公里 | H48: 0.00
A49: J05010301588 | B49: J05010301588 | C49: 室外光缆-GYDTA-单模G.652D(B1.3)-96芯 | F49: - | G49: 皮长公里 | H49: 0.00
A50: L05061003244 | B50: L05061003244 | C50: 户外架空/落地机柜VI型（交流） | F50: 1200*1300*650 | G50: 个 | H50: 0.00
A51: L04030100579 | B51: L04030100579 | C51: OTS-120D-DC | F51: - | G51: 台 | H51: 0.00
A52: L05061003243 | B52: L05061003243 | C52: 户外壁挂/抱杆机箱（III型） | F52: 650*1200*300 | G52: 个 | H52: 0.00
A53: L05060800643 | B53: L05060800643 | C53: 明装底盒 | F53: - | G53: 个 | H53: 0.00
A54: L03030200499 | B54: L03030200499 | C54: 瑞斯康达 RC102-FE-S2 | F54: - | G54: 台 | H54: 0.00
A55: L03030200508 | B55: L03030200508 | C55: 单纤光纤收发器 | F55: 模块-可网管,1000MBPS,单模单芯,双波长0-25KM,RJ45/SC-PCRC212-GE-SS15 | G55: 个 | H55: 0.00
A56: L03030200507 | B56: L03030200507 | C56: 16槽光纤收发器机箱 | F56: RC/双电/48V | G56: 个 | H56: 0.00
A57: L03030200500 | B57: L03030200500 | C57: 机箱主/备用电源,100W,-48VDC | F57: 0L200P-48 | G57: 块 | H57: 0.00
A58: L03030200504 | B58: L03030200504 | C58: 单台式10/100M光纤收发器（40KM单模双纤DC） | F58: - | G58: 台 | H58: 0.00
A59: L05060401446 | B59: L05060401446 | C59: 室外机柜横列模块（上海汇珏） | F59: 32线 | G59: 块 | H59: 0.00
A60: L05060401446 | B60: L05060401446 | C60: 室外机柜横列模块（上海汇珏） | F60: 32线 | G60: 块 | H60: 0.00
A61: L05050200860 | B61: L05050200860 | C61: 日海分光器单元箱 | F61: S01 A1单元箱体 | G61: 个 | H61: 0.00
A62: L05030300422 | B62: L05030300422 | C62: 保安接线排 | F62: FA8-210-2H（深圳日海） | G62: 个 | H62: 0.00
A63: L05030204340 | B63: L05030204340 | C63: 通信电源用阻燃软电缆-35-BV-单芯 | F63: 通信电源用阻燃软电缆-35-BV-单芯 | G63: 米 | H63: 0.00
A64: L05030204338 | B64: L05030204338 | C64: 通信电源用阻燃软电缆-25-BVR-单芯 | F64: 通信电源用阻燃软电缆-25-BVR-单芯 | G64: 米 | H64: 0.00
A65: L05030204332 | B65: L05030204332 | C65: 单股铜芯线 | F65: 1/1.5MM | G65: 米 | H65: 0.00
A66: L05030204310 | B66: L05030204310 | C66: 铝芯电力电缆 | F66: VLV2*16MM | G66: 米 | H66: 0.00
A67: L05030204297 | B67: L05030204297 | C67: VLV-3*25+1*16MM | F67: VLV-3*25+1*16MM | G67: 米 | H67: 0.00
A68: L05030204295 | B68: L05030204295 | C68: VLV-2*10MM | F68: VLV-2*10MM | G68: 米 | H68: 0.00
A69: L05020700877 | B69: L05020700877 | C69: 跳线 | F69: 2*1/0.5 | G69: 米 | H69: 0.00
A70: L05020604562 | B70: L05020604562 | C70: 分歧卡 | F70: 小号 | G70: 个 | H70: 0.00
A71: L05020604543 | B71: L05020604543 | C71: 开启式套管 | F71: KJF42-300(100对) | G71: 套 | H71: 0.00
A72: L05020604540 | B72: L05020604540 | C72: 开启式套管 | F72: KJF42-250(50对） | G72: 套 | H72: 0.00
A73: L05020604532 | B73: L05020604532 | C73: 热缩管 | F73: 强力纤维热缩充气包管-92/30-500-XAGA1000 | G73: 条 | H73: 0.00
A74: J05030300007 | B74: J05030300007 | C74: 铜鼻子-DT-10mm2 | F74: - | G74: 个 | H74: 0.00
A75: L05020401487 | B75: L05020401487 | C75: 5类25对室外阻水电缆 | F75: HSGYY5-Z 25*2*0.5 | G75: 米 | H75: 0.00
A76: L04030100583 | B76: L04030100583 | C76: 高科GK-G04B(16*2M+2*RJ45)-AC | F76: 高科GK-G04B(16*2M+2*RJ45)-AC | G76: 台 | H76: 0.00
A77: J050206600805 | B77: J050206600805 | C77: 热缩套管-RSYF-23/12-210 | F77: 每套热缩管配置相应尺寸（大、中、小号）分歧卡一只，屏蔽连接夹一只 | G77: 套 | H77: 0.00
A78: L12100200654 | B78: L12100200654 | C78: 手持式标签打印机 | F78: 兄弟牌 | G78: 台 | H78: 0.00
A79: L11011500310 | B79: L11011500310 | C79: 锐捷I型NBR1200 | F79: NBR1200 | G79: 台 | H79: 0.00
A80: L03030801135 | B80: L03030801135 | C80: 九江山水 E1/10BT-DC | F80: - | G80: 台 | H80: 0.00
A81: L03030801128 | B81: L03030801128 | C81: 光接口转换器 | F81: 瑞斯康达-RC903-V35FE1V.35转E1 | G81: 台 | H81: 0.00
A82: L03030602432 | B82: L03030602432 | C82: 交换机-PON上行 | F82: 插卡式-MA5610机箱MA5610 | G82: 台 | H82: 0.00
A83: L03030602426 | B83: L03030602426 | C83: 中兴数据板 | F83: 中兴C220EPON板 | G83: 块 | H83: 0.00
A84: L03030801138 | B84: L03030801138 | C84: 高科 V2051(E1/10BASE-T)-AC | F84: - | G84: 台 | H84: 0.00
A85: J05020200210 | B85: J05020200210 | C85: 局外市话电缆-HYA-50×2×0.4mm | F85: - | G85: 米 | H85: 0.00
A86: J05020200211 | B86: J05020200211 | C86: 局外市话电缆-HYA-100×2×0.4mm | F86: - | G86: 米 | H86: 0.00
A87: J05030201972 | B87: J05030201972 | C87: 电力电缆-ZA-RVV-0.6/1KV-2×6mm2 | F87: - | G87: 米 | H87: 0.00
A88: J05030201963 | B88: J05030201963 | C88: 电力电缆-ZA-RVV-0.6/1KV-1×185mm2 | F88: - | G88: 米 | H88: 0.00
A89: L03030602412 | B89: L03030602412 | C89: HW-MA562XEPON远端光接入单元（24FE） | F89: MA5626EPON远端光接入单元(交流,24FE,单EPON口上行,含电源线和资料) | G89: 个 | H89: 0.00
A90: J05020300302 | B90: J05020300302 | C90: 同轴电缆-SYV-75ohm-2-2×8芯 | F90: - | G90: 米 | H90: 0.00
A91: L03030602411 | B91: L03030602411 | C91: HW-MA5610以太网接入板（16端口） | F91: HW-MA5610以太网接入板（16端口） | G91: 个 | H91: 0.00
A92: L03030501738 | B92: L03030501738 | C92: F401整套，1FE/GE | F92: EPON | G92: 台 | H92: 0.00
A93: L03030501717 | B93: L03030501717 | C93: 9806H(AC) | F93: 9806H 24路ADSL2+用户板套件 | G93: 套 | H93: 0.00
A94: J05030201954 | B94: J05030201954 | C94: 电力电缆-ZA-RVV-0.6/1KV-1×10mm2 | F94: - | G94: 米 | H94: 0.00
A95: L03030200510 | B95: L03030200510 | C95: 光纤收发器 | F95: 烽火-光纤收发器局端48V | G95: 个 | H95: 0.00
A96: L03030200510 | B96: L03030200510 | C96: 光纤收发器 | F96: 烽火-光纤收发器局端48V | G96: 个 | H96: 0.00
A97: J050206600786 | B97: J050206600786 | C97: 热缩套管-RSBF-62/22-500 | F97: 每套热缩管配置相应尺寸（大、中、小号）分歧卡一只，屏蔽连接夹一只 | G97: 套 | H97: 0.00
A98: J050206600786 | B98: J050206600786 | C98: 热缩套管-RSBF-62/22-500 | F98: 每套热缩管配置相应尺寸（大、中、小号）分歧卡一只，屏蔽连接夹一只 | G98: 套 | H98: 0.00
A99: L03030200509 | B99: L03030200509 | C99: 光纤收发器 | F99: RC202-FE-S1 | G99: 个 | H99: 0.00
A100: J050206600788 | B100: J050206600788 | C100: 热缩套管-RSBF-75/25-500 | F100: 每套热缩管配置相应尺寸（大、中、小号）分歧卡一只，屏蔽连接夹一只 | G100: 套 | H100: 0.00
A101: L03030501676 | B101: L03030501676 | C101: ADSL局端设备-以太上行 | F101: 华为-MA5612G-8FE+16POTS-FTTB | G101: 台 | H101: 0.00
A102: J05080201495 | B102: J05080201495 | C102: PVC实壁管-PVC-U-外径／内径50/46 | F102: 配件含套筒16.7只/百米；堵头3只/百米；胶水（必要时） | G102: 米 | H102: 2.66
A103: J05080201501 | B103: J05080201501 | C103: 梅花管-HDPE-32×7 | F103: 配件含套筒16.7只/百米；母管堵头3只/百米；子管堵头21只/百米；胶水（必要时） | G103: 米 | H103: 15.39
A104: J05010303129 | B104: J05010303129 | C104: 光缆-GYTA-单模G.652D-48芯 | F104: - | G104: 皮长公里 | H104: 4113.61
A105: J05050500039 | B105: J05050500039 | C105: 光纤配线箱-壁挂式-440×280×115mm-24芯-室内外 | F105: - | G105: 个 | H105: 164.56
A106: J05080201539 | B106: J05080201539 | C106: PVC管-实壁管-20/17mm | F106: - | G106: 米 | H106: 1.28
A107: J05061100685 | B107: J05061100685 | C107: 光分路器-托盘式封装适配器型-FC/UPC-1×16 | F107: - | G107: 套 | H107: 197.32
A108: J05061100685 | B108: J05061100685 | C108: 光分路器-托盘式封装适配器型-FC/UPC-1×16 | F108: - | G108: 套 | H108: 98.27
A109: J05080201501 | B109: J05080201501 | C109: 梅花管-HDPE-32×7 | F109: 配件含套筒16.7只/百米；母管堵头3只/百米；子管堵头21只/百米；胶水（必要时） | G109: 米 | H109: 12.22
A110: J05010300648 | B110: J05010300648 | C110: 光缆-GYFTY-层绞结构-24芯 | F110: 室外光缆 | G110: 皮长公里 | H110: 2342.65
A111: J05010300648 | B111: J05010300648 | C111: 光缆-GYFTY-层绞结构-24芯 | F111: 室外光缆 | G111: 皮长公里 | H111: 2342.65
A112: J05010300915 | B112: J05010300915 | C112: 光缆-GYTA-层绞结构-24芯 | F112: 室外光缆 | G112: 皮长公里 | H112: 2188.08
A113: J05060900571 | B113: J05060900571 | C113: 网络机柜-1 | F113: 冷轧钢板网络机柜柜体：2000x600x800（高*宽*深mm)机架；机柜前门：单开网孔门；机柜后门:双开网孔门；侧板:2个，2000*800机柜用；托盘:配800mm深机柜，最大载重40KG；托板:配800mm深机柜，最大载重80KG,配电单元A:2进20出,空开:2个，63A国产空开，交流；空开:16个，10A国产空开，交流；空开:4个16A国产空开，交流；交流风扇模块：普通型，含2个风扇；假面板：2U；KVM切换器：8端口；安装底座：600*800(宽*深）机柜用 | G113: 架 | H113: 663.95
A114: J05070102487 | B114: J05070102487 | C114: 挂钩-电缆-45mm-普通 | F114: - | G114: 只 | H114: 0.32
A115: J05010300915 | B115: J05010300915 | C115: 光缆-GYTA-层绞结构-24芯 | F115: 室外光缆 | G115: 皮长公里 | H115: 2188.08
A116: J05010300648 | B116: J05010300648 | C116: 光缆-GYFTY-层绞结构-24芯 | F116: 室外光缆 | G116: 皮长公里 | H116: 2427.59
A117: J05070102506 | B117: J05070102506 | C117: 镀锌铁线-3.0mm-B(厚)级 | F117: - | G117: 公斤 | H117: 5.91
A118: J05070102506 | B118: J05070102506 | C118: 镀锌铁线-3.0mm-B(厚)级 | F118: - | G118: 公斤 | H118: 5.91
A119: J01040100080 | B119: J01040100080 | C119: 三腔体功分器-普通型-N型头 | F119: - | G119: 个 | H119: 13.49
A120: J05070102863 | B120: J05070102863 | C120: 三沟隔电子 | F120: - | G120: 只 | H120: 0.85
A121: J05070102873 | B121: J05070102873 | C121: 镀锌单吊线抱箍-144mm | F121: - | G121: 个 | H121: 11.00
A122: J05061405153_JX0026 | B122: J05061405153 | C122: 光纤活动连接器1米、2米、3米、5米等配置 | D122: J05061405153_JX0026 | E122: 单芯单模双头尾纤FC-FC 15米 （G.652D 3mm） | G122: 根 | H122: 8.57
A123: J05061100684 | B123: J05061100684 | C123: 光分路器-托盘式封装适配器型-FC/UPC-1×8 | F123: - | G123: 套 | H123: 60.05
A124: J05050500039 | B124: J05050500039 | C124: 光纤配线箱-壁挂式-440×280×115mm-24芯-室内外 | F124: - | G124: 个 | H124: 164.56
A125: J05061100224 | B125: J05061100224 | C125: 1×8插片式适配器型SC/UPC光分路器 | F125: 1×8光分路器、SC/UPC头子尾纤、插片式适配器型封装 | G125: 套 | H125: 61.87
A126: J05070102450 | B126: J05070102450 | C126: 线路铁件-隔电子 | F126: - | G126: 只 | H126: 3.85
A127: J05070102561 | B127: J05070102561 | C127: 一号拉攀-385×40mm | F127: - | G127: 个 | H127: 4.20
A128: J05010300940 | B128: J05010300940 | C128: 光缆-GYTA-层绞结构-4芯 | F128: 室外光缆 | G128: 皮长公里 | H128: 1038.37
A129: J05010302915 | B129: J05010302915 | C129: 光缆-GYFTY-单模G.652D-24芯 | F129: - | G129: 皮长公里 | H129: 2766.06
A130: J05010302915 | B130: J05010302915 | C130: 光缆-GYFTY-单模G.652D-24芯 | F130: - | G130: 皮长公里 | H130: 2766.06
A131: J05050100552 | B131: J05050100552 | C131: SC单芯适配器（PC/UPC/APC）-国产 | F131: SC单芯适配器（PC/UPC/APC）-国产 | G131: 只 | H131: 3.42
A132: J05010302915 | B132: J05010302915 | C132: 光缆-GYFTY-单模G.652D-24芯 | F132: - | G132: 皮长公里 | H132: 2766.06
A133: J05010302915 | B133: J05010302915 | C133: 光缆-GYFTY-单模G.652D-24芯 | F133: - | G133: 皮长公里 | H133: 2766.06
A134: J05070102611 | B134: J05070102611 | C134: 线路铁件-拉线警示护套-硬质 | F134: - | G134: 米 | H134: 6.41
A135: J05070103139 | B135: J05070103139 | C135: 线路铁件-圆形压线卡-8# | F135: - | G135: 个 | H135: 0.04
A136: J05050100706 | B136: J05050100706 | C136: CT-GXFT-144芯SMC箱体 | F136: 1035×570×308mm(高×宽×深)，144芯(含底座、满配喉箍，含内背装件，线环组件，跳纤存储单元、满配喉箍等未单独列出的所有必配零部件) | G136: 只 | H136: 1926.38
A137: J05070103140 | B137: J05070103140 | C137: 线路铁件-圆形压线卡-10# | F137: - | G137: 个 | H137: 0.04
A138: J05062101272 | B138: J05062101272 | C138: 尼龙扎带 | F138: - | G138: 百只 | H138: 0.08
A139: J05061405153_JX0002 | B139: J05061405153 | C139: 光纤活动连接器1米、2米、3米、5米等配置 | D139: J05061405153_JX0002 | E139: 单芯单模双头尾纤FC-FC 2米 （G.652D 3mm） | G139: 根 | H139: 6.11
A140: J05070102553 | B140: J05070102553 | C140: 拉线衬环-五股 | F140: - | G140: 只 | H140: 0.60
A141: J05010303120 | B141: J05010303120 | C141: 光缆-GYTA-单模G.652D-24芯 | F141: - | G141: 皮长公里 | H141: 2514.94
A142: J05050100860_JX0030 | B142: J05050100860 | C142: 光缆交接箱144、288、576配置 | D142: J05050100860_JX0030 | E142: 光缆交接箱（144芯SMC箱体）满配 SC | G142: 台 | H142: 1112.70
A143: J05061405153_JX0064 | B143: J05061405153 | C143: 光纤活动连接器1米、2米、3米、5米等配置 | D143: J05061405153_JX0064 | E143: 单芯单模双头尾纤LC-FC 15米 （G.652D 3mm） | G143: 根 | H143: 9.06
A144: J050206600788 | B144: J050206600788 | C144: 热缩套管-RSBF-75/25-500 | F144: 每套热缩管配置相应尺寸（大、中、小号）分歧卡一只，屏蔽连接夹一只 | G144: 套 | H144: 0.00
A145: L03030501732 | B145: L03030501732 | C145: F821交流插箱 | F145: 含主控板 | G145: 台 | H145: 0.00
A146: J05061100694 | B146: J05061100694 | C146: 光分路器-盒式封装-FC/UPC-1×4 | F146: - | G146: 套 | H146: 0.00
A147: L10150200721 | B147: L10150200721 | C147: 机电工具 | F147: 黑胶布 | G147: 个 | H147: 0.00
A148: L05070106801 | B148: L05070106801 | C148: U型抱箍（2个） | F148: 1:32SMC室外楼道箱抱杆使用 | G148: 个 | H148: 0.00
A149: J05061300052 | B149: J05061300052 | C149: 配线联结设备-转接器、转接头 | F149: - | G149: 个 | H149: 0.00
A150: J05040300181 | B150: J05040300181 | C150: 单面开门电缆交接箱-挂壁型-820×420×230mm-200对XF5 | F150: 不锈钢材质 | G150: 台 | H150: 0.00
A151: L03030801129 | B151: L03030801129 | C151: GG-机架式协议转换器C2810-V.35板 | F151: E1/V.35转换模块，适用于C2810机架式协议转换器机框 | G151: 台 | H151: 0.00
A152: J05070600015 | B152: J05070600015 | C152: 管道材料-线卡、板 | F152: - | G152: 个 | H152: 0.05
A153: J05020200245 | B153: J05020200245 | C153: 局外市话电缆-HYA-5×2×0.4mm | F153: - | G153: 米 | H153: 0.00
A154: J05010300673 | B154: J05010300673 | C154: 光缆-GYFTY-层绞结构-4芯 | F154: 室外光缆 | G154: 皮长公里 | H154: 1357.19
A155: J05010300673 | B155: J05010300673 | C155: 光缆-GYFTY-层绞结构-4芯 | F155: 室外光缆 | G155: 皮长公里 | H155: 1357.20
A156: J05010300949 | B156: J05010300949 | C156: 光缆-GYTA-层绞结构-6芯 | F156: 室外光缆 | G156: 皮长公里 | H156: 1361.15
A157: J05010300949 | B157: J05010300949 | C157: 光缆-GYTA-层绞结构-6芯 | F157: 室外光缆 | G157: 皮长公里 | H157: 1248.91
A158: J05020700090 | B158: J05020700090 | C158: 平行电话线 | F158: - | G158: 个 | H158: 0.26
A159: J05010300949 | B159: J05010300949 | C159: 光缆-GYTA-层绞结构-6芯 | F159: 室外光缆 | G159: 皮长公里 | H159: 1361.00
A160: J05010300952 | B160: J05010300952 | C160: 光缆-GYTA-层绞结构-8芯 | F160: 室外光缆 | G160: 皮长公里 | H160: 1457.10
A161: J05062101285 | B161: J05062101285 | C161: RJ45模块 | F161: - | G161: 个 | H161: 4.10
A162: J05050500039 | B162: J05050500039 | C162: 光纤配线箱-壁挂式-440×280×115mm-24芯-室内外 | F162: - | G162: 个 | H162: 128.40
A163: J05062101284 | B163: J05062101284 | C163: RJ11模块 | F163: - | G163: 个 | H163: 1.54
A164: J05050500039 | B164: J05050500039 | C164: 光纤配线箱-壁挂式-440×280×115mm-24芯-室内外 | F164: - | G164: 个 | H164: 128.41
A165: J05062101241 | B165: J05062101241 | C165: 光缆盘留架 | F165: - | G165: 个 | H165: 32.48
A166: J05062101284 | B166: J05062101284 | C166: RJ11模块 | F166: - | G166: 个 | H166: 1.54
A167: J05070102828 | B167: J05070102828 | C167: 线路铁件-铁丝-Φ1.5mm | F167: - | G167: 公斤 | H167: 6.50
A168: J05050500039 | B168: J05050500039 | C168: 光纤配线箱-壁挂式-440×280×115mm-24芯-室内外 | F168: - | G168: 个 | H168: 128.40
A169: J05050500039 | B169: J05050500039 | C169: 光纤配线箱-壁挂式-440×280×115mm-24芯-室内外 | F169: - | G169: 个 | H169: 128.40
A170: J05020400461 | B170: J05020400461 | C170: 预制成端数字通信电缆-HSYV-5-4×2×0.5mm | F170: - | G170: 米 | H170: 0.84
A171: J05010300673 | B171: J05010300673 | C171: 光缆-GYFTY-层绞结构-4芯 | F171: 室外光缆 | G171: 皮长公里 | H171: 1375.75
A172: J05010300682 | B172: J05010300682 | C172: 光缆-GYFTY-层绞结构-6芯 | F172: 室外光缆 | G172: 皮长公里 | H172: 1320.69
A173: J05050400974 | B173: J05050400974 | C173: 光缆接头盒盒体-卧式-24芯 | F173: - | G173: 套 | H173: 83.25
A174: J05061100037 | B174: J05061100037 | C174: 1×16插片式适配器型SC/UPC光分路器 | F174: 1×16光分路器、SC/UPC头子尾纤、插片式适配器型封装 | G174: 套 | H174: 68.24
A175: J05080201737 | B175: J05080201737 | C175: 封堵填充胶泥 | F175: - | G175: 个 | H175: 6.41
A176: J05050200200 | B176: J05050200200 | C176: 光缆分光分纤盒-SMC-16芯 | F176: 外形尺寸：350×340×100mm，两槽位。安装方式：可壁挂可抱杆。含锁具、箱体背部安装板、分插片固定装置、蝶形引入光缆固定装置、光缆固定接地装置、尾纤停泊区、魔术搭扣、翻版(含吸铁支架)、线环、密封件等必配零部件。 | G176: 台 | H176: 126.73
A177: J05070103141 | B177: J05070103141 | C177: 线路铁件-圆形压线卡-12# | F177: - | G177: 个 | H177: 0.05
A178: J05080201702 | B178: J05080201702 | C178: 波纹管-HDPE-25×0.40mm | F178: - | G178: 米 | H178: 1.88
A179: J05020700093 | B179: J05020700093 | C179: RJ11水晶头 | F179: - | G179: 个 | H179: 0.32
A180: J05050300083 | B180: J05050300083 | C180: 光纤终端盒-挂墙式-直熔-24芯 | F180: - | G180: 个 | H180: 39.32
A181: J05062101285 | B181: J05062101285 | C181: RJ45模块 | F181: - | G181: 个 | H181: 4.10
A182: J05062101284 | B182: J05062101284 | C182: RJ11模块 | F182: - | G182: 个 | H182: 1.54
A183: J05010300212 | B183: J05010300212 | C183: 光缆-GYDTA-光纤带结构-144芯 | F183: 室外光缆 | G183: 皮长公里 | H183: 11595.63
A184: J05061100224 | B184: J05061100224 | C184: 1×8插片式适配器型SC/UPC光分路器 | F184: 1×8光分路器、SC/UPC头子尾纤、插片式适配器型封装 | G184: 套 | H184: 61.87
A185: J05050500039 | B185: J05050500039 | C185: 光纤配线箱-壁挂式-440×280×115mm-24芯-室内外 | F185: - | G185: 个 | H185: 128.40
A186: J05010300212 | B186: J05010300212 | C186: 光缆-GYDTA-光纤带结构-144芯 | F186: 室外光缆 | G186: 皮长公里 | H186: 11595.63
A187: J05070102487 | B187: J05070102487 | C187: 挂钩-电缆-45mm-普通 | F187: - | G187: 只 | H187: 0.32
A188: J05061100183 | B188: J05061100183 | C188: 1×64插片式适配器型SC/UPC光分路器 | F188: 1×64光分路器、SC/UPC头子尾纤、插片式适配器型封装 | G188: 套 | H188: 376.70
A189: J05050500039 | B189: J05050500039 | C189: 光纤配线箱-壁挂式-440×280×115mm-24芯-室内外 | F189: - | G189: 个 | H189: 128.40
A190: J05020200243 | B190: J05020200243 | C190: 局外市话电缆-HYA-10×2×0.4mm | F190: - | G190: 米 | H190: 0.21
A191: J05070102573 | B191: J05070102573 | C191: 凸出支架-小号 | F191: - | G191: 个 | H191: 12.99
A192: J05070102838 | B192: J05070102838 | C192: 地线棒-12×1800mm | F192: - | G192: 个 | H192: 10.26
A193: J05070102846 | B193: J05070102846 | C193: 线路铁件-钢绞线卡子-10号 | F193: - | G193: 个 | H193: 1.20
A194: J05070102848 | B194: J05070102848 | C194: 线路铁件-钢绞线卡子-8号 | F194: - | G194: 个 | H194: 0.77
A195: J05070102881 | B195: J05070102881 | C195: 镀锌双吊线抱箍-164mm | F195: - | G195: 个 | H195: 20.34
A196: J05020400461 | B196: J05020400461 | C196: 预制成端数字通信电缆-HSYV-5-4×2×0.5mm | F196: - | G196: 米 | H196: 0.72
A197: J05080201514 | B197: J05080201514 | C197: PE光缆子管-LDPE-外径／内径32/28 | F197: 配件-堵头3只/百米 | G197: 米 | H197: 1.82
A198: J05010303129 | B198: J05010303129 | C198: 光缆-GYTA-单模G.652D-48芯 | F198: - | G198: 皮长公里 | H198: 4329.26
A199: J05010300685 | B199: J05010300685 | C199: 光缆-GYFTY-层绞结构-8芯 | F199: 室外光缆 | G199: 皮长公里 | H199: 1622.65
A200: J05050500039 | B200: J05050500039 | C200: 光纤配线箱-壁挂式-440×280×115mm-24芯-室内外 | F200: - | G200: 个 | H200: 164.56
... 295 more rows
